{"text_format":"1","workbook":"xlsx","n_sheets":21,"sheets":["Cover","Checklist","Instructions","G1-G2 General Details","G3-G4-G5 Submission Data","G6 Business-Site Data","1 Water Use Summary","2 Management Review","3 Management Actions","4 End Use Definitions","5-1A Taps & Showers","5-1B Toilets & Urinals","Quarterly Lookup","5-2 Cooling Tower","6 End Use Inventory","7 End Use Totals","8 End Use Summary Chart","9-1 Water Saving Measures","9-2 Economic Assessment","9-3 Action Plan","Data"],"not_rendered":{"charts":2,"images":3,"macros":1,"external_links":0,"defined_names":38,"comments":13,"pivot_tables":0},"unopened":[{"sheet":"8 End Use Summary Chart","index":16,"reason":"not_a_worksheet"}],"bounds":{"document_bytes":16777216,"sheet_cells":100000,"rows_first":2000,"rows_last":500,"rows_between":2000,"halvings":0,"cell_chars":16384,"cell_head_chars":4096},"cells_cut":0,"cells_raw":0,"read":"whole","date_system":"1900"}

{"sheet":"Cover","index":0,"n_rows":28,"n_cols":3,"rows_kept":28,"cut":false,"hidden":false,"merged":[[19,2,19,7],[20,2,20,7],[27,1,32,7],[22,1,24,7],[18,2,18,7],[0,1,10,7],[17,2,17,7],[15,1,15,5],[16,2,16,7],[13,1,14,7]]}
[null,{"$f":"IF(C17=0,\"WEMP Template\",\"WEMP for \"&CHAR(10)&C17)","v":"WEMP Template"}]
[]
[]
[]
[]
[]
[]
[]
[]
[]
[]
[]
[]
[null," Version 1.0\n(Dec 2010)"]
[]
[]
[null,"Business Name",{"$f":"'G1-G2 General Details'!C3:I3","v":0}]
[null,"Water Service Provider",{"$f":"'G1-G2 General Details'!C4:F4","v":0}]
[null,"Account Number",{"$f":"'G1-G2 General Details'!I4","v":0}]
[null,"Address",{"$f":"'G1-G2 General Details'!C6:F6","v":0}]
[null,"Submission Date",{"$f":"'G3-G4-G5 Submission Data'!D7","v":"00:00:00"}]
[]
[null,"Do not fill in this form, the data is automatically generated from the information entered into Modules G1 & G5"]
[]
[]
[]
[]
[null,"Note: The QWC SEQ WEMP Template and the DERM WEMP Template for outside SEQ are similar but not identical. Please ensure you are using the correct template for your location. Changes to either template are not permitted without the written consent of both the QWC and DERM."]

{"sheet":"Checklist","index":1,"n_rows":20,"n_cols":6,"rows_kept":20,"cut":false,"hidden":false,"merged":[[19,2,19,3],[4,3,4,4],[16,3,16,4],[18,2,18,3],[5,3,5,4],[7,3,7,4],[9,3,9,4],[11,3,11,4],[15,3,15,4],[17,1,17,4],[13,3,13,4],[12,1,12,4],[14,1,14,4],[10,1,10,4],[1,1,1,4],[2,1,2,4],[3,1,3,4],[8,1,8,4],[6,1,6,4]]}
[]
[null,"WEMP Checklist"]
[null,"Make sure you complete this checklist prior to submitting the WEMP to the water service provider. Only complete the sections which are relevant to your WEMP as defined in the WEMP guideline. Non relevant cells have been blanked out."]
[null,"Compulsory"]
[null,null,"G1-G5","Have the general and submission details been completed?"]
[null,"General","Module"]
[null,"Taps and Showers"]
[null,null,"5-1A","Has Module 5-1A been completed?",null,{"$f":"'G3-G4-G5 Submission Data'!$B$12","v":0}]
[null,"Toilets and Urinals"]
[null,null,"5-1B","Has Module 5-1B been completed?",null,{"$f":"'G3-G4-G5 Submission Data'!$B$13","v":0}]
[null,"Cooling Towers"]
[null,null,"5-2","Has Module 5-2 been completed?",null,{"$f":"'G3-G4-G5 Submission Data'!$B$14","v":0}]
[null,"Outdoor Use",null,null,null,{"$f":"'G3-G4-G5 Submission Data'!$B$14","v":0}]
[null,null,"4, 6 & 9","Have all outdoor end uses been identified, recorded and documented?",null,{"$f":"'G3-G4-G5 Submission Data'!$B$15","v":0}]
[null,"Process and Other Water Uses",null,null,null,{"$f":"'G3-G4-G5 Submission Data'!$B$15","v":0}]
[null,null,"4, 6 & 9","Have all process and other end uses been identified, recorded and documented?",null,{"$f":"'G3-G4-G5 Submission Data'!$B$16","v":0}]
[null,null,"WEMP Checklists","Have the 'WEMP Water Using Features\" and \"WEMP Water Saving Measures\" checklists been completed and signed?"]
[]
[null,"Signed",null,null,"Authority’s Signature"]
[null,"Date",null,null,"Date of signing"]

{"sheet":"Instructions","index":2,"n_rows":29,"n_cols":4,"rows_kept":29,"cut":false,"hidden":false,"merged":[[3,1,3,3],[1,1,1,3],[8,1,8,3],[2,1,2,3]]}
[]
[null,"WEMP Template Instructions"]
[null,"NB: You do not need to print this sheet"]
[null,"General\n\nThis WEMP Template has been created by DERM to assist non-residential customers of water service providers outside South East Queensland to complete WEMPs. This template is 'Module' focused in that it is a ready made set of electronic forms for capturing information and data required for a WEMP by the WEMP Guideline. Modules 5-1A, 5-1B and 5-2 contain some basic calculations, the totals from which automatically transer to the End Use Inventory in module 6.                                                                                                                                                                   \n\nA WEMP Template User Guide has been written to assist non-residential customers in completing this WEMP Template. The user guide can be found on the WEMP page at <www.derm.qld.gov.au>. \n\nWater service providers and their non-residential customers are free to use their own calculating tools to substitute for modules 5-1A, 5-1B and 5-2, or indeed the Template as a whole. Whatever tools are used the Template represents the recommended minimum content and level of detail for a complying WEMP.  Water use and savings should be broken down by at least the following end use categories (further breakdowns may well be warranted):\n* Taps and showers\n* Toilets and urinals\n* Cooling towers\n* Outdoor\n* Process & Other\n\nCare should be taken to record the parameters, variables and assumptions made in determining water use and savings. \n\nCells in the Template modules are colour coded as follows:\n\n"]
[null,null,"White = data entry required"]
[null,null,"Yellow = drop down menu"]
[null,null,"Green = calculated value/formula"]
[]
[null,"Note: If modules for Taps and Showers (5-1A), Toilets and Urinals (5-1B) and Cooling Towers (5-2) are not used then the outputs and key data from your own calculators should be entered into worksheet '6-End Use Inventory' and worksheet '9-Water Saving Measures' so as to provide a complete picture of current water use and proposed savings for ALL end uses on the premises. All information entered, and figures generated, are the responsibility of the user."]
[null,"Module","Module / Item Name","Description"]
[null,"G1","Account Data","Provide general information about your account."]
[null,"G2","Customer Contact for WEMP","Provide customer contact details, should your water service provider need to contact someone who knows about the content of this WEMP."]
[null,"G3","Submission Details","Details about who has prepared and / or authorised this WEMP."]
[null,"G4","WEMP Components in this Submission","Provide an overview of the WEMP components that are being completed as part of this WEMP."]
[null,"G5","WEMP Scope","Define the boundaries of the WEMP justifying any excluded facilities, processes or equipment items."]
[null,"G6","Business & Site Data","Use drop down menus to select ANZSIC Industry Division and Class; and code and CAU auto selects. Provide extra summary details about your business, the premises and main water using activities at the premises."]
[null,1,"Water Use Summary","Provides an overview of your organisation's performance with respect to water use  including historical use, current use, and other sources.   "]
[null,2,"Management Review","Undertake a review of your organisation's management, and their attitudes towards water efficiency."]
[null,3,"Management Actions","Using the results from module 2, you can evaluate where your organisation would like to go with respect to water efficiency.  This module alone provides a good guide for staff in trying to realise water efficiency in the workplace.  Use this module to develop actions, responsibilities and due dates associated with water management."]
[null,4,"End Use Definitions","Select from a pre set list of water End Use categories and/or define your own.   An 'end use' is a category of water use, that allows the water use in your premises to be summarised in later modules."]
[null,"5-1A","Taps and Showers","Inventory of all taps and showers within the premises, their current water use and identification of water savings measures.  Note that the calculation does not count fixtures in the equation.  When entering data consider a group of taps/showers and usage or enter individual items as line items. "]
[null,"5-1B","Toilets and Urinals","Inventory of all toilets and urinalswithin the premises, their current water use and identification of water savings measures."]
[null,"5-2","Cooling Tower","Inventory of all cooling towers within the premises, their current water use and identification of water saving measures. "]
[null,6,"End Use Inventory","A list of each specific end use within the premises except 5-1A, 5-1B and 5-2 which include summaries of details in their respective modules. "]
[null,7,"End Use Totals","Summary by each End Use Category to provide an overview of the proportion each category represents of the total water consumption for the premises."]
[null,8,"End Use Summary Chart","Pie chart displaying each End Uses Category and its percentage of the total premises' usage."]
[null,"9-1","Water Saving Measures","Identify all potential water efficiency projects and determine the potential water savings from each.  Include all measures in here so that the feasibility of each can be evaluated."]
[null,"9-2","Economic Assessment ","Determine the capital cost, operating cost and payback period for each of the potential water saving measures."]
[null,"9-3","Action Plan","Identify projects with a 'Yes/No' drop down menu to indicate which ones will be undertaken within the premises to increase water efficiency.  Designate a person responsible for each project as well as a date for completion.  Use the status drop-down menu to update the project progress."]

{"sheet":"G1-G2 General Details","index":3,"n_rows":13,"n_cols":8,"rows_kept":13,"cut":false,"hidden":false,"merged":[[7,1,7,2],[6,3,7,8],[12,3,12,4],[12,5,12,8],[9,4,9,5],[10,3,10,4],[10,5,10,8],[11,3,11,4],[11,5,11,8],[8,1,8,8],[5,6,5,7],[5,2,5,5],[1,1,1,8],[2,2,2,8],[4,2,4,5],[4,6,4,7],[3,2,3,5],[3,6,3,7]]}
[]
[null,"G1 Account Data"]
[null,"Business Name"]
[null,"Water Service Provider",null,null,null,null,"Account No."]
[null,"Name of Account Holder",null,null,null,null,"ABN or ACN"]
[null,"Address of Premises ",null,null,null,null,"Post Code"]
[null,"Date Account Opened "]
[]
[null,"G2 Customer Contact for WEMP"]
[null,"Water Efficiency Manager Contact: ","Title\n(Mr/Mrs/Miss/Ms/Dr)",null,"First Name:",null,null,"Last\nName:"]
[null,"Job Title",null,"Department"]
[null,"Telephone Number",null,"Fax No."]
[null,"Mobile No.",null,"Email"]

{"sheet":"G3-G4-G5 Submission Data","index":4,"n_rows":18,"n_cols":5,"rows_kept":18,"cut":false,"hidden":false,"merged":[[9,3,10,3],[9,4,10,4],[17,1,17,4],[9,1,10,2],[11,1,11,2],[12,1,12,2],[1,1,1,4],[8,1,8,4],[2,1,2,2],[3,1,3,2],[4,1,4,2],[6,1,6,2],[5,1,5,2],[13,1,13,2],[14,1,14,2],[15,1,15,2],[16,1,16,4],[18,1,18,4]]}
[]
[null,"G3 Submission Details"]
[null,"WEMP Author",null,null,"Specify the name of the person undertaking this WEMP"]
[null,"Authorisation",null,null,"Specify the name of the person who authorises the WEMP on behalf of the business or non-residential property"]
[null,"Authority’s Signature",null,null,"Signature of person of appropriate authority in business or non-residential property to authorise WEMP"]
[null,"Position",null,null,"Business position title"]
[null,"Date",null,null,"Date of signing"]
[]
[null,"G4 WEMP Components in this Submission"]
[null,"Relevant?",null,"Component","If not relevant provide justification for exclusion from WEMP"]
[]
[null,null,null,"Taps and Showers"]
[null,null,null,"Toilets and Urinals"]
[null,null,null,"Cooling Towers & Evaporative Cooling"]
[null,null,null,"Outdoor use"]
[null,null,null,"Process and other End Uses "]
[null,"G5 WEMP Scope"]
[null,"General description of the type of operations and activities that are conducted on the premises and how they affect water use."]

{"sheet":"G6 Business-Site Data","index":5,"n_rows":544,"n_cols":8,"rows_kept":544,"cut":false,"hidden":false,"merged":[[1,1,1,6],[7,2,7,6],[6,2,6,6],[2,2,2,6],[3,2,3,6],[4,2,4,6]]}
[]
[null,"G6 Business & Site Data"]
[null,"ANZSIC Industry Division Name"]
[null,"ANZSIC Industry Class","Supermarket and Grocery Stores"]
[null,"ANZSIC (2006) Code No.\n",{"$f":"IF(OR(ISBLANK(C3),ISBLANK(C4)),\"\",VLOOKUP(C4,ANZICC_List,2,FALSE))","v":""}]
[null,"Commercial Activity Description (outline the nature of the primary commercial or business activity conducted on the premises to further clarify the ANZSIC Code)",null,"Commercial Activity Unit (CAU)\n",null,"Alternative CAU"]
[null,"Premises Description\n(number, nature, age and other features of relevance to water use)"]
[null,"Primary Water Using Activity Details\n(describe the general scope and nature of water using facilities, processes and equipment)"]
[null,"Number of full time equivalent staff"]
[null,"Hours of operation per day\n(average)"]
[null,"Days of operation per year\n(average)"]
[]
[]
[null,"Agriculture, Forestry and Fishing","A"]
[null,"Mining","B"]
[null,"Manufacturing","C"]
[null,"Electricity, Gas, Water and Waste Services","D"]
[null,"Construction","E"]
[null,"Wholesale Trade","F"]
[null,"Retail Trade","G"]
[null,"Accommodation and Food Services","H"]
[null,"Transport, Postal and Warehousing","I"]
[null,"Information Media and Telecommunications","J"]
[null,"Financial and Insurance Services","K"]
[null,"Rental, Hiring and Real Estate Services","L"]
[null,"Professional, Scientific and Technical Services","M"]
[null,"Administrative and Support Services","N"]
[null,"Public Administration and Safety","O"]
[null,"Education and Training","P"]
[null,"Health Care and Social Assistance","Q"]
[null,"Arts and Recreation Services","R"]
[null,"Other Services","S"]
[]
[]
[null,"Position",{"$f":"MATCH(_xlnm.Criteria,C39:C544,0)-1","v":{"$error":"#N/A"}}]
[null,"Depth",{"$f":"COUNTIF(OFFSET(crap,0,-1),_xlnm.Criteria)","v":0}]
[null,"CAM ref",{"$f":"MATCH(C4,D39:D544,0)-1","v":290}]
[null,"Division Code","Division Title","Class","Code","CAM","CAM 2","CAM 3"]
[null,"A","Agriculture, Forestry and Fishing","Nursery Production (Under Cover)","0111","tonne","ha"]
[null,"A","Agriculture, Forestry and Fishing","Nursery Production (Outdoors)","0112","tonne","ha"]
[null,"A","Agriculture, Forestry and Fishing","Turf Growing","0113","ha"]
[null,"A","Agriculture, Forestry and Fishing","Floriculture Production (Under Cover)","0114","tonne","ha"]
[null,"A","Agriculture, Forestry and Fishing","Floriculture Production (Outdoors)","0115","tonne","ha"]
[null,"A","Agriculture, Forestry and Fishing","Mushroom Growing","0121","tonne","ha"]
[null,"A","Agriculture, Forestry and Fishing","Vegetable Growing (Under Cover)","0122","tonne","ha"]
[null,"A","Agriculture, Forestry and Fishing","Vegetable Growing (Outdoors)","0123","tonne","ha"]
[null,"A","Agriculture, Forestry and Fishing","Grape Growing","0131","tonne","ha"]
[null,"A","Agriculture, Forestry and Fishing","Kiwifruit Growing","0132","tonne","ha"]
[null,"A","Agriculture, Forestry and Fishing","Berry Fruit Growing","0133","tonne","ha"]
[null,"A","Agriculture, Forestry and Fishing","Apple and Pear Growing","0134","tonne","ha"]
[null,"A","Agriculture, Forestry and Fishing","Stone Fruit Growing","0135","tonne","ha"]
[null,"A","Agriculture, Forestry and Fishing","Citrus Fruit Growing","0136","tonne","ha"]
[null,"A","Agriculture, Forestry and Fishing","Olive Growing","0137","tonne","ha"]
[null,"A","Agriculture, Forestry and Fishing","Other Fruit and Tree Nut Growing","0139","tonne","ha"]
[null,"A","Agriculture, Forestry and Fishing","Sheep Farming (Specialised)","0141","head"]
[null,"A","Agriculture, Forestry and Fishing","Beef Cattle Farming (Specialised)","0142","head"]
[null,"A","Agriculture, Forestry and Fishing","Beef Cattle Feedlots (Specialised)","0143","head"]
[null,"A","Agriculture, Forestry and Fishing","Sheep-Beef Cattle Farming","0144","head"]
[null,"A","Agriculture, Forestry and Fishing","Grain-Sheep or Grain-Beef Cattle Farming","0145","head"]
[null,"A","Agriculture, Forestry and Fishing","Rice Growing","0146","tonne","ha"]
[null,"A","Agriculture, Forestry and Fishing","Other Grain Growing","0149","tonne","ha"]
[null,"A","Agriculture, Forestry and Fishing","Sugar Cane Growing","0151","tonne","ha"]
[null,"A","Agriculture, Forestry and Fishing","Cotton Growing","0152","tonne","ha"]
[null,"A","Agriculture, Forestry and Fishing","Other Crop Growing n.e.c.","0159","tonne","ha"]
[null,"A","Agriculture, Forestry and Fishing","Dairy Cattle Farming","0160","head"]
[null,"A","Agriculture, Forestry and Fishing","Poultry Farming (Meat)","0171","bird","kg"]
[null,"A","Agriculture, Forestry and Fishing","Poultry Farming (Eggs)","0172","tonne","Eggs"]
[null,"A","Agriculture, Forestry and Fishing","Deer Farming","0180","head"]
[null,"A","Agriculture, Forestry and Fishing","Horse Farming","0191","head"]
[null,"A","Agriculture, Forestry and Fishing","Pig Farming","0192","head"]
[null,"A","Agriculture, Forestry and Fishing","Beekeeping","0193","tonne","Bees"]
[null,"A","Agriculture, Forestry and Fishing","Other Livestock Farming n.e.c.","0199","head"]
[null,"A","Agriculture, Forestry and Fishing","Offshore Longline and Rack Aquaculture","0201","tonne"]
[null,"A","Agriculture, Forestry and Fishing","Offshore Caged Aquaculture","0202","tonne"]
[null,"A","Agriculture, Forestry and Fishing","Onshore Aquaculture","0203","tonne"]
[null,"A","Agriculture, Forestry and Fishing","Forestry","0301","tonne","ha"]
[null,"A","Agriculture, Forestry and Fishing","Logging","0302","tonne","trees logged"]
[null,"A","Agriculture, Forestry and Fishing","Rock Lobster and Crab Potting","0411","tonne"]
[null,"A","Agriculture, Forestry and Fishing","Prawn Fishing","0412","tonne"]
[null,"A","Agriculture, Forestry and Fishing","Line Fishing","0413","tonne"]
[null,"A","Agriculture, Forestry and Fishing","Fish Trawling, Seining and Netting","0414","tonne"]
[null,"A","Agriculture, Forestry and Fishing","Other Fishing","0419","tonne"]
[null,"A","Agriculture, Forestry and Fishing","Hunting and Trapping","0420","tonne"]
[null,"A","Agriculture, Forestry and Fishing","Forestry Support Services","0510","employee"]
[null,"A","Agriculture, Forestry and Fishing","Cotton Ginning","0521","tonne"]
[null,"A","Agriculture, Forestry and Fishing","Shearing Services","0522","head","tonnes"]
[null,"A","Agriculture, Forestry and Fishing","Other Agriculture and Fishing Support Services","0529","employee"]
[null,"B","Mining","Coal Mining","0600","tonne"]
[null,"B","Mining","Oil and Gas Extraction","0700","tonne"]
[null,"B","Mining","Iron Ore Mining","0801","tonne"]
[null,"B","Mining","Bauxite Mining","0802","tonne"]
[null,"B","Mining","Copper Ore Mining","0803","tonne"]
[null,"B","Mining","Gold Ore Mining","0804","tonne"]
[null,"B","Mining","Mineral Sand Mining","0805","tonne"]
[null,"B","Mining","Nickel Ore Mining","0806","tonne"]
[null,"B","Mining","Silver-Lead-Zinc Ore Mining","0807","tonne"]
[null,"B","Mining","Other Metal Ore Mining","0809","tonne"]
[null,"B","Mining","Gravel and Sand Quarrying","0911","tonne"]
[null,"B","Mining","Other Construction Material Mining","0919","tonne"]
[null,"B","Mining","Other Non-Metallic Mineral Mining and Quarrying","0990","tonne"]
[null,"B","Mining","Petroleum Exploration","1011","ha"]
[null,"B","Mining","Mineral Exploration","1012","ha"]
[null,"B","Mining","Other Mining Support Services","1090","employee"]
[null,"C","Manufacturing","Meat Processing","1111","head","tonnes HSCW","kg"]
[null,"C","Manufacturing","Poultry Processing","1112","bird","tonnes"]
[null,"C","Manufacturing","Cured Meat and Smallgoods Manufacturing","1113","kg"]
[null,"C","Manufacturing","Seafood Processing","1120","kg"]
[null,"C","Manufacturing","Milk and Cream Processing","1131","litre","kg"]
[null,"C","Manufacturing","Ice Cream Manufacturing","1132","litre","kg"]
[null,"C","Manufacturing","Cheese and Other Dairy Product Manufacturing","1133","kg"]
[null,"C","Manufacturing","Fruit and Vegetable Processing","1140","kg"]
[null,"C","Manufacturing","Oil and Fat Manufacturing","1150","kg","m3"]
[null,"C","Manufacturing","Grain Mill Product Manufacturing","1161","tonne","tonne"]
[null,"C","Manufacturing","Cereal, Pasta and Baking Mix Manufacturing","1162","kg","tonne"]
[null,"C","Manufacturing","Bread Manufacturing (Factory based)","1171","kg","tonne"]
[null,"C","Manufacturing","Cake and Pastry Manufacturing (Factory based)","1172","kg","tonne"]
[null,"C","Manufacturing","Biscuit Manufacturing (Factory based)","1173","kg","tonne"]
[null,"C","Manufacturing","Bakery Product Manufacturing (Non-factory based)","1174","kg","tonne"]
[null,"C","Manufacturing","Sugar Manufacturing","1181","tonne"]
[null,"C","Manufacturing","Confectionery Manufacturing","1182","kg"]
[null,"C","Manufacturing","Potato, Corn and Other Crisp Manufacturing","1191","kg"]
[null,"C","Manufacturing","Prepared Animal and Bird Feed Manufacturing","1192","tonne"]
[null,"C","Manufacturing","Other Food Product Manufacturing n.e.c.","1199","kg","tonne"]
[null,"C","Manufacturing","Soft Drink, Cordial and Syrup Manufacturing","1211","litre produced","tonnes produced"]
[null,"C","Manufacturing","Beer Manufacturing","1212","litre produced","tonnes produced"]
[null,"C","Manufacturing","Spirit Manufacturing","1213","litre produced","tonnes produced"]
[null,"C","Manufacturing","Wine and Other Alcoholic Beverage Manufacturing","1214","litre produced","tonnes produced"]
[null,"C","Manufacturing","Cigarette and Tobacco Product Manufacturing","1220","tonne"]
[null,"C","Manufacturing","Wool Scouring","1311","tonne"]
[null,"C","Manufacturing","Natural Textile Manufacturing","1312","tonne"]
[null,"C","Manufacturing","Synthetic Textile Manufacturing","1313","tonne"]
[null,"C","Manufacturing","Leather Tanning, Fur Dressing and Leather Product Manufacturing","1320","tonne","skins"]
[null,"C","Manufacturing","Textile Floor Covering Manufacturing","1331","tonne"]
[null,"C","Manufacturing","Rope, Cordage and Twine Manufacturing","1332","tonne"]
[null,"C","Manufacturing","Cut and Sewn Textile Product Manufacturing","1333","tonne"]
[null,"C","Manufacturing","Textile Finishing and Other Textile Product Manufacturing","1334","tonne"]
[null,"C","Manufacturing","Knitted Product Manufacturing","1340","unit"]
[null,"C","Manufacturing","Clothing Manufacturing","1351","unit"]
[null,"C","Manufacturing","Footwear Manufacturing","1352","unit"]
[null,"C","Manufacturing","Log Sawmilling","1411","tonne"]
[null,"C","Manufacturing","Wood Chipping","1412","cubic metre","tonne"]
[null,"C","Manufacturing","Timber Resawing and Dressing","1413","tonne"]
[null,"C","Manufacturing","Prefabricated Wooden Building Manufacturing","1491","unit"]
[null,"C","Manufacturing","Wooden Structural Fitting and Component Manufacturing","1492","unit"]
[null,"C","Manufacturing","Veneer and Plywood Manufacturing","1493","tonne"]
[null,"C","Manufacturing","Reconstituted Wood Product Manufacturing","1494","tonne"]
[null,"C","Manufacturing","Other Wood Product Manufacturing n.e.c.","1499","tonne"]
[null,"C","Manufacturing","Pulp, Paper and Paperboard Manufacturing","1510","tonne"]
[null,"C","Manufacturing","Corrugated Paperboard and Paperboard Container Manufacturing","1521","tonne"]
[null,"C","Manufacturing","Paper Bag Manufacturing","1522","tonne"]
[null,"C","Manufacturing","Paper Stationery Manufacturing","1523","tonne"]
[null,"C","Manufacturing","Sanitary Paper Product Manufacturing","1524","tonne"]
[null,"C","Manufacturing","Other Converted Paper Product Manufacturing","1529","tonne"]
[null,"C","Manufacturing","Printing","1611","tonne"]
[null,"C","Manufacturing","Printing Support Services","1612","employee"]
[null,"C","Manufacturing","Reproduction of Recorded Media","1620","unit"]
[null,"C","Manufacturing","Petroleum Refining and Petroleum Fuel Manufacturing","1701","tonne"]
[null,"C","Manufacturing","Other Petroleum and Coal Product Manufacturing","1709","tonne"]
[null,"C","Manufacturing","Industrial Gas Manufacturing","1811","tonne"]
[null,"C","Manufacturing","Basic Organic Chemical Manufacturing","1812","tonne","cubic meter"]
[null,"C","Manufacturing","Basic Inorganic Chemical Manufacturing","1813","tonne","cubic meter"]
[null,"C","Manufacturing","Synthetic Resin and Synthetic Rubber Manufacturing","1821","tonne","cubic meter"]
[null,"C","Manufacturing","Other Basic Polymer Manufacturing","1829","tonne"]
[null,"C","Manufacturing","Fertiliser Manufacturing","1831","tonne","cubic meter"]
[null,"C","Manufacturing","Pesticide Manufacturing","1832","tonne","cubic meter"]
[null,"C","Manufacturing","Human Pharmaceutical and Medicinal Product Manufacturing","1841","tonne","employee"]
[null,"C","Manufacturing","Veterinary Pharmaceutical and Medicinal Product Manufacturing","1842","tonne","employee"]
[null,"C","Manufacturing","Cleaning Compound Manufacturing","1851","tonne","employee"]
[null,"C","Manufacturing","Cosmetic and Toiletry Preparation Manufacturing","1852","tonne","employee"]
[null,"C","Manufacturing","Photographic Chemical Product Manufacturing","1891","tonne","employee"]
[null,"C","Manufacturing","Explosive Manufacturing","1892","tonne"]
[null,"C","Manufacturing","Other Basic Chemical Product Manufacturing n.e.c.","1899","tonne"]
[null,"C","Manufacturing","Polymer Film and Sheet Packaging Material Manufacturing","1911","tonne"]
[null,"C","Manufacturing","Rigid and Semi-Rigid Polymer Product Manufacturing","1912","tonne"]
[null,"C","Manufacturing","Polymer Foam Product Manufacturing","1913","tonne"]
[null,"C","Manufacturing","Tyre Manufacturing","1914","tonne","tyres produced"]
[null,"C","Manufacturing","Adhesive Manufacturing","1915","tonne"]
[null,"C","Manufacturing","Paint and Coatings Manufacturing","1916","tonne"]
[null,"C","Manufacturing","Other Polymer Product Manufacturing","1919","tonne"]
[null,"C","Manufacturing","Natural Rubber Product Manufacturing","1920","tonne"]
[null,"C","Manufacturing","Glass and Glass Product Manufacturing","2010","tonne","unit"]
[null,"C","Manufacturing","Clay Brick Manufacturing","2021","tonne","unit"]
[null,"C","Manufacturing","Other Ceramic Product Manufacturing","2029","tonne","unit"]
[null,"C","Manufacturing","Cement and Lime Manufacturing","2031","tonne"]
[null,"C","Manufacturing","Plaster Product Manufacturing","2032","tonne","units"]
[null,"C","Manufacturing","Ready-Mixed Concrete Manufacturing","2033","tonne","cubic meter"]
[null,"C","Manufacturing","Concrete Product Manufacturing","2034","tonne","cubic meter"]
[null,"C","Manufacturing","Other Non-Metallic Mineral Product Manufacturing","2090","tonne"]
[null,"C","Manufacturing","Iron Smelting and Steel Manufacturing","2110","tonne"]
[null,"C","Manufacturing","Iron and Steel Casting","2121","tonne"]
[null,"C","Manufacturing","Steel Pipe and Tube Manufacturing","2122","tonne","work hours"]
[null,"C","Manufacturing","Alumina Production","2131","tonne"]
[null,"C","Manufacturing","Aluminium Smelting","2132","tonne"]
[null,"C","Manufacturing","Copper, Silver, Lead and Zinc Smelting and Refining","2133","tonne"]
[null,"C","Manufacturing","Other Basic Non-Ferrous Metal Manufacturing","2139","tonne"]
[null,"C","Manufacturing","Non-Ferrous Metal Casting","2141","tonne"]
[null,"C","Manufacturing","Aluminium Rolling, Drawing, Extruding","2142","tonne"]
[null,"C","Manufacturing","Other Basic Non-Ferrous Metal Product Manufacturing","2149","tonne"]
[null,"C","Manufacturing","Iron and Steel Forging","2210","tonne"]
[null,"C","Manufacturing","Structural Steel Fabricating","2221","tonne"]
[null,"C","Manufacturing","Prefabricated Metal Building Manufacturing","2222","tonne"]
[null,"C","Manufacturing","Architectural Aluminium Product Manufacturing","2223","tonne"]
[null,"C","Manufacturing","Metal Roof and Guttering Manufacturing (except Aluminium)","2224","tonne"]
[null,"C","Manufacturing","Other Structural Metal Product Manufacturing","2229","tonne"]
[null,"C","Manufacturing","Boiler, Tank and Other Heavy Gauge Metal Container Manufacturing","2231","tonne"]
[null,"C","Manufacturing","Other Metal Container Manufacturing","2239","tonne","unit"]
[null,"C","Manufacturing","Sheet Metal Product Manufacturing (except Metal Structural and Container","2240","tonne"]
[null,"C","Manufacturing","Spring and Wire Product Manufacturing","2291","tonne"]
[null,"C","Manufacturing","Nut, Bolt, Screw and Rivet Manufacturing","2292","tonne","unit"]
[null,"C","Manufacturing","Metal Coating and Finishing","2293","tonne"]
[null,"C","Manufacturing","Other Fabricated Metal Product Manufacturing n.e.c.","2299","tonne","unit"]
[null,"C","Manufacturing","Motor Vehicle Manufacturing","2311","vehicle"]
[null,"C","Manufacturing","Motor Vehicle Body and Trailer Manufacturing","2312","unit"]
[null,"C","Manufacturing","Automotive Electrical Component Manufacturing","2313","unit"]
[null,"C","Manufacturing","Other Motor Vehicle Parts Manufacturing","2319","unit"]
[null,"C","Manufacturing","Shipbuilding and Repair Services","2391","ship","employee"]
[null,"C","Manufacturing","Boatbuilding and Repair Services","2392","boat","employee"]
[null,"C","Manufacturing","Railway Rolling Stock Manufacturing and Repair Services","2393","unit","employee"]
[null,"C","Manufacturing","Aircraft Manufacturing and Repair Services","2394","aircraft","employee"]
[null,"C","Manufacturing","Other Transport Equipment Manufacturing n.e.c.","2399","unit","employee"]
[null,"C","Manufacturing","Photographic, Optical and Ophthalmic Equipment Manufacturing","2411","unit","employee"]
[null,"C","Manufacturing","Medical and Surgical Equipment Manufacturing","2412","unit","employee"]
[null,"C","Manufacturing","Other Professional and Scientific Equipment Manufacturing","2419","unit","employee"]
[null,"C","Manufacturing","Computer and Electronic Office Equipment Manufacturing","2421","unit","employee"]
[null,"C","Manufacturing","Communication Equipment Manufacturing","2422","unit","employee"]
[null,"C","Manufacturing","Other Electronic Equipment Manufacturing","2429","unit","employee"]
[null,"C","Manufacturing","Electric Cable and Wire Manufacturing","2431","unit","employee"]
[null,"C","Manufacturing","Electric Lighting Equipment Manufacturing","2432","unit","employee"]
[null,"C","Manufacturing","Other Electrical Equipment Manufacturing","2439","unit","employee"]
[null,"C","Manufacturing","Whiteware Appliance Manufacturing","2441","unit","employee"]
[null,"C","Manufacturing","Other Domestic Appliance Manufacturing","2449","unit","employee"]
[null,"C","Manufacturing","Pump and Compressor Manufacturing","2451","unit","employee"]
[null,"C","Manufacturing","Fixed Space Heating, Cooling and Ventilation Equipment Manufacturing","2452","unit","employee"]
[null,"C","Manufacturing","Agricultural Machinery and Equipment Manufacturing","2461","unit","employee"]
[null,"C","Manufacturing","Mining and Construction Machinery Manufacturing","2462","unit","employee"]
[null,"C","Manufacturing","Machine Tool and Parts Manufacturing","2463","unit","employee"]
[null,"C","Manufacturing","Other Specialised Machinery and Equipment Manufacturing","2469","unit","employee"]
[null,"C","Manufacturing","Lifting and Material Handling Equipment Manufacturing","2491","unit","employee"]
[null,"C","Manufacturing","Other Machinery and Equipment Manufacturing n.e.c.","2499","unit","employee"]
[null,"C","Manufacturing","Wooden Furniture and Upholstered Seat Manufacturing","2511","unit","employee"]
[null,"C","Manufacturing","Metal Furniture Manufacturing","2512","unit","employee"]
[null,"C","Manufacturing","Mattress Manufacturing","2513","unit","employee"]
[null,"C","Manufacturing","Other Furniture Manufacturing","2519","unit","employee"]
[null,"C","Manufacturing","Jewellery and Silverware Manufacturing","2591","unit","employee"]
[null,"C","Manufacturing","Toy, Sporting and Recreational Product Manufacturing","2592","unit","employee"]
[null,"C","Manufacturing","Other Manufacturing n.e.c.","2599","tonne","employee"]
[null,"D","Electricity, Gas, Water and Waste Services","Fossil Fuel Electricity Generation","2611","MWh"]
[null,"D","Electricity, Gas, Water and Waste Services","Hydro-Electricity Generation","2612","MWh"]
[null,"D","Electricity, Gas, Water and Waste Services","Other Electricity Generation","2619","MWh"]
[null,"D","Electricity, Gas, Water and Waste Services","Electricity Transmission","2620","employee"]
[null,"D","Electricity, Gas, Water and Waste Services","Electricity Distribution","2630","employee"]
[null,"D","Electricity, Gas, Water and Waste Services","On Selling Electricity and Electricity Market Operation","2640","employee"]
[null,"D","Electricity, Gas, Water and Waste Services","Gas Supply","2700","GJ"]
[null,"D","Electricity, Gas, Water and Waste Services","Water Supply","2811","ML"]
[null,"D","Electricity, Gas, Water and Waste Services","Sewerage and Drainage Services","2812","ML"]
[null,"D","Electricity, Gas, Water and Waste Services","Solid Waste Collection Services","2911","tonne collected"]
[null,"D","Electricity, Gas, Water and Waste Services","Other Waste Collection Services","2919","tonne collected"]
[null,"D","Electricity, Gas, Water and Waste Services","Waste Treatment and Disposal Services","2921","tonne "]
[null,"D","Electricity, Gas, Water and Waste Services","Waste Remediation and Materials Recovery Services","2922","tonne"]
[null,"E","Construction","House Construction","3011","House"]
[null,"E","Construction","Other Residential Building Construction","3019","employee"]
[null,"E","Construction","Non-Residential Building Construction","3020","employee"]
[null,"E","Construction","Road and Bridge Construction","3101","kilometre"]
[null,"E","Construction","Other Heavy and Civil Engineering Construction","3109","employee"]
[null,"E","Construction","Land Development and Subdivision","3211","employee"]
[null,"E","Construction","Site Preparation Services","3212","employee"]
[null,"E","Construction","Concreting Services","3221","employee"]
[null,"E","Construction","Bricklaying Services","3222","employee"]
[null,"E","Construction","Roofing Services","3223","employee"]
[null,"E","Construction","Structural Steel Erection Services","3224","employee"]
[null,"E","Construction","Plumbing Services","3231","employee"]
[null,"E","Construction","Electrical Services","3232","employee"]
[null,"E","Construction","Air Conditioning and Heating Services","3233","employee"]
[null,"E","Construction","Fire and Security Alarm Installation Services","3234","employee"]
[null,"E","Construction","Other Building Installation Services","3239","employee"]
[null,"E","Construction","Plastering and Ceiling Services","3241","employee"]
[null,"E","Construction","Carpentry Services","3242","employee"]
[null,"E","Construction","Tiling and Carpeting Services","3243","employee"]
[null,"E","Construction","Painting and Decorating Services","3244","employee"]
[null,"E","Construction","Glazing Services","3245","employee"]
[null,"E","Construction","Landscape Construction Services","3291","employee"]
[null,"E","Construction","Hire of Construction Machinery with Operator","3292","employee"]
[null,"E","Construction","Other Construction Services n.e.c.","3299","employee"]
[null,"F","Wholesale Trade","Wool Wholesaling","3311","m2 GFA","employee"]
[null,"F","Wholesale Trade","Cereal Grain Wholesaling","3312","m2 GFA","employee"]
[null,"F","Wholesale Trade","Other Agricultural Product Wholesaling","3319","m2 GFA","employee"]
[null,"F","Wholesale Trade","Petroleum Product Wholesaling","3321","m2 GFA","employee"]
[null,"F","Wholesale Trade","Metal and Mineral Wholesaling","3322","m2 GFA","employee"]
[null,"F","Wholesale Trade","Industrial and Agricultural Chemical Product Wholesaling","3323","m2 GFA","employee"]
[null,"F","Wholesale Trade","Timber Wholesaling","3331","m2 GFA","employee"]
[null,"F","Wholesale Trade","Plumbing Goods Wholesaling","3332","m2 GFA","employee"]
[null,"F","Wholesale Trade","Other Hardware Goods Wholesaling","3339","m2 GFA","employee"]
[null,"F","Wholesale Trade","Agricultural and Construction Machinery Wholesaling","3411","m2 GFA","employee"]
[null,"F","Wholesale Trade","Other Specialised Industrial Machinery and Equipment Wholesaling","3419","m2 GFA","employee"]
[null,"F","Wholesale Trade","Professional and Scientific Goods Wholesaling","3491","m2 GFA","employee"]
[null,"F","Wholesale Trade","Computer and Computer Peripheral Wholesaling","3492","m2 GFA","employee"]
[null,"F","Wholesale Trade","Telecommunication Goods Wholesaling","3493","m2 GFA","employee"]
[null,"F","Wholesale Trade","Other Electrical and Electronic Goods Wholesaling","3494","m2 GFA","employee"]
[null,"F","Wholesale Trade","Other Machinery and Equipment Wholesaling n.e.c.","3499","m2 GFA","employee"]
[null,"F","Wholesale Trade","Car Wholesaling","3501","m2 GFA","employee"]
[null,"F","Wholesale Trade","Commercial Vehicle Wholesaling","3502","m2 GFA","employee"]
[null,"F","Wholesale Trade","Trailer and Other Motor Vehicle Wholesaling","3503","m2 GFA","employee"]
[null,"F","Wholesale Trade","Motor Vehicle New Parts Wholesaling","3504","m2 GFA","employee"]
[null,"F","Wholesale Trade","Motor Vehicle Dismantling and Used Parts Wholesaling","3505","m2 GFA","employee"]
[null,"F","Wholesale Trade","General Line Grocery Wholesaling","3601","m2 GFA","employee"]
[null,"F","Wholesale Trade","Meat, Poultry and Smallgoods Wholesaling","3602","m2 GFA","employee"]
[null,"F","Wholesale Trade","Dairy Produce Wholesaling","3603","m2 GFA","employee"]
[null,"F","Wholesale Trade","Fish and Seafood Wholesaling","3604","m2 GFA","employee"]
[null,"F","Wholesale Trade","Fruit and Vegetable Wholesaling","3605","m2 GFA","employee"]
[null,"F","Wholesale Trade","Liquor and Tobacco Product Wholesaling","3606","m2 GFA","employee"]
[null,"F","Wholesale Trade","Other Grocery Wholesaling","3609","m2 GFA","employee"]
[null,"F","Wholesale Trade","Textile Product Wholesaling","3711","m2 GFA","employee"]
[null,"F","Wholesale Trade","Clothing and Footwear Wholesaling","3712","m2 GFA","employee"]
[null,"F","Wholesale Trade","Pharmaceutical and Toiletry Goods Wholesaling","3720","m2 GFA","employee"]
[null,"F","Wholesale Trade","Furniture and Floor Covering Wholesaling","3731","m2 GFA","employee"]
[null,"F","Wholesale Trade","Jewellery and Watch Wholesaling","3732","m2 GFA","employee"]
[null,"F","Wholesale Trade","Kitchen and Diningware Wholesaling","3733","m2 GFA","employee"]
[null,"F","Wholesale Trade","Toy and Sporting Goods Wholesaling","3734","m2 GFA","employee"]
[null,"F","Wholesale Trade","Book and Magazine Wholesaling","3735","m2 GFA","employee"]
[null,"F","Wholesale Trade","Paper Product Wholesaling","3736","m2 GFA","employee"]
[null,"F","Wholesale Trade","Other Goods Wholesaling n.e.c.","3739","m2 GFA","employee"]
[null,"F","Wholesale Trade","Commission-Based Wholesaling","3800","employee"]
[null,"G","Retail Trade","Car Retailing","3911","cars sold","employee"]
[null,"G","Retail Trade","Motor Cycle Retailing","3912","m2 NLA","employee","patrons"]
[null,"G","Retail Trade","Trailer and Other Motor Vehicle Retailing","3913","m2 NLA","employee","patrons"]
[null,"G","Retail Trade","Motor Vehicle Parts Retailing","3921","m2 NLA","employee","patrons"]
[null,"G","Retail Trade","Tyre Retailing","3922","m2 NLA","employee","patrons"]
[null,"G","Retail Trade","Fuel Retailing","4000","m2 NLA","employee","patrons"]
[null,"G","Retail Trade","Supermarket and Grocery Stores","4110","m2 NLA","employee","patrons"]
[null,"G","Retail Trade","Fresh Meat, Fish and Poultry Retailing","4121","m2 NLA","employee","patrons"]
[null,"G","Retail Trade","Fruit and Vegetable Retailing","4122","m2 NLA","employee","patrons"]
[null,"G","Retail Trade","Liquor Retailing","4123","m2 NLA","employee","patrons"]
[null,"G","Retail Trade","Other Specialised Food Retailing","4129","m2 NLA","employee","patrons"]
[null,"G","Retail Trade","Furniture Retailing","4211","m2 NLA","employee","patrons"]
[null,"G","Retail Trade","Floor Coverings Retailing","4212","m2 NLA","employee","patrons"]
[null,"G","Retail Trade","Houseware Retailing","4213","m2 NLA","employee","patrons"]
[null,"G","Retail Trade","Manchester and Other Textile Goods Retailing","4214","m2 NLA","employee","patrons"]
[null,"G","Retail Trade","Electrical, Electronic and Gas Appliance Retailing","4221","m2 NLA","employee","patrons"]
[null,"G","Retail Trade","Computer and Computer Peripheral Retailing","4222","m2 NLA","employee","patrons"]
[null,"G","Retail Trade","Other Electrical and Electronic Goods Retailing","4229","m2 NLA","employee","patrons"]
[null,"G","Retail Trade","Hardware and Building Supplies Retailing","4231","m2 NLA","employee","patrons"]
[null,"G","Retail Trade","Garden Supplies Retailing","4232","m2 NLA","employee","patrons"]
[null,"G","Retail Trade","Sport and Camping Equipment Retailing","4241","m2 NLA","employee","patrons"]
[null,"G","Retail Trade","Entertainment Media Retailing","4242","m2 NLA","employee","patrons"]
[null,"G","Retail Trade","Toy and Game Retailing","4243","m2 NLA","employee","patrons"]
[null,"G","Retail Trade","Newspaper and Book Retailing","4244","m2 NLA","employee","patrons"]
[null,"G","Retail Trade","Marine Equipment Retailing","4245","m2 NLA","employee","patrons"]
[null,"G","Retail Trade","Clothing Retailing","4251","m2 NLA","employee","patrons"]
[null,"G","Retail Trade","Footwear Retailing","4252","m2 NLA","employee","patrons"]
[null,"G","Retail Trade","Watch and Jewellery Retailing","4253","m2 NLA","employee","patrons"]
[null,"G","Retail Trade","Other Personal Accessory Retailing","4259","m2 NLA","employee","patrons"]
[null,"G","Retail Trade","Department Stores","4260","m2 GLA","employee","patrons"]
[null,"G","Retail Trade","Pharmaceutical, Cosmetic and Toiletry Goods Retailing","4271","m2 NLA","employee","patrons"]
[null,"G","Retail Trade","Stationery Goods Retailing","4272","m2 NLA","employee","patrons"]
[null,"G","Retail Trade","Antique and Used Goods Retailing","4273","m2 NLA","employee","patrons"]
[null,"G","Retail Trade","Flower Retailing","4274","m2 NLA","employee","patrons"]
[null,"G","Retail Trade","Other Store-Based Retailing n.e.c.","4279","m2 NLA","employee","patrons"]
[null,"G","Retail Trade","Non-Store Retailing","4310","employee"]
[null,"G","Retail Trade","Retail Commission-Based Buying and/or Selling","4320","m2 GLA"]
[null,"H","Accommodation and Food Services","Accommodation","4400","guest night","occupied room"]
[null,"H","Accommodation and Food Services","Cafes and Restaurants","4511","cover"]
[null,"H","Accommodation and Food Services","Takeaway Food Services","4512","cover"]
[null,"H","Accommodation and Food Services","Catering Services","4513","cover"]
[null,"H","Accommodation and Food Services","Pubs, Taverns and Bars","4520","patron"]
[null,"H","Accommodation and Food Services","Clubs (Hospitality)","4530","patron"]
[null,"I","Transport, Postal and Warehousing","Road Freight Transport","4610","tonne"]
[null,"I","Transport, Postal and Warehousing","Interurban and Rural Bus Transport","4621","passenger"]
[null,"I","Transport, Postal and Warehousing","Urban Bus Transport (Including Tramway)","4622","passenger"]
[null,"I","Transport, Postal and Warehousing","Taxi and Other Road Transport","4623","passenger"]
[null,"I","Transport, Postal and Warehousing","Rail Freight Transport","4710","tonne"]
[null,"I","Transport, Postal and Warehousing","Rail Passenger Transport","4720","passenger"]
[null,"I","Transport, Postal and Warehousing","Water Freight Transport","4810","tonne"]
[null,"I","Transport, Postal and Warehousing","Water Passenger Transport","4820","passenger"]
[null,"I","Transport, Postal and Warehousing","Air and Space Transport","4900","tonne"]
[null,"I","Transport, Postal and Warehousing","Scenic and Sightseeing Transport","5010","patron"]
[null,"I","Transport, Postal and Warehousing","Pipeline Transport","5021","employee"]
[null,"I","Transport, Postal and Warehousing","Other Transport n.e.c.","5029","employee"]
[null,"I","Transport, Postal and Warehousing","Postal Services","5101","employee"]
[null,"I","Transport, Postal and Warehousing","Courier Pick-up and Delivery Services","5102","employee"]
[null,"I","Transport, Postal and Warehousing","Stevedoring Services","5211","employee"]
[null,"I","Transport, Postal and Warehousing","Port and Water Transport Terminal Operations","5212","employee"]
[null,"I","Transport, Postal and Warehousing","Other Water Transport Support Services","5219","employee"]
[null,"I","Transport, Postal and Warehousing","Airport Operations and Other Air Transport Support Services","5220","passenger"]
[null,"I","Transport, Postal and Warehousing","Customs Agency Services","5291","employee"]
[null,"I","Transport, Postal and Warehousing","Freight Forwarding Services","5292","employee"]
[null,"I","Transport, Postal and Warehousing","Other Transport Support Services n.e.c.","5299","employee"]
[null,"I","Transport, Postal and Warehousing","Grain Storage Services","5301","tonne"]
[null,"I","Transport, Postal and Warehousing","Other Warehousing and Storage Services","5309","GFA"]
[null,"J","Information Media and Telecommunications","Newspaper Publishing","5411","employee"]
[null,"J","Information Media and Telecommunications","Magazine and Other Periodical Publishing","5412","employee"]
[null,"J","Information Media and Telecommunications","Book Publishing","5413","employee"]
[null,"J","Information Media and Telecommunications","Directory and Mailing List Publishing","5414","employee"]
[null,"J","Information Media and Telecommunications","Other Publishing (except Software, Music and Internet)","5419","employee"]
[null,"J","Information Media and Telecommunications","Software Publishing","5420","employee"]
[null,"J","Information Media and Telecommunications","Motion Picture and Video Production","5511","employee"]
[null,"J","Information Media and Telecommunications","Motion Picture and Video Distribution","5512","employee"]
[null,"J","Information Media and Telecommunications","Motion Picture Exhibition","5513","employee"]
[null,"J","Information Media and Telecommunications","Post-production Services and Other Motion Picture and Video Activities","5514","employee"]
[null,"J","Information Media and Telecommunications","Music Publishing","5521","employee"]
[null,"J","Information Media and Telecommunications","Music and Other Sound Recording Activities","5522","employee"]
[null,"J","Information Media and Telecommunications","Radio Broadcasting","5610","employee"]
[null,"J","Information Media and Telecommunications","Free-to-Air Television Broadcasting","5621","employee"]
[null,"J","Information Media and Telecommunications","Cable and Other Subscription Broadcasting","5622","employee"]
[null,"J","Information Media and Telecommunications","Internet Publishing and Broadcasting","5700","employee"]
[null,"J","Information Media and Telecommunications","Wired Telecommunications Network Operation","5801","employee"]
[null,"J","Information Media and Telecommunications","Other Telecommunications Network Operation","5802","employee"]
[null,"J","Information Media and Telecommunications","Other Telecommunications Services","5809","employee"]
[null,"J","Information Media and Telecommunications","Internet Service Providers and Web Search Portals","5910","employee"]
[null,"J","Information Media and Telecommunications","Data Processing and Web Hosting Services","5921","employee"]
[null,"J","Information Media and Telecommunications","Electronic Information Storage Services","5922","employee"]
[null,"J","Information Media and Telecommunications","Libraries and Archives","6010","books lent"]
[null,"J","Information Media and Telecommunications","Other Information Services","6020","employee"]
[null,"K","Financial and Insurance Services","Central Banking","6210","employee","m2 GLA"]
[null,"K","Financial and Insurance Services","Banking","6221","employee","m2 GLA"]
[null,"K","Financial and Insurance Services","Building Society Operation","6222","employee","m2 GLA"]
[null,"K","Financial and Insurance Services","Credit Union Operation","6223","employee","m2 GLA"]
[null,"K","Financial and Insurance Services","Other Depository Financial Intermediation","6229","employee","m2 GLA"]
[null,"K","Financial and Insurance Services","Non-Depository Financing","6230","employee","m2 GLA"]
[null,"K","Financial and Insurance Services","Financial Asset Investing","6240","employee","m2 GLA"]
[null,"K","Financial and Insurance Services","Life Insurance","6310","employee","m2 GLA"]
[null,"K","Financial and Insurance Services","Health Insurance","6321","employee","m2 GLA"]
[null,"K","Financial and Insurance Services","General Insurance","6322","employee","m2 GLA"]
[null,"K","Financial and Insurance Services","Superannuation Funds","6330","employee","m2 GLA"]
[null,"K","Financial and Insurance Services","Financial Asset Broking Services","6411","employee","m2 GLA"]
[null,"K","Financial and Insurance Services","Other Auxiliary Finance and Investment Services","6419","employee","m2 GLA"]
[null,"K","Financial and Insurance Services","Auxiliary Insurance Services","6420","employee","m2 GLA"]
[null,"L","Rental, Hiring and Real Estate Services","Passenger Car Rental and Hiring","6611","employee","m2 GLA"]
[null,"L","Rental, Hiring and Real Estate Services","Other Motor Vehicle and Transport Equipment Rental and Hiring","6619","employee","m2 GLA"]
[null,"L","Rental, Hiring and Real Estate Services","Farm Animal and Bloodstock Leasing","6620","employee","m2 GLA"]
[null,"L","Rental, Hiring and Real Estate Services","Heavy Machinery and Scaffolding Rental and Hiring","6631","employee","m2 GLA"]
[null,"L","Rental, Hiring and Real Estate Services","Video and Other Electronic Media Rental and Hiring","6632","employee","m2 GLA"]
[null,"L","Rental, Hiring and Real Estate Services","Other Goods and Equipment Rental and Hiring n.e.c.","6639","employee","m2 GLA"]
[null,"L","Rental, Hiring and Real Estate Services","Non-Financial Intangible Assets (Except Copyrights) Leasing","6640","employee","m2 GLA"]
[null,"L","Rental, Hiring and Real Estate Services","Residential Property Operators","6711","employee","m2 GLA"]
[null,"L","Rental, Hiring and Real Estate Services","Non-Residential Property Operators","6712","employee","m2 GLA"]
[null,"L","Rental, Hiring and Real Estate Services","Real Estate Services","6720","employee","m2 GLA"]
[null,"M","Professional, Scientific and Technical Services","Scientific Research Services","6910","employee","m2 GLA"]
[null,"M","Professional, Scientific and Technical Services","Architectural Services","6921","employee","m2 GLA"]
[null,"M","Professional, Scientific and Technical Services","Surveying and Mapping Services","6922","employee","m2 GLA"]
[null,"M","Professional, Scientific and Technical Services","Engineering Design and Engineering Consulting Services","6923","employee","m2 GLA"]
[null,"M","Professional, Scientific and Technical Services","Other Specialised Design Services","6924","employee","m2 GLA"]
[null,"M","Professional, Scientific and Technical Services","Scientific Testing and Analysis Services","6925","employee","m2 GLA"]
[null,"M","Professional, Scientific and Technical Services","Legal Services","6931","employee","m2 GLA"]
[null,"M","Professional, Scientific and Technical Services","Accounting Services","6932","employee","m2 GLA"]
[null,"M","Professional, Scientific and Technical Services","Advertising Services","6940","employee","m2 GLA"]
[null,"M","Professional, Scientific and Technical Services","Market Research and Statistical Services","6950","employee","m2 GLA"]
[null,"M","Professional, Scientific and Technical Services","Corporate Head Office Management Services","6961","employee","m2 GLA"]
[null,"M","Professional, Scientific and Technical Services","Management Advice and Related Consulting Services","6962","employee","m2 GLA"]
[null,"M","Professional, Scientific and Technical Services","Veterinary Services","6970","employee","m2 GLA"]
[null,"M","Professional, Scientific and Technical Services","Professional Photographic Services","6991","employee","m2 GLA"]
[null,"M","Professional, Scientific and Technical Services","Other Professional, Scientific and Technical Services n.e.c.","6999","employee","m2 GLA"]
[null,"M","Professional, Scientific and Technical Services","Computer System Design and Related Services","7000","employee","m2 GLA"]
[null,"N","Administrative and Support Services","Employment Placement and Recruitment Services","7211","employee","m2 GLA"]
[null,"N","Administrative and Support Services","Labour Supply Services","7212","employee","m2 GLA"]
[null,"N","Administrative and Support Services","Travel Agency and Tour Arrangement Services","7220","employee","m2 GLA"]
[null,"N","Administrative and Support Services","Office Administrative Services","7291","employee","m2 GLA"]
[null,"N","Administrative and Support Services","Document Preparation Services","7292","employee","m2 GLA"]
[null,"N","Administrative and Support Services","Credit Reporting and Debt Collection Services","7293","employee","m2 GLA"]
[null,"N","Administrative and Support Services","Call Centre Operation","7294","employee","m2 GLA"]
[null,"N","Administrative and Support Services","Other Administrative Services n.e.c.","7299","employee","m2 GLA"]
[null,"N","Administrative and Support Services","Building and Other Industrial Cleaning Services","7311","employee","m2 GLA"]
[null,"N","Administrative and Support Services","Building Pest Control Services","7312","employee","m2 GLA"]
[null,"N","Administrative and Support Services","Gardening Services","7313","employee","m2 GLA"]
[null,"N","Administrative and Support Services","Packaging Services","7320","employee","m2 GLA"]
[null,"O","Public Administration and Safety","Central Government Administration","7510","employee","m2 GLA"]
[null,"O","Public Administration and Safety","State Government Administration","7520","employee","m2 GLA"]
[null,"O","Public Administration and Safety","Local Government Administration","7530","employee","m2 GLA"]
[null,"O","Public Administration and Safety","Justice","7540","employee","m2 GLA"]
[null,"O","Public Administration and Safety","Domestic Government Representation","7551","employee","m2 GLA"]
[null,"O","Public Administration and Safety","Foreign Government Representation","7552","employee","m2 GLA"]
[null,"O","Public Administration and Safety","Defence","7600","employee","m2 GLA"]
[null,"O","Public Administration and Safety","Police Services","7711","employee","m2 GLA"]
[null,"O","Public Administration and Safety","Investigation and Security Services","7712","employee","m2 GLA"]
[null,"O","Public Administration and Safety","Fire Protection and Other Emergency Services","7713","employee","m2 GLA"]
[null,"O","Public Administration and Safety","Correctional and Detention Services","7714","prisoner","m2 GLA"]
[null,"O","Public Administration and Safety","Other Public Order and Safety Services","7719","employee","m2 GLA"]
[null,"O","Public Administration and Safety","Regulatory Services","7720","employee","m2 GLA"]
[null,"P","Education and Training","Preschool Education","8010","student"]
[null,"P","Education and Training","Primary Education","8021","student"]
[null,"P","Education and Training","Secondary Education","8022","student"]
[null,"P","Education and Training","Combined Primary and Secondary Education","8023","student"]
[null,"P","Education and Training","Special School Education","8024","student"]
[null,"P","Education and Training","Technical and Vocational Education and Training","8101","Equivalent Full Time Student"]
[null,"P","Education and Training","Higher Education","8102","Equivalent Full Time Student"]
[null,"P","Education and Training","Sports and Physical Recreation Instruction","8211","student"]
[null,"P","Education and Training","Arts Education","8212","student"]
[null,"P","Education and Training","Adult, Community and Other Education n.e.c.","8219","Equivalent Full Time Student"]
[null,"P","Education and Training","Educational Support Services","8220","employee"]
[null,"Q","Health Care and Social Assistance","Hospitals (Except Psychiatric Hospitals)","8401","patient bed day","number of beds"]
[null,"Q","Health Care and Social Assistance","Psychiatric Hospitals","8402","patient","number of beds"]
[null,"Q","Health Care and Social Assistance","General Practice Medical Services","8511","patient","employee"]
[null,"Q","Health Care and Social Assistance","Specialist Medical Services","8512","patient","employee"]
[null,"Q","Health Care and Social Assistance","Pathology and Diagnostic Imaging Services","8520","patient","employee"]
[null,"Q","Health Care and Social Assistance","Dental Services","8531","patient","employee"]
[null,"Q","Health Care and Social Assistance","Optometry and Optical Dispensing","8532","patient","employee"]
[null,"Q","Health Care and Social Assistance","Physiotherapy Services","8533","patient","employee"]
[null,"Q","Health Care and Social Assistance","Chiropractic and Osteopathic Services","8534","patient","employee"]
[null,"Q","Health Care and Social Assistance","Other Allied Health Services","8539","employee"]
[null,"Q","Health Care and Social Assistance","Ambulance Services","8591","employee"]
[null,"Q","Health Care and Social Assistance","Other Health Care Services n.e.c.","8599","patient","employee"]
[null,"Q","Health Care and Social Assistance","Aged Care Residential Services","8601","resident","units"]
[null,"Q","Health Care and Social Assistance","Other Residential Care Services","8609","resident","units"]
[null,"Q","Health Care and Social Assistance","Child Care Services","8710","patron","employee"]
[null,"Q","Health Care and Social Assistance","Other Social Assistance Services","8790","employee"]
[null,"R","Arts and Recreation Services","Museum Operation","8910","patron","employee"]
[null,"R","Arts and Recreation Services","Zoological and Botanical Gardens Operation","8921","patron","employee"]
[null,"R","Arts and Recreation Services","Nature Reserves and Conservation Parks Operation","8922","ha","employee"]
[null,"R","Arts and Recreation Services","Performing Arts Operation","9001","patron","employee"]
[null,"R","Arts and Recreation Services","Creative Artists, Musicians, Writers and Performers","9002","NA","employee"]
[null,"R","Arts and Recreation Services","Performing Arts Venue Operation","9003","patron","employee"]
[null,"R","Arts and Recreation Services","Health and Fitness Centres and Gymnasia Operation","9111","patron","employee"]
[null,"R","Arts and Recreation Services","Sports and Physical Recreation Clubs and Sports Professionals","9112","patron","employee"]
[null,"R","Arts and Recreation Services","Sports and Physical Recreation Venues, Grounds and Facilities Operation","9113","ha","patron"]
[null,"R","Arts and Recreation Services","Sports and Physical Recreation Administrative Service","9114","employee"]
[null,"R","Arts and Recreation Services","Horse and Dog Racing Administration and Track Operation","9121","patron","employee"]
[null,"R","Arts and Recreation Services","Other Horse and Dog Racing Activities","9129","patron","employee"]
[null,"R","Arts and Recreation Services","Amusement Parks and Centres Operation","9131","patron","employee"]
[null,"R","Arts and Recreation Services","Amusement and Other Recreational Activities n.e.c.","9139","patron","employee"]
[null,"R","Arts and Recreation Services","Casino Operation","9201","patron","employee"]
[null,"R","Arts and Recreation Services","Lottery Operation","9202","employee"]
[null,"R","Arts and Recreation Services","Other Gambling Activities","9209","employee"]
[null,"S","Other Services","Automotive Electrical Services","9411","employee"]
[null,"S","Other Services","Automotive Body, Paint and Interior Repair","9412","employee"]
[null,"S","Other Services","Other Automotive Repair and Maintenance","9419","employee"]
[null,"S","Other Services","Domestic Appliance Repair and Maintenance","9421","employee"]
[null,"S","Other Services","Electronic (except Domestic Appliance) and Precision Equipment Repair","9422","employee"]
[null,"S","Other Services","Other Machinery and Equipment Repair and Maintenance","9429","employee"]
[null,"S","Other Services","Clothing and Footwear Repair","9491","employee"]
[null,"S","Other Services","Other Repair and Maintenance n.e.c.","9499","employee"]
[null,"S","Other Services","Hairdressing and Beauty Services","9511","patron","employee"]
[null,"S","Other Services","Diet and Weight Reduction Centre Operation","9512","patron","employee"]
[null,"S","Other Services","Funeral, Crematorium and Cemetery Services","9520","cadaver","employee"]
[null,"S","Other Services","Laundry and Dry-Cleaning Services","9531","kg ","employee"]
[null,"S","Other Services","Photographic Film Processing","9532","employee"]
[null,"S","Other Services","Parking Services","9533","spaces","employee"]
[null,"S","Other Services","Brothel Keeping and Prostitution Services","9534","employee","client"]
[null,"S","Other Services","Other Personal Services n.e.c.","9539","employee"]
[null,"S","Other Services","Religious Services","9540","employee"]
[null,"S","Other Services","Business and Professional Association Services","9551","employee"]
[null,"S","Other Services","Labour Association Services","9552","employee"]
[null,"S","Other Services","Other Interest Group Services n.e.c.","9559","employee"]
[null,"S","Other Services","Private Households Employing Staff","9601","employee"]
[null,"S","Other Services","Undifferentiated Goods-Producing Activities of Private Households for Own Use","9602","employee"]
[null,"S","Other Services","Undifferentiated Service-Producing Activities of Private Households for Own Use","9603","employee"]

{"sheet":"1 Water Use Summary","index":6,"n_rows":28,"n_cols":7,"rows_kept":28,"cut":false,"hidden":false,"merged":[[27,1,29,1],[21,1,24,1],[1,1,1,5],[2,2,2,5],[3,2,3,5],[4,2,4,5],[5,2,5,5],[6,2,6,5],[7,2,7,5],[8,2,8,5],[19,2,19,5],[18,2,18,5],[17,2,17,5]]}
[]
[null,"1. Water Use Summary ",null,null,null,null,"Comments"]
[null,"Baseline water use:","Value"]
[null,"Current water use period"]
[null,"Current water use consumption (ML/year)"]
[null,{"$f":"\"Commercial Activity Units (total number of \"&IF('G6 Business-Site Data'!G6= \"\",'G6 Business-Site Data'!E6, 'G6 Business-Site Data'!G6)&\"s in baseline period)\"","v":"Commercial Activity Units (total number of s in baseline period)"}]
[null,{"$f":"\"KPI (L/ \"&IF('G6 Business-Site Data'!G6= \"\",'G6 Business-Site Data'!E6, 'G6 Business-Site Data'!G6)&\")\"","v":"KPI (L/ )"},{"$f":"C5*1000000/C6","v":{"$error":"#DIV/0!"}}]
[null,"KPI target "]
[null,"KPI industry benchmark"]
[null,"Historical water use:","Year","ML/year","CAU",{"$f":"B7","v":"KPI (L/ )"}]
[null,null,null,null,null,{"$f":"D11*1000000/E11","v":{"$error":"#DIV/0!"}}]
[null,null,null,null,null,{"$f":"D12*1000000/E12","v":{"$error":"#DIV/0!"}}]
[null,null,null,null,null,{"$error":"#DIV/0!"}]
[null,null,null,null,null,{"$error":"#DIV/0!"}]
[null,null,null,null,null,{"$error":"#DIV/0!"}]
[null,null,null,null,null,{"$error":"#DIV/0!"}]
[null,null,null,null,null,{"$error":"#DIV/0!"}]
[null,"Water meters:","Value"]
[null,"How many water service provider meters supply the site?"]
[null,"How many sub-meters are used on site?"]
[null,"Sub-meter data:","Meter location","Id number","ML/year","% of total use in baseline period"]
[null,"If more than 5 sub-meters indicate the top 5 sub-meters",null,null,null,{"$f":"E22/$C$5","v":{"$error":"#DIV/0!"}}]
[null,null,null,null,null,{"$f":"E23/$C$5","v":{"$error":"#DIV/0!"}}]
[null,null,null,null,null,{"$f":"E24/$C$5","v":{"$error":"#DIV/0!"}}]
[null,null,null,null,null,{"$f":"E25/$C$5","v":{"$error":"#DIV/0!"}}]
[null,null,null,null,null,{"$f":"E26/$C$5","v":{"$error":"#DIV/0!"}}]
[null,"Other sources:","Source type","End Use","ML/year","How was the volume estimated?"]
[null,"If an end use is supplied 100% by other sources (not reticulated mains water) do not include this end use in the remainder of your WEMP.  However, this information must be recorded in this section. "]

{"sheet":"2 Management Review","index":7,"n_rows":24,"n_cols":15,"rows_kept":24,"cut":false,"hidden":false,"merged":[[2,1,2,2],[0,0,23,0],[23,1,23,8],[0,8,22,8],[19,2,19,4],[15,2,15,4],[7,2,7,4],[3,2,3,4],[1,1,1,3]]}
[]
[null,"2. Water Management Review",null,null,"Business or Other Non-Residential Water Efficiency Rating:",{"$f":"REPT(\"«\",G2)","v":""},{"$f":"ROUND(AVERAGE(G5:G7,G9:G12,G14:G15,G17:G19,G21:G23),0)","v":0}]
[null,"Management element",null,"Description","Management achievement indicator","Actual \nrating","Length","Minimum preferred rating"]
[null,1,"General Management ",null,null,{"$f":"REPT(\"«\",G4)","v":""},{"$f":"ROUND(AVERAGE(G5:G7),0)","v":0},null,null,1,2,3,4,5,21]
[null,"a","Management commitment","How has your management planned to make operations water efficient?",null,{"$f":"IF(NOT(ISBLANK(E5)),REPT(\"«\",MATCH(E5,J5:N5,0)),\"\")","v":""},{"$f":"LEN(F5)","v":0},"«««",null,"We are still planning our formal written commitment","Our floor managers have a formal written commitment","Our group managers have a formal written commitment","Our area/sector managers have a formal written commitment","Our board has a formal written commitment",20]
[null,"b","Responsibilities identified and delegated","Has responsibility for water efficiency been assigned to a suitably qualified person or group?",null,{"$f":"IF(NOT(ISBLANK(E6)),REPT(\"«\",MATCH(E6,J6:N6,0)),\"\")","v":""},{"$f":"LEN(F6)","v":0},"«««",null,"We are still planning our water efficiency management delegation","Our floor managers are responsible for water efficiency","All levels from our group managers downward are responsible for water efficiency","All levels from our area/sector managers downward are responsible for water efficiency","All levels from our board downward are responsible for water efficiency",19]
[null,"c","Encouraging innovation and new technology","Does the organisation encourage innovative water saving ideas?",null,{"$f":"IF(NOT(ISBLANK(E7)),REPT(\"«\",MATCH(E7,J7:N7,0)),\"\")","v":""},{"$f":"LEN(F7)","v":0},"«««",null,"We are still planning a formal encouragement program.","We encourage innovative water saving ideas on small projects only.","We encourage innovative water saving ideas on small and medium projects only.","We encourage innovative water saving ideas on small and large projects.","We encourage innovative water saving ideas on small, large and significant infrastructure projects.",18]
[null,2,"Management Structures",null,null,{"$f":"REPT(\"«\",G8)","v":""},{"$f":"ROUND(AVERAGE(G9:G12),0)","v":0},null,null,null,null,null,null,null,17]
[null,"a","Maintenance procedures","How does your organisation include water efficiency in maintenance procedures?",null,{"$f":"IF(NOT(ISBLANK(E9)),REPT(\"«\",MATCH(E9,J9:N9,0)),\"\")","v":""},{"$f":"LEN(F9)","v":0},"«««",null,"We are still planning the formal inclusion of water efficiency in our maintenance procedures.","We formally consider water efficiency in our maintenance procedures.","We formally consider end use specific water efficiency in our maintenance procedures.","We have end use specific guidelines for ensuring water efficiency in our maintenance procedures.","We have end use specific guidelines with a scheduled periodic review for ensuring water efficiency in our maintenance procedures. ",16]
[null,"b","Operating procedures","How does your organisation include water efficiency in operating procedures?",null,{"$f":"IF(NOT(ISBLANK(E10)),REPT(\"«\",MATCH(E10,J10:N10,0)),\"\")","v":""},{"$f":"LEN(F10)","v":0},"«««",null,"We are planning to include water efficiency in our operating procedures .","Broad consideration of water conservation issues","Usage specific consideration of water conservation","Usage specific guidance for ensuring water conservation","Usage specific guidance for ensuring water conservation with review/inspection periods set",15]
[null,"c","Water Efficiency Policy (WEP)","Does your organisation have a water efficiency policy? What plans and commitments does the policy contain?",null,{"$f":"IF(NOT(ISBLANK(E11)),REPT(\"«\",MATCH(E11,J11:N11,0)),\"\")","v":""},{"$f":"LEN(F11)","v":0},"«««",null,"No water efficiency policy exists","WEP includes broad consideration of water conservation issues with no commitments","WEP includes broad consideration of water conservation issues with non specific commitments","WEP includes broad consideration of water conservation issues with specific commitments","WEP includes broad consideration of water conservation issues with specific quantifiable commitments",14]
[null,"d","Strategic plan link","What are the links between the water efficiency policy and the organisation’s overall strategic plan?",null,{"$f":"IF(NOT(ISBLANK(E12)),REPT(\"«\",MATCH(E12,J12:N12,0)),\"\")","v":""},{"$f":"LEN(F12)","v":0},"«««",null,"No linkage exists","Strategic plan includes broad consideration of water conservation issues with no commitments","Strategic plan includes broad consideration of water conservation issues with non specific commitments","Strategic plan includes broad consideration of water conservation issues with specific financial commitments","Strategic plan includes broad consideration of water conservation issues with specific financial commitments and quantifiable targets",13]
[null,3,"Awareness",null,null,{"$f":"REPT(\"«\",G13)","v":""},{"$f":"ROUND(AVERAGE(G14:G15),0)","v":0},null,null,null,null,null,null,null,12]
[null,"a","Understanding of potential savings","How well do you understand the potential for the organisation to save water?",null,{"$f":"IF(NOT(ISBLANK(E14)),REPT(\"«\",MATCH(E14,J14:N14,0)),\"\")","v":""},{"$f":"LEN(F14)","v":0},"«««",null,"No understanding","Poor","Fair","Good","Detailed understanding",11]
[null,"b","Training and awareness procedures","What training procedures do you have, how frequently are staff trained and do you run awareness campaigns?",null,{"$f":"IF(NOT(ISBLANK(E15)),REPT(\"«\",MATCH(E15,J15:N15,0)),\"\")","v":""},{"$f":"LEN(F15)","v":0},"«««",null,"No training","Standard maintenance training","Specific maintenance training, including water efficiency issues","Specific maintenance training, including water efficiency issues and some communication of issues to employees","Specific maintenance training, including water efficiency issues and general employee awareness campaign",10]
[null,4,"Reporting",null,null,{"$f":"REPT(\"«\",G16)","v":""},{"$f":"ROUND(AVERAGE(G17:G19),0)","v":0},null,null,null,null,null,null,null,9]
[null,"a","Water metering and monitoring","Do you have sub-metering of water consumption within your premises? \nHow is this data collected?",null,{"$f":"IF(NOT(ISBLANK(E17)),REPT(\"«\",MATCH(E17,J17:N17,0)),\"\")","v":""},{"$f":"LEN(F17)","v":0},"«««",null,"Main meter only","Main meter and sub-meters on all major water using equipment - no recording","Main meter and sub-meters read monthly","Main meter and sub-meters read daily or weekly","Permanent data logging ",8]
[null,"b","Targets and KPIs","Does your organisation have water efficiency targets in place?",null,{"$f":"IF(NOT(ISBLANK(E18)),REPT(\"«\",MATCH(E18,J18:N18,0)),\"\")","v":""},{"$f":"LEN(F18)","v":0},"«««",null,"No targets","General targets for specific plant i.e. cooling towers","General improvement target","Quantifiable targets for overall organisation","Best practice targets",7]
[null,"c","Reporting procedures","Do you track and report on water consumption?",null,{"$f":"IF(NOT(ISBLANK(E19)),REPT(\"«\",MATCH(E19,J19:N19,0)),\"\")","v":""},{"$f":"LEN(F19)","v":0},"«««",null,"No reporting procedures","Overall consumption reported to site manager","Quarterly consumption reported to site manager","Monthly consumption reporting to site manager","Monthly consumption reporting to site manager and inclusion in organisations annual report",6]
[null,5,"Investment",null,null,{"$f":"REPT(\"«\",G20)","v":""},{"$f":"ROUND(AVERAGE(G21:G23),0)","v":0},null,null,null,null,null,null,null,5]
[null,"a","Maintenance budget","What funding is available within the maintenance budget for water conservation?",null,{"$f":"IF(NOT(ISBLANK(E21)),REPT(\"«\",MATCH(E21,J21:N21,0)),\"\")","v":""},{"$f":"LEN(F21)","v":0},"«««",null,"No budget","Funding for standard leakage expenses only","Funding available for leakage reduction","Funding available for leakage reduction and cooling tower maintenance","Funding available for leakage reduction and cooling tower maintenance. Reporting costs included within budget.",4]
[null,"b","Capital expenditure budget","Does your CAPEX budget include an allowance for water saving measures?",null,{"$f":"IF(NOT(ISBLANK(E22)),REPT(\"«\",MATCH(E22,J22:N22,0)),\"\")","v":""},{"$f":"LEN(F22)","v":0},"«««",null,"No budget","Standard CAPEX including fixture upgrades","Budget allowed for fixture retrofit program","Budget allowed for fixture retrofit and minor plant upgrades","Budget allowed for major water reduction scheme/s",3]
[null,"c","Operating budget (including offsets)","Does your operating budget include an allowance for water saving measures?",null,{"$f":"IF(NOT(ISBLANK(E23)),REPT(\"«\",MATCH(E23,J23:N23,0)),\"\")","v":""},{"$f":"LEN(F23)","v":0},"«««",null,"No budget","Budget for minor operational changes","Budget for minor new conservation processes","Budget for new conservation processes such as stormwater harvesting","Budget for major new conservation processes such as onsite recycling",2]
[null,null,null,null,null,null,null,null,null,"¶","¶¶","¶¶¶","¶¶¶¶","¶¶¶¶¶"]

{"sheet":"3 Management Actions","index":8,"n_rows":24,"n_cols":20,"rows_kept":24,"cut":false,"hidden":false,"merged":[[12,9,12,12],[1,5,1,7],[1,1,1,4],[2,1,2,2],[3,9,3,12],[7,9,7,12]]}
[]
[null,"2. Water Management Review",null,null,null,"Business or Other Non-Residential Water Efficiency Rating:",null,null,{"$f":"ROUND(AVERAGE(I5:I7,I9:I12,I14:I15,I17:I19,I21:I23),0)","v":0}]
[null,"Management element",null,"Description","Preferred rating","Actual current rating","Target management \nachievement indicator","Target rating","Length","Action measure details","Person responsible (nominate officer)","Target completion date","Date completed"]
[null,1,"General Management ",null,null,null,null,{"$f":"REPT(\"«\",I4)","v":""},{"$f":"ROUND(AVERAGE(I5:I7),0)","v":0},null,null,null,null,null,1,2,3,4,5,21]
[null,"a","Management commitment","How has your management planned to make operations water efficient?",{"$f":"'2 Management Review'!H5","v":"«««"},{"$f":"'2 Management Review'!F5","v":""},null,{"$f":"IF(NOT(ISBLANK(G5)),REPT(\"«\",MATCH(G5,O5:S5,0)),\"\")","v":""},{"$f":"LEN(H5)","v":0},null,null,null,null,null,"We are still planning our formal written commitment","Our floor managers have a formal written commitment","Our group managers have a formal written commitment","Our area/sector managers have a formal written commitment","Our board has a formal written commitment",20]
[null,"b","Responsibilities identified and delegated","Has responsibility for water efficiency been assigned to a suitably qualified person or group?",{"$f":"'2 Management Review'!H6","v":"«««"},{"$f":"'2 Management Review'!F6","v":""},null,{"$f":"IF(NOT(ISBLANK(G6)),REPT(\"«\",MATCH(G6,O6:S6,0)),\"\")","v":""},{"$f":"LEN(H6)","v":0},null,null,null,null,null,"We are still planning our water efficiency management delegation","Our floor managers are responsible for water efficiency","All levels from our group managers downward are responsible for water efficiency","All levels from our area/sector managers downward are responsible for water efficiency","All levels from our board downward are responsible for water efficiency",19]
[null,"c","Encouraging innovation and new technology","Does the organisation encourage innovative water saving ideas?",{"$f":"'2 Management Review'!H7","v":"«««"},{"$f":"'2 Management Review'!F7","v":""},null,{"$f":"IF(NOT(ISBLANK(G7)),REPT(\"«\",MATCH(G7,O7:S7,0)),\"\")","v":""},{"$f":"LEN(H7)","v":0},null,null,null,null,null,"We are still planning a formal encouragement program.","We encourage innovative water saving ideas on small projects only.","We encourage innovative water saving ideas on small and medium projects only.","We encourage innovative water saving ideas on small and large projects.","We encourage innovative water saving ideas on small, large and significant infrastructure projects.",18]
[null,2,"Management Structures",null,null,null,null,{"$f":"REPT(\"«\",I8)","v":""},{"$f":"ROUND(AVERAGE(I9:I12),0)","v":0},null,null,null,null,null,null,null,null,null,null,17]
[null,"a","Maintenance procedures","How does your organisation include water efficiency in maintenance procedures?",{"$f":"'2 Management Review'!H9","v":"«««"},{"$f":"'2 Management Review'!F9","v":""},null,{"$f":"IF(NOT(ISBLANK(G9)),REPT(\"«\",MATCH(G9,O9:S9,0)),\"\")","v":""},{"$f":"LEN(H9)","v":0},null,null,null,null,null,"We are still planning the formal inclusion of water efficiency in our maintenance procedures.","We formally consider water efficiency in our maintenance procedures.","We formally consider end use specific water efficiency in our maintenance procedures.","We have end use specific guidelines for ensuring water efficiency in our maintenance procedures.","We have end use specific guidelines with a scheduled periodic review for ensuring water efficiency in our maintenance procedures. ",16]
[null,"b","Operating procedures","How does your organisation include water efficiency in operating procedures?",{"$f":"'2 Management Review'!H10","v":"«««"},{"$f":"'2 Management Review'!F10","v":""},null,{"$f":"IF(NOT(ISBLANK(G10)),REPT(\"«\",MATCH(G10,O10:S10,0)),\"\")","v":""},{"$f":"LEN(H10)","v":0},null,null,null,null,null,"We are planning to include water efficiency in our operating procedures .","Broad consideration of water conservation issues","Usage specific consideration of water conservation","Usage specific guidance for ensuring water conservation","Usage specific guidance for ensuring water conservation with review/inspection periods set",15]
[null,"c","Water Efficiency Policy (WEP)","Does your organisation have a water efficiency policy? What plans and commitments does the policy contain?",{"$f":"'2 Management Review'!H11","v":"«««"},{"$f":"'2 Management Review'!F11","v":""},null,{"$f":"IF(NOT(ISBLANK(G11)),REPT(\"«\",MATCH(G11,O11:S11,0)),\"\")","v":""},{"$f":"LEN(H11)","v":0},null,null,null,null,null,"No water efficiency policy exists","WEP includes broad consideration of water conservation issues with no commitments","WEP includes broad consideration of water conservation issues with non specific commitments","WEP includes broad consideration of water conservation issues with specific commitments","WEP includes broad consideration of water conservation issues with specific quantifiable commitments",14]
[null,"d","Strategic plan link","What are the links between the water efficiency policy and the organisation’s overall strategic plan?",{"$f":"'2 Management Review'!H12","v":"«««"},{"$f":"'2 Management Review'!F12","v":""},null,{"$f":"IF(NOT(ISBLANK(G12)),REPT(\"«\",MATCH(G12,O12:S12,0)),\"\")","v":""},{"$f":"LEN(H12)","v":0},null,null,null,null,null,"No linkage exists","Strategic plan includes broad consideration of water conservation issues with no commitments","Strategic plan includes broad consideration of water conservation issues with non specific commitments","Strategic plan includes broad consideration of water conservation issues with specific financial commitments","Strategic plan includes broad consideration of water conservation issues with specific financial commitments and quantifiable targets",13]
[null,3,"Awareness",null,null,null,null,{"$f":"REPT(\"«\",I13)","v":""},{"$f":"ROUND(AVERAGE(I14:I15),0)","v":0},null,null,null,null,null,null,null,null,null,null,12]
[null,"a","Understanding of potential savings","How well do you understand the potential for the organisation to save water?",{"$f":"'2 Management Review'!H14","v":"«««"},{"$f":"'2 Management Review'!F14","v":""},null,{"$f":"IF(NOT(ISBLANK(G14)),REPT(\"«\",MATCH(G14,O14:S14,0)),\"\")","v":""},{"$f":"LEN(H14)","v":0},null,null,null,null,null,"No understanding","Poor","Fair","Good","Detailed understanding",11]
[null,"b","Training and awareness procedures","What training procedures do you have, how frequently are staff trained and do you run awareness campaigns?",{"$f":"'2 Management Review'!H15","v":"«««"},{"$f":"'2 Management Review'!F15","v":""},null,{"$f":"IF(NOT(ISBLANK(G15)),REPT(\"«\",MATCH(G15,O15:S15,0)),\"\")","v":""},{"$f":"LEN(H15)","v":0},null,null,null,null,null,"No training","Standard maintenance training","Specific maintenance training, including water efficiency issues","Specific maintenance training, including water efficiency issues and some communication of issues to employees","Specific maintenance training, including water efficiency issues and general employee awareness campaign",10]
[null,4,"Reporting",null,null,null,null,{"$f":"REPT(\"«\",I16)","v":""},{"$f":"ROUND(AVERAGE(I17:I19),0)","v":0},null,null,null,null,null,null,null,null,null,null,9]
[null,"a","Water metering and monitoring","Do you have water sub-metering? \nHow is this data collected?",{"$f":"'2 Management Review'!H17","v":"«««"},{"$f":"'2 Management Review'!F17","v":""},null,{"$f":"IF(NOT(ISBLANK(G17)),REPT(\"«\",MATCH(G17,O17:S17,0)),\"\")","v":""},{"$f":"LEN(H17)","v":0},null,null,null,null,null,"Main meter only","Main meter and sub-meters on all major water using equipment - no recording","Main meter and sub-meters read monthly","Main meter and sub-meters read weekly","Permanent data logging ",8]
[null,"b","Targets and KPIs","Does your organisation have water efficiency targets in place?",{"$f":"'2 Management Review'!H18","v":"«««"},{"$f":"'2 Management Review'!F18","v":""},null,{"$f":"IF(NOT(ISBLANK(G18)),REPT(\"«\",MATCH(G18,O18:S18,0)),\"\")","v":""},{"$f":"LEN(H18)","v":0},null,null,null,null,null,"No targets","General targets for specific plant i.e. cooling towers","General improvement target","Quantifiable targets for overall organisation","Best practice targets",7]
[null,"c","Reporting procedures","Do you track and report on water consumption?",{"$f":"'2 Management Review'!H19","v":"«««"},{"$f":"'2 Management Review'!F19","v":""},null,{"$f":"IF(NOT(ISBLANK(G19)),REPT(\"«\",MATCH(G19,O19:S19,0)),\"\")","v":""},{"$f":"LEN(H19)","v":0},null,null,null,null,null,"No reporting procedures","Overall consumption reported to site manager","Quarterly consumption reported to site manager","Monthly consumption reporting to site manager","Monthly consumption reporting to site manager and inclusion in organisations annual report",6]
[null,5,"Investment",null,null,null,null,{"$f":"REPT(\"«\",I20)","v":""},{"$f":"ROUND(AVERAGE(I21:I23),0)","v":0},null,null,null,null,null,null,null,null,null,null,5]
[null,"a","Maintenance budget","What funding is available within the maintenance budget for water conservation?",{"$f":"'2 Management Review'!H21","v":"«««"},{"$f":"'2 Management Review'!F21","v":""},null,{"$f":"IF(NOT(ISBLANK(G21)),REPT(\"«\",MATCH(G21,O21:S21,0)),\"\")","v":""},{"$f":"LEN(H21)","v":0},null,null,null,null,null,"No budget","Funding for standard leakage expenses only","Funding available for leakage reduction","Funding available for leakage reduction and cooling tower maintenance","Funding available for leakage reduction and cooling tower maintenance. Reporting costs included within budget.",4]
[null,"b","Capital expenditure budget","Does your CAPEX budget include an allowance for water saving measures?",{"$f":"'2 Management Review'!H22","v":"«««"},{"$f":"'2 Management Review'!F22","v":""},null,{"$f":"IF(NOT(ISBLANK(G22)),REPT(\"«\",MATCH(G22,O22:S22,0)),\"\")","v":""},{"$f":"LEN(H22)","v":0},null,null,null,null,null,"No budget","Standard CAPEX including fixture upgrades","Budget allowed for fixture retrofit program","Budget allowed for fixture retrofit and minor plant upgrades","Budget allowed for major water reduction scheme/s",3]
[null,"c","Operating budget (including offsets)","Does your operating budget include an allowance for water saving measures?",{"$f":"'2 Management Review'!H23","v":"«««"},{"$f":"'2 Management Review'!F23","v":""},null,{"$f":"IF(NOT(ISBLANK(G23)),REPT(\"«\",MATCH(G23,O23:S23,0)),\"\")","v":""},{"$f":"LEN(H23)","v":0},null,null,null,null,null,"No budget","Budget for minor operational changes","Budget for  minor new conservation processes","Budget for new conservation processes such as stormwater harvesting","Budget for major new conservation processes such as onsite recycling",2]
[null,null,null,null,null,null,null,null,null,null,null,null,null,null,"¶","¶¶","¶¶¶","¶¶¶¶","¶¶¶¶¶"]

{"sheet":"4 End Use Definitions","index":9,"n_rows":29,"n_cols":6,"rows_kept":29,"cut":false,"hidden":false,"merged":[[19,3,19,4],[27,3,27,4],[25,3,25,4],[28,3,28,4],[24,3,24,4],[21,3,21,4],[20,3,20,4],[16,3,16,4],[18,3,18,4],[26,3,26,4],[1,1,1,3],[2,1,3,5],[4,1,4,2],[4,4,4,5],[15,3,15,4],[14,3,14,4],[5,3,11,5],[17,3,17,4],[12,5,28,5],[22,3,22,4],[23,3,23,4],[12,3,12,4],[13,3,13,4]]}
[]
[null,"4. End Use Categories"]
[null,"An End Use is a functional category of water use within your premises. A number of End Uses are pre defined.\nHowever, this sheet can be used to define other significant end uses at your premises.  You can only define an End Use once. If a cell goes red, it means that there is a blank cell above it, or the cell's value is a duplicate in the list.  Cells in column C must be consecutive, with no blank cells in between defined end uses, as this will affect the rest of the tool's operation."]
[]
[null,"End use category title",null,null,"Details"]
[null,1,"Toilets","Standard end use definitions - All fixed"]
[null,2,"Taps"]
[null,3,"Showers"]
[null,4,"Urinals - single stall"]
[null,5,"Urinals - trough"]
[null,6,"Unaccounted"]
[null,7,"Leakage"]
[null,8,"Cooling","Any evaporative cooling systems used on the premises (delete if not required)",null,"Enter other major End Uses Categories from here, down."]
[null,9,"Fire Testing ","Any water use as a result of testing of fire fighting systems (delete if not required)"]
[null,10]
[null,11]
[null,12]
[null,13]
[null,14]
[null,15]
[null,16]
[null,17]
[null,18]
[null,19]
[null,20]
[null,21]
[null,22]
[null,23]
[null,24]

{"sheet":"5-1A Taps & Showers","index":10,"n_rows":736,"n_cols":20,"rows_kept":736,"cut":false,"hidden":false,"merged":[[9,17,11,17],[9,19,11,19],[3,19,5,19],[9,18,11,18],[3,18,5,18],[3,17,5,17],[3,15,7,15],[3,12,7,14],[3,9,7,9],[9,9,11,9],[3,10,5,10],[8,15,8,16],[9,15,11,15],[3,16,5,16],[9,16,11,16],[9,14,11,14],[3,11,7,11],[9,13,11,13],[9,12,11,12],[9,5,11,5],[3,5,7,5],[9,7,11,7],[9,10,11,10],[2,2,2,10],[2,11,2,16],[1,2,1,19],[1,1,2,1],[2,17,2,19],[9,2,11,2],[9,3,11,3],[3,1,7,1],[3,2,7,3],[8,2,8,11],[3,4,7,4],[9,8,11,8],[3,7,7,7],[9,6,11,6],[9,4,11,4],[3,8,7,8],[3,6,7,6]]}
[]
[null,"5-1A - Taps & Showers"]
[null,null,"Current Fixture Information",null,null,null,null,null,null,null,null,"Proposed Actions",null,null,null,null,null,"Results"]
[null,"Location","Fixture type count  - number of like fixtures ",null,"Average duration of use","Average number of users per day","Average usage per person","Number of days used","Current usage rate","% of use which is volumetric i.e. fixed","General condition","Does the fixture require changes to improve water efficiency?","Action",null,null,"Completion date","New usage rate","Current usage\n(ML per year)","Water saving\n(ML per year)","Water saving\n(%)"]
[]
[]
[null,null,null,null,null,null,null,null,null,null,null,null,null,null,null,null,"Taps",{"$f":"SUMIF($C$15:$C$736,\">0\",$R$15:$R$736)","v":0},{"$f":"SUMIF($C$15:$C$736,\">0\",$S$15:$S$736)","v":0},{"$f":"S7/R7*100","v":{"$error":"#DIV/0!"}}]
[null,null,null,null,null,null,null,null,null,null,null,null,null,null,null,null,"Showers",{"$f":"SUMIF($D$15:$D$736,\">0\",$R$15:$R$736)","v":0},{"$f":"SUMIF($D$15:$D$736,\">0\",$S$15:$S$736)","v":0},{"$f":"S8/R8*100","v":{"$error":"#DIV/0!"}}]
[null,"                ",null,null,null,null,null,null,null,null,null,null,{"$f":"COUNTIF(M15:M31,\"Y\")","v":0},{"$f":"COUNTIF(N15:N31,\"Y\")","v":0},{"$f":"COUNTIF(O15:O31,\"Y\")","v":0},"Total",null,{"$f":"SUM(R7:R8)","v":0},{"$f":"SUM(S7:S8)","v":0},{"$f":"S9/R9*100","v":{"$error":"#DIV/0!"}}]
[null,"Fixture location e.g. ","Tap","Shower","Average duration of each use in seconds","Average number of people who use the fixtures each day","Average number of times fixtures are used per person based on audit, observations or typical industry figures","Number of days/year the fixture is used","Measured flow rate-typical (L/min)","Specify what % of this use is fixed","Specify the condition of the fixture","Please list:","Repair","Add device","Replace","Date in which action will be completed","Proposed flow rate\n(L/min)","Calculated and/or measured current consumption","Estimated savings from original tap or shower","Savings as % of use"]
[null,"Building level",null,null,null,null,null,null,null,null,null,"· ‘Y’ for Yes, "]
[null,"Kitchen",null,null,null,null,null,null,null,null,null,"· ‘N’ for No"]
[null,"E.g. Kitchen",5,null,8,25,2,200,12,0,"Leaking","Y",null,"Y",null,"2010-08-29",9,{"$f":"\"eg: \"&TEXT(G13*F13*E13/60*(I13)/1000000*H13,\"0.000000\")","v":"eg: 0.016000"},{"$f":"\"eg: \"&TEXT(G13*F13*E13/60*(1-J13)*(I13-Q13)/1000000*H13,\"0.000000\")","v":"eg: 0.004000"},{"$f":"\"eg: \"&TEXT(VALUE(RIGHT(S13,LEN(S13)-3))/VALUE(RIGHT(R13,LEN(R13)-3)),\"0.0%\")","v":"eg: 25.0%"}]
[null,"E.g. Bathroom",null,1,{"$f":"4*60","v":240},10,1,{"$f":"365-52*2","v":261},20,0,"Good","Y",null,null,"Y","2010-08-25",9,{"$f":"\"eg: \"&TEXT(G14*F14*E14/60*(I14)/1000000*H14,\"0.000000\")","v":"eg: 0.208800"},{"$f":"\"eg: \"&TEXT(G14*F14*E14/60*(1-J14)*(I14-Q14)/1000000*H14,\"0.000000\")","v":"eg: 0.114840"},{"$f":"\"eg: \"&TEXT(VALUE(RIGHT(S14,LEN(S14)-3))/VALUE(RIGHT(R14,LEN(R14)-3)),\"0.0%\")","v":"eg: 55.0%"}]
[null,null,null,null,null,null,null,null,null,null,null,null,null,null,null,null,null,{"$f":"F15*G15*E15/60*(I15)/1000000*H15","v":0},{"$f":"IF(L15=\"N\",0,F15*G15*E15*(1-J15)/60*(I15-Q15)/1000000*H15)","v":0},{"$f":"IF(L15=\"N\",0,S15/R15)","v":{"$error":"#DIV/0!"}}]
[null,null,null,null,null,null,null,null,null,null,null,null,null,null,null,null,null,{"$f":"F16*G16*E16/60*(I16)/1000000*H16","v":0},{"$f":"IF(L16=\"N\",0,F16*G16*E16*(1-J16)/60*(I16-Q16)/1000000*H16)","v":0},{"$error":"#DIV/0!"}]
[null,null,null,null,null,null,null,null,null,null,null,null,null,null,null,null,null,{"$f":"F17*G17*E17/60*(I17)/1000000*H17","v":0},0,{"$error":"#DIV/0!"}]
[null,null,null,null,null,null,null,null,null,null,null,null,null,null,null,null,null,{"$f":"F18*G18*E18/60*(I18)/1000000*H18","v":0},0,{"$error":"#DIV/0!"}]
[null,null,null,null,null,null,null,null,null,null,null,null,null,null,null,null,null,0,0,{"$error":"#DIV/0!"}]
[null,null,null,null,null,null,null,null,null,null,null,null,null,null,null,null,null,0,0,{"$error":"#DIV/0!"}]
[null,null,null,null,null,null,null,null,null,null,null,null,null,null,null,null,null,0,0,{"$error":"#DIV/0!"}]
[null,null,null,null,null,null,null,null,null,null,null,null,null,null,null,null,null,0,0,{"$error":"#DIV/0!"}]
[null,null,null,null,null,null,null,null,null,null,null,null,null,null,null,null,null,0,0,{"$error":"#DIV/0!"}]
[null,null,null,null,null,null,null,null,null,null,null,null,null,null,null,null,null,0,0,{"$error":"#DIV/0!"}]
[null,null,null,null,null,null,null,null,null,null,null,null,null,null,null,null,null,0,0,{"$error":"#DIV/0!"}]
[null,null,null,null,null,null,null,null,null,null,null,null,null,null,null,null,null,0,0,{"$error":"#DIV/0!"}]
[null,null,null,null,null,null,null,null,null,null,null,null,null,null,null,null,null,0,0,{"$error":"#DIV/0!"}]
[null,null,null,null,null,null,null,null,null,null,null,null,null,null,null,null,null,0,0,{"$error":"#DIV/0!"}]
[null,null,null,null,null,null,null,null,null,null,null,null,null,null,null,null,null,0,0,{"$error":"#DIV/0!"}]
[null,null,null,null,null,null,null,null,null,null,null,null,null,null,null,null,null,0,0,{"$error":"#DIV/0!"}]
[null,null,null,null,null,null,null,null,null,null,null,null,null,null,null,null,null,0,0,{"$error":"#DIV/0!"}]
[null,null,null,null,null,null,null,null,null,null,null,null,null,null,null,null,null,0,0,{"$error":"#DIV/0!"}]
[null,null,null,null,null,null,null,null,null,null,null,null,null,null,null,null,null,0,0,{"$error":"#DIV/0!"}]
[null,null,null,null,null,null,null,null,null,null,null,null,null,null,null,null,null,0,0,{"$error":"#DIV/0!"}]
[null,null,null,null,null,null,null,null,null,null,null,null,null,null,null,null,null,0,0,{"$error":"#DIV/0!"}]
[null,null,null,null,null,null,null,null,null,null,null,null,null,null,null,null,null,0,0,{"$error":"#DIV/0!"}]
[null,null,null,null,null,null,null,null,null,null,null,null,null,null,null,null,null,0,0,{"$error":"#DIV/0!"}]
[null,null,null,null,null,null,null,null,null,null,null,null,null,null,null,null,null,0,0,{"$error":"#DIV/0!"}]
[null,null,null,null,null,null,null,null,null,null,null,null,null,null,null,null,null,0,0,{"$error":"#DIV/0!"}]
[null,null,null,null,null,null,null,null,null,null,null,null,null,null,null,null,null,0,0,{"$error":"#DIV/0!"}]
[null,null,null,null,null,null,null,null,null,null,null,null,null,null,null,null,null,0,0,{"$error":"#DIV/0!"}]
[null,null,null,null,null,null,null,null,null,null,null,null,null,null,null,null,null,0,0,{"$error":"#DIV/0!"}]
[null,null,null,null,null,null,null,null,null,null,null,null,null,null,null,null,null,0,0,{"$error":"#DIV/0!"}]
[null,null,null,null,null,null,null,null,null,null,null,null,null,null,null,null,null,0,0,{"$error":"#DIV/0!"}]
[null,null,null,null,null,null,null,null,null,null,null,null,null,null,null,null,null,0,0,{"$error":"#DIV/0!"}]
[null,null,null,null,null,null,null,null,null,null,null,null,null,null,null,null,null,0,0,{"$error":"#DIV/0!"}]
[null,null,null,null,null,null,null,null,null,null,null,null,null,null,null,null,null,0,0,{"$error":"#DIV/0!"}]
[null,null,null,null,null,null,null,null,null,null,null,null,null,null,null,null,null,0,0,{"$error":"#DIV/0!"}]
[null,null,null,null,null,null,null,null,null,null,null,null,null,null,null,null,null,0,0,{"$error":"#DIV/0!"}]
[null,null,null,null,null,null,null,null,null,null,null,null,null,null,null,null,null,0,0,{"$error":"#DIV/0!"}]
[null,null,null,null,null,null,null,null,null,null,null,null,null,null,null,null,null,0,0,{"$error":"#DIV/0!"}]
[null,null,null,null,null,null,null,null,null,null,null,null,null,null,null,null,null,0,0,{"$error":"#DIV/0!"}]
[null,null,null,null,null,null,null,null,null,null,null,null,null,null,null,null,null,0,0,{"$error":"#DIV/0!"}]
[null,null,null,null,null,null,null,null,null,null,null,null,null,null,null,null,null,0,0,{"$error":"#DIV/0!"}]
[null,null,null,null,null,null,null,null,null,null,null,null,null,null,null,null,null,0,0,{"$error":"#DIV/0!"}]
[null,null,null,null,null,null,null,null,null,null,null,null,null,null,null,null,null,0,0,{"$error":"#DIV/0!"}]
[null,null,null,null,null,null,null,null,null,null,null,null,null,null,null,null,null,0,0,{"$error":"#DIV/0!"}]
[null,null,null,null,null,null,null,null,null,null,null,null,null,null,null,null,null,0,0,{"$error":"#DIV/0!"}]
[null,null,null,null,null,null,null,null,null,null,null,null,null,null,null,null,null,0,0,{"$error":"#DIV/0!"}]
[null,null,null,null,null,null,null,null,null,null,null,null,null,null,null,null,null,0,0,{"$error":"#DIV/0!"}]
[null,null,null,null,null,null,null,null,null,null,null,null,null,null,null,null,null,0,0,{"$error":"#DIV/0!"}]
[null,null,null,null,null,null,null,null,null,null,null,null,null,null,null,null,null,0,0,{"$error":"#DIV/0!"}]
[null,null,null,null,null,null,null,null,null,null,null,null,null,null,null,null,null,0,0,{"$error":"#DIV/0!"}]
[null,null,null,null,null,null,null,null,null,null,null,null,null,null,null,null,null,0,0,{"$error":"#DIV/0!"}]
[null,null,null,null,null,null,null,null,null,null,null,null,null,null,null,null,null,0,0,{"$error":"#DIV/0!"}]
[null,null,null,null,null,null,null,null,null,null,null,null,null,null,null,null,null,0,0,{"$error":"#DIV/0!"}]
[null,null,null,null,null,null,null,null,null,null,null,null,null,null,null,null,null,0,0,{"$error":"#DIV/0!"}]
[null,null,null,null,null,null,null,null,null,null,null,null,null,null,null,null,null,0,0,{"$error":"#DIV/0!"}]
[null,null,null,null,null,null,null,null,null,null,null,null,null,null,null,null,null,0,0,{"$error":"#DIV/0!"}]
[null,null,null,null,null,null,null,null,null,null,null,null,null,null,null,null,null,0,0,{"$error":"#DIV/0!"}]
[null,null,null,null,null,null,null,null,null,null,null,null,null,null,null,null,null,0,0,{"$error":"#DIV/0!"}]
[null,null,null,null,null,null,null,null,null,null,null,null,null,null,null,null,null,0,0,{"$error":"#DIV/0!"}]
[null,null,null,null,null,null,null,null,null,null,null,null,null,null,null,null,null,0,0,{"$error":"#DIV/0!"}]
[null,null,null,null,null,null,null,null,null,null,null,null,null,null,null,null,null,0,0,{"$error":"#DIV/0!"}]
[null,null,null,null,null,null,null,null,null,null,null,null,null,null,null,null,null,0,0,{"$error":"#DIV/0!"}]
[null,null,null,null,null,null,null,null,null,null,null,null,null,null,null,null,null,0,{"$f":"IF(L76=\"N\",0,F76*G76*E76*(1-J76)/60*(I76-Q76)/1000000*H76)","v":0},{"$f":"IF(L76=\"N\",0,S76/R76)","v":{"$error":"#DIV/0!"}}]
[null,null,null,null,null,null,null,null,null,null,null,null,null,null,null,null,null,{"$f":"F77*G77*E77/60*(I77)/1000000*H77","v":0},0,{"$error":"#DIV/0!"}]
[null,null,null,null,null,null,null,null,null,null,null,null,null,null,null,null,null,0,0,{"$error":"#DIV/0!"}]
[null,null,null,null,null,null,null,null,null,null,null,null,null,null,null,null,null,0,0,{"$error":"#DIV/0!"}]
[null,null,null,null,null,null,null,null,null,null,null,null,null,null,null,null,null,0,0,{"$error":"#DIV/0!"}]
[null,null,null,null,null,null,null,null,null,null,null,null,null,null,null,null,null,0,0,{"$error":"#DIV/0!"}]
[null,null,null,null,null,null,null,null,null,null,null,null,null,null,null,null,null,0,0,{"$error":"#DIV/0!"}]
[null,null,null,null,null,null,null,null,null,null,null,null,null,null,null,null,null,0,0,{"$error":"#DIV/0!"}]
[null,null,null,null,null,null,null,null,null,null,null,null,null,null,null,null,null,0,0,{"$error":"#DIV/0!"}]
[null,null,null,null,null,null,null,null,null,null,null,null,null,null,null,null,null,0,0,{"$error":"#DIV/0!"}]
[null,null,null,null,null,null,null,null,null,null,null,null,null,null,null,null,null,0,0,{"$error":"#DIV/0!"}]
[null,null,null,null,null,null,null,null,null,null,null,null,null,null,null,null,null,0,0,{"$error":"#DIV/0!"}]
[null,null,null,null,null,null,null,null,null,null,null,null,null,null,null,null,null,0,0,{"$error":"#DIV/0!"}]
[null,null,null,null,null,null,null,null,null,null,null,null,null,null,null,null,null,0,0,{"$error":"#DIV/0!"}]
[null,null,null,null,null,null,null,null,null,null,null,null,null,null,null,null,null,0,0,{"$error":"#DIV/0!"}]
[null,null,null,null,null,null,null,null,null,null,null,null,null,null,null,null,null,0,0,{"$error":"#DIV/0!"}]
[null,null,null,null,null,null,null,null,null,null,null,null,null,null,null,null,null,0,0,{"$error":"#DIV/0!"}]
[null,null,null,null,null,null,null,null,null,null,null,null,null,null,null,null,null,0,0,{"$error":"#DIV/0!"}]
[null,null,null,null,null,null,null,null,null,null,null,null,null,null,null,null,null,0,0,{"$error":"#DIV/0!"}]
[null,null,null,null,null,null,null,null,null,null,null,null,null,null,null,null,null,0,0,{"$error":"#DIV/0!"}]
[null,null,null,null,null,null,null,null,null,null,null,null,null,null,null,null,null,0,0,{"$error":"#DIV/0!"}]
[null,null,null,null,null,null,null,null,null,null,null,null,null,null,null,null,null,0,0,{"$error":"#DIV/0!"}]
[null,null,null,null,null,null,null,null,null,null,null,null,null,null,null,null,null,0,0,{"$error":"#DIV/0!"}]
[null,null,null,null,null,null,null,null,null,null,null,null,null,null,null,null,null,0,0,{"$error":"#DIV/0!"}]
[null,null,null,null,null,null,null,null,null,null,null,null,null,null,null,null,null,0,0,{"$error":"#DIV/0!"}]
[null,null,null,null,null,null,null,null,null,null,null,null,null,null,null,null,null,0,0,{"$error":"#DIV/0!"}]
[null,null,null,null,null,null,null,null,null,null,null,null,null,null,null,null,null,{"$f":"F102*G102*E102/60*(I102)/1000000*H102","v":0},0,{"$error":"#DIV/0!"}]
[null,null,null,null,null,null,null,null,null,null,null,null,null,null,null,null,null,0,0,{"$error":"#DIV/0!"}]
[null,null,null,null,null,null,null,null,null,null,null,null,null,null,null,null,null,0,0,{"$error":"#DIV/0!"}]
[null,null,null,null,null,null,null,null,null,null,null,null,null,null,null,null,null,0,0,{"$error":"#DIV/0!"}]
[null,null,null,null,null,null,null,null,null,null,null,null,null,null,null,null,null,0,0,{"$error":"#DIV/0!"}]
[null,null,null,null,null,null,null,null,null,null,null,null,null,null,null,null,null,0,0,{"$error":"#DIV/0!"}]
[null,null,null,null,null,null,null,null,null,null,null,null,null,null,null,null,null,0,0,{"$error":"#DIV/0!"}]
[null,null,null,null,null,null,null,null,null,null,null,null,null,null,null,null,null,0,0,{"$error":"#DIV/0!"}]
[null,null,null,null,null,null,null,null,null,null,null,null,null,null,null,null,null,0,0,{"$error":"#DIV/0!"}]
[null,null,null,null,null,null,null,null,null,null,null,null,null,null,null,null,null,0,0,{"$error":"#DIV/0!"}]
[null,null,null,null,null,null,null,null,null,null,null,null,null,null,null,null,null,0,0,{"$error":"#DIV/0!"}]
[null,null,null,null,null,null,null,null,null,null,null,null,null,null,null,null,null,0,0,{"$error":"#DIV/0!"}]
[null,null,null,null,null,null,null,null,null,null,null,null,null,null,null,null,null,0,0,{"$error":"#DIV/0!"}]
[null,null,null,null,null,null,null,null,null,null,null,null,null,null,null,null,null,0,0,{"$error":"#DIV/0!"}]
[null,null,null,null,null,null,null,null,null,null,null,null,null,null,null,null,null,0,0,{"$error":"#DIV/0!"}]
[null,null,null,null,null,null,null,null,null,null,null,null,null,null,null,null,null,0,0,{"$error":"#DIV/0!"}]
[null,null,null,null,null,null,null,null,null,null,null,null,null,null,null,null,null,0,0,{"$error":"#DIV/0!"}]
[null,null,null,null,null,null,null,null,null,null,null,null,null,null,null,null,null,0,0,{"$error":"#DIV/0!"}]
[null,null,null,null,null,null,null,null,null,null,null,null,null,null,null,null,null,0,0,{"$error":"#DIV/0!"}]
[null,null,null,null,null,null,null,null,null,null,null,null,null,null,null,null,null,0,0,{"$error":"#DIV/0!"}]
[null,null,null,null,null,null,null,null,null,null,null,null,null,null,null,null,null,0,0,{"$error":"#DIV/0!"}]
[null,null,null,null,null,null,null,null,null,null,null,null,null,null,null,null,null,0,0,{"$error":"#DIV/0!"}]
[null,null,null,null,null,null,null,null,null,null,null,null,null,null,null,null,null,0,0,{"$error":"#DIV/0!"}]
[null,null,null,null,null,null,null,null,null,null,null,null,null,null,null,null,null,0,0,{"$error":"#DIV/0!"}]
[null,null,null,null,null,null,null,null,null,null,null,null,null,null,null,null,null,0,0,{"$error":"#DIV/0!"}]
[null,null,null,null,null,null,null,null,null,null,null,null,null,null,null,null,null,0,0,{"$error":"#DIV/0!"}]
[null,null,null,null,null,null,null,null,null,null,null,null,null,null,null,null,null,0,0,{"$error":"#DIV/0!"}]
[null,null,null,null,null,null,null,null,null,null,null,null,null,null,null,null,null,0,0,{"$error":"#DIV/0!"}]
[null,null,null,null,null,null,null,null,null,null,null,null,null,null,null,null,null,0,0,{"$error":"#DIV/0!"}]
[null,null,null,null,null,null,null,null,null,null,null,null,null,null,null,null,null,0,0,{"$error":"#DIV/0!"}]
[null,null,null,null,null,null,null,null,null,null,null,null,null,null,null,null,null,0,0,{"$error":"#DIV/0!"}]
[null,null,null,null,null,null,null,null,null,null,null,null,null,null,null,null,null,0,0,{"$error":"#DIV/0!"}]
[null,null,null,null,null,null,null,null,null,null,null,null,null,null,null,null,null,0,0,{"$error":"#DIV/0!"}]
[null,null,null,null,null,null,null,null,null,null,null,null,null,null,null,null,null,0,0,{"$error":"#DIV/0!"}]
[null,null,null,null,null,null,null,null,null,null,null,null,null,null,null,null,null,0,0,{"$error":"#DIV/0!"}]
[null,null,null,null,null,null,null,null,null,null,null,null,null,null,null,null,null,0,0,{"$error":"#DIV/0!"}]
[null,null,null,null,null,null,null,null,null,null,null,null,null,null,null,null,null,0,0,{"$error":"#DIV/0!"}]
[null,null,null,null,null,null,null,null,null,null,null,null,null,null,null,null,null,0,0,{"$error":"#DIV/0!"}]
[null,null,null,null,null,null,null,null,null,null,null,null,null,null,null,null,null,0,{"$f":"IF(L140=\"N\",0,F140*G140*E140*(1-J140)/60*(I140-Q140)/1000000*H140)","v":0},{"$f":"IF(L140=\"N\",0,S140/R140)","v":{"$error":"#DIV/0!"}}]
[null,null,null,null,null,null,null,null,null,null,null,null,null,null,null,null,null,{"$f":"F141*G141*E141/60*(I141)/1000000*H141","v":0},0,{"$error":"#DIV/0!"}]
[null,null,null,null,null,null,null,null,null,null,null,null,null,null,null,null,null,0,0,{"$error":"#DIV/0!"}]
[null,null,null,null,null,null,null,null,null,null,null,null,null,null,null,null,null,0,0,{"$error":"#DIV/0!"}]
[null,null,null,null,null,null,null,null,null,null,null,null,null,null,null,null,null,0,0,{"$error":"#DIV/0!"}]
[null,null,null,null,null,null,null,null,null,null,null,null,null,null,null,null,null,0,0,{"$error":"#DIV/0!"}]
[null,null,null,null,null,null,null,null,null,null,null,null,null,null,null,null,null,0,0,{"$error":"#DIV/0!"}]
[null,null,null,null,null,null,null,null,null,null,null,null,null,null,null,null,null,0,0,{"$error":"#DIV/0!"}]
[null,null,null,null,null,null,null,null,null,null,null,null,null,null,null,null,null,0,0,{"$error":"#DIV/0!"}]
[null,null,null,null,null,null,null,null,null,null,null,null,null,null,null,null,null,0,0,{"$error":"#DIV/0!"}]
[null,null,null,null,null,null,null,null,null,null,null,null,null,null,null,null,null,0,0,{"$error":"#DIV/0!"}]
[null,null,null,null,null,null,null,null,null,null,null,null,null,null,null,null,null,0,0,{"$error":"#DIV/0!"}]
[null,null,null,null,null,null,null,null,null,null,null,null,null,null,null,null,null,0,0,{"$error":"#DIV/0!"}]
[null,null,null,null,null,null,null,null,null,null,null,null,null,null,null,null,null,0,0,{"$error":"#DIV/0!"}]
[null,null,null,null,null,null,null,null,null,null,null,null,null,null,null,null,null,0,0,{"$error":"#DIV/0!"}]
[null,null,null,null,null,null,null,null,null,null,null,null,null,null,null,null,null,0,0,{"$error":"#DIV/0!"}]
[null,null,null,null,null,null,null,null,null,null,null,null,null,null,null,null,null,0,0,{"$error":"#DIV/0!"}]
[null,null,null,null,null,null,null,null,null,null,null,null,null,null,null,null,null,0,0,{"$error":"#DIV/0!"}]
[null,null,null,null,null,null,null,null,null,null,null,null,null,null,null,null,null,0,0,{"$error":"#DIV/0!"}]
[null,null,null,null,null,null,null,null,null,null,null,null,null,null,null,null,null,0,0,{"$error":"#DIV/0!"}]
[null,null,null,null,null,null,null,null,null,null,null,null,null,null,null,null,null,0,0,{"$error":"#DIV/0!"}]
[null,null,null,null,null,null,null,null,null,null,null,null,null,null,null,null,null,0,0,{"$error":"#DIV/0!"}]
[null,null,null,null,null,null,null,null,null,null,null,null,null,null,null,null,null,0,0,{"$error":"#DIV/0!"}]
[null,null,null,null,null,null,null,null,null,null,null,null,null,null,null,null,null,0,0,{"$error":"#DIV/0!"}]
[null,null,null,null,null,null,null,null,null,null,null,null,null,null,null,null,null,0,0,{"$error":"#DIV/0!"}]
[null,null,null,null,null,null,null,null,null,null,null,null,null,null,null,null,null,0,0,{"$error":"#DIV/0!"}]
[null,null,null,null,null,null,null,null,null,null,null,null,null,null,null,null,null,0,0,{"$error":"#DIV/0!"}]
[null,null,null,null,null,null,null,null,null,null,null,null,null,null,null,null,null,0,0,{"$error":"#DIV/0!"}]
[null,null,null,null,null,null,null,null,null,null,null,null,null,null,null,null,null,0,0,{"$error":"#DIV/0!"}]
[null,null,null,null,null,null,null,null,null,null,null,null,null,null,null,null,null,0,0,{"$error":"#DIV/0!"}]
[null,null,null,null,null,null,null,null,null,null,null,null,null,null,null,null,null,0,0,{"$error":"#DIV/0!"}]
[null,null,null,null,null,null,null,null,null,null,null,null,null,null,null,null,null,0,0,{"$error":"#DIV/0!"}]
[null,null,null,null,null,null,null,null,null,null,null,null,null,null,null,null,null,0,0,{"$error":"#DIV/0!"}]
[null,null,null,null,null,null,null,null,null,null,null,null,null,null,null,null,null,0,0,{"$error":"#DIV/0!"}]
[null,null,null,null,null,null,null,null,null,null,null,null,null,null,null,null,null,0,0,{"$error":"#DIV/0!"}]
[null,null,null,null,null,null,null,null,null,null,null,null,null,null,null,null,null,0,0,{"$error":"#DIV/0!"}]
[null,null,null,null,null,null,null,null,null,null,null,null,null,null,null,null,null,0,0,{"$error":"#DIV/0!"}]
[null,null,null,null,null,null,null,null,null,null,null,null,null,null,null,null,null,0,0,{"$error":"#DIV/0!"}]
[null,null,null,null,null,null,null,null,null,null,null,null,null,null,null,null,null,0,0,{"$error":"#DIV/0!"}]
[null,null,null,null,null,null,null,null,null,null,null,null,null,null,null,null,null,0,0,{"$error":"#DIV/0!"}]
[null,null,null,null,null,null,null,null,null,null,null,null,null,null,null,null,null,0,0,{"$error":"#DIV/0!"}]
[null,null,null,null,null,null,null,null,null,null,null,null,null,null,null,null,null,0,0,{"$error":"#DIV/0!"}]
[null,null,null,null,null,null,null,null,null,null,null,null,null,null,null,null,null,0,0,{"$error":"#DIV/0!"}]
[null,null,null,null,null,null,null,null,null,null,null,null,null,null,null,null,null,0,0,{"$error":"#DIV/0!"}]
[null,null,null,null,null,null,null,null,null,null,null,null,null,null,null,null,null,0,0,{"$error":"#DIV/0!"}]
[null,null,null,null,null,null,null,null,null,null,null,null,null,null,null,null,null,0,0,{"$error":"#DIV/0!"}]
[null,null,null,null,null,null,null,null,null,null,null,null,null,null,null,null,null,0,0,{"$error":"#DIV/0!"}]
[null,null,null,null,null,null,null,null,null,null,null,null,null,null,null,null,null,0,0,{"$error":"#DIV/0!"}]
[null,null,null,null,null,null,null,null,null,null,null,null,null,null,null,null,null,0,0,{"$error":"#DIV/0!"}]
[null,null,null,null,null,null,null,null,null,null,null,null,null,null,null,null,null,0,0,{"$error":"#DIV/0!"}]
[null,null,null,null,null,null,null,null,null,null,null,null,null,null,null,null,null,0,0,{"$error":"#DIV/0!"}]
[null,null,null,null,null,null,null,null,null,null,null,null,null,null,null,null,null,0,0,{"$error":"#DIV/0!"}]
[null,null,null,null,null,null,null,null,null,null,null,null,null,null,null,null,null,0,0,{"$error":"#DIV/0!"}]
[null,null,null,null,null,null,null,null,null,null,null,null,null,null,null,null,null,0,0,{"$error":"#DIV/0!"}]
[null,null,null,null,null,null,null,null,null,null,null,null,null,null,null,null,null,0,0,{"$error":"#DIV/0!"}]
[null,null,null,null,null,null,null,null,null,null,null,null,null,null,null,null,null,0,0,{"$error":"#DIV/0!"}]
[null,null,null,null,null,null,null,null,null,null,null,null,null,null,null,null,null,0,0,{"$error":"#DIV/0!"}]
[null,null,null,null,null,null,null,null,null,null,null,null,null,null,null,null,null,0,0,{"$error":"#DIV/0!"}]
[null,null,null,null,null,null,null,null,null,null,null,null,null,null,null,null,null,0,0,{"$error":"#DIV/0!"}]
[null,null,null,null,null,null,null,null,null,null,null,null,null,null,null,null,null,0,0,{"$error":"#DIV/0!"}]
[null,null,null,null,null,null,null,null,null,null,null,null,null,null,null,null,null,0,0,{"$error":"#DIV/0!"}]
[null,null,null,null,null,null,null,null,null,null,null,null,null,null,null,null,null,0,0,{"$error":"#DIV/0!"}]
[null,null,null,null,null,null,null,null,null,null,null,null,null,null,null,null,null,0,0,{"$error":"#DIV/0!"}]
[null,null,null,null,null,null,null,null,null,null,null,null,null,null,null,null,null,0,0,{"$error":"#DIV/0!"}]
[null,null,null,null,null,null,null,null,null,null,null,null,null,null,null,null,null,0,{"$f":"IF(L204=\"N\",0,F204*G204*E204*(1-J204)/60*(I204-Q204)/1000000*H204)","v":0},{"$f":"IF(L204=\"N\",0,S204/R204)","v":{"$error":"#DIV/0!"}}]
[null,null,null,null,null,null,null,null,null,null,null,null,null,null,null,null,null,{"$f":"F205*G205*E205/60*(I205)/1000000*H205","v":0},0,{"$error":"#DIV/0!"}]
[null,null,null,null,null,null,null,null,null,null,null,null,null,null,null,null,null,0,0,{"$error":"#DIV/0!"}]
[null,null,null,null,null,null,null,null,null,null,null,null,null,null,null,null,null,0,0,{"$error":"#DIV/0!"}]
[null,null,null,null,null,null,null,null,null,null,null,null,null,null,null,null,null,0,0,{"$error":"#DIV/0!"}]
[null,null,null,null,null,null,null,null,null,null,null,null,null,null,null,null,null,0,0,{"$error":"#DIV/0!"}]
[null,null,null,null,null,null,null,null,null,null,null,null,null,null,null,null,null,0,0,{"$error":"#DIV/0!"}]
[null,null,null,null,null,null,null,null,null,null,null,null,null,null,null,null,null,0,0,{"$error":"#DIV/0!"}]
[null,null,null,null,null,null,null,null,null,null,null,null,null,null,null,null,null,0,0,{"$error":"#DIV/0!"}]
[null,null,null,null,null,null,null,null,null,null,null,null,null,null,null,null,null,0,0,{"$error":"#DIV/0!"}]
[null,null,null,null,null,null,null,null,null,null,null,null,null,null,null,null,null,0,0,{"$error":"#DIV/0!"}]
[null,null,null,null,null,null,null,null,null,null,null,null,null,null,null,null,null,0,0,{"$error":"#DIV/0!"}]
[null,null,null,null,null,null,null,null,null,null,null,null,null,null,null,null,null,0,0,{"$error":"#DIV/0!"}]
[null,null,null,null,null,null,null,null,null,null,null,null,null,null,null,null,null,0,0,{"$error":"#DIV/0!"}]
[null,null,null,null,null,null,null,null,null,null,null,null,null,null,null,null,null,0,0,{"$error":"#DIV/0!"}]
[null,null,null,null,null,null,null,null,null,null,null,null,null,null,null,null,null,0,0,{"$error":"#DIV/0!"}]
[null,null,null,null,null,null,null,null,null,null,null,null,null,null,null,null,null,0,0,{"$error":"#DIV/0!"}]
[null,null,null,null,null,null,null,null,null,null,null,null,null,null,null,null,null,0,0,{"$error":"#DIV/0!"}]
[null,null,null,null,null,null,null,null,null,null,null,null,null,null,null,null,null,0,0,{"$error":"#DIV/0!"}]
[null,null,null,null,null,null,null,null,null,null,null,null,null,null,null,null,null,0,0,{"$error":"#DIV/0!"}]
[null,null,null,null,null,null,null,null,null,null,null,null,null,null,null,null,null,0,0,{"$error":"#DIV/0!"}]
[null,null,null,null,null,null,null,null,null,null,null,null,null,null,null,null,null,0,0,{"$error":"#DIV/0!"}]
[null,null,null,null,null,null,null,null,null,null,null,null,null,null,null,null,null,0,0,{"$error":"#DIV/0!"}]
[null,null,null,null,null,null,null,null,null,null,null,null,null,null,null,null,null,0,0,{"$error":"#DIV/0!"}]
[null,null,null,null,null,null,null,null,null,null,null,null,null,null,null,null,null,0,0,{"$error":"#DIV/0!"}]
[null,null,null,null,null,null,null,null,null,null,null,null,null,null,null,null,null,0,0,{"$error":"#DIV/0!"}]
[null,null,null,null,null,null,null,null,null,null,null,null,null,null,null,null,null,0,0,{"$error":"#DIV/0!"}]
[null,null,null,null,null,null,null,null,null,null,null,null,null,null,null,null,null,0,0,{"$error":"#DIV/0!"}]
[null,null,null,null,null,null,null,null,null,null,null,null,null,null,null,null,null,0,0,{"$error":"#DIV/0!"}]
[null,null,null,null,null,null,null,null,null,null,null,null,null,null,null,null,null,0,0,{"$error":"#DIV/0!"}]
[null,null,null,null,null,null,null,null,null,null,null,null,null,null,null,null,null,0,0,{"$error":"#DIV/0!"}]
[null,null,null,null,null,null,null,null,null,null,null,null,null,null,null,null,null,0,0,{"$error":"#DIV/0!"}]
[null,null,null,null,null,null,null,null,null,null,null,null,null,null,null,null,null,0,0,{"$error":"#DIV/0!"}]
[null,null,null,null,null,null,null,null,null,null,null,null,null,null,null,null,null,0,0,{"$error":"#DIV/0!"}]
[null,null,null,null,null,null,null,null,null,null,null,null,null,null,null,null,null,0,0,{"$error":"#DIV/0!"}]
[null,null,null,null,null,null,null,null,null,null,null,null,null,null,null,null,null,0,0,{"$error":"#DIV/0!"}]
[null,null,null,null,null,null,null,null,null,null,null,null,null,null,null,null,null,0,0,{"$error":"#DIV/0!"}]
[null,null,null,null,null,null,null,null,null,null,null,null,null,null,null,null,null,0,0,{"$error":"#DIV/0!"}]
[null,null,null,null,null,null,null,null,null,null,null,null,null,null,null,null,null,0,0,{"$error":"#DIV/0!"}]
[null,null,null,null,null,null,null,null,null,null,null,null,null,null,null,null,null,0,0,{"$error":"#DIV/0!"}]
[null,null,null,null,null,null,null,null,null,null,null,null,null,null,null,null,null,0,0,{"$error":"#DIV/0!"}]
[null,null,null,null,null,null,null,null,null,null,null,null,null,null,null,null,null,0,0,{"$error":"#DIV/0!"}]
[null,null,null,null,null,null,null,null,null,null,null,null,null,null,null,null,null,0,0,{"$error":"#DIV/0!"}]
[null,null,null,null,null,null,null,null,null,null,null,null,null,null,null,null,null,0,0,{"$error":"#DIV/0!"}]
[null,null,null,null,null,null,null,null,null,null,null,null,null,null,null,null,null,0,0,{"$error":"#DIV/0!"}]
[null,null,null,null,null,null,null,null,null,null,null,null,null,null,null,null,null,0,0,{"$error":"#DIV/0!"}]
[null,null,null,null,null,null,null,null,null,null,null,null,null,null,null,null,null,0,0,{"$error":"#DIV/0!"}]
[null,null,null,null,null,null,null,null,null,null,null,null,null,null,null,null,null,0,0,{"$error":"#DIV/0!"}]
[null,null,null,null,null,null,null,null,null,null,null,null,null,null,null,null,null,0,0,{"$error":"#DIV/0!"}]
[null,null,null,null,null,null,null,null,null,null,null,null,null,null,null,null,null,0,0,{"$error":"#DIV/0!"}]
[null,null,null,null,null,null,null,null,null,null,null,null,null,null,null,null,null,0,0,{"$error":"#DIV/0!"}]
[null,null,null,null,null,null,null,null,null,null,null,null,null,null,null,null,null,0,0,{"$error":"#DIV/0!"}]
[null,null,null,null,null,null,null,null,null,null,null,null,null,null,null,null,null,0,0,{"$error":"#DIV/0!"}]
[null,null,null,null,null,null,null,null,null,null,null,null,null,null,null,null,null,0,0,{"$error":"#DIV/0!"}]
[null,null,null,null,null,null,null,null,null,null,null,null,null,null,null,null,null,0,0,{"$error":"#DIV/0!"}]
[null,null,null,null,null,null,null,null,null,null,null,null,null,null,null,null,null,0,0,{"$error":"#DIV/0!"}]
[null,null,null,null,null,null,null,null,null,null,null,null,null,null,null,null,null,0,0,{"$error":"#DIV/0!"}]
[null,null,null,null,null,null,null,null,null,null,null,null,null,null,null,null,null,0,0,{"$error":"#DIV/0!"}]
[null,null,null,null,null,null,null,null,null,null,null,null,null,null,null,null,null,0,0,{"$error":"#DIV/0!"}]
[null,null,null,null,null,null,null,null,null,null,null,null,null,null,null,null,null,0,0,{"$error":"#DIV/0!"}]
[null,null,null,null,null,null,null,null,null,null,null,null,null,null,null,null,null,0,0,{"$error":"#DIV/0!"}]
[null,null,null,null,null,null,null,null,null,null,null,null,null,null,null,null,null,0,0,{"$error":"#DIV/0!"}]
[null,null,null,null,null,null,null,null,null,null,null,null,null,null,null,null,null,0,0,{"$error":"#DIV/0!"}]
[null,null,null,null,null,null,null,null,null,null,null,null,null,null,null,null,null,0,0,{"$error":"#DIV/0!"}]
[null,null,null,null,null,null,null,null,null,null,null,null,null,null,null,null,null,0,{"$f":"IF(L268=\"N\",0,F268*G268*E268*(1-J268)/60*(I268-Q268)/1000000*H268)","v":0},{"$f":"IF(L268=\"N\",0,S268/R268)","v":{"$error":"#DIV/0!"}}]
[null,null,null,null,null,null,null,null,null,null,null,null,null,null,null,null,null,{"$f":"F269*G269*E269/60*(I269)/1000000*H269","v":0},0,{"$error":"#DIV/0!"}]
[null,null,null,null,null,null,null,null,null,null,null,null,null,null,null,null,null,0,0,{"$error":"#DIV/0!"}]
[null,null,null,null,null,null,null,null,null,null,null,null,null,null,null,null,null,0,0,{"$error":"#DIV/0!"}]
[null,null,null,null,null,null,null,null,null,null,null,null,null,null,null,null,null,0,0,{"$error":"#DIV/0!"}]
[null,null,null,null,null,null,null,null,null,null,null,null,null,null,null,null,null,0,0,{"$error":"#DIV/0!"}]
[null,null,null,null,null,null,null,null,null,null,null,null,null,null,null,null,null,0,0,{"$error":"#DIV/0!"}]
[null,null,null,null,null,null,null,null,null,null,null,null,null,null,null,null,null,0,0,{"$error":"#DIV/0!"}]
[null,null,null,null,null,null,null,null,null,null,null,null,null,null,null,null,null,0,0,{"$error":"#DIV/0!"}]
[null,null,null,null,null,null,null,null,null,null,null,null,null,null,null,null,null,0,0,{"$error":"#DIV/0!"}]
[null,null,null,null,null,null,null,null,null,null,null,null,null,null,null,null,null,0,0,{"$error":"#DIV/0!"}]
[null,null,null,null,null,null,null,null,null,null,null,null,null,null,null,null,null,0,0,{"$error":"#DIV/0!"}]
[null,null,null,null,null,null,null,null,null,null,null,null,null,null,null,null,null,0,0,{"$error":"#DIV/0!"}]
[null,null,null,null,null,null,null,null,null,null,null,null,null,null,null,null,null,0,0,{"$error":"#DIV/0!"}]
[null,null,null,null,null,null,null,null,null,null,null,null,null,null,null,null,null,0,0,{"$error":"#DIV/0!"}]
[null,null,null,null,null,null,null,null,null,null,null,null,null,null,null,null,null,0,0,{"$error":"#DIV/0!"}]
[null,null,null,null,null,null,null,null,null,null,null,null,null,null,null,null,null,0,0,{"$error":"#DIV/0!"}]
[null,null,null,null,null,null,null,null,null,null,null,null,null,null,null,null,null,0,0,{"$error":"#DIV/0!"}]
[null,null,null,null,null,null,null,null,null,null,null,null,null,null,null,null,null,0,0,{"$error":"#DIV/0!"}]
[null,null,null,null,null,null,null,null,null,null,null,null,null,null,null,null,null,0,0,{"$error":"#DIV/0!"}]
[null,null,null,null,null,null,null,null,null,null,null,null,null,null,null,null,null,0,0,{"$error":"#DIV/0!"}]
[null,null,null,null,null,null,null,null,null,null,null,null,null,null,null,null,null,0,0,{"$error":"#DIV/0!"}]
[null,null,null,null,null,null,null,null,null,null,null,null,null,null,null,null,null,0,0,{"$error":"#DIV/0!"}]
[null,null,null,null,null,null,null,null,null,null,null,null,null,null,null,null,null,0,0,{"$error":"#DIV/0!"}]
[null,null,null,null,null,null,null,null,null,null,null,null,null,null,null,null,null,0,0,{"$error":"#DIV/0!"}]
[null,null,null,null,null,null,null,null,null,null,null,null,null,null,null,null,null,0,0,{"$error":"#DIV/0!"}]
[null,null,null,null,null,null,null,null,null,null,null,null,null,null,null,null,null,0,0,{"$error":"#DIV/0!"}]
[null,null,null,null,null,null,null,null,null,null,null,null,null,null,null,null,null,0,0,{"$error":"#DIV/0!"}]
[null,null,null,null,null,null,null,null,null,null,null,null,null,null,null,null,null,0,0,{"$error":"#DIV/0!"}]
[null,null,null,null,null,null,null,null,null,null,null,null,null,null,null,null,null,0,0,{"$error":"#DIV/0!"}]
[null,null,null,null,null,null,null,null,null,null,null,null,null,null,null,null,null,0,0,{"$error":"#DIV/0!"}]
[null,null,null,null,null,null,null,null,null,null,null,null,null,null,null,null,null,0,0,{"$error":"#DIV/0!"}]
[null,null,null,null,null,null,null,null,null,null,null,null,null,null,null,null,null,0,0,{"$error":"#DIV/0!"}]
[null,null,null,null,null,null,null,null,null,null,null,null,null,null,null,null,null,0,0,{"$error":"#DIV/0!"}]
[null,null,null,null,null,null,null,null,null,null,null,null,null,null,null,null,null,0,0,{"$error":"#DIV/0!"}]
[null,null,null,null,null,null,null,null,null,null,null,null,null,null,null,null,null,0,0,{"$error":"#DIV/0!"}]
[null,null,null,null,null,null,null,null,null,null,null,null,null,null,null,null,null,0,0,{"$error":"#DIV/0!"}]
[null,null,null,null,null,null,null,null,null,null,null,null,null,null,null,null,null,0,0,{"$error":"#DIV/0!"}]
[null,null,null,null,null,null,null,null,null,null,null,null,null,null,null,null,null,0,0,{"$error":"#DIV/0!"}]
[null,null,null,null,null,null,null,null,null,null,null,null,null,null,null,null,null,0,0,{"$error":"#DIV/0!"}]
[null,null,null,null,null,null,null,null,null,null,null,null,null,null,null,null,null,0,0,{"$error":"#DIV/0!"}]
[null,null,null,null,null,null,null,null,null,null,null,null,null,null,null,null,null,0,0,{"$error":"#DIV/0!"}]
[null,null,null,null,null,null,null,null,null,null,null,null,null,null,null,null,null,0,0,{"$error":"#DIV/0!"}]
[null,null,null,null,null,null,null,null,null,null,null,null,null,null,null,null,null,0,0,{"$error":"#DIV/0!"}]
[null,null,null,null,null,null,null,null,null,null,null,null,null,null,null,null,null,0,0,{"$error":"#DIV/0!"}]
[null,null,null,null,null,null,null,null,null,null,null,null,null,null,null,null,null,0,0,{"$error":"#DIV/0!"}]
[null,null,null,null,null,null,null,null,null,null,null,null,null,null,null,null,null,0,0,{"$error":"#DIV/0!"}]
[null,null,null,null,null,null,null,null,null,null,null,null,null,null,null,null,null,0,0,{"$error":"#DIV/0!"}]
[null,null,null,null,null,null,null,null,null,null,null,null,null,null,null,null,null,0,0,{"$error":"#DIV/0!"}]
[null,null,null,null,null,null,null,null,null,null,null,null,null,null,null,null,null,0,0,{"$error":"#DIV/0!"}]
[null,null,null,null,null,null,null,null,null,null,null,null,null,null,null,null,null,0,0,{"$error":"#DIV/0!"}]
[null,null,null,null,null,null,null,null,null,null,null,null,null,null,null,null,null,0,0,{"$error":"#DIV/0!"}]
[null,null,null,null,null,null,null,null,null,null,null,null,null,null,null,null,null,0,0,{"$error":"#DIV/0!"}]
[null,null,null,null,null,null,null,null,null,null,null,null,null,null,null,null,null,0,0,{"$error":"#DIV/0!"}]
[null,null,null,null,null,null,null,null,null,null,null,null,null,null,null,null,null,0,0,{"$error":"#DIV/0!"}]
[null,null,null,null,null,null,null,null,null,null,null,null,null,null,null,null,null,0,0,{"$error":"#DIV/0!"}]
[null,null,null,null,null,null,null,null,null,null,null,null,null,null,null,null,null,0,0,{"$error":"#DIV/0!"}]
[null,null,null,null,null,null,null,null,null,null,null,null,null,null,null,null,null,0,0,{"$error":"#DIV/0!"}]
[null,null,null,null,null,null,null,null,null,null,null,null,null,null,null,null,null,0,0,{"$error":"#DIV/0!"}]
[null,null,null,null,null,null,null,null,null,null,null,null,null,null,null,null,null,0,0,{"$error":"#DIV/0!"}]
[null,null,null,null,null,null,null,null,null,null,null,null,null,null,null,null,null,0,0,{"$error":"#DIV/0!"}]
[null,null,null,null,null,null,null,null,null,null,null,null,null,null,null,null,null,0,0,{"$error":"#DIV/0!"}]
[null,null,null,null,null,null,null,null,null,null,null,null,null,null,null,null,null,0,0,{"$error":"#DIV/0!"}]
[null,null,null,null,null,null,null,null,null,null,null,null,null,null,null,null,null,0,0,{"$error":"#DIV/0!"}]
[null,null,null,null,null,null,null,null,null,null,null,null,null,null,null,null,null,0,{"$f":"IF(L332=\"N\",0,F332*G332*E332*(1-J332)/60*(I332-Q332)/1000000*H332)","v":0},{"$f":"IF(L332=\"N\",0,S332/R332)","v":{"$error":"#DIV/0!"}}]
[null,null,null,null,null,null,null,null,null,null,null,null,null,null,null,null,null,{"$f":"F333*G333*E333/60*(I333)/1000000*H333","v":0},0,{"$error":"#DIV/0!"}]
[null,null,null,null,null,null,null,null,null,null,null,null,null,null,null,null,null,0,0,{"$error":"#DIV/0!"}]
[null,null,null,null,null,null,null,null,null,null,null,null,null,null,null,null,null,0,0,{"$error":"#DIV/0!"}]
[null,null,null,null,null,null,null,null,null,null,null,null,null,null,null,null,null,0,0,{"$error":"#DIV/0!"}]
[null,null,null,null,null,null,null,null,null,null,null,null,null,null,null,null,null,0,0,{"$error":"#DIV/0!"}]
[null,null,null,null,null,null,null,null,null,null,null,null,null,null,null,null,null,0,0,{"$error":"#DIV/0!"}]
[null,null,null,null,null,null,null,null,null,null,null,null,null,null,null,null,null,0,0,{"$error":"#DIV/0!"}]
[null,null,null,null,null,null,null,null,null,null,null,null,null,null,null,null,null,0,0,{"$error":"#DIV/0!"}]
[null,null,null,null,null,null,null,null,null,null,null,null,null,null,null,null,null,0,0,{"$error":"#DIV/0!"}]
[null,null,null,null,null,null,null,null,null,null,null,null,null,null,null,null,null,0,0,{"$error":"#DIV/0!"}]
[null,null,null,null,null,null,null,null,null,null,null,null,null,null,null,null,null,0,0,{"$error":"#DIV/0!"}]
[null,null,null,null,null,null,null,null,null,null,null,null,null,null,null,null,null,0,0,{"$error":"#DIV/0!"}]
[null,null,null,null,null,null,null,null,null,null,null,null,null,null,null,null,null,0,0,{"$error":"#DIV/0!"}]
[null,null,null,null,null,null,null,null,null,null,null,null,null,null,null,null,null,0,0,{"$error":"#DIV/0!"}]
[null,null,null,null,null,null,null,null,null,null,null,null,null,null,null,null,null,0,0,{"$error":"#DIV/0!"}]
[null,null,null,null,null,null,null,null,null,null,null,null,null,null,null,null,null,0,0,{"$error":"#DIV/0!"}]
[null,null,null,null,null,null,null,null,null,null,null,null,null,null,null,null,null,0,0,{"$error":"#DIV/0!"}]
[null,null,null,null,null,null,null,null,null,null,null,null,null,null,null,null,null,0,0,{"$error":"#DIV/0!"}]
[null,null,null,null,null,null,null,null,null,null,null,null,null,null,null,null,null,0,0,{"$error":"#DIV/0!"}]
[null,null,null,null,null,null,null,null,null,null,null,null,null,null,null,null,null,0,0,{"$error":"#DIV/0!"}]
[null,null,null,null,null,null,null,null,null,null,null,null,null,null,null,null,null,0,0,{"$error":"#DIV/0!"}]
[null,null,null,null,null,null,null,null,null,null,null,null,null,null,null,null,null,0,0,{"$error":"#DIV/0!"}]
[null,null,null,null,null,null,null,null,null,null,null,null,null,null,null,null,null,0,0,{"$error":"#DIV/0!"}]
[null,null,null,null,null,null,null,null,null,null,null,null,null,null,null,null,null,0,0,{"$error":"#DIV/0!"}]
[null,null,null,null,null,null,null,null,null,null,null,null,null,null,null,null,null,0,0,{"$error":"#DIV/0!"}]
[null,null,null,null,null,null,null,null,null,null,null,null,null,null,null,null,null,0,0,{"$error":"#DIV/0!"}]
[null,null,null,null,null,null,null,null,null,null,null,null,null,null,null,null,null,0,0,{"$error":"#DIV/0!"}]
[null,null,null,null,null,null,null,null,null,null,null,null,null,null,null,null,null,0,0,{"$error":"#DIV/0!"}]
[null,null,null,null,null,null,null,null,null,null,null,null,null,null,null,null,null,0,0,{"$error":"#DIV/0!"}]
[null,null,null,null,null,null,null,null,null,null,null,null,null,null,null,null,null,0,0,{"$error":"#DIV/0!"}]
[null,null,null,null,null,null,null,null,null,null,null,null,null,null,null,null,null,0,0,{"$error":"#DIV/0!"}]
[null,null,null,null,null,null,null,null,null,null,null,null,null,null,null,null,null,0,0,{"$error":"#DIV/0!"}]
[null,null,null,null,null,null,null,null,null,null,null,null,null,null,null,null,null,0,0,{"$error":"#DIV/0!"}]
[null,null,null,null,null,null,null,null,null,null,null,null,null,null,null,null,null,0,0,{"$error":"#DIV/0!"}]
[null,null,null,null,null,null,null,null,null,null,null,null,null,null,null,null,null,0,0,{"$error":"#DIV/0!"}]
[null,null,null,null,null,null,null,null,null,null,null,null,null,null,null,null,null,0,0,{"$error":"#DIV/0!"}]
[null,null,null,null,null,null,null,null,null,null,null,null,null,null,null,null,null,0,0,{"$error":"#DIV/0!"}]
[null,null,null,null,null,null,null,null,null,null,null,null,null,null,null,null,null,0,0,{"$error":"#DIV/0!"}]
[null,null,null,null,null,null,null,null,null,null,null,null,null,null,null,null,null,0,0,{"$error":"#DIV/0!"}]
[null,null,null,null,null,null,null,null,null,null,null,null,null,null,null,null,null,0,0,{"$error":"#DIV/0!"}]
[null,null,null,null,null,null,null,null,null,null,null,null,null,null,null,null,null,0,0,{"$error":"#DIV/0!"}]
[null,null,null,null,null,null,null,null,null,null,null,null,null,null,null,null,null,0,0,{"$error":"#DIV/0!"}]
[null,null,null,null,null,null,null,null,null,null,null,null,null,null,null,null,null,0,0,{"$error":"#DIV/0!"}]
[null,null,null,null,null,null,null,null,null,null,null,null,null,null,null,null,null,0,0,{"$error":"#DIV/0!"}]
[null,null,null,null,null,null,null,null,null,null,null,null,null,null,null,null,null,0,0,{"$error":"#DIV/0!"}]
[null,null,null,null,null,null,null,null,null,null,null,null,null,null,null,null,null,0,0,{"$error":"#DIV/0!"}]
[null,null,null,null,null,null,null,null,null,null,null,null,null,null,null,null,null,0,0,{"$error":"#DIV/0!"}]
[null,null,null,null,null,null,null,null,null,null,null,null,null,null,null,null,null,0,0,{"$error":"#DIV/0!"}]
[null,null,null,null,null,null,null,null,null,null,null,null,null,null,null,null,null,0,0,{"$error":"#DIV/0!"}]
[null,null,null,null,null,null,null,null,null,null,null,null,null,null,null,null,null,0,0,{"$error":"#DIV/0!"}]
[null,null,null,null,null,null,null,null,null,null,null,null,null,null,null,null,null,0,0,{"$error":"#DIV/0!"}]
[null,null,null,null,null,null,null,null,null,null,null,null,null,null,null,null,null,0,0,{"$error":"#DIV/0!"}]
[null,null,null,null,null,null,null,null,null,null,null,null,null,null,null,null,null,0,0,{"$error":"#DIV/0!"}]
[null,null,null,null,null,null,null,null,null,null,null,null,null,null,null,null,null,0,0,{"$error":"#DIV/0!"}]
[null,null,null,null,null,null,null,null,null,null,null,null,null,null,null,null,null,0,0,{"$error":"#DIV/0!"}]
[null,null,null,null,null,null,null,null,null,null,null,null,null,null,null,null,null,0,0,{"$error":"#DIV/0!"}]
[null,null,null,null,null,null,null,null,null,null,null,null,null,null,null,null,null,0,0,{"$error":"#DIV/0!"}]
[null,null,null,null,null,null,null,null,null,null,null,null,null,null,null,null,null,0,0,{"$error":"#DIV/0!"}]
[null,null,null,null,null,null,null,null,null,null,null,null,null,null,null,null,null,0,0,{"$error":"#DIV/0!"}]
[null,null,null,null,null,null,null,null,null,null,null,null,null,null,null,null,null,0,0,{"$error":"#DIV/0!"}]
[null,null,null,null,null,null,null,null,null,null,null,null,null,null,null,null,null,0,0,{"$error":"#DIV/0!"}]
[null,null,null,null,null,null,null,null,null,null,null,null,null,null,null,null,null,0,0,{"$error":"#DIV/0!"}]
[null,null,null,null,null,null,null,null,null,null,null,null,null,null,null,null,null,0,0,{"$error":"#DIV/0!"}]
[null,null,null,null,null,null,null,null,null,null,null,null,null,null,null,null,null,0,{"$f":"IF(L396=\"N\",0,F396*G396*E396*(1-J396)/60*(I396-Q396)/1000000*H396)","v":0},{"$f":"IF(L396=\"N\",0,S396/R396)","v":{"$error":"#DIV/0!"}}]
[null,null,null,null,null,null,null,null,null,null,null,null,null,null,null,null,null,{"$f":"F397*G397*E397/60*(I397)/1000000*H397","v":0},0,{"$error":"#DIV/0!"}]
[null,null,null,null,null,null,null,null,null,null,null,null,null,null,null,null,null,0,0,{"$error":"#DIV/0!"}]
[null,null,null,null,null,null,null,null,null,null,null,null,null,null,null,null,null,0,0,{"$error":"#DIV/0!"}]
[null,null,null,null,null,null,null,null,null,null,null,null,null,null,null,null,null,0,0,{"$error":"#DIV/0!"}]
[null,null,null,null,null,null,null,null,null,null,null,null,null,null,null,null,null,0,0,{"$error":"#DIV/0!"}]
[null,null,null,null,null,null,null,null,null,null,null,null,null,null,null,null,null,0,0,{"$error":"#DIV/0!"}]
[null,null,null,null,null,null,null,null,null,null,null,null,null,null,null,null,null,0,0,{"$error":"#DIV/0!"}]
[null,null,null,null,null,null,null,null,null,null,null,null,null,null,null,null,null,0,0,{"$error":"#DIV/0!"}]
[null,null,null,null,null,null,null,null,null,null,null,null,null,null,null,null,null,0,0,{"$error":"#DIV/0!"}]
[null,null,null,null,null,null,null,null,null,null,null,null,null,null,null,null,null,0,0,{"$error":"#DIV/0!"}]
[null,null,null,null,null,null,null,null,null,null,null,null,null,null,null,null,null,0,0,{"$error":"#DIV/0!"}]
[null,null,null,null,null,null,null,null,null,null,null,null,null,null,null,null,null,0,0,{"$error":"#DIV/0!"}]
[null,null,null,null,null,null,null,null,null,null,null,null,null,null,null,null,null,0,0,{"$error":"#DIV/0!"}]
[null,null,null,null,null,null,null,null,null,null,null,null,null,null,null,null,null,0,0,{"$error":"#DIV/0!"}]
[null,null,null,null,null,null,null,null,null,null,null,null,null,null,null,null,null,0,0,{"$error":"#DIV/0!"}]
[null,null,null,null,null,null,null,null,null,null,null,null,null,null,null,null,null,0,0,{"$error":"#DIV/0!"}]
[null,null,null,null,null,null,null,null,null,null,null,null,null,null,null,null,null,0,0,{"$error":"#DIV/0!"}]
[null,null,null,null,null,null,null,null,null,null,null,null,null,null,null,null,null,0,0,{"$error":"#DIV/0!"}]
[null,null,null,null,null,null,null,null,null,null,null,null,null,null,null,null,null,0,0,{"$error":"#DIV/0!"}]
[null,null,null,null,null,null,null,null,null,null,null,null,null,null,null,null,null,0,0,{"$error":"#DIV/0!"}]
[null,null,null,null,null,null,null,null,null,null,null,null,null,null,null,null,null,0,0,{"$error":"#DIV/0!"}]
[null,null,null,null,null,null,null,null,null,null,null,null,null,null,null,null,null,0,0,{"$error":"#DIV/0!"}]
[null,null,null,null,null,null,null,null,null,null,null,null,null,null,null,null,null,0,0,{"$error":"#DIV/0!"}]
[null,null,null,null,null,null,null,null,null,null,null,null,null,null,null,null,null,0,0,{"$error":"#DIV/0!"}]
[null,null,null,null,null,null,null,null,null,null,null,null,null,null,null,null,null,0,0,{"$error":"#DIV/0!"}]
[null,null,null,null,null,null,null,null,null,null,null,null,null,null,null,null,null,0,0,{"$error":"#DIV/0!"}]
[null,null,null,null,null,null,null,null,null,null,null,null,null,null,null,null,null,0,0,{"$error":"#DIV/0!"}]
[null,null,null,null,null,null,null,null,null,null,null,null,null,null,null,null,null,0,0,{"$error":"#DIV/0!"}]
[null,null,null,null,null,null,null,null,null,null,null,null,null,null,null,null,null,0,0,{"$error":"#DIV/0!"}]
[null,null,null,null,null,null,null,null,null,null,null,null,null,null,null,null,null,0,0,{"$error":"#DIV/0!"}]
[null,null,null,null,null,null,null,null,null,null,null,null,null,null,null,null,null,0,0,{"$error":"#DIV/0!"}]
[null,null,null,null,null,null,null,null,null,null,null,null,null,null,null,null,null,0,0,{"$error":"#DIV/0!"}]
[null,null,null,null,null,null,null,null,null,null,null,null,null,null,null,null,null,0,0,{"$error":"#DIV/0!"}]
[null,null,null,null,null,null,null,null,null,null,null,null,null,null,null,null,null,0,0,{"$error":"#DIV/0!"}]
[null,null,null,null,null,null,null,null,null,null,null,null,null,null,null,null,null,0,0,{"$error":"#DIV/0!"}]
[null,null,null,null,null,null,null,null,null,null,null,null,null,null,null,null,null,0,0,{"$error":"#DIV/0!"}]
[null,null,null,null,null,null,null,null,null,null,null,null,null,null,null,null,null,0,0,{"$error":"#DIV/0!"}]
[null,null,null,null,null,null,null,null,null,null,null,null,null,null,null,null,null,0,0,{"$error":"#DIV/0!"}]
[null,null,null,null,null,null,null,null,null,null,null,null,null,null,null,null,null,0,0,{"$error":"#DIV/0!"}]
[null,null,null,null,null,null,null,null,null,null,null,null,null,null,null,null,null,0,0,{"$error":"#DIV/0!"}]
[null,null,null,null,null,null,null,null,null,null,null,null,null,null,null,null,null,0,0,{"$error":"#DIV/0!"}]
[null,null,null,null,null,null,null,null,null,null,null,null,null,null,null,null,null,0,0,{"$error":"#DIV/0!"}]
[null,null,null,null,null,null,null,null,null,null,null,null,null,null,null,null,null,0,0,{"$error":"#DIV/0!"}]
[null,null,null,null,null,null,null,null,null,null,null,null,null,null,null,null,null,0,0,{"$error":"#DIV/0!"}]
[null,null,null,null,null,null,null,null,null,null,null,null,null,null,null,null,null,0,0,{"$error":"#DIV/0!"}]
[null,null,null,null,null,null,null,null,null,null,null,null,null,null,null,null,null,0,0,{"$error":"#DIV/0!"}]
[null,null,null,null,null,null,null,null,null,null,null,null,null,null,null,null,null,0,0,{"$error":"#DIV/0!"}]
[null,null,null,null,null,null,null,null,null,null,null,null,null,null,null,null,null,0,0,{"$error":"#DIV/0!"}]
[null,null,null,null,null,null,null,null,null,null,null,null,null,null,null,null,null,0,0,{"$error":"#DIV/0!"}]
[null,null,null,null,null,null,null,null,null,null,null,null,null,null,null,null,null,0,0,{"$error":"#DIV/0!"}]
[null,null,null,null,null,null,null,null,null,null,null,null,null,null,null,null,null,0,0,{"$error":"#DIV/0!"}]
[null,null,null,null,null,null,null,null,null,null,null,null,null,null,null,null,null,0,0,{"$error":"#DIV/0!"}]
[null,null,null,null,null,null,null,null,null,null,null,null,null,null,null,null,null,0,0,{"$error":"#DIV/0!"}]
[null,null,null,null,null,null,null,null,null,null,null,null,null,null,null,null,null,0,0,{"$error":"#DIV/0!"}]
[null,null,null,null,null,null,null,null,null,null,null,null,null,null,null,null,null,0,0,{"$error":"#DIV/0!"}]
[null,null,null,null,null,null,null,null,null,null,null,null,null,null,null,null,null,0,0,{"$error":"#DIV/0!"}]
[null,null,null,null,null,null,null,null,null,null,null,null,null,null,null,null,null,0,0,{"$error":"#DIV/0!"}]
[null,null,null,null,null,null,null,null,null,null,null,null,null,null,null,null,null,0,0,{"$error":"#DIV/0!"}]
[null,null,null,null,null,null,null,null,null,null,null,null,null,null,null,null,null,0,0,{"$error":"#DIV/0!"}]
[null,null,null,null,null,null,null,null,null,null,null,null,null,null,null,null,null,0,0,{"$error":"#DIV/0!"}]
[null,null,null,null,null,null,null,null,null,null,null,null,null,null,null,null,null,0,0,{"$error":"#DIV/0!"}]
[null,null,null,null,null,null,null,null,null,null,null,null,null,null,null,null,null,0,0,{"$error":"#DIV/0!"}]
[null,null,null,null,null,null,null,null,null,null,null,null,null,null,null,null,null,0,0,{"$error":"#DIV/0!"}]
[null,null,null,null,null,null,null,null,null,null,null,null,null,null,null,null,null,0,{"$f":"IF(L460=\"N\",0,F460*G460*E460*(1-J460)/60*(I460-Q460)/1000000*H460)","v":0},{"$f":"IF(L460=\"N\",0,S460/R460)","v":{"$error":"#DIV/0!"}}]
[null,null,null,null,null,null,null,null,null,null,null,null,null,null,null,null,null,{"$f":"F461*G461*E461/60*(I461)/1000000*H461","v":0},0,{"$error":"#DIV/0!"}]
[null,null,null,null,null,null,null,null,null,null,null,null,null,null,null,null,null,0,0,{"$error":"#DIV/0!"}]
[null,null,null,null,null,null,null,null,null,null,null,null,null,null,null,null,null,0,0,{"$error":"#DIV/0!"}]
[null,null,null,null,null,null,null,null,null,null,null,null,null,null,null,null,null,0,0,{"$error":"#DIV/0!"}]
[null,null,null,null,null,null,null,null,null,null,null,null,null,null,null,null,null,0,0,{"$error":"#DIV/0!"}]
[null,null,null,null,null,null,null,null,null,null,null,null,null,null,null,null,null,0,0,{"$error":"#DIV/0!"}]
[null,null,null,null,null,null,null,null,null,null,null,null,null,null,null,null,null,0,0,{"$error":"#DIV/0!"}]
[null,null,null,null,null,null,null,null,null,null,null,null,null,null,null,null,null,0,0,{"$error":"#DIV/0!"}]
[null,null,null,null,null,null,null,null,null,null,null,null,null,null,null,null,null,0,0,{"$error":"#DIV/0!"}]
[null,null,null,null,null,null,null,null,null,null,null,null,null,null,null,null,null,0,0,{"$error":"#DIV/0!"}]
[null,null,null,null,null,null,null,null,null,null,null,null,null,null,null,null,null,0,0,{"$error":"#DIV/0!"}]
[null,null,null,null,null,null,null,null,null,null,null,null,null,null,null,null,null,0,0,{"$error":"#DIV/0!"}]
[null,null,null,null,null,null,null,null,null,null,null,null,null,null,null,null,null,0,0,{"$error":"#DIV/0!"}]
[null,null,null,null,null,null,null,null,null,null,null,null,null,null,null,null,null,0,0,{"$error":"#DIV/0!"}]
[null,null,null,null,null,null,null,null,null,null,null,null,null,null,null,null,null,0,0,{"$error":"#DIV/0!"}]
[null,null,null,null,null,null,null,null,null,null,null,null,null,null,null,null,null,0,0,{"$error":"#DIV/0!"}]
[null,null,null,null,null,null,null,null,null,null,null,null,null,null,null,null,null,0,0,{"$error":"#DIV/0!"}]
[null,null,null,null,null,null,null,null,null,null,null,null,null,null,null,null,null,0,0,{"$error":"#DIV/0!"}]
[null,null,null,null,null,null,null,null,null,null,null,null,null,null,null,null,null,0,0,{"$error":"#DIV/0!"}]
[null,null,null,null,null,null,null,null,null,null,null,null,null,null,null,null,null,0,0,{"$error":"#DIV/0!"}]
[null,null,null,null,null,null,null,null,null,null,null,null,null,null,null,null,null,0,0,{"$error":"#DIV/0!"}]
[null,null,null,null,null,null,null,null,null,null,null,null,null,null,null,null,null,0,0,{"$error":"#DIV/0!"}]
[null,null,null,null,null,null,null,null,null,null,null,null,null,null,null,null,null,0,0,{"$error":"#DIV/0!"}]
[null,null,null,null,null,null,null,null,null,null,null,null,null,null,null,null,null,0,0,{"$error":"#DIV/0!"}]
[null,null,null,null,null,null,null,null,null,null,null,null,null,null,null,null,null,0,0,{"$error":"#DIV/0!"}]
[null,null,null,null,null,null,null,null,null,null,null,null,null,null,null,null,null,0,0,{"$error":"#DIV/0!"}]
[null,null,null,null,null,null,null,null,null,null,null,null,null,null,null,null,null,0,0,{"$error":"#DIV/0!"}]
[null,null,null,null,null,null,null,null,null,null,null,null,null,null,null,null,null,0,0,{"$error":"#DIV/0!"}]
[null,null,null,null,null,null,null,null,null,null,null,null,null,null,null,null,null,0,0,{"$error":"#DIV/0!"}]
[null,null,null,null,null,null,null,null,null,null,null,null,null,null,null,null,null,0,0,{"$error":"#DIV/0!"}]
[null,null,null,null,null,null,null,null,null,null,null,null,null,null,null,null,null,0,0,{"$error":"#DIV/0!"}]
[null,null,null,null,null,null,null,null,null,null,null,null,null,null,null,null,null,0,0,{"$error":"#DIV/0!"}]
[null,null,null,null,null,null,null,null,null,null,null,null,null,null,null,null,null,0,0,{"$error":"#DIV/0!"}]
[null,null,null,null,null,null,null,null,null,null,null,null,null,null,null,null,null,0,0,{"$error":"#DIV/0!"}]
[null,null,null,null,null,null,null,null,null,null,null,null,null,null,null,null,null,0,0,{"$error":"#DIV/0!"}]
[null,null,null,null,null,null,null,null,null,null,null,null,null,null,null,null,null,0,0,{"$error":"#DIV/0!"}]
[null,null,null,null,null,null,null,null,null,null,null,null,null,null,null,null,null,0,0,{"$error":"#DIV/0!"}]
[null,null,null,null,null,null,null,null,null,null,null,null,null,null,null,null,null,0,0,{"$error":"#DIV/0!"}]
[null,null,null,null,null,null,null,null,null,null,null,null,null,null,null,null,null,0,0,{"$error":"#DIV/0!"}]
[null,null,null,null,null,null,null,null,null,null,null,null,null,null,null,null,null,0,0,{"$error":"#DIV/0!"}]
[null,null,null,null,null,null,null,null,null,null,null,null,null,null,null,null,null,0,0,{"$error":"#DIV/0!"}]
[null,null,null,null,null,null,null,null,null,null,null,null,null,null,null,null,null,0,0,{"$error":"#DIV/0!"}]
[null,null,null,null,null,null,null,null,null,null,null,null,null,null,null,null,null,0,0,{"$error":"#DIV/0!"}]
[null,null,null,null,null,null,null,null,null,null,null,null,null,null,null,null,null,0,0,{"$error":"#DIV/0!"}]
[null,null,null,null,null,null,null,null,null,null,null,null,null,null,null,null,null,0,0,{"$error":"#DIV/0!"}]
[null,null,null,null,null,null,null,null,null,null,null,null,null,null,null,null,null,0,0,{"$error":"#DIV/0!"}]
[null,null,null,null,null,null,null,null,null,null,null,null,null,null,null,null,null,0,0,{"$error":"#DIV/0!"}]
[null,null,null,null,null,null,null,null,null,null,null,null,null,null,null,null,null,0,0,{"$error":"#DIV/0!"}]
[null,null,null,null,null,null,null,null,null,null,null,null,null,null,null,null,null,0,0,{"$error":"#DIV/0!"}]
[null,null,null,null,null,null,null,null,null,null,null,null,null,null,null,null,null,0,0,{"$error":"#DIV/0!"}]
[null,null,null,null,null,null,null,null,null,null,null,null,null,null,null,null,null,0,0,{"$error":"#DIV/0!"}]
[null,null,null,null,null,null,null,null,null,null,null,null,null,null,null,null,null,0,0,{"$error":"#DIV/0!"}]
[null,null,null,null,null,null,null,null,null,null,null,null,null,null,null,null,null,0,0,{"$error":"#DIV/0!"}]
[null,null,null,null,null,null,null,null,null,null,null,null,null,null,null,null,null,0,0,{"$error":"#DIV/0!"}]
[null,null,null,null,null,null,null,null,null,null,null,null,null,null,null,null,null,0,0,{"$error":"#DIV/0!"}]
[null,null,null,null,null,null,null,null,null,null,null,null,null,null,null,null,null,0,0,{"$error":"#DIV/0!"}]
[null,null,null,null,null,null,null,null,null,null,null,null,null,null,null,null,null,0,0,{"$error":"#DIV/0!"}]
[null,null,null,null,null,null,null,null,null,null,null,null,null,null,null,null,null,0,0,{"$error":"#DIV/0!"}]
[null,null,null,null,null,null,null,null,null,null,null,null,null,null,null,null,null,0,0,{"$error":"#DIV/0!"}]
[null,null,null,null,null,null,null,null,null,null,null,null,null,null,null,null,null,0,0,{"$error":"#DIV/0!"}]
[null,null,null,null,null,null,null,null,null,null,null,null,null,null,null,null,null,0,0,{"$error":"#DIV/0!"}]
[null,null,null,null,null,null,null,null,null,null,null,null,null,null,null,null,null,0,0,{"$error":"#DIV/0!"}]
[null,null,null,null,null,null,null,null,null,null,null,null,null,null,null,null,null,0,0,{"$error":"#DIV/0!"}]
[null,null,null,null,null,null,null,null,null,null,null,null,null,null,null,null,null,0,{"$f":"IF(L524=\"N\",0,F524*G524*E524*(1-J524)/60*(I524-Q524)/1000000*H524)","v":0},{"$f":"IF(L524=\"N\",0,S524/R524)","v":{"$error":"#DIV/0!"}}]
[null,null,null,null,null,null,null,null,null,null,null,null,null,null,null,null,null,{"$f":"F525*G525*E525/60*(I525)/1000000*H525","v":0},0,{"$error":"#DIV/0!"}]
[null,null,null,null,null,null,null,null,null,null,null,null,null,null,null,null,null,0,0,{"$error":"#DIV/0!"}]
[null,null,null,null,null,null,null,null,null,null,null,null,null,null,null,null,null,0,0,{"$error":"#DIV/0!"}]
[null,null,null,null,null,null,null,null,null,null,null,null,null,null,null,null,null,0,0,{"$error":"#DIV/0!"}]
[null,null,null,null,null,null,null,null,null,null,null,null,null,null,null,null,null,0,0,{"$error":"#DIV/0!"}]
[null,null,null,null,null,null,null,null,null,null,null,null,null,null,null,null,null,0,0,{"$error":"#DIV/0!"}]
[null,null,null,null,null,null,null,null,null,null,null,null,null,null,null,null,null,0,0,{"$error":"#DIV/0!"}]
[null,null,null,null,null,null,null,null,null,null,null,null,null,null,null,null,null,0,0,{"$error":"#DIV/0!"}]
[null,null,null,null,null,null,null,null,null,null,null,null,null,null,null,null,null,0,0,{"$error":"#DIV/0!"}]
[null,null,null,null,null,null,null,null,null,null,null,null,null,null,null,null,null,0,0,{"$error":"#DIV/0!"}]
[null,null,null,null,null,null,null,null,null,null,null,null,null,null,null,null,null,0,0,{"$error":"#DIV/0!"}]
[null,null,null,null,null,null,null,null,null,null,null,null,null,null,null,null,null,0,0,{"$error":"#DIV/0!"}]
[null,null,null,null,null,null,null,null,null,null,null,null,null,null,null,null,null,0,0,{"$error":"#DIV/0!"}]
[null,null,null,null,null,null,null,null,null,null,null,null,null,null,null,null,null,0,0,{"$error":"#DIV/0!"}]
[null,null,null,null,null,null,null,null,null,null,null,null,null,null,null,null,null,0,0,{"$error":"#DIV/0!"}]
[null,null,null,null,null,null,null,null,null,null,null,null,null,null,null,null,null,0,0,{"$error":"#DIV/0!"}]
[null,null,null,null,null,null,null,null,null,null,null,null,null,null,null,null,null,0,0,{"$error":"#DIV/0!"}]
[null,null,null,null,null,null,null,null,null,null,null,null,null,null,null,null,null,0,0,{"$error":"#DIV/0!"}]
[null,null,null,null,null,null,null,null,null,null,null,null,null,null,null,null,null,0,0,{"$error":"#DIV/0!"}]
[null,null,null,null,null,null,null,null,null,null,null,null,null,null,null,null,null,0,0,{"$error":"#DIV/0!"}]
[null,null,null,null,null,null,null,null,null,null,null,null,null,null,null,null,null,0,0,{"$error":"#DIV/0!"}]
[null,null,null,null,null,null,null,null,null,null,null,null,null,null,null,null,null,0,0,{"$error":"#DIV/0!"}]
[null,null,null,null,null,null,null,null,null,null,null,null,null,null,null,null,null,0,0,{"$error":"#DIV/0!"}]
[null,null,null,null,null,null,null,null,null,null,null,null,null,null,null,null,null,0,0,{"$error":"#DIV/0!"}]
[null,null,null,null,null,null,null,null,null,null,null,null,null,null,null,null,null,0,0,{"$error":"#DIV/0!"}]
[null,null,null,null,null,null,null,null,null,null,null,null,null,null,null,null,null,0,0,{"$error":"#DIV/0!"}]
[null,null,null,null,null,null,null,null,null,null,null,null,null,null,null,null,null,0,0,{"$error":"#DIV/0!"}]
[null,null,null,null,null,null,null,null,null,null,null,null,null,null,null,null,null,0,0,{"$error":"#DIV/0!"}]
[null,null,null,null,null,null,null,null,null,null,null,null,null,null,null,null,null,0,0,{"$error":"#DIV/0!"}]
[null,null,null,null,null,null,null,null,null,null,null,null,null,null,null,null,null,0,0,{"$error":"#DIV/0!"}]
[null,null,null,null,null,null,null,null,null,null,null,null,null,null,null,null,null,0,0,{"$error":"#DIV/0!"}]
[null,null,null,null,null,null,null,null,null,null,null,null,null,null,null,null,null,0,0,{"$error":"#DIV/0!"}]
[null,null,null,null,null,null,null,null,null,null,null,null,null,null,null,null,null,0,0,{"$error":"#DIV/0!"}]
[null,null,null,null,null,null,null,null,null,null,null,null,null,null,null,null,null,0,0,{"$error":"#DIV/0!"}]
[null,null,null,null,null,null,null,null,null,null,null,null,null,null,null,null,null,0,0,{"$error":"#DIV/0!"}]
[null,null,null,null,null,null,null,null,null,null,null,null,null,null,null,null,null,0,0,{"$error":"#DIV/0!"}]
[null,null,null,null,null,null,null,null,null,null,null,null,null,null,null,null,null,0,0,{"$error":"#DIV/0!"}]
[null,null,null,null,null,null,null,null,null,null,null,null,null,null,null,null,null,0,0,{"$error":"#DIV/0!"}]
[null,null,null,null,null,null,null,null,null,null,null,null,null,null,null,null,null,0,0,{"$error":"#DIV/0!"}]
[null,null,null,null,null,null,null,null,null,null,null,null,null,null,null,null,null,0,0,{"$error":"#DIV/0!"}]
[null,null,null,null,null,null,null,null,null,null,null,null,null,null,null,null,null,0,0,{"$error":"#DIV/0!"}]
[null,null,null,null,null,null,null,null,null,null,null,null,null,null,null,null,null,0,0,{"$error":"#DIV/0!"}]
[null,null,null,null,null,null,null,null,null,null,null,null,null,null,null,null,null,0,0,{"$error":"#DIV/0!"}]
[null,null,null,null,null,null,null,null,null,null,null,null,null,null,null,null,null,0,0,{"$error":"#DIV/0!"}]
[null,null,null,null,null,null,null,null,null,null,null,null,null,null,null,null,null,0,0,{"$error":"#DIV/0!"}]
[null,null,null,null,null,null,null,null,null,null,null,null,null,null,null,null,null,0,0,{"$error":"#DIV/0!"}]
[null,null,null,null,null,null,null,null,null,null,null,null,null,null,null,null,null,0,0,{"$error":"#DIV/0!"}]
[null,null,null,null,null,null,null,null,null,null,null,null,null,null,null,null,null,0,0,{"$error":"#DIV/0!"}]
[null,null,null,null,null,null,null,null,null,null,null,null,null,null,null,null,null,0,0,{"$error":"#DIV/0!"}]
[null,null,null,null,null,null,null,null,null,null,null,null,null,null,null,null,null,0,0,{"$error":"#DIV/0!"}]
[null,null,null,null,null,null,null,null,null,null,null,null,null,null,null,null,null,0,0,{"$error":"#DIV/0!"}]
[null,null,null,null,null,null,null,null,null,null,null,null,null,null,null,null,null,0,0,{"$error":"#DIV/0!"}]
[null,null,null,null,null,null,null,null,null,null,null,null,null,null,null,null,null,0,0,{"$error":"#DIV/0!"}]
[null,null,null,null,null,null,null,null,null,null,null,null,null,null,null,null,null,0,0,{"$error":"#DIV/0!"}]
[null,null,null,null,null,null,null,null,null,null,null,null,null,null,null,null,null,0,0,{"$error":"#DIV/0!"}]
[null,null,null,null,null,null,null,null,null,null,null,null,null,null,null,null,null,0,0,{"$error":"#DIV/0!"}]
[null,null,null,null,null,null,null,null,null,null,null,null,null,null,null,null,null,0,0,{"$error":"#DIV/0!"}]
[null,null,null,null,null,null,null,null,null,null,null,null,null,null,null,null,null,0,0,{"$error":"#DIV/0!"}]
[null,null,null,null,null,null,null,null,null,null,null,null,null,null,null,null,null,0,0,{"$error":"#DIV/0!"}]
[null,null,null,null,null,null,null,null,null,null,null,null,null,null,null,null,null,0,0,{"$error":"#DIV/0!"}]
[null,null,null,null,null,null,null,null,null,null,null,null,null,null,null,null,null,0,0,{"$error":"#DIV/0!"}]
[null,null,null,null,null,null,null,null,null,null,null,null,null,null,null,null,null,0,0,{"$error":"#DIV/0!"}]
[null,null,null,null,null,null,null,null,null,null,null,null,null,null,null,null,null,0,0,{"$error":"#DIV/0!"}]
[null,null,null,null,null,null,null,null,null,null,null,null,null,null,null,null,null,0,{"$f":"IF(L588=\"N\",0,F588*G588*E588*(1-J588)/60*(I588-Q588)/1000000*H588)","v":0},{"$f":"IF(L588=\"N\",0,S588/R588)","v":{"$error":"#DIV/0!"}}]
[null,null,null,null,null,null,null,null,null,null,null,null,null,null,null,null,null,{"$f":"F589*G589*E589/60*(I589)/1000000*H589","v":0},0,{"$error":"#DIV/0!"}]
[null,null,null,null,null,null,null,null,null,null,null,null,null,null,null,null,null,0,0,{"$error":"#DIV/0!"}]
[null,null,null,null,null,null,null,null,null,null,null,null,null,null,null,null,null,0,0,{"$error":"#DIV/0!"}]
[null,null,null,null,null,null,null,null,null,null,null,null,null,null,null,null,null,0,0,{"$error":"#DIV/0!"}]
[null,null,null,null,null,null,null,null,null,null,null,null,null,null,null,null,null,0,0,{"$error":"#DIV/0!"}]
[null,null,null,null,null,null,null,null,null,null,null,null,null,null,null,null,null,0,0,{"$error":"#DIV/0!"}]
[null,null,null,null,null,null,null,null,null,null,null,null,null,null,null,null,null,0,0,{"$error":"#DIV/0!"}]
[null,null,null,null,null,null,null,null,null,null,null,null,null,null,null,null,null,0,0,{"$error":"#DIV/0!"}]
[null,null,null,null,null,null,null,null,null,null,null,null,null,null,null,null,null,0,0,{"$error":"#DIV/0!"}]
[null,null,null,null,null,null,null,null,null,null,null,null,null,null,null,null,null,0,0,{"$error":"#DIV/0!"}]
[null,null,null,null,null,null,null,null,null,null,null,null,null,null,null,null,null,0,0,{"$error":"#DIV/0!"}]
[null,null,null,null,null,null,null,null,null,null,null,null,null,null,null,null,null,0,0,{"$error":"#DIV/0!"}]
[null,null,null,null,null,null,null,null,null,null,null,null,null,null,null,null,null,0,0,{"$error":"#DIV/0!"}]
[null,null,null,null,null,null,null,null,null,null,null,null,null,null,null,null,null,0,0,{"$error":"#DIV/0!"}]
[null,null,null,null,null,null,null,null,null,null,null,null,null,null,null,null,null,0,0,{"$error":"#DIV/0!"}]
[null,null,null,null,null,null,null,null,null,null,null,null,null,null,null,null,null,0,0,{"$error":"#DIV/0!"}]
[null,null,null,null,null,null,null,null,null,null,null,null,null,null,null,null,null,0,0,{"$error":"#DIV/0!"}]
[null,null,null,null,null,null,null,null,null,null,null,null,null,null,null,null,null,0,0,{"$error":"#DIV/0!"}]
[null,null,null,null,null,null,null,null,null,null,null,null,null,null,null,null,null,0,0,{"$error":"#DIV/0!"}]
[null,null,null,null,null,null,null,null,null,null,null,null,null,null,null,null,null,0,0,{"$error":"#DIV/0!"}]
[null,null,null,null,null,null,null,null,null,null,null,null,null,null,null,null,null,0,0,{"$error":"#DIV/0!"}]
[null,null,null,null,null,null,null,null,null,null,null,null,null,null,null,null,null,0,0,{"$error":"#DIV/0!"}]
[null,null,null,null,null,null,null,null,null,null,null,null,null,null,null,null,null,0,0,{"$error":"#DIV/0!"}]
[null,null,null,null,null,null,null,null,null,null,null,null,null,null,null,null,null,0,0,{"$error":"#DIV/0!"}]
[null,null,null,null,null,null,null,null,null,null,null,null,null,null,null,null,null,0,0,{"$error":"#DIV/0!"}]
[null,null,null,null,null,null,null,null,null,null,null,null,null,null,null,null,null,0,0,{"$error":"#DIV/0!"}]
[null,null,null,null,null,null,null,null,null,null,null,null,null,null,null,null,null,0,0,{"$error":"#DIV/0!"}]
[null,null,null,null,null,null,null,null,null,null,null,null,null,null,null,null,null,0,0,{"$error":"#DIV/0!"}]
[null,null,null,null,null,null,null,null,null,null,null,null,null,null,null,null,null,0,0,{"$error":"#DIV/0!"}]
[null,null,null,null,null,null,null,null,null,null,null,null,null,null,null,null,null,0,0,{"$error":"#DIV/0!"}]
[null,null,null,null,null,null,null,null,null,null,null,null,null,null,null,null,null,0,0,{"$error":"#DIV/0!"}]
[null,null,null,null,null,null,null,null,null,null,null,null,null,null,null,null,null,0,0,{"$error":"#DIV/0!"}]
[null,null,null,null,null,null,null,null,null,null,null,null,null,null,null,null,null,0,0,{"$error":"#DIV/0!"}]
[null,null,null,null,null,null,null,null,null,null,null,null,null,null,null,null,null,0,0,{"$error":"#DIV/0!"}]
[null,null,null,null,null,null,null,null,null,null,null,null,null,null,null,null,null,0,0,{"$error":"#DIV/0!"}]
[null,null,null,null,null,null,null,null,null,null,null,null,null,null,null,null,null,0,0,{"$error":"#DIV/0!"}]
[null,null,null,null,null,null,null,null,null,null,null,null,null,null,null,null,null,0,0,{"$error":"#DIV/0!"}]
[null,null,null,null,null,null,null,null,null,null,null,null,null,null,null,null,null,0,0,{"$error":"#DIV/0!"}]
[null,null,null,null,null,null,null,null,null,null,null,null,null,null,null,null,null,0,0,{"$error":"#DIV/0!"}]
[null,null,null,null,null,null,null,null,null,null,null,null,null,null,null,null,null,0,0,{"$error":"#DIV/0!"}]
[null,null,null,null,null,null,null,null,null,null,null,null,null,null,null,null,null,0,0,{"$error":"#DIV/0!"}]
[null,null,null,null,null,null,null,null,null,null,null,null,null,null,null,null,null,0,0,{"$error":"#DIV/0!"}]
[null,null,null,null,null,null,null,null,null,null,null,null,null,null,null,null,null,0,0,{"$error":"#DIV/0!"}]
[null,null,null,null,null,null,null,null,null,null,null,null,null,null,null,null,null,0,0,{"$error":"#DIV/0!"}]
[null,null,null,null,null,null,null,null,null,null,null,null,null,null,null,null,null,0,0,{"$error":"#DIV/0!"}]
[null,null,null,null,null,null,null,null,null,null,null,null,null,null,null,null,null,0,0,{"$error":"#DIV/0!"}]
[null,null,null,null,null,null,null,null,null,null,null,null,null,null,null,null,null,0,0,{"$error":"#DIV/0!"}]
[null,null,null,null,null,null,null,null,null,null,null,null,null,null,null,null,null,0,0,{"$error":"#DIV/0!"}]
[null,null,null,null,null,null,null,null,null,null,null,null,null,null,null,null,null,0,0,{"$error":"#DIV/0!"}]
[null,null,null,null,null,null,null,null,null,null,null,null,null,null,null,null,null,0,0,{"$error":"#DIV/0!"}]
[null,null,null,null,null,null,null,null,null,null,null,null,null,null,null,null,null,0,0,{"$error":"#DIV/0!"}]
[null,null,null,null,null,null,null,null,null,null,null,null,null,null,null,null,null,0,0,{"$error":"#DIV/0!"}]
[null,null,null,null,null,null,null,null,null,null,null,null,null,null,null,null,null,0,0,{"$error":"#DIV/0!"}]
[null,null,null,null,null,null,null,null,null,null,null,null,null,null,null,null,null,0,0,{"$error":"#DIV/0!"}]
[null,null,null,null,null,null,null,null,null,null,null,null,null,null,null,null,null,0,0,{"$error":"#DIV/0!"}]
[null,null,null,null,null,null,null,null,null,null,null,null,null,null,null,null,null,0,0,{"$error":"#DIV/0!"}]
[null,null,null,null,null,null,null,null,null,null,null,null,null,null,null,null,null,0,0,{"$error":"#DIV/0!"}]
[null,null,null,null,null,null,null,null,null,null,null,null,null,null,null,null,null,0,0,{"$error":"#DIV/0!"}]
[null,null,null,null,null,null,null,null,null,null,null,null,null,null,null,null,null,0,0,{"$error":"#DIV/0!"}]
[null,null,null,null,null,null,null,null,null,null,null,null,null,null,null,null,null,0,0,{"$error":"#DIV/0!"}]
[null,null,null,null,null,null,null,null,null,null,null,null,null,null,null,null,null,0,0,{"$error":"#DIV/0!"}]
[null,null,null,null,null,null,null,null,null,null,null,null,null,null,null,null,null,0,0,{"$error":"#DIV/0!"}]
[null,null,null,null,null,null,null,null,null,null,null,null,null,null,null,null,null,0,0,{"$error":"#DIV/0!"}]
[null,null,null,null,null,null,null,null,null,null,null,null,null,null,null,null,null,0,{"$f":"IF(L652=\"N\",0,F652*G652*E652*(1-J652)/60*(I652-Q652)/1000000*H652)","v":0},{"$f":"IF(L652=\"N\",0,S652/R652)","v":{"$error":"#DIV/0!"}}]
[null,null,null,null,null,null,null,null,null,null,null,null,null,null,null,null,null,{"$f":"F653*G653*E653/60*(I653)/1000000*H653","v":0},0,{"$error":"#DIV/0!"}]
[null,null,null,null,null,null,null,null,null,null,null,null,null,null,null,null,null,0,0,{"$error":"#DIV/0!"}]
[null,null,null,null,null,null,null,null,null,null,null,null,null,null,null,null,null,0,0,{"$error":"#DIV/0!"}]
[null,null,null,null,null,null,null,null,null,null,null,null,null,null,null,null,null,0,0,{"$error":"#DIV/0!"}]
[null,null,null,null,null,null,null,null,null,null,null,null,null,null,null,null,null,0,0,{"$error":"#DIV/0!"}]
[null,null,null,null,null,null,null,null,null,null,null,null,null,null,null,null,null,0,0,{"$error":"#DIV/0!"}]
[null,null,null,null,null,null,null,null,null,null,null,null,null,null,null,null,null,0,0,{"$error":"#DIV/0!"}]
[null,null,null,null,null,null,null,null,null,null,null,null,null,null,null,null,null,0,0,{"$error":"#DIV/0!"}]
[null,null,null,null,null,null,null,null,null,null,null,null,null,null,null,null,null,0,0,{"$error":"#DIV/0!"}]
[null,null,null,null,null,null,null,null,null,null,null,null,null,null,null,null,null,0,0,{"$error":"#DIV/0!"}]
[null,null,null,null,null,null,null,null,null,null,null,null,null,null,null,null,null,0,0,{"$error":"#DIV/0!"}]
[null,null,null,null,null,null,null,null,null,null,null,null,null,null,null,null,null,0,0,{"$error":"#DIV/0!"}]
[null,null,null,null,null,null,null,null,null,null,null,null,null,null,null,null,null,0,0,{"$error":"#DIV/0!"}]
[null,null,null,null,null,null,null,null,null,null,null,null,null,null,null,null,null,0,0,{"$error":"#DIV/0!"}]
[null,null,null,null,null,null,null,null,null,null,null,null,null,null,null,null,null,0,0,{"$error":"#DIV/0!"}]
[null,null,null,null,null,null,null,null,null,null,null,null,null,null,null,null,null,0,0,{"$error":"#DIV/0!"}]
[null,null,null,null,null,null,null,null,null,null,null,null,null,null,null,null,null,0,0,{"$error":"#DIV/0!"}]
[null,null,null,null,null,null,null,null,null,null,null,null,null,null,null,null,null,0,0,{"$error":"#DIV/0!"}]
[null,null,null,null,null,null,null,null,null,null,null,null,null,null,null,null,null,0,0,{"$error":"#DIV/0!"}]
[null,null,null,null,null,null,null,null,null,null,null,null,null,null,null,null,null,0,0,{"$error":"#DIV/0!"}]
[null,null,null,null,null,null,null,null,null,null,null,null,null,null,null,null,null,0,0,{"$error":"#DIV/0!"}]
[null,null,null,null,null,null,null,null,null,null,null,null,null,null,null,null,null,0,0,{"$error":"#DIV/0!"}]
[null,null,null,null,null,null,null,null,null,null,null,null,null,null,null,null,null,0,0,{"$error":"#DIV/0!"}]
[null,null,null,null,null,null,null,null,null,null,null,null,null,null,null,null,null,0,0,{"$error":"#DIV/0!"}]
[null,null,null,null,null,null,null,null,null,null,null,null,null,null,null,null,null,0,0,{"$error":"#DIV/0!"}]
[null,null,null,null,null,null,null,null,null,null,null,null,null,null,null,null,null,0,0,{"$error":"#DIV/0!"}]
[null,null,null,null,null,null,null,null,null,null,null,null,null,null,null,null,null,0,0,{"$error":"#DIV/0!"}]
[null,null,null,null,null,null,null,null,null,null,null,null,null,null,null,null,null,0,0,{"$error":"#DIV/0!"}]
[null,null,null,null,null,null,null,null,null,null,null,null,null,null,null,null,null,0,0,{"$error":"#DIV/0!"}]
[null,null,null,null,null,null,null,null,null,null,null,null,null,null,null,null,null,0,0,{"$error":"#DIV/0!"}]
[null,null,null,null,null,null,null,null,null,null,null,null,null,null,null,null,null,0,0,{"$error":"#DIV/0!"}]
[null,null,null,null,null,null,null,null,null,null,null,null,null,null,null,null,null,0,0,{"$error":"#DIV/0!"}]
[null,null,null,null,null,null,null,null,null,null,null,null,null,null,null,null,null,0,0,{"$error":"#DIV/0!"}]
[null,null,null,null,null,null,null,null,null,null,null,null,null,null,null,null,null,0,0,{"$error":"#DIV/0!"}]
[null,null,null,null,null,null,null,null,null,null,null,null,null,null,null,null,null,0,0,{"$error":"#DIV/0!"}]
[null,null,null,null,null,null,null,null,null,null,null,null,null,null,null,null,null,0,0,{"$error":"#DIV/0!"}]
[null,null,null,null,null,null,null,null,null,null,null,null,null,null,null,null,null,0,0,{"$error":"#DIV/0!"}]
[null,null,null,null,null,null,null,null,null,null,null,null,null,null,null,null,null,0,0,{"$error":"#DIV/0!"}]
[null,null,null,null,null,null,null,null,null,null,null,null,null,null,null,null,null,0,0,{"$error":"#DIV/0!"}]
[null,null,null,null,null,null,null,null,null,null,null,null,null,null,null,null,null,0,0,{"$error":"#DIV/0!"}]
[null,null,null,null,null,null,null,null,null,null,null,null,null,null,null,null,null,0,0,{"$error":"#DIV/0!"}]
[null,null,null,null,null,null,null,null,null,null,null,null,null,null,null,null,null,0,0,{"$error":"#DIV/0!"}]
[null,null,null,null,null,null,null,null,null,null,null,null,null,null,null,null,null,0,0,{"$error":"#DIV/0!"}]
[null,null,null,null,null,null,null,null,null,null,null,null,null,null,null,null,null,0,0,{"$error":"#DIV/0!"}]
[null,null,null,null,null,null,null,null,null,null,null,null,null,null,null,null,null,0,0,{"$error":"#DIV/0!"}]
[null,null,null,null,null,null,null,null,null,null,null,null,null,null,null,null,null,0,0,{"$error":"#DIV/0!"}]
[null,null,null,null,null,null,null,null,null,null,null,null,null,null,null,null,null,0,0,{"$error":"#DIV/0!"}]
[null,null,null,null,null,null,null,null,null,null,null,null,null,null,null,null,null,0,0,{"$error":"#DIV/0!"}]
[null,null,null,null,null,null,null,null,null,null,null,null,null,null,null,null,null,0,0,{"$error":"#DIV/0!"}]
[null,null,null,null,null,null,null,null,null,null,null,null,null,null,null,null,null,0,0,{"$error":"#DIV/0!"}]
[null,null,null,null,null,null,null,null,null,null,null,null,null,null,null,null,null,0,0,{"$error":"#DIV/0!"}]
[null,null,null,null,null,null,null,null,null,null,null,null,null,null,null,null,null,0,0,{"$error":"#DIV/0!"}]
[null,null,null,null,null,null,null,null,null,null,null,null,null,null,null,null,null,0,0,{"$error":"#DIV/0!"}]
[null,null,null,null,null,null,null,null,null,null,null,null,null,null,null,null,null,0,0,{"$error":"#DIV/0!"}]
[null,null,null,null,null,null,null,null,null,null,null,null,null,null,null,null,null,0,0,{"$error":"#DIV/0!"}]
[null,null,null,null,null,null,null,null,null,null,null,null,null,null,null,null,null,0,0,{"$error":"#DIV/0!"}]
[null,null,null,null,null,null,null,null,null,null,null,null,null,null,null,null,null,0,0,{"$error":"#DIV/0!"}]
[null,null,null,null,null,null,null,null,null,null,null,null,null,null,null,null,null,0,0,{"$error":"#DIV/0!"}]
[null,null,null,null,null,null,null,null,null,null,null,null,null,null,null,null,null,0,0,{"$error":"#DIV/0!"}]
[null,null,null,null,null,null,null,null,null,null,null,null,null,null,null,null,null,0,0,{"$error":"#DIV/0!"}]
[null,null,null,null,null,null,null,null,null,null,null,null,null,null,null,null,null,0,0,{"$error":"#DIV/0!"}]
[null,null,null,null,null,null,null,null,null,null,null,null,null,null,null,null,null,0,0,{"$error":"#DIV/0!"}]
[null,null,null,null,null,null,null,null,null,null,null,null,null,null,null,null,null,0,0,{"$error":"#DIV/0!"}]
[null,null,null,null,null,null,null,null,null,null,null,null,null,null,null,null,null,0,{"$f":"IF(L716=\"N\",0,F716*G716*E716*(1-J716)/60*(I716-Q716)/1000000*H716)","v":0},{"$f":"IF(L716=\"N\",0,S716/R716)","v":{"$error":"#DIV/0!"}}]
[null,null,null,null,null,null,null,null,null,null,null,null,null,null,null,null,null,{"$f":"F717*G717*E717/60*(I717)/1000000*H717","v":0},0,{"$error":"#DIV/0!"}]
[null,null,null,null,null,null,null,null,null,null,null,null,null,null,null,null,null,0,0,{"$error":"#DIV/0!"}]
[null,null,null,null,null,null,null,null,null,null,null,null,null,null,null,null,null,0,0,{"$error":"#DIV/0!"}]
[null,null,null,null,null,null,null,null,null,null,null,null,null,null,null,null,null,0,0,{"$error":"#DIV/0!"}]
[null,null,null,null,null,null,null,null,null,null,null,null,null,null,null,null,null,0,0,{"$error":"#DIV/0!"}]
[null,null,null,null,null,null,null,null,null,null,null,null,null,null,null,null,null,0,0,{"$error":"#DIV/0!"}]
[null,null,null,null,null,null,null,null,null,null,null,null,null,null,null,null,null,0,0,{"$error":"#DIV/0!"}]
[null,null,null,null,null,null,null,null,null,null,null,null,null,null,null,null,null,0,0,{"$error":"#DIV/0!"}]
[null,null,null,null,null,null,null,null,null,null,null,null,null,null,null,null,null,0,0,{"$error":"#DIV/0!"}]
[null,null,null,null,null,null,null,null,null,null,null,null,null,null,null,null,null,0,0,{"$error":"#DIV/0!"}]
[null,null,null,null,null,null,null,null,null,null,null,null,null,null,null,null,null,0,0,{"$error":"#DIV/0!"}]
[null,null,null,null,null,null,null,null,null,null,null,null,null,null,null,null,null,0,0,{"$error":"#DIV/0!"}]
[null,null,null,null,null,null,null,null,null,null,null,null,null,null,null,null,null,0,0,{"$error":"#DIV/0!"}]
[null,null,null,null,null,null,null,null,null,null,null,null,null,null,null,null,null,0,0,{"$error":"#DIV/0!"}]
[null,null,null,null,null,null,null,null,null,null,null,null,null,null,null,null,null,0,0,{"$error":"#DIV/0!"}]
[null,null,null,null,null,null,null,null,null,null,null,null,null,null,null,null,null,0,0,{"$error":"#DIV/0!"}]
[null,null,null,null,null,null,null,null,null,null,null,null,null,null,null,null,null,0,0,{"$error":"#DIV/0!"}]
[null,null,null,null,null,null,null,null,null,null,null,null,null,null,null,null,null,0,0,{"$error":"#DIV/0!"}]
[null,null,null,null,null,null,null,null,null,null,null,null,null,null,null,null,null,0,0,{"$error":"#DIV/0!"}]
[null,null,null,null,null,null,null,null,null,null,null,null,null,null,null,null,null,0,0,{"$error":"#DIV/0!"}]

{"sheet":"5-1B Toilets & Urinals","index":11,"n_rows":739,"n_cols":33,"rows_kept":739,"cut":false,"hidden":false,"merged":[[8,5,8,6],[3,5,7,9],[8,7,8,9],[3,19,4,23],[5,20,5,23],[6,20,6,23],[7,20,7,23],[8,21,8,23],[9,26,11,26],[3,26,4,26],[3,15,7,17],[3,25,4,25],[9,25,11,25],[3,24,4,24],[8,19,8,20],[9,24,11,24],[9,23,11,23],[9,18,11,18],[9,16,11,16],[9,17,11,17],[9,22,11,22],[9,20,11,20],[9,21,11,21],[3,1,7,1],[3,2,7,4],[3,12,7,12],[3,11,7,11],[3,10,7,10],[9,7,11,7],[9,10,11,10],[9,9,11,9],[9,8,11,8],[9,15,11,15],[9,2,11,2],[1,2,1,26],[1,1,2,1],[2,2,2,14],[3,14,7,14],[3,18,7,18],[9,12,11,12],[9,19,11,19],[3,13,5,13],[9,13,11,13],[2,24,2,26],[9,3,11,3],[9,4,11,4],[9,5,11,5],[9,6,11,6],[9,11,11,11]]}
[]
[null,"5-1B - Toilets & Urinals"]
[null,null,"Current Fixture Information",null,null,null,null,null,null,null,null,null,null,null,null,"Proposed Actions",null,null,null,null,null,null,null,null,"Results",null,null,null,null,null,null,"Urinals"]
[null,"Location","Fixture type count - number of like fixtures ",null,null,"Current use",null,null,null,null,"Average number of users per day","Average usage per person","Number of days used","General condition","Does the fixture require changes to improve water efficiency?","Action",null,null,"Completion date","New use",null,null,null,null,"Current water use\n(ML per year)","Water savings\n(ML per year)","Water savings\n(%)",null,null,null,null,{"$f":"I10","v":"Equipment type"},{"$f":"J10","v":"Operation type"}]
[null,null,null,null,null,null,null,null,null,null,null,null,null,null,null,null,null,null,null,null,null,null,null,null,null,null,null,null,null,null,null,"Urinal suite (cistern)","Conscious operation"]
[null,null,null,null,null,null,null,null,null,null,null,null,null,null,null,null,null,null,null,null,"Toilet",null,null,null,{"$f":"SUMIF($C$15:$C$739,\">0\",$Y$15:$Y$739)","v":0},{"$f":"SUMIF($C$15:$C$739,\">0\",$Z$15:$Z$739)","v":0},{"$f":"Z6/Y6","v":{"$error":"#DIV/0!"}},null,null,null,null,"Urinal suite (flushing valve)","Demand driven - operation sensitivity at front of the urinal"]
[null,null,null,null,null,null,null,null,null,null,null,null,null,null,null,null,null,null,null,null,"Urinal - individual",null,null,null,{"$f":"SUMIF($D$15:$D$739,\">0\",$Y$15:$Y$739)","v":0},{"$f":"SUMIF($D$15:$D$739,\">0\",$Z$15:$Z$739)","v":0},{"$f":"Z7/Y7","v":{"$error":"#DIV/0!"}},null,null,null,null,"Urinal only","Demand driven - urine sensor device"]
[null,null,null,null,null,null,null,null,null,null,null,null,null,null,null,null,null,null,null,null,"Urinal - trough",null,null,null,{"$f":"SUMIF($E$15:$E$739,\">0\",$Y$15:$Y$739)","v":0},{"$f":"SUMIF($E$15:$E$739,\">0\",$Z$15:$Z$739)","v":0},{"$f":"Z8/Y8","v":{"$error":"#DIV/0!"}},null,null,null,null,"Cistern only","Smart demand - sensor field at the front of the urinal"]
[null,null,null,null,null,"Toilets",null,"Urinals",null,null,null,null,null,null,null,{"$f":"COUNTIF(P15:P739,\"Y\")","v":0},{"$f":"COUNTIF(Q15:Q739,\"Y\")","v":0},{"$f":"COUNTIF(R15:R739,\"Y\")","v":0},null,"Toilet",null,"Urinal                                                    Total",null,null,{"$f":"SUM(Y6:Y8)","v":0},{"$f":"SUM(Z6:Z8)","v":0},{"$f":"Z9/Y9","v":{"$error":"#DIV/0!"}},null,null,null,null,"Flushing valve only","Smart demand - urine sensor"]
[null,"Fixture location e.g.","Toilet","Urinal - Single Stall","Urinal - Trough ","Current flush volume (type)","Current flush volume (L/flush)","Current flush volume\n(L/flush or L/0.6m of trough)","Equipment type","Operation type","Average number of people who use the fixtures each day","Number of uses per person based on audit, observations or typical industry figures","Number of days/year the fixtures are used","Specify the condition of the fixture","Please list:","Repair","Add Device","Replace","Specify the date by which each line item will be completed","Proposed toilet type ","Proposed flush volume\n(L)","Proposed flush volume\n(L)",{"$f":"I10","v":"Equipment type"},{"$f":"J10","v":"Operation type"},"Estimated current water use with existing fixtures (ML/day)","Estimated savings from original toilet or urinal (ML/day)","Estimated savings from original toilet or urinal (%)",null,null,null,null,"Combination of a urinal and a cistern","Urinal only"]
[null," Facility level",null,null,null,null,null,null,null,null,null,null,null,null,"· ‘Y’ for Yes  ",null,null,null,null,null,null,null,null,null,null,null,null,null,null,null,null,"Combination of a urinal and a flushing valve"]
[null," Change Room",null,null,null,null,null,null,null,null,null,null,null,null,"· ‘N’ for No"]
[null,"E.g. Bathroom 1",3,null,null,"12",{"$f":"CHOOSE(IF(F13=\"4½ / 3\",1,IF(F13=\"6 / 3\",2,IF(F13=\"9 / 4½\",3,IF(F13=\"11\",4,5)))),(4.5+4*3)/5,(6+4*3)/5,(9+4*4.5)/5,11,IF(F13=\"12\",12,\"\"))","v":12},null,null,null,25,2,261,"Leaking","Y",null,null,"Y","2010-08-24","4½ / 3",{"$f":"IF(T13=\"4½ / 3\",(4.5+4*3)/5,IF(T13=\"6 / 3\",(6+4*3)/5,\"\"))","v":3.3},null,null,null,{"$f":"\"e.g.: \"&TEXT(IF(C13>0,G13,H13)*K13*L13*M13/1000000,\"0.000000\")","v":"e.g.: 0.156600"},{"$f":"\"e.g.: \"&TEXT(IF(C13>0,IF(U13=0,0,K13*M13*L13*(G13-U13)),IF(OR(D13>0,E13>0),IF(V13=0,0,K13*M13*(H13-V13))))/1000000,\"0.000000\")","v":"e.g.: 0.113535"},{"$f":"\"e.g.: \"&TEXT(VALUE(RIGHT(Z13,LEN(Z13)-6))/VALUE(RIGHT(Y13,LEN(Y13)-6)),\"0.0%\")","v":"e.g.: 72.5%"}]
[null,"E.g. Bathroom 1",null,5,null,null,"",4,"Urinal suite (flushing valve)","Demand driven - operation sensitivity at front of the urinal",15,3,{"$f":"365-52*2","v":261},"Good","Y",null,"Y",null,"2010-08-29",null,{"$f":"IF(T14=\"4½ / 3\",(4.5+4*3)/5,IF(T14=\"6 / 3\",(6+4*3)/5,\"\"))","v":""},1.5,"Urinal suite (flushing valve)","Smart demand - urine sensor",{"$f":"\"e.g.: \"&TEXT(IF(C14>0,G14,H14)*K14*L14*M14/1000000,\"0.000000\")","v":"e.g.: 0.046980"},{"$f":"\"e.g.: \"&TEXT(IF(C14>0,IF(U14=0,0,K14*M14*L14*(G14-U14)),IF(OR(D14>0,E14>0),IF(V14=0,0,K14*M14*L14*(H14-V14))))/1000000,\"0.000000\")","v":"e.g.: 0.029363"},{"$f":"\"e.g.: \"&TEXT(VALUE(RIGHT(Z14,LEN(Z14)-6))/VALUE(RIGHT(Y14,LEN(Y14)-6)),\"0.0%\")","v":"e.g.: 62.5%"}]
[null,null,null,null,null,null,"",null,null,null,null,null,null,null,null,null,null,null,null,null,{"$f":"CHOOSE(IF(T15=\"4½ / 3\",1,IF(T15=\"6 / 3\",2,IF(T15=\"9 / 4½\",3,IF(T15=\"11\",4,5)))),(4.5+4*3)/5,(6+4*3)/5,(9+4*4.5)/5,11,IF(T15=\"12\",12,\"\"))","v":""},null,null,null,{"$f":"IF(C15>0,G15,H15)*K15*L15*M15/1000000","v":0},{"$f":"IF(O15=\"N\",0,IF(C15>0,K15*M15*L15*(G15-U15)/1000000,IF(OR(D15>0,E15>0),K15*L15*M15*(H15-V15))/1000000))","v":0},{"$f":"IF(O15=\"N\",0,Z15/Y15)","v":{"$error":"#DIV/0!"}}]
[null,null,null,null,null,null,"",null,null,null,null,null,null,null,null,null,null,null,null,null,"",null,null,null,0,0,{"$f":"IF(O16=\"N\",0,Z16/Y16)","v":{"$error":"#DIV/0!"}}]
[null,null,null,null,null,null,"",null,null,null,null,null,null,null,null,null,null,null,null,null,"",null,null,null,0,0,{"$error":"#DIV/0!"}]
[null,null,null,null,null,null,"",null,null,null,null,null,null,null,null,null,null,null,null,null,"",null,null,null,0,0,{"$error":"#DIV/0!"}]
[null,null,null,null,null,null,"",null,null,null,null,null,null,null,null,null,null,null,null,null,"",null,null,null,0,0,{"$error":"#DIV/0!"}]
[null,null,null,null,null,null,"",null,null,null,null,null,null,null,null,null,null,null,null,null,"",null,null,null,0,0,{"$error":"#DIV/0!"}]
[null,null,null,null,null,null,"",null,null,null,null,null,null,null,null,null,null,null,null,null,"",null,null,null,0,0,{"$error":"#DIV/0!"}]
[null,null,null,null,null,null,"",null,null,null,null,null,null,null,null,null,null,null,null,null,"",null,null,null,0,0,{"$error":"#DIV/0!"}]
[null,null,null,null,null,null,"",null,null,null,null,null,null,null,null,null,null,null,null,null,"",null,null,null,0,0,{"$error":"#DIV/0!"}]
[null,null,null,null,null,null,"",null,null,null,null,null,null,null,null,null,null,null,null,null,"",null,null,null,0,0,{"$error":"#DIV/0!"}]
[null,null,null,null,null,null,"",null,null,null,null,null,null,null,null,null,null,null,null,null,"",null,null,null,0,0,{"$error":"#DIV/0!"}]
[null,null,null,null,null,null,"",null,null,null,null,null,null,null,null,null,null,null,null,null,"",null,null,null,0,0,{"$error":"#DIV/0!"}]
[null,null,null,null,null,null,"",null,null,null,null,null,null,null,null,null,null,null,null,null,"",null,null,null,0,0,{"$error":"#DIV/0!"}]
[null,null,null,null,null,null,"",null,null,null,null,null,null,null,null,null,null,null,null,null,"",null,null,null,0,0,{"$error":"#DIV/0!"}]
[null,null,null,null,null,null,"",null,null,null,null,null,null,null,null,null,null,null,null,null,"",null,null,null,0,0,{"$error":"#DIV/0!"}]
[null,null,null,null,null,null,"",null,null,null,null,null,null,null,null,null,null,null,null,null,"",null,null,null,0,0,{"$error":"#DIV/0!"}]
[null,null,null,null,null,null,"",null,null,null,null,null,null,null,null,null,null,null,null,null,"",null,null,null,0,0,{"$error":"#DIV/0!"}]
[null,null,null,null,null,null,"",null,null,null,null,null,null,null,null,null,null,null,null,null,"",null,null,null,0,0,{"$error":"#DIV/0!"}]
[null,null,null,null,null,null,"",null,null,null,null,null,null,null,null,null,null,null,null,null,"",null,null,null,0,0,{"$error":"#DIV/0!"}]
[null,null,null,null,null,null,"",null,null,null,null,null,null,null,null,null,null,null,null,null,"",null,null,null,0,0,{"$error":"#DIV/0!"}]
[null,null,null,null,null,null,"",null,null,null,null,null,null,null,null,null,null,null,null,null,"",null,null,null,0,0,{"$error":"#DIV/0!"}]
[null,null,null,null,null,null,"",null,null,null,null,null,null,null,null,null,null,null,null,null,"",null,null,null,0,0,{"$error":"#DIV/0!"}]
[null,null,null,null,null,null,"",null,null,null,null,null,null,null,null,null,null,null,null,null,"",null,null,null,0,0,{"$error":"#DIV/0!"}]
[null,null,null,null,null,null,"",null,null,null,null,null,null,null,null,null,null,null,null,null,"",null,null,null,0,0,{"$error":"#DIV/0!"}]
[null,null,null,null,null,null,"",null,null,null,null,null,null,null,null,null,null,null,null,null,"",null,null,null,0,0,{"$error":"#DIV/0!"}]
[null,null,null,null,null,null,"",null,null,null,null,null,null,null,null,null,null,null,null,null,"",null,null,null,0,0,{"$error":"#DIV/0!"}]
[null,null,null,null,null,null,"",null,null,null,null,null,null,null,null,null,null,null,null,null,"",null,null,null,0,0,{"$error":"#DIV/0!"}]
[null,null,null,null,null,null,"",null,null,null,null,null,null,null,null,null,null,null,null,null,"",null,null,null,0,0,{"$error":"#DIV/0!"}]
[null,null,null,null,null,null,"",null,null,null,null,null,null,null,null,null,null,null,null,null,"",null,null,null,0,0,{"$error":"#DIV/0!"}]
[null,null,null,null,null,null,"",null,null,null,null,null,null,null,null,null,null,null,null,null,"",null,null,null,0,0,{"$error":"#DIV/0!"}]
[null,null,null,null,null,null,"",null,null,null,null,null,null,null,null,null,null,null,null,null,"",null,null,null,0,0,{"$error":"#DIV/0!"}]
[null,null,null,null,null,null,"",null,null,null,null,null,null,null,null,null,null,null,null,null,"",null,null,null,0,0,{"$error":"#DIV/0!"}]
[null,null,null,null,null,null,"",null,null,null,null,null,null,null,null,null,null,null,null,null,"",null,null,null,0,0,{"$error":"#DIV/0!"}]
[null,null,null,null,null,null,"",null,null,null,null,null,null,null,null,null,null,null,null,null,"",null,null,null,0,0,{"$error":"#DIV/0!"}]
[null,null,null,null,null,null,"",null,null,null,null,null,null,null,null,null,null,null,null,null,"",null,null,null,0,0,{"$error":"#DIV/0!"}]
[null,null,null,null,null,null,"",null,null,null,null,null,null,null,null,null,null,null,null,null,"",null,null,null,0,0,{"$error":"#DIV/0!"}]
[null,null,null,null,null,null,"",null,null,null,null,null,null,null,null,null,null,null,null,null,"",null,null,null,0,0,{"$error":"#DIV/0!"}]
[null,null,null,null,null,null,"",null,null,null,null,null,null,null,null,null,null,null,null,null,"",null,null,null,0,0,{"$error":"#DIV/0!"}]
[null,null,null,null,null,null,"",null,null,null,null,null,null,null,null,null,null,null,null,null,"",null,null,null,0,0,{"$error":"#DIV/0!"}]
[null,null,null,null,null,null,"",null,null,null,null,null,null,null,null,null,null,null,null,null,"",null,null,null,0,0,{"$error":"#DIV/0!"}]
[null,null,null,null,null,null,"",null,null,null,null,null,null,null,null,null,null,null,null,null,"",null,null,null,0,0,{"$error":"#DIV/0!"}]
[null,null,null,null,null,null,"",null,null,null,null,null,null,null,null,null,null,null,null,null,"",null,null,null,0,0,{"$error":"#DIV/0!"}]
[null,null,null,null,null,null,"",null,null,null,null,null,null,null,null,null,null,null,null,null,"",null,null,null,0,0,{"$error":"#DIV/0!"}]
[null,null,null,null,null,null,"",null,null,null,null,null,null,null,null,null,null,null,null,null,"",null,null,null,0,0,{"$error":"#DIV/0!"}]
[null,null,null,null,null,null,"",null,null,null,null,null,null,null,null,null,null,null,null,null,"",null,null,null,0,0,{"$error":"#DIV/0!"}]
[null,null,null,null,null,null,"",null,null,null,null,null,null,null,null,null,null,null,null,null,"",null,null,null,0,0,{"$error":"#DIV/0!"}]
[null,null,null,null,null,null,"",null,null,null,null,null,null,null,null,null,null,null,null,null,"",null,null,null,0,0,{"$error":"#DIV/0!"}]
[null,null,null,null,null,null,"",null,null,null,null,null,null,null,null,null,null,null,null,null,"",null,null,null,0,0,{"$error":"#DIV/0!"}]
[null,null,null,null,null,null,"",null,null,null,null,null,null,null,null,null,null,null,null,null,"",null,null,null,0,0,{"$error":"#DIV/0!"}]
[null,null,null,null,null,null,"",null,null,null,null,null,null,null,null,null,null,null,null,null,"",null,null,null,0,0,{"$error":"#DIV/0!"}]
[null,null,null,null,null,null,"",null,null,null,null,null,null,null,null,null,null,null,null,null,"",null,null,null,0,0,{"$error":"#DIV/0!"}]
[null,null,null,null,null,null,"",null,null,null,null,null,null,null,null,null,null,null,null,null,"",null,null,null,0,0,{"$error":"#DIV/0!"}]
[null,null,null,null,null,null,"",null,null,null,null,null,null,null,null,null,null,null,null,null,"",null,null,null,0,0,{"$error":"#DIV/0!"}]
[null,null,null,null,null,null,"",null,null,null,null,null,null,null,null,null,null,null,null,null,"",null,null,null,0,0,{"$error":"#DIV/0!"}]
[null,null,null,null,null,null,"",null,null,null,null,null,null,null,null,null,null,null,null,null,"",null,null,null,0,0,{"$error":"#DIV/0!"}]
[null,null,null,null,null,null,"",null,null,null,null,null,null,null,null,null,null,null,null,null,"",null,null,null,0,0,{"$error":"#DIV/0!"}]
[null,null,null,null,null,null,"",null,null,null,null,null,null,null,null,null,null,null,null,null,"",null,null,null,0,0,{"$error":"#DIV/0!"}]
[null,null,null,null,null,null,"",null,null,null,null,null,null,null,null,null,null,null,null,null,"",null,null,null,0,0,{"$error":"#DIV/0!"}]
[null,null,null,null,null,null,"",null,null,null,null,null,null,null,null,null,null,null,null,null,"",null,null,null,0,0,{"$error":"#DIV/0!"}]
[null,null,null,null,null,null,"",null,null,null,null,null,null,null,null,null,null,null,null,null,"",null,null,null,0,0,{"$error":"#DIV/0!"}]
[null,null,null,null,null,null,"",null,null,null,null,null,null,null,null,null,null,null,null,null,"",null,null,null,0,0,{"$error":"#DIV/0!"}]
[null,null,null,null,null,null,"",null,null,null,null,null,null,null,null,null,null,null,null,null,"",null,null,null,0,0,{"$error":"#DIV/0!"}]
[null,null,null,null,null,null,{"$f":"CHOOSE(IF(F77=\"4½ / 3\",1,IF(F77=\"6 / 3\",2,IF(F77=\"9 / 4½\",3,IF(F77=\"11\",4,5)))),(4.5+4*3)/5,(6+4*3)/5,(9+4*4.5)/5,11,IF(F77=\"12\",12,\"\"))","v":""},null,null,null,null,null,null,null,null,null,null,null,null,null,"",null,null,null,0,0,{"$error":"#DIV/0!"}]
[null,null,null,null,null,null,"",null,null,null,null,null,null,null,null,null,null,null,null,null,"",null,null,null,0,0,{"$error":"#DIV/0!"}]
[null,null,null,null,null,null,"",null,null,null,null,null,null,null,null,null,null,null,null,null,{"$f":"CHOOSE(IF(T79=\"4½ / 3\",1,IF(T79=\"6 / 3\",2,IF(T79=\"9 / 4½\",3,IF(T79=\"11\",4,5)))),(4.5+4*3)/5,(6+4*3)/5,(9+4*4.5)/5,11,IF(T79=\"12\",12,\"\"))","v":""},null,null,null,{"$f":"IF(C79>0,G79,H79)*K79*L79*M79/1000000","v":0},{"$f":"IF(O79=\"N\",0,IF(C79>0,K79*M79*L79*(G79-U79)/1000000,IF(OR(D79>0,E79>0),K79*L79*M79*(H79-V79))/1000000))","v":0},{"$error":"#DIV/0!"}]
[null,null,null,null,null,null,"",null,null,null,null,null,null,null,null,null,null,null,null,null,"",null,null,null,0,0,{"$f":"IF(O80=\"N\",0,Z80/Y80)","v":{"$error":"#DIV/0!"}}]
[null,null,null,null,null,null,"",null,null,null,null,null,null,null,null,null,null,null,null,null,"",null,null,null,0,0,{"$error":"#DIV/0!"}]
[null,null,null,null,null,null,"",null,null,null,null,null,null,null,null,null,null,null,null,null,"",null,null,null,0,0,{"$error":"#DIV/0!"}]
[null,null,null,null,null,null,"",null,null,null,null,null,null,null,null,null,null,null,null,null,"",null,null,null,0,0,{"$error":"#DIV/0!"}]
[null,null,null,null,null,null,"",null,null,null,null,null,null,null,null,null,null,null,null,null,"",null,null,null,0,0,{"$error":"#DIV/0!"}]
[null,null,null,null,null,null,"",null,null,null,null,null,null,null,null,null,null,null,null,null,"",null,null,null,0,0,{"$error":"#DIV/0!"}]
[null,null,null,null,null,null,"",null,null,null,null,null,null,null,null,null,null,null,null,null,"",null,null,null,0,0,{"$error":"#DIV/0!"}]
[null,null,null,null,null,null,"",null,null,null,null,null,null,null,null,null,null,null,null,null,"",null,null,null,0,0,{"$error":"#DIV/0!"}]
[null,null,null,null,null,null,"",null,null,null,null,null,null,null,null,null,null,null,null,null,"",null,null,null,0,0,{"$error":"#DIV/0!"}]
[null,null,null,null,null,null,"",null,null,null,null,null,null,null,null,null,null,null,null,null,"",null,null,null,0,0,{"$error":"#DIV/0!"}]
[null,null,null,null,null,null,"",null,null,null,null,null,null,null,null,null,null,null,null,null,"",null,null,null,0,0,{"$error":"#DIV/0!"}]
[null,null,null,null,null,null,"",null,null,null,null,null,null,null,null,null,null,null,null,null,"",null,null,null,0,0,{"$error":"#DIV/0!"}]
[null,null,null,null,null,null,"",null,null,null,null,null,null,null,null,null,null,null,null,null,"",null,null,null,0,0,{"$error":"#DIV/0!"}]
[null,null,null,null,null,null,"",null,null,null,null,null,null,null,null,null,null,null,null,null,"",null,null,null,0,0,{"$error":"#DIV/0!"}]
[null,null,null,null,null,null,"",null,null,null,null,null,null,null,null,null,null,null,null,null,"",null,null,null,0,0,{"$error":"#DIV/0!"}]
[null,null,null,null,null,null,"",null,null,null,null,null,null,null,null,null,null,null,null,null,"",null,null,null,0,0,{"$error":"#DIV/0!"}]
[null,null,null,null,null,null,"",null,null,null,null,null,null,null,null,null,null,null,null,null,"",null,null,null,0,0,{"$error":"#DIV/0!"}]
[null,null,null,null,null,null,"",null,null,null,null,null,null,null,null,null,null,null,null,null,"",null,null,null,0,0,{"$error":"#DIV/0!"}]
[null,null,null,null,null,null,"",null,null,null,null,null,null,null,null,null,null,null,null,null,"",null,null,null,0,0,{"$error":"#DIV/0!"}]
[null,null,null,null,null,null,"",null,null,null,null,null,null,null,null,null,null,null,null,null,"",null,null,null,0,0,{"$error":"#DIV/0!"}]
[null,null,null,null,null,null,"",null,null,null,null,null,null,null,null,null,null,null,null,null,"",null,null,null,0,0,{"$error":"#DIV/0!"}]
[null,null,null,null,null,null,"",null,null,null,null,null,null,null,null,null,null,null,null,null,"",null,null,null,0,0,{"$error":"#DIV/0!"}]
[null,null,null,null,null,null,"",null,null,null,null,null,null,null,null,null,null,null,null,null,"",null,null,null,0,0,{"$error":"#DIV/0!"}]
[null,null,null,null,null,null,"",null,null,null,null,null,null,null,null,null,null,null,null,null,"",null,null,null,0,0,{"$error":"#DIV/0!"}]
[null,null,null,null,null,null,"",null,null,null,null,null,null,null,null,null,null,null,null,null,"",null,null,null,0,0,{"$error":"#DIV/0!"}]
[null,null,null,null,null,null,"",null,null,null,null,null,null,null,null,null,null,null,null,null,"",null,null,null,0,0,{"$error":"#DIV/0!"}]
[null,null,null,null,null,null,"",null,null,null,null,null,null,null,null,null,null,null,null,null,"",null,null,null,0,0,{"$error":"#DIV/0!"}]
[null,null,null,null,null,null,"",null,null,null,null,null,null,null,null,null,null,null,null,null,"",null,null,null,0,0,{"$error":"#DIV/0!"}]
[null,null,null,null,null,null,"",null,null,null,null,null,null,null,null,null,null,null,null,null,"",null,null,null,0,0,{"$error":"#DIV/0!"}]
[null,null,null,null,null,null,"",null,null,null,null,null,null,null,null,null,null,null,null,null,"",null,null,null,0,0,{"$error":"#DIV/0!"}]
[null,null,null,null,null,null,"",null,null,null,null,null,null,null,null,null,null,null,null,null,"",null,null,null,0,0,{"$error":"#DIV/0!"}]
[null,null,null,null,null,null,"",null,null,null,null,null,null,null,null,null,null,null,null,null,"",null,null,null,0,0,{"$error":"#DIV/0!"}]
[null,null,null,null,null,null,"",null,null,null,null,null,null,null,null,null,null,null,null,null,"",null,null,null,0,0,{"$error":"#DIV/0!"}]
[null,null,null,null,null,null,"",null,null,null,null,null,null,null,null,null,null,null,null,null,"",null,null,null,0,0,{"$error":"#DIV/0!"}]
[null,null,null,null,null,null,"",null,null,null,null,null,null,null,null,null,null,null,null,null,"",null,null,null,0,0,{"$error":"#DIV/0!"}]
[null,null,null,null,null,null,"",null,null,null,null,null,null,null,null,null,null,null,null,null,"",null,null,null,0,0,{"$error":"#DIV/0!"}]
[null,null,null,null,null,null,"",null,null,null,null,null,null,null,null,null,null,null,null,null,"",null,null,null,0,0,{"$error":"#DIV/0!"}]
[null,null,null,null,null,null,"",null,null,null,null,null,null,null,null,null,null,null,null,null,"",null,null,null,0,0,{"$error":"#DIV/0!"}]
[null,null,null,null,null,null,"",null,null,null,null,null,null,null,null,null,null,null,null,null,"",null,null,null,0,0,{"$error":"#DIV/0!"}]
[null,null,null,null,null,null,"",null,null,null,null,null,null,null,null,null,null,null,null,null,"",null,null,null,0,0,{"$error":"#DIV/0!"}]
[null,null,null,null,null,null,"",null,null,null,null,null,null,null,null,null,null,null,null,null,"",null,null,null,0,0,{"$error":"#DIV/0!"}]
[null,null,null,null,null,null,"",null,null,null,null,null,null,null,null,null,null,null,null,null,"",null,null,null,0,0,{"$error":"#DIV/0!"}]
[null,null,null,null,null,null,"",null,null,null,null,null,null,null,null,null,null,null,null,null,"",null,null,null,0,0,{"$error":"#DIV/0!"}]
[null,null,null,null,null,null,"",null,null,null,null,null,null,null,null,null,null,null,null,null,"",null,null,null,0,0,{"$error":"#DIV/0!"}]
[null,null,null,null,null,null,"",null,null,null,null,null,null,null,null,null,null,null,null,null,"",null,null,null,0,0,{"$error":"#DIV/0!"}]
[null,null,null,null,null,null,"",null,null,null,null,null,null,null,null,null,null,null,null,null,"",null,null,null,0,0,{"$error":"#DIV/0!"}]
[null,null,null,null,null,null,"",null,null,null,null,null,null,null,null,null,null,null,null,null,"",null,null,null,0,0,{"$error":"#DIV/0!"}]
[null,null,null,null,null,null,"",null,null,null,null,null,null,null,null,null,null,null,null,null,"",null,null,null,0,0,{"$error":"#DIV/0!"}]
[null,null,null,null,null,null,"",null,null,null,null,null,null,null,null,null,null,null,null,null,"",null,null,null,0,0,{"$error":"#DIV/0!"}]
[null,null,null,null,null,null,"",null,null,null,null,null,null,null,null,null,null,null,null,null,"",null,null,null,0,0,{"$error":"#DIV/0!"}]
[null,null,null,null,null,null,"",null,null,null,null,null,null,null,null,null,null,null,null,null,"",null,null,null,0,0,{"$error":"#DIV/0!"}]
[null,null,null,null,null,null,"",null,null,null,null,null,null,null,null,null,null,null,null,null,"",null,null,null,0,0,{"$error":"#DIV/0!"}]
[null,null,null,null,null,null,"",null,null,null,null,null,null,null,null,null,null,null,null,null,"",null,null,null,0,0,{"$error":"#DIV/0!"}]
[null,null,null,null,null,null,"",null,null,null,null,null,null,null,null,null,null,null,null,null,"",null,null,null,0,0,{"$error":"#DIV/0!"}]
[null,null,null,null,null,null,"",null,null,null,null,null,null,null,null,null,null,null,null,null,"",null,null,null,0,0,{"$error":"#DIV/0!"}]
[null,null,null,null,null,null,"",null,null,null,null,null,null,null,null,null,null,null,null,null,"",null,null,null,0,0,{"$error":"#DIV/0!"}]
[null,null,null,null,null,null,"",null,null,null,null,null,null,null,null,null,null,null,null,null,"",null,null,null,0,0,{"$error":"#DIV/0!"}]
[null,null,null,null,null,null,"",null,null,null,null,null,null,null,null,null,null,null,null,null,"",null,null,null,0,0,{"$error":"#DIV/0!"}]
[null,null,null,null,null,null,"",null,null,null,null,null,null,null,null,null,null,null,null,null,"",null,null,null,0,0,{"$error":"#DIV/0!"}]
[null,null,null,null,null,null,"",null,null,null,null,null,null,null,null,null,null,null,null,null,"",null,null,null,0,0,{"$error":"#DIV/0!"}]
[null,null,null,null,null,null,"",null,null,null,null,null,null,null,null,null,null,null,null,null,"",null,null,null,0,0,{"$error":"#DIV/0!"}]
[null,null,null,null,null,null,{"$f":"CHOOSE(IF(F141=\"4½ / 3\",1,IF(F141=\"6 / 3\",2,IF(F141=\"9 / 4½\",3,IF(F141=\"11\",4,5)))),(4.5+4*3)/5,(6+4*3)/5,(9+4*4.5)/5,11,IF(F141=\"12\",12,\"\"))","v":""},null,null,null,null,null,null,null,null,null,null,null,null,null,"",null,null,null,0,0,{"$error":"#DIV/0!"}]
[null,null,null,null,null,null,"",null,null,null,null,null,null,null,null,null,null,null,null,null,"",null,null,null,0,0,{"$error":"#DIV/0!"}]
[null,null,null,null,null,null,"",null,null,null,null,null,null,null,null,null,null,null,null,null,{"$f":"CHOOSE(IF(T143=\"4½ / 3\",1,IF(T143=\"6 / 3\",2,IF(T143=\"9 / 4½\",3,IF(T143=\"11\",4,5)))),(4.5+4*3)/5,(6+4*3)/5,(9+4*4.5)/5,11,IF(T143=\"12\",12,\"\"))","v":""},null,null,null,{"$f":"IF(C143>0,G143,H143)*K143*L143*M143/1000000","v":0},{"$f":"IF(O143=\"N\",0,IF(C143>0,K143*M143*L143*(G143-U143)/1000000,IF(OR(D143>0,E143>0),K143*L143*M143*(H143-V143))/1000000))","v":0},{"$error":"#DIV/0!"}]
[null,null,null,null,null,null,"",null,null,null,null,null,null,null,null,null,null,null,null,null,"",null,null,null,0,0,{"$f":"IF(O144=\"N\",0,Z144/Y144)","v":{"$error":"#DIV/0!"}}]
[null,null,null,null,null,null,"",null,null,null,null,null,null,null,null,null,null,null,null,null,"",null,null,null,0,0,{"$error":"#DIV/0!"}]
[null,null,null,null,null,null,"",null,null,null,null,null,null,null,null,null,null,null,null,null,"",null,null,null,0,0,{"$error":"#DIV/0!"}]
[null,null,null,null,null,null,"",null,null,null,null,null,null,null,null,null,null,null,null,null,"",null,null,null,0,0,{"$error":"#DIV/0!"}]
[null,null,null,null,null,null,"",null,null,null,null,null,null,null,null,null,null,null,null,null,"",null,null,null,0,0,{"$error":"#DIV/0!"}]
[null,null,null,null,null,null,"",null,null,null,null,null,null,null,null,null,null,null,null,null,"",null,null,null,0,0,{"$error":"#DIV/0!"}]
[null,null,null,null,null,null,"",null,null,null,null,null,null,null,null,null,null,null,null,null,"",null,null,null,0,0,{"$error":"#DIV/0!"}]
[null,null,null,null,null,null,"",null,null,null,null,null,null,null,null,null,null,null,null,null,"",null,null,null,0,0,{"$error":"#DIV/0!"}]
[null,null,null,null,null,null,"",null,null,null,null,null,null,null,null,null,null,null,null,null,"",null,null,null,0,0,{"$error":"#DIV/0!"}]
[null,null,null,null,null,null,"",null,null,null,null,null,null,null,null,null,null,null,null,null,"",null,null,null,0,0,{"$error":"#DIV/0!"}]
[null,null,null,null,null,null,"",null,null,null,null,null,null,null,null,null,null,null,null,null,"",null,null,null,0,0,{"$error":"#DIV/0!"}]
[null,null,null,null,null,null,"",null,null,null,null,null,null,null,null,null,null,null,null,null,"",null,null,null,0,0,{"$error":"#DIV/0!"}]
[null,null,null,null,null,null,"",null,null,null,null,null,null,null,null,null,null,null,null,null,"",null,null,null,0,0,{"$error":"#DIV/0!"}]
[null,null,null,null,null,null,"",null,null,null,null,null,null,null,null,null,null,null,null,null,"",null,null,null,0,0,{"$error":"#DIV/0!"}]
[null,null,null,null,null,null,"",null,null,null,null,null,null,null,null,null,null,null,null,null,"",null,null,null,0,0,{"$error":"#DIV/0!"}]
[null,null,null,null,null,null,"",null,null,null,null,null,null,null,null,null,null,null,null,null,"",null,null,null,0,0,{"$error":"#DIV/0!"}]
[null,null,null,null,null,null,"",null,null,null,null,null,null,null,null,null,null,null,null,null,"",null,null,null,0,0,{"$error":"#DIV/0!"}]
[null,null,null,null,null,null,"",null,null,null,null,null,null,null,null,null,null,null,null,null,"",null,null,null,0,0,{"$error":"#DIV/0!"}]
[null,null,null,null,null,null,"",null,null,null,null,null,null,null,null,null,null,null,null,null,"",null,null,null,0,0,{"$error":"#DIV/0!"}]
[null,null,null,null,null,null,"",null,null,null,null,null,null,null,null,null,null,null,null,null,"",null,null,null,0,0,{"$error":"#DIV/0!"}]
[null,null,null,null,null,null,"",null,null,null,null,null,null,null,null,null,null,null,null,null,"",null,null,null,0,0,{"$error":"#DIV/0!"}]
[null,null,null,null,null,null,"",null,null,null,null,null,null,null,null,null,null,null,null,null,"",null,null,null,0,0,{"$error":"#DIV/0!"}]
[null,null,null,null,null,null,"",null,null,null,null,null,null,null,null,null,null,null,null,null,"",null,null,null,0,0,{"$error":"#DIV/0!"}]
[null,null,null,null,null,null,"",null,null,null,null,null,null,null,null,null,null,null,null,null,"",null,null,null,0,0,{"$error":"#DIV/0!"}]
[null,null,null,null,null,null,"",null,null,null,null,null,null,null,null,null,null,null,null,null,"",null,null,null,0,0,{"$error":"#DIV/0!"}]
[null,null,null,null,null,null,"",null,null,null,null,null,null,null,null,null,null,null,null,null,"",null,null,null,0,0,{"$error":"#DIV/0!"}]
[null,null,null,null,null,null,"",null,null,null,null,null,null,null,null,null,null,null,null,null,"",null,null,null,0,0,{"$error":"#DIV/0!"}]
[null,null,null,null,null,null,"",null,null,null,null,null,null,null,null,null,null,null,null,null,"",null,null,null,0,0,{"$error":"#DIV/0!"}]
[null,null,null,null,null,null,"",null,null,null,null,null,null,null,null,null,null,null,null,null,"",null,null,null,0,0,{"$error":"#DIV/0!"}]
[null,null,null,null,null,null,"",null,null,null,null,null,null,null,null,null,null,null,null,null,"",null,null,null,0,0,{"$error":"#DIV/0!"}]
[null,null,null,null,null,null,"",null,null,null,null,null,null,null,null,null,null,null,null,null,"",null,null,null,0,0,{"$error":"#DIV/0!"}]
[null,null,null,null,null,null,"",null,null,null,null,null,null,null,null,null,null,null,null,null,"",null,null,null,0,0,{"$error":"#DIV/0!"}]
[null,null,null,null,null,null,"",null,null,null,null,null,null,null,null,null,null,null,null,null,"",null,null,null,0,0,{"$error":"#DIV/0!"}]
[null,null,null,null,null,null,"",null,null,null,null,null,null,null,null,null,null,null,null,null,"",null,null,null,0,0,{"$error":"#DIV/0!"}]
[null,null,null,null,null,null,"",null,null,null,null,null,null,null,null,null,null,null,null,null,"",null,null,null,0,0,{"$error":"#DIV/0!"}]
[null,null,null,null,null,null,"",null,null,null,null,null,null,null,null,null,null,null,null,null,"",null,null,null,0,0,{"$error":"#DIV/0!"}]
[null,null,null,null,null,null,"",null,null,null,null,null,null,null,null,null,null,null,null,null,"",null,null,null,0,0,{"$error":"#DIV/0!"}]
[null,null,null,null,null,null,"",null,null,null,null,null,null,null,null,null,null,null,null,null,"",null,null,null,0,0,{"$error":"#DIV/0!"}]
[null,null,null,null,null,null,"",null,null,null,null,null,null,null,null,null,null,null,null,null,"",null,null,null,0,0,{"$error":"#DIV/0!"}]
[null,null,null,null,null,null,"",null,null,null,null,null,null,null,null,null,null,null,null,null,"",null,null,null,0,0,{"$error":"#DIV/0!"}]
[null,null,null,null,null,null,"",null,null,null,null,null,null,null,null,null,null,null,null,null,"",null,null,null,0,0,{"$error":"#DIV/0!"}]
[null,null,null,null,null,null,"",null,null,null,null,null,null,null,null,null,null,null,null,null,"",null,null,null,0,0,{"$error":"#DIV/0!"}]
[null,null,null,null,null,null,"",null,null,null,null,null,null,null,null,null,null,null,null,null,"",null,null,null,0,0,{"$error":"#DIV/0!"}]
[null,null,null,null,null,null,"",null,null,null,null,null,null,null,null,null,null,null,null,null,"",null,null,null,0,0,{"$error":"#DIV/0!"}]
[null,null,null,null,null,null,"",null,null,null,null,null,null,null,null,null,null,null,null,null,"",null,null,null,0,0,{"$error":"#DIV/0!"}]
[null,null,null,null,null,null,"",null,null,null,null,null,null,null,null,null,null,null,null,null,"",null,null,null,0,0,{"$error":"#DIV/0!"}]
[null,null,null,null,null,null,"",null,null,null,null,null,null,null,null,null,null,null,null,null,"",null,null,null,0,0,{"$error":"#DIV/0!"}]
[null,null,null,null,null,null,"",null,null,null,null,null,null,null,null,null,null,null,null,null,"",null,null,null,0,0,{"$error":"#DIV/0!"}]
[null,null,null,null,null,null,"",null,null,null,null,null,null,null,null,null,null,null,null,null,"",null,null,null,0,0,{"$error":"#DIV/0!"}]
[null,null,null,null,null,null,"",null,null,null,null,null,null,null,null,null,null,null,null,null,"",null,null,null,0,0,{"$error":"#DIV/0!"}]
[null,null,null,null,null,null,"",null,null,null,null,null,null,null,null,null,null,null,null,null,"",null,null,null,0,0,{"$error":"#DIV/0!"}]
[null,null,null,null,null,null,"",null,null,null,null,null,null,null,null,null,null,null,null,null,"",null,null,null,0,0,{"$error":"#DIV/0!"}]
[null,null,null,null,null,null,"",null,null,null,null,null,null,null,null,null,null,null,null,null,"",null,null,null,0,0,{"$error":"#DIV/0!"}]
[null,null,null,null,null,null,"",null,null,null,null,null,null,null,null,null,null,null,null,null,"",null,null,null,0,0,{"$error":"#DIV/0!"}]
[null,null,null,null,null,null,"",null,null,null,null,null,null,null,null,null,null,null,null,null,"",null,null,null,0,0,{"$error":"#DIV/0!"}]
[null,null,null,null,null,null,"",null,null,null,null,null,null,null,null,null,null,null,null,null,"",null,null,null,0,0,{"$error":"#DIV/0!"}]
[null,null,null,null,null,null,"",null,null,null,null,null,null,null,null,null,null,null,null,null,"",null,null,null,0,0,{"$error":"#DIV/0!"}]
[null,null,null,null,null,null,"",null,null,null,null,null,null,null,null,null,null,null,null,null,"",null,null,null,0,0,{"$error":"#DIV/0!"}]
[null,null,null,null,null,null,"",null,null,null,null,null,null,null,null,null,null,null,null,null,"",null,null,null,0,0,{"$error":"#DIV/0!"}]
[null,null,null,null,null,null,"",null,null,null,null,null,null,null,null,null,null,null,null,null,"",null,null,null,0,0,{"$error":"#DIV/0!"}]
[null,null,null,null,null,null,"",null,null,null,null,null,null,null,null,null,null,null,null,null,"",null,null,null,0,0,{"$error":"#DIV/0!"}]
[null,null,null,null,null,null,{"$f":"CHOOSE(IF(F205=\"4½ / 3\",1,IF(F205=\"6 / 3\",2,IF(F205=\"9 / 4½\",3,IF(F205=\"11\",4,5)))),(4.5+4*3)/5,(6+4*3)/5,(9+4*4.5)/5,11,IF(F205=\"12\",12,\"\"))","v":""},null,null,null,null,null,null,null,null,null,null,null,null,null,"",null,null,null,0,0,{"$error":"#DIV/0!"}]
[null,null,null,null,null,null,"",null,null,null,null,null,null,null,null,null,null,null,null,null,"",null,null,null,0,0,{"$error":"#DIV/0!"}]
[null,null,null,null,null,null,"",null,null,null,null,null,null,null,null,null,null,null,null,null,{"$f":"CHOOSE(IF(T207=\"4½ / 3\",1,IF(T207=\"6 / 3\",2,IF(T207=\"9 / 4½\",3,IF(T207=\"11\",4,5)))),(4.5+4*3)/5,(6+4*3)/5,(9+4*4.5)/5,11,IF(T207=\"12\",12,\"\"))","v":""},null,null,null,{"$f":"IF(C207>0,G207,H207)*K207*L207*M207/1000000","v":0},{"$f":"IF(O207=\"N\",0,IF(C207>0,K207*M207*L207*(G207-U207)/1000000,IF(OR(D207>0,E207>0),K207*L207*M207*(H207-V207))/1000000))","v":0},{"$error":"#DIV/0!"}]
[null,null,null,null,null,null,"",null,null,null,null,null,null,null,null,null,null,null,null,null,"",null,null,null,0,0,{"$f":"IF(O208=\"N\",0,Z208/Y208)","v":{"$error":"#DIV/0!"}}]
[null,null,null,null,null,null,"",null,null,null,null,null,null,null,null,null,null,null,null,null,"",null,null,null,0,0,{"$error":"#DIV/0!"}]
[null,null,null,null,null,null,"",null,null,null,null,null,null,null,null,null,null,null,null,null,"",null,null,null,0,0,{"$error":"#DIV/0!"}]
[null,null,null,null,null,null,"",null,null,null,null,null,null,null,null,null,null,null,null,null,"",null,null,null,0,0,{"$error":"#DIV/0!"}]
[null,null,null,null,null,null,"",null,null,null,null,null,null,null,null,null,null,null,null,null,"",null,null,null,0,0,{"$error":"#DIV/0!"}]
[null,null,null,null,null,null,"",null,null,null,null,null,null,null,null,null,null,null,null,null,"",null,null,null,0,0,{"$error":"#DIV/0!"}]
[null,null,null,null,null,null,"",null,null,null,null,null,null,null,null,null,null,null,null,null,"",null,null,null,0,0,{"$error":"#DIV/0!"}]
[null,null,null,null,null,null,"",null,null,null,null,null,null,null,null,null,null,null,null,null,"",null,null,null,0,0,{"$error":"#DIV/0!"}]
[null,null,null,null,null,null,"",null,null,null,null,null,null,null,null,null,null,null,null,null,"",null,null,null,0,0,{"$error":"#DIV/0!"}]
[null,null,null,null,null,null,"",null,null,null,null,null,null,null,null,null,null,null,null,null,"",null,null,null,0,0,{"$error":"#DIV/0!"}]
[null,null,null,null,null,null,"",null,null,null,null,null,null,null,null,null,null,null,null,null,"",null,null,null,0,0,{"$error":"#DIV/0!"}]
[null,null,null,null,null,null,"",null,null,null,null,null,null,null,null,null,null,null,null,null,"",null,null,null,0,0,{"$error":"#DIV/0!"}]
[null,null,null,null,null,null,"",null,null,null,null,null,null,null,null,null,null,null,null,null,"",null,null,null,0,0,{"$error":"#DIV/0!"}]
[null,null,null,null,null,null,"",null,null,null,null,null,null,null,null,null,null,null,null,null,"",null,null,null,0,0,{"$error":"#DIV/0!"}]
[null,null,null,null,null,null,"",null,null,null,null,null,null,null,null,null,null,null,null,null,"",null,null,null,0,0,{"$error":"#DIV/0!"}]
[null,null,null,null,null,null,"",null,null,null,null,null,null,null,null,null,null,null,null,null,"",null,null,null,0,0,{"$error":"#DIV/0!"}]
[null,null,null,null,null,null,"",null,null,null,null,null,null,null,null,null,null,null,null,null,"",null,null,null,0,0,{"$error":"#DIV/0!"}]
[null,null,null,null,null,null,"",null,null,null,null,null,null,null,null,null,null,null,null,null,"",null,null,null,0,0,{"$error":"#DIV/0!"}]
[null,null,null,null,null,null,"",null,null,null,null,null,null,null,null,null,null,null,null,null,"",null,null,null,0,0,{"$error":"#DIV/0!"}]
[null,null,null,null,null,null,"",null,null,null,null,null,null,null,null,null,null,null,null,null,"",null,null,null,0,0,{"$error":"#DIV/0!"}]
[null,null,null,null,null,null,"",null,null,null,null,null,null,null,null,null,null,null,null,null,"",null,null,null,0,0,{"$error":"#DIV/0!"}]
[null,null,null,null,null,null,"",null,null,null,null,null,null,null,null,null,null,null,null,null,"",null,null,null,0,0,{"$error":"#DIV/0!"}]
[null,null,null,null,null,null,"",null,null,null,null,null,null,null,null,null,null,null,null,null,"",null,null,null,0,0,{"$error":"#DIV/0!"}]
[null,null,null,null,null,null,"",null,null,null,null,null,null,null,null,null,null,null,null,null,"",null,null,null,0,0,{"$error":"#DIV/0!"}]
[null,null,null,null,null,null,"",null,null,null,null,null,null,null,null,null,null,null,null,null,"",null,null,null,0,0,{"$error":"#DIV/0!"}]
[null,null,null,null,null,null,"",null,null,null,null,null,null,null,null,null,null,null,null,null,"",null,null,null,0,0,{"$error":"#DIV/0!"}]
[null,null,null,null,null,null,"",null,null,null,null,null,null,null,null,null,null,null,null,null,"",null,null,null,0,0,{"$error":"#DIV/0!"}]
[null,null,null,null,null,null,"",null,null,null,null,null,null,null,null,null,null,null,null,null,"",null,null,null,0,0,{"$error":"#DIV/0!"}]
[null,null,null,null,null,null,"",null,null,null,null,null,null,null,null,null,null,null,null,null,"",null,null,null,0,0,{"$error":"#DIV/0!"}]
[null,null,null,null,null,null,"",null,null,null,null,null,null,null,null,null,null,null,null,null,"",null,null,null,0,0,{"$error":"#DIV/0!"}]
[null,null,null,null,null,null,"",null,null,null,null,null,null,null,null,null,null,null,null,null,"",null,null,null,0,0,{"$error":"#DIV/0!"}]
[null,null,null,null,null,null,"",null,null,null,null,null,null,null,null,null,null,null,null,null,"",null,null,null,0,0,{"$error":"#DIV/0!"}]
[null,null,null,null,null,null,"",null,null,null,null,null,null,null,null,null,null,null,null,null,"",null,null,null,0,0,{"$error":"#DIV/0!"}]
[null,null,null,null,null,null,"",null,null,null,null,null,null,null,null,null,null,null,null,null,"",null,null,null,0,0,{"$error":"#DIV/0!"}]
[null,null,null,null,null,null,"",null,null,null,null,null,null,null,null,null,null,null,null,null,"",null,null,null,0,0,{"$error":"#DIV/0!"}]
[null,null,null,null,null,null,"",null,null,null,null,null,null,null,null,null,null,null,null,null,"",null,null,null,0,0,{"$error":"#DIV/0!"}]
[null,null,null,null,null,null,"",null,null,null,null,null,null,null,null,null,null,null,null,null,"",null,null,null,0,0,{"$error":"#DIV/0!"}]
[null,null,null,null,null,null,"",null,null,null,null,null,null,null,null,null,null,null,null,null,"",null,null,null,0,0,{"$error":"#DIV/0!"}]
[null,null,null,null,null,null,"",null,null,null,null,null,null,null,null,null,null,null,null,null,"",null,null,null,0,0,{"$error":"#DIV/0!"}]
[null,null,null,null,null,null,"",null,null,null,null,null,null,null,null,null,null,null,null,null,"",null,null,null,0,0,{"$error":"#DIV/0!"}]
[null,null,null,null,null,null,"",null,null,null,null,null,null,null,null,null,null,null,null,null,"",null,null,null,0,0,{"$error":"#DIV/0!"}]
[null,null,null,null,null,null,"",null,null,null,null,null,null,null,null,null,null,null,null,null,"",null,null,null,0,0,{"$error":"#DIV/0!"}]
[null,null,null,null,null,null,"",null,null,null,null,null,null,null,null,null,null,null,null,null,"",null,null,null,0,0,{"$error":"#DIV/0!"}]
[null,null,null,null,null,null,"",null,null,null,null,null,null,null,null,null,null,null,null,null,"",null,null,null,0,0,{"$error":"#DIV/0!"}]
[null,null,null,null,null,null,"",null,null,null,null,null,null,null,null,null,null,null,null,null,"",null,null,null,0,0,{"$error":"#DIV/0!"}]
[null,null,null,null,null,null,"",null,null,null,null,null,null,null,null,null,null,null,null,null,"",null,null,null,0,0,{"$error":"#DIV/0!"}]
[null,null,null,null,null,null,"",null,null,null,null,null,null,null,null,null,null,null,null,null,"",null,null,null,0,0,{"$error":"#DIV/0!"}]
[null,null,null,null,null,null,"",null,null,null,null,null,null,null,null,null,null,null,null,null,"",null,null,null,0,0,{"$error":"#DIV/0!"}]
[null,null,null,null,null,null,"",null,null,null,null,null,null,null,null,null,null,null,null,null,"",null,null,null,0,0,{"$error":"#DIV/0!"}]
[null,null,null,null,null,null,"",null,null,null,null,null,null,null,null,null,null,null,null,null,"",null,null,null,0,0,{"$error":"#DIV/0!"}]
[null,null,null,null,null,null,"",null,null,null,null,null,null,null,null,null,null,null,null,null,"",null,null,null,0,0,{"$error":"#DIV/0!"}]
[null,null,null,null,null,null,"",null,null,null,null,null,null,null,null,null,null,null,null,null,"",null,null,null,0,0,{"$error":"#DIV/0!"}]
[null,null,null,null,null,null,"",null,null,null,null,null,null,null,null,null,null,null,null,null,"",null,null,null,0,0,{"$error":"#DIV/0!"}]
[null,null,null,null,null,null,"",null,null,null,null,null,null,null,null,null,null,null,null,null,"",null,null,null,0,0,{"$error":"#DIV/0!"}]
[null,null,null,null,null,null,"",null,null,null,null,null,null,null,null,null,null,null,null,null,"",null,null,null,0,0,{"$error":"#DIV/0!"}]
[null,null,null,null,null,null,"",null,null,null,null,null,null,null,null,null,null,null,null,null,"",null,null,null,0,0,{"$error":"#DIV/0!"}]
[null,null,null,null,null,null,"",null,null,null,null,null,null,null,null,null,null,null,null,null,"",null,null,null,0,0,{"$error":"#DIV/0!"}]
[null,null,null,null,null,null,"",null,null,null,null,null,null,null,null,null,null,null,null,null,"",null,null,null,0,0,{"$error":"#DIV/0!"}]
[null,null,null,null,null,null,"",null,null,null,null,null,null,null,null,null,null,null,null,null,"",null,null,null,0,0,{"$error":"#DIV/0!"}]
[null,null,null,null,null,null,"",null,null,null,null,null,null,null,null,null,null,null,null,null,"",null,null,null,0,0,{"$error":"#DIV/0!"}]
[null,null,null,null,null,null,"",null,null,null,null,null,null,null,null,null,null,null,null,null,"",null,null,null,0,0,{"$error":"#DIV/0!"}]
[null,null,null,null,null,null,{"$f":"CHOOSE(IF(F269=\"4½ / 3\",1,IF(F269=\"6 / 3\",2,IF(F269=\"9 / 4½\",3,IF(F269=\"11\",4,5)))),(4.5+4*3)/5,(6+4*3)/5,(9+4*4.5)/5,11,IF(F269=\"12\",12,\"\"))","v":""},null,null,null,null,null,null,null,null,null,null,null,null,null,"",null,null,null,0,0,{"$error":"#DIV/0!"}]
[null,null,null,null,null,null,"",null,null,null,null,null,null,null,null,null,null,null,null,null,"",null,null,null,0,0,{"$error":"#DIV/0!"}]
[null,null,null,null,null,null,"",null,null,null,null,null,null,null,null,null,null,null,null,null,{"$f":"CHOOSE(IF(T271=\"4½ / 3\",1,IF(T271=\"6 / 3\",2,IF(T271=\"9 / 4½\",3,IF(T271=\"11\",4,5)))),(4.5+4*3)/5,(6+4*3)/5,(9+4*4.5)/5,11,IF(T271=\"12\",12,\"\"))","v":""},null,null,null,{"$f":"IF(C271>0,G271,H271)*K271*L271*M271/1000000","v":0},{"$f":"IF(O271=\"N\",0,IF(C271>0,K271*M271*L271*(G271-U271)/1000000,IF(OR(D271>0,E271>0),K271*L271*M271*(H271-V271))/1000000))","v":0},{"$error":"#DIV/0!"}]
[null,null,null,null,null,null,"",null,null,null,null,null,null,null,null,null,null,null,null,null,"",null,null,null,0,0,{"$f":"IF(O272=\"N\",0,Z272/Y272)","v":{"$error":"#DIV/0!"}}]
[null,null,null,null,null,null,"",null,null,null,null,null,null,null,null,null,null,null,null,null,"",null,null,null,0,0,{"$error":"#DIV/0!"}]
[null,null,null,null,null,null,"",null,null,null,null,null,null,null,null,null,null,null,null,null,"",null,null,null,0,0,{"$error":"#DIV/0!"}]
[null,null,null,null,null,null,"",null,null,null,null,null,null,null,null,null,null,null,null,null,"",null,null,null,0,0,{"$error":"#DIV/0!"}]
[null,null,null,null,null,null,"",null,null,null,null,null,null,null,null,null,null,null,null,null,"",null,null,null,0,0,{"$error":"#DIV/0!"}]
[null,null,null,null,null,null,"",null,null,null,null,null,null,null,null,null,null,null,null,null,"",null,null,null,0,0,{"$error":"#DIV/0!"}]
[null,null,null,null,null,null,"",null,null,null,null,null,null,null,null,null,null,null,null,null,"",null,null,null,0,0,{"$error":"#DIV/0!"}]
[null,null,null,null,null,null,"",null,null,null,null,null,null,null,null,null,null,null,null,null,"",null,null,null,0,0,{"$error":"#DIV/0!"}]
[null,null,null,null,null,null,"",null,null,null,null,null,null,null,null,null,null,null,null,null,"",null,null,null,0,0,{"$error":"#DIV/0!"}]
[null,null,null,null,null,null,"",null,null,null,null,null,null,null,null,null,null,null,null,null,"",null,null,null,0,0,{"$error":"#DIV/0!"}]
[null,null,null,null,null,null,"",null,null,null,null,null,null,null,null,null,null,null,null,null,"",null,null,null,0,0,{"$error":"#DIV/0!"}]
[null,null,null,null,null,null,"",null,null,null,null,null,null,null,null,null,null,null,null,null,"",null,null,null,0,0,{"$error":"#DIV/0!"}]
[null,null,null,null,null,null,"",null,null,null,null,null,null,null,null,null,null,null,null,null,"",null,null,null,0,0,{"$error":"#DIV/0!"}]
[null,null,null,null,null,null,"",null,null,null,null,null,null,null,null,null,null,null,null,null,"",null,null,null,0,0,{"$error":"#DIV/0!"}]
[null,null,null,null,null,null,"",null,null,null,null,null,null,null,null,null,null,null,null,null,"",null,null,null,0,0,{"$error":"#DIV/0!"}]
[null,null,null,null,null,null,"",null,null,null,null,null,null,null,null,null,null,null,null,null,"",null,null,null,0,0,{"$error":"#DIV/0!"}]
[null,null,null,null,null,null,"",null,null,null,null,null,null,null,null,null,null,null,null,null,"",null,null,null,0,0,{"$error":"#DIV/0!"}]
[null,null,null,null,null,null,"",null,null,null,null,null,null,null,null,null,null,null,null,null,"",null,null,null,0,0,{"$error":"#DIV/0!"}]
[null,null,null,null,null,null,"",null,null,null,null,null,null,null,null,null,null,null,null,null,"",null,null,null,0,0,{"$error":"#DIV/0!"}]
[null,null,null,null,null,null,"",null,null,null,null,null,null,null,null,null,null,null,null,null,"",null,null,null,0,0,{"$error":"#DIV/0!"}]
[null,null,null,null,null,null,"",null,null,null,null,null,null,null,null,null,null,null,null,null,"",null,null,null,0,0,{"$error":"#DIV/0!"}]
[null,null,null,null,null,null,"",null,null,null,null,null,null,null,null,null,null,null,null,null,"",null,null,null,0,0,{"$error":"#DIV/0!"}]
[null,null,null,null,null,null,"",null,null,null,null,null,null,null,null,null,null,null,null,null,"",null,null,null,0,0,{"$error":"#DIV/0!"}]
[null,null,null,null,null,null,"",null,null,null,null,null,null,null,null,null,null,null,null,null,"",null,null,null,0,0,{"$error":"#DIV/0!"}]
[null,null,null,null,null,null,"",null,null,null,null,null,null,null,null,null,null,null,null,null,"",null,null,null,0,0,{"$error":"#DIV/0!"}]
[null,null,null,null,null,null,"",null,null,null,null,null,null,null,null,null,null,null,null,null,"",null,null,null,0,0,{"$error":"#DIV/0!"}]
[null,null,null,null,null,null,"",null,null,null,null,null,null,null,null,null,null,null,null,null,"",null,null,null,0,0,{"$error":"#DIV/0!"}]
[null,null,null,null,null,null,"",null,null,null,null,null,null,null,null,null,null,null,null,null,"",null,null,null,0,0,{"$error":"#DIV/0!"}]
[null,null,null,null,null,null,"",null,null,null,null,null,null,null,null,null,null,null,null,null,"",null,null,null,0,0,{"$error":"#DIV/0!"}]
[null,null,null,null,null,null,"",null,null,null,null,null,null,null,null,null,null,null,null,null,"",null,null,null,0,0,{"$error":"#DIV/0!"}]
[null,null,null,null,null,null,"",null,null,null,null,null,null,null,null,null,null,null,null,null,"",null,null,null,0,0,{"$error":"#DIV/0!"}]
[null,null,null,null,null,null,"",null,null,null,null,null,null,null,null,null,null,null,null,null,"",null,null,null,0,0,{"$error":"#DIV/0!"}]
[null,null,null,null,null,null,"",null,null,null,null,null,null,null,null,null,null,null,null,null,"",null,null,null,0,0,{"$error":"#DIV/0!"}]
[null,null,null,null,null,null,"",null,null,null,null,null,null,null,null,null,null,null,null,null,"",null,null,null,0,0,{"$error":"#DIV/0!"}]
[null,null,null,null,null,null,"",null,null,null,null,null,null,null,null,null,null,null,null,null,"",null,null,null,0,0,{"$error":"#DIV/0!"}]
[null,null,null,null,null,null,"",null,null,null,null,null,null,null,null,null,null,null,null,null,"",null,null,null,0,0,{"$error":"#DIV/0!"}]
[null,null,null,null,null,null,"",null,null,null,null,null,null,null,null,null,null,null,null,null,"",null,null,null,0,0,{"$error":"#DIV/0!"}]
[null,null,null,null,null,null,"",null,null,null,null,null,null,null,null,null,null,null,null,null,"",null,null,null,0,0,{"$error":"#DIV/0!"}]
[null,null,null,null,null,null,"",null,null,null,null,null,null,null,null,null,null,null,null,null,"",null,null,null,0,0,{"$error":"#DIV/0!"}]
[null,null,null,null,null,null,"",null,null,null,null,null,null,null,null,null,null,null,null,null,"",null,null,null,0,0,{"$error":"#DIV/0!"}]
[null,null,null,null,null,null,"",null,null,null,null,null,null,null,null,null,null,null,null,null,"",null,null,null,0,0,{"$error":"#DIV/0!"}]
[null,null,null,null,null,null,"",null,null,null,null,null,null,null,null,null,null,null,null,null,"",null,null,null,0,0,{"$error":"#DIV/0!"}]
[null,null,null,null,null,null,"",null,null,null,null,null,null,null,null,null,null,null,null,null,"",null,null,null,0,0,{"$error":"#DIV/0!"}]
[null,null,null,null,null,null,"",null,null,null,null,null,null,null,null,null,null,null,null,null,"",null,null,null,0,0,{"$error":"#DIV/0!"}]
[null,null,null,null,null,null,"",null,null,null,null,null,null,null,null,null,null,null,null,null,"",null,null,null,0,0,{"$error":"#DIV/0!"}]
[null,null,null,null,null,null,"",null,null,null,null,null,null,null,null,null,null,null,null,null,"",null,null,null,0,0,{"$error":"#DIV/0!"}]
[null,null,null,null,null,null,"",null,null,null,null,null,null,null,null,null,null,null,null,null,"",null,null,null,0,0,{"$error":"#DIV/0!"}]
[null,null,null,null,null,null,"",null,null,null,null,null,null,null,null,null,null,null,null,null,"",null,null,null,0,0,{"$error":"#DIV/0!"}]
[null,null,null,null,null,null,"",null,null,null,null,null,null,null,null,null,null,null,null,null,"",null,null,null,0,0,{"$error":"#DIV/0!"}]
[null,null,null,null,null,null,"",null,null,null,null,null,null,null,null,null,null,null,null,null,"",null,null,null,0,0,{"$error":"#DIV/0!"}]
[null,null,null,null,null,null,"",null,null,null,null,null,null,null,null,null,null,null,null,null,"",null,null,null,0,0,{"$error":"#DIV/0!"}]
[null,null,null,null,null,null,"",null,null,null,null,null,null,null,null,null,null,null,null,null,"",null,null,null,0,0,{"$error":"#DIV/0!"}]
[null,null,null,null,null,null,"",null,null,null,null,null,null,null,null,null,null,null,null,null,"",null,null,null,0,0,{"$error":"#DIV/0!"}]
[null,null,null,null,null,null,"",null,null,null,null,null,null,null,null,null,null,null,null,null,"",null,null,null,0,0,{"$error":"#DIV/0!"}]
[null,null,null,null,null,null,"",null,null,null,null,null,null,null,null,null,null,null,null,null,"",null,null,null,0,0,{"$error":"#DIV/0!"}]
[null,null,null,null,null,null,"",null,null,null,null,null,null,null,null,null,null,null,null,null,"",null,null,null,0,0,{"$error":"#DIV/0!"}]
[null,null,null,null,null,null,"",null,null,null,null,null,null,null,null,null,null,null,null,null,"",null,null,null,0,0,{"$error":"#DIV/0!"}]
[null,null,null,null,null,null,"",null,null,null,null,null,null,null,null,null,null,null,null,null,"",null,null,null,0,0,{"$error":"#DIV/0!"}]
[null,null,null,null,null,null,"",null,null,null,null,null,null,null,null,null,null,null,null,null,"",null,null,null,0,0,{"$error":"#DIV/0!"}]
[null,null,null,null,null,null,"",null,null,null,null,null,null,null,null,null,null,null,null,null,"",null,null,null,0,0,{"$error":"#DIV/0!"}]
[null,null,null,null,null,null,"",null,null,null,null,null,null,null,null,null,null,null,null,null,"",null,null,null,0,0,{"$error":"#DIV/0!"}]
[null,null,null,null,null,null,{"$f":"CHOOSE(IF(F333=\"4½ / 3\",1,IF(F333=\"6 / 3\",2,IF(F333=\"9 / 4½\",3,IF(F333=\"11\",4,5)))),(4.5+4*3)/5,(6+4*3)/5,(9+4*4.5)/5,11,IF(F333=\"12\",12,\"\"))","v":""},null,null,null,null,null,null,null,null,null,null,null,null,null,"",null,null,null,0,0,{"$error":"#DIV/0!"}]
[null,null,null,null,null,null,"",null,null,null,null,null,null,null,null,null,null,null,null,null,"",null,null,null,0,0,{"$error":"#DIV/0!"}]
[null,null,null,null,null,null,"",null,null,null,null,null,null,null,null,null,null,null,null,null,{"$f":"CHOOSE(IF(T335=\"4½ / 3\",1,IF(T335=\"6 / 3\",2,IF(T335=\"9 / 4½\",3,IF(T335=\"11\",4,5)))),(4.5+4*3)/5,(6+4*3)/5,(9+4*4.5)/5,11,IF(T335=\"12\",12,\"\"))","v":""},null,null,null,{"$f":"IF(C335>0,G335,H335)*K335*L335*M335/1000000","v":0},{"$f":"IF(O335=\"N\",0,IF(C335>0,K335*M335*L335*(G335-U335)/1000000,IF(OR(D335>0,E335>0),K335*L335*M335*(H335-V335))/1000000))","v":0},{"$error":"#DIV/0!"}]
[null,null,null,null,null,null,"",null,null,null,null,null,null,null,null,null,null,null,null,null,"",null,null,null,0,0,{"$f":"IF(O336=\"N\",0,Z336/Y336)","v":{"$error":"#DIV/0!"}}]
[null,null,null,null,null,null,"",null,null,null,null,null,null,null,null,null,null,null,null,null,"",null,null,null,0,0,{"$error":"#DIV/0!"}]
[null,null,null,null,null,null,"",null,null,null,null,null,null,null,null,null,null,null,null,null,"",null,null,null,0,0,{"$error":"#DIV/0!"}]
[null,null,null,null,null,null,"",null,null,null,null,null,null,null,null,null,null,null,null,null,"",null,null,null,0,0,{"$error":"#DIV/0!"}]
[null,null,null,null,null,null,"",null,null,null,null,null,null,null,null,null,null,null,null,null,"",null,null,null,0,0,{"$error":"#DIV/0!"}]
[null,null,null,null,null,null,"",null,null,null,null,null,null,null,null,null,null,null,null,null,"",null,null,null,0,0,{"$error":"#DIV/0!"}]
[null,null,null,null,null,null,"",null,null,null,null,null,null,null,null,null,null,null,null,null,"",null,null,null,0,0,{"$error":"#DIV/0!"}]
[null,null,null,null,null,null,"",null,null,null,null,null,null,null,null,null,null,null,null,null,"",null,null,null,0,0,{"$error":"#DIV/0!"}]
[null,null,null,null,null,null,"",null,null,null,null,null,null,null,null,null,null,null,null,null,"",null,null,null,0,0,{"$error":"#DIV/0!"}]
[null,null,null,null,null,null,"",null,null,null,null,null,null,null,null,null,null,null,null,null,"",null,null,null,0,0,{"$error":"#DIV/0!"}]
[null,null,null,null,null,null,"",null,null,null,null,null,null,null,null,null,null,null,null,null,"",null,null,null,0,0,{"$error":"#DIV/0!"}]
[null,null,null,null,null,null,"",null,null,null,null,null,null,null,null,null,null,null,null,null,"",null,null,null,0,0,{"$error":"#DIV/0!"}]
[null,null,null,null,null,null,"",null,null,null,null,null,null,null,null,null,null,null,null,null,"",null,null,null,0,0,{"$error":"#DIV/0!"}]
[null,null,null,null,null,null,"",null,null,null,null,null,null,null,null,null,null,null,null,null,"",null,null,null,0,0,{"$error":"#DIV/0!"}]
[null,null,null,null,null,null,"",null,null,null,null,null,null,null,null,null,null,null,null,null,"",null,null,null,0,0,{"$error":"#DIV/0!"}]
[null,null,null,null,null,null,"",null,null,null,null,null,null,null,null,null,null,null,null,null,"",null,null,null,0,0,{"$error":"#DIV/0!"}]
[null,null,null,null,null,null,"",null,null,null,null,null,null,null,null,null,null,null,null,null,"",null,null,null,0,0,{"$error":"#DIV/0!"}]
[null,null,null,null,null,null,"",null,null,null,null,null,null,null,null,null,null,null,null,null,"",null,null,null,0,0,{"$error":"#DIV/0!"}]
[null,null,null,null,null,null,"",null,null,null,null,null,null,null,null,null,null,null,null,null,"",null,null,null,0,0,{"$error":"#DIV/0!"}]
[null,null,null,null,null,null,"",null,null,null,null,null,null,null,null,null,null,null,null,null,"",null,null,null,0,0,{"$error":"#DIV/0!"}]
[null,null,null,null,null,null,"",null,null,null,null,null,null,null,null,null,null,null,null,null,"",null,null,null,0,0,{"$error":"#DIV/0!"}]
[null,null,null,null,null,null,"",null,null,null,null,null,null,null,null,null,null,null,null,null,"",null,null,null,0,0,{"$error":"#DIV/0!"}]
[null,null,null,null,null,null,"",null,null,null,null,null,null,null,null,null,null,null,null,null,"",null,null,null,0,0,{"$error":"#DIV/0!"}]
[null,null,null,null,null,null,"",null,null,null,null,null,null,null,null,null,null,null,null,null,"",null,null,null,0,0,{"$error":"#DIV/0!"}]
[null,null,null,null,null,null,"",null,null,null,null,null,null,null,null,null,null,null,null,null,"",null,null,null,0,0,{"$error":"#DIV/0!"}]
[null,null,null,null,null,null,"",null,null,null,null,null,null,null,null,null,null,null,null,null,"",null,null,null,0,0,{"$error":"#DIV/0!"}]
[null,null,null,null,null,null,"",null,null,null,null,null,null,null,null,null,null,null,null,null,"",null,null,null,0,0,{"$error":"#DIV/0!"}]
[null,null,null,null,null,null,"",null,null,null,null,null,null,null,null,null,null,null,null,null,"",null,null,null,0,0,{"$error":"#DIV/0!"}]
[null,null,null,null,null,null,"",null,null,null,null,null,null,null,null,null,null,null,null,null,"",null,null,null,0,0,{"$error":"#DIV/0!"}]
[null,null,null,null,null,null,"",null,null,null,null,null,null,null,null,null,null,null,null,null,"",null,null,null,0,0,{"$error":"#DIV/0!"}]
[null,null,null,null,null,null,"",null,null,null,null,null,null,null,null,null,null,null,null,null,"",null,null,null,0,0,{"$error":"#DIV/0!"}]
[null,null,null,null,null,null,"",null,null,null,null,null,null,null,null,null,null,null,null,null,"",null,null,null,0,0,{"$error":"#DIV/0!"}]
[null,null,null,null,null,null,"",null,null,null,null,null,null,null,null,null,null,null,null,null,"",null,null,null,0,0,{"$error":"#DIV/0!"}]
[null,null,null,null,null,null,"",null,null,null,null,null,null,null,null,null,null,null,null,null,"",null,null,null,0,0,{"$error":"#DIV/0!"}]
[null,null,null,null,null,null,"",null,null,null,null,null,null,null,null,null,null,null,null,null,"",null,null,null,0,0,{"$error":"#DIV/0!"}]
[null,null,null,null,null,null,"",null,null,null,null,null,null,null,null,null,null,null,null,null,"",null,null,null,0,0,{"$error":"#DIV/0!"}]
[null,null,null,null,null,null,"",null,null,null,null,null,null,null,null,null,null,null,null,null,"",null,null,null,0,0,{"$error":"#DIV/0!"}]
[null,null,null,null,null,null,"",null,null,null,null,null,null,null,null,null,null,null,null,null,"",null,null,null,0,0,{"$error":"#DIV/0!"}]
[null,null,null,null,null,null,"",null,null,null,null,null,null,null,null,null,null,null,null,null,"",null,null,null,0,0,{"$error":"#DIV/0!"}]
[null,null,null,null,null,null,"",null,null,null,null,null,null,null,null,null,null,null,null,null,"",null,null,null,0,0,{"$error":"#DIV/0!"}]
[null,null,null,null,null,null,"",null,null,null,null,null,null,null,null,null,null,null,null,null,"",null,null,null,0,0,{"$error":"#DIV/0!"}]
[null,null,null,null,null,null,"",null,null,null,null,null,null,null,null,null,null,null,null,null,"",null,null,null,0,0,{"$error":"#DIV/0!"}]
[null,null,null,null,null,null,"",null,null,null,null,null,null,null,null,null,null,null,null,null,"",null,null,null,0,0,{"$error":"#DIV/0!"}]
[null,null,null,null,null,null,"",null,null,null,null,null,null,null,null,null,null,null,null,null,"",null,null,null,0,0,{"$error":"#DIV/0!"}]
[null,null,null,null,null,null,"",null,null,null,null,null,null,null,null,null,null,null,null,null,"",null,null,null,0,0,{"$error":"#DIV/0!"}]
[null,null,null,null,null,null,"",null,null,null,null,null,null,null,null,null,null,null,null,null,"",null,null,null,0,0,{"$error":"#DIV/0!"}]
[null,null,null,null,null,null,"",null,null,null,null,null,null,null,null,null,null,null,null,null,"",null,null,null,0,0,{"$error":"#DIV/0!"}]
[null,null,null,null,null,null,"",null,null,null,null,null,null,null,null,null,null,null,null,null,"",null,null,null,0,0,{"$error":"#DIV/0!"}]
[null,null,null,null,null,null,"",null,null,null,null,null,null,null,null,null,null,null,null,null,"",null,null,null,0,0,{"$error":"#DIV/0!"}]
[null,null,null,null,null,null,"",null,null,null,null,null,null,null,null,null,null,null,null,null,"",null,null,null,0,0,{"$error":"#DIV/0!"}]
[null,null,null,null,null,null,"",null,null,null,null,null,null,null,null,null,null,null,null,null,"",null,null,null,0,0,{"$error":"#DIV/0!"}]
[null,null,null,null,null,null,"",null,null,null,null,null,null,null,null,null,null,null,null,null,"",null,null,null,0,0,{"$error":"#DIV/0!"}]
[null,null,null,null,null,null,"",null,null,null,null,null,null,null,null,null,null,null,null,null,"",null,null,null,0,0,{"$error":"#DIV/0!"}]
[null,null,null,null,null,null,"",null,null,null,null,null,null,null,null,null,null,null,null,null,"",null,null,null,0,0,{"$error":"#DIV/0!"}]
[null,null,null,null,null,null,"",null,null,null,null,null,null,null,null,null,null,null,null,null,"",null,null,null,0,0,{"$error":"#DIV/0!"}]
[null,null,null,null,null,null,"",null,null,null,null,null,null,null,null,null,null,null,null,null,"",null,null,null,0,0,{"$error":"#DIV/0!"}]
[null,null,null,null,null,null,"",null,null,null,null,null,null,null,null,null,null,null,null,null,"",null,null,null,0,0,{"$error":"#DIV/0!"}]
[null,null,null,null,null,null,"",null,null,null,null,null,null,null,null,null,null,null,null,null,"",null,null,null,0,0,{"$error":"#DIV/0!"}]
[null,null,null,null,null,null,"",null,null,null,null,null,null,null,null,null,null,null,null,null,"",null,null,null,0,0,{"$error":"#DIV/0!"}]
[null,null,null,null,null,null,"",null,null,null,null,null,null,null,null,null,null,null,null,null,"",null,null,null,0,0,{"$error":"#DIV/0!"}]
[null,null,null,null,null,null,"",null,null,null,null,null,null,null,null,null,null,null,null,null,"",null,null,null,0,0,{"$error":"#DIV/0!"}]
[null,null,null,null,null,null,{"$f":"CHOOSE(IF(F397=\"4½ / 3\",1,IF(F397=\"6 / 3\",2,IF(F397=\"9 / 4½\",3,IF(F397=\"11\",4,5)))),(4.5+4*3)/5,(6+4*3)/5,(9+4*4.5)/5,11,IF(F397=\"12\",12,\"\"))","v":""},null,null,null,null,null,null,null,null,null,null,null,null,null,"",null,null,null,0,0,{"$error":"#DIV/0!"}]
[null,null,null,null,null,null,"",null,null,null,null,null,null,null,null,null,null,null,null,null,"",null,null,null,0,0,{"$error":"#DIV/0!"}]
[null,null,null,null,null,null,"",null,null,null,null,null,null,null,null,null,null,null,null,null,{"$f":"CHOOSE(IF(T399=\"4½ / 3\",1,IF(T399=\"6 / 3\",2,IF(T399=\"9 / 4½\",3,IF(T399=\"11\",4,5)))),(4.5+4*3)/5,(6+4*3)/5,(9+4*4.5)/5,11,IF(T399=\"12\",12,\"\"))","v":""},null,null,null,{"$f":"IF(C399>0,G399,H399)*K399*L399*M399/1000000","v":0},{"$f":"IF(O399=\"N\",0,IF(C399>0,K399*M399*L399*(G399-U399)/1000000,IF(OR(D399>0,E399>0),K399*L399*M399*(H399-V399))/1000000))","v":0},{"$error":"#DIV/0!"}]
[null,null,null,null,null,null,"",null,null,null,null,null,null,null,null,null,null,null,null,null,"",null,null,null,0,0,{"$f":"IF(O400=\"N\",0,Z400/Y400)","v":{"$error":"#DIV/0!"}}]
[null,null,null,null,null,null,"",null,null,null,null,null,null,null,null,null,null,null,null,null,"",null,null,null,0,0,{"$error":"#DIV/0!"}]
[null,null,null,null,null,null,"",null,null,null,null,null,null,null,null,null,null,null,null,null,"",null,null,null,0,0,{"$error":"#DIV/0!"}]
[null,null,null,null,null,null,"",null,null,null,null,null,null,null,null,null,null,null,null,null,"",null,null,null,0,0,{"$error":"#DIV/0!"}]
[null,null,null,null,null,null,"",null,null,null,null,null,null,null,null,null,null,null,null,null,"",null,null,null,0,0,{"$error":"#DIV/0!"}]
[null,null,null,null,null,null,"",null,null,null,null,null,null,null,null,null,null,null,null,null,"",null,null,null,0,0,{"$error":"#DIV/0!"}]
[null,null,null,null,null,null,"",null,null,null,null,null,null,null,null,null,null,null,null,null,"",null,null,null,0,0,{"$error":"#DIV/0!"}]
[null,null,null,null,null,null,"",null,null,null,null,null,null,null,null,null,null,null,null,null,"",null,null,null,0,0,{"$error":"#DIV/0!"}]
[null,null,null,null,null,null,"",null,null,null,null,null,null,null,null,null,null,null,null,null,"",null,null,null,0,0,{"$error":"#DIV/0!"}]
[null,null,null,null,null,null,"",null,null,null,null,null,null,null,null,null,null,null,null,null,"",null,null,null,0,0,{"$error":"#DIV/0!"}]
[null,null,null,null,null,null,"",null,null,null,null,null,null,null,null,null,null,null,null,null,"",null,null,null,0,0,{"$error":"#DIV/0!"}]
[null,null,null,null,null,null,"",null,null,null,null,null,null,null,null,null,null,null,null,null,"",null,null,null,0,0,{"$error":"#DIV/0!"}]
[null,null,null,null,null,null,"",null,null,null,null,null,null,null,null,null,null,null,null,null,"",null,null,null,0,0,{"$error":"#DIV/0!"}]
[null,null,null,null,null,null,"",null,null,null,null,null,null,null,null,null,null,null,null,null,"",null,null,null,0,0,{"$error":"#DIV/0!"}]
[null,null,null,null,null,null,"",null,null,null,null,null,null,null,null,null,null,null,null,null,"",null,null,null,0,0,{"$error":"#DIV/0!"}]
[null,null,null,null,null,null,"",null,null,null,null,null,null,null,null,null,null,null,null,null,"",null,null,null,0,0,{"$error":"#DIV/0!"}]
[null,null,null,null,null,null,"",null,null,null,null,null,null,null,null,null,null,null,null,null,"",null,null,null,0,0,{"$error":"#DIV/0!"}]
[null,null,null,null,null,null,"",null,null,null,null,null,null,null,null,null,null,null,null,null,"",null,null,null,0,0,{"$error":"#DIV/0!"}]
[null,null,null,null,null,null,"",null,null,null,null,null,null,null,null,null,null,null,null,null,"",null,null,null,0,0,{"$error":"#DIV/0!"}]
[null,null,null,null,null,null,"",null,null,null,null,null,null,null,null,null,null,null,null,null,"",null,null,null,0,0,{"$error":"#DIV/0!"}]
[null,null,null,null,null,null,"",null,null,null,null,null,null,null,null,null,null,null,null,null,"",null,null,null,0,0,{"$error":"#DIV/0!"}]
[null,null,null,null,null,null,"",null,null,null,null,null,null,null,null,null,null,null,null,null,"",null,null,null,0,0,{"$error":"#DIV/0!"}]
[null,null,null,null,null,null,"",null,null,null,null,null,null,null,null,null,null,null,null,null,"",null,null,null,0,0,{"$error":"#DIV/0!"}]
[null,null,null,null,null,null,"",null,null,null,null,null,null,null,null,null,null,null,null,null,"",null,null,null,0,0,{"$error":"#DIV/0!"}]
[null,null,null,null,null,null,"",null,null,null,null,null,null,null,null,null,null,null,null,null,"",null,null,null,0,0,{"$error":"#DIV/0!"}]
[null,null,null,null,null,null,"",null,null,null,null,null,null,null,null,null,null,null,null,null,"",null,null,null,0,0,{"$error":"#DIV/0!"}]
[null,null,null,null,null,null,"",null,null,null,null,null,null,null,null,null,null,null,null,null,"",null,null,null,0,0,{"$error":"#DIV/0!"}]
[null,null,null,null,null,null,"",null,null,null,null,null,null,null,null,null,null,null,null,null,"",null,null,null,0,0,{"$error":"#DIV/0!"}]
[null,null,null,null,null,null,"",null,null,null,null,null,null,null,null,null,null,null,null,null,"",null,null,null,0,0,{"$error":"#DIV/0!"}]
[null,null,null,null,null,null,"",null,null,null,null,null,null,null,null,null,null,null,null,null,"",null,null,null,0,0,{"$error":"#DIV/0!"}]
[null,null,null,null,null,null,"",null,null,null,null,null,null,null,null,null,null,null,null,null,"",null,null,null,0,0,{"$error":"#DIV/0!"}]
[null,null,null,null,null,null,"",null,null,null,null,null,null,null,null,null,null,null,null,null,"",null,null,null,0,0,{"$error":"#DIV/0!"}]
[null,null,null,null,null,null,"",null,null,null,null,null,null,null,null,null,null,null,null,null,"",null,null,null,0,0,{"$error":"#DIV/0!"}]
[null,null,null,null,null,null,"",null,null,null,null,null,null,null,null,null,null,null,null,null,"",null,null,null,0,0,{"$error":"#DIV/0!"}]
[null,null,null,null,null,null,"",null,null,null,null,null,null,null,null,null,null,null,null,null,"",null,null,null,0,0,{"$error":"#DIV/0!"}]
[null,null,null,null,null,null,"",null,null,null,null,null,null,null,null,null,null,null,null,null,"",null,null,null,0,0,{"$error":"#DIV/0!"}]
[null,null,null,null,null,null,"",null,null,null,null,null,null,null,null,null,null,null,null,null,"",null,null,null,0,0,{"$error":"#DIV/0!"}]
[null,null,null,null,null,null,"",null,null,null,null,null,null,null,null,null,null,null,null,null,"",null,null,null,0,0,{"$error":"#DIV/0!"}]
[null,null,null,null,null,null,"",null,null,null,null,null,null,null,null,null,null,null,null,null,"",null,null,null,0,0,{"$error":"#DIV/0!"}]
[null,null,null,null,null,null,"",null,null,null,null,null,null,null,null,null,null,null,null,null,"",null,null,null,0,0,{"$error":"#DIV/0!"}]
[null,null,null,null,null,null,"",null,null,null,null,null,null,null,null,null,null,null,null,null,"",null,null,null,0,0,{"$error":"#DIV/0!"}]
[null,null,null,null,null,null,"",null,null,null,null,null,null,null,null,null,null,null,null,null,"",null,null,null,0,0,{"$error":"#DIV/0!"}]
[null,null,null,null,null,null,"",null,null,null,null,null,null,null,null,null,null,null,null,null,"",null,null,null,0,0,{"$error":"#DIV/0!"}]
[null,null,null,null,null,null,"",null,null,null,null,null,null,null,null,null,null,null,null,null,"",null,null,null,0,0,{"$error":"#DIV/0!"}]
[null,null,null,null,null,null,"",null,null,null,null,null,null,null,null,null,null,null,null,null,"",null,null,null,0,0,{"$error":"#DIV/0!"}]
[null,null,null,null,null,null,"",null,null,null,null,null,null,null,null,null,null,null,null,null,"",null,null,null,0,0,{"$error":"#DIV/0!"}]
[null,null,null,null,null,null,"",null,null,null,null,null,null,null,null,null,null,null,null,null,"",null,null,null,0,0,{"$error":"#DIV/0!"}]
[null,null,null,null,null,null,"",null,null,null,null,null,null,null,null,null,null,null,null,null,"",null,null,null,0,0,{"$error":"#DIV/0!"}]
[null,null,null,null,null,null,"",null,null,null,null,null,null,null,null,null,null,null,null,null,"",null,null,null,0,0,{"$error":"#DIV/0!"}]
[null,null,null,null,null,null,"",null,null,null,null,null,null,null,null,null,null,null,null,null,"",null,null,null,0,0,{"$error":"#DIV/0!"}]
[null,null,null,null,null,null,"",null,null,null,null,null,null,null,null,null,null,null,null,null,"",null,null,null,0,0,{"$error":"#DIV/0!"}]
[null,null,null,null,null,null,"",null,null,null,null,null,null,null,null,null,null,null,null,null,"",null,null,null,0,0,{"$error":"#DIV/0!"}]
[null,null,null,null,null,null,"",null,null,null,null,null,null,null,null,null,null,null,null,null,"",null,null,null,0,0,{"$error":"#DIV/0!"}]
[null,null,null,null,null,null,"",null,null,null,null,null,null,null,null,null,null,null,null,null,"",null,null,null,0,0,{"$error":"#DIV/0!"}]
[null,null,null,null,null,null,"",null,null,null,null,null,null,null,null,null,null,null,null,null,"",null,null,null,0,0,{"$error":"#DIV/0!"}]
[null,null,null,null,null,null,"",null,null,null,null,null,null,null,null,null,null,null,null,null,"",null,null,null,0,0,{"$error":"#DIV/0!"}]
[null,null,null,null,null,null,"",null,null,null,null,null,null,null,null,null,null,null,null,null,"",null,null,null,0,0,{"$error":"#DIV/0!"}]
[null,null,null,null,null,null,"",null,null,null,null,null,null,null,null,null,null,null,null,null,"",null,null,null,0,0,{"$error":"#DIV/0!"}]
[null,null,null,null,null,null,"",null,null,null,null,null,null,null,null,null,null,null,null,null,"",null,null,null,0,0,{"$error":"#DIV/0!"}]
[null,null,null,null,null,null,"",null,null,null,null,null,null,null,null,null,null,null,null,null,"",null,null,null,0,0,{"$error":"#DIV/0!"}]
[null,null,null,null,null,null,"",null,null,null,null,null,null,null,null,null,null,null,null,null,"",null,null,null,0,0,{"$error":"#DIV/0!"}]
[null,null,null,null,null,null,{"$f":"CHOOSE(IF(F461=\"4½ / 3\",1,IF(F461=\"6 / 3\",2,IF(F461=\"9 / 4½\",3,IF(F461=\"11\",4,5)))),(4.5+4*3)/5,(6+4*3)/5,(9+4*4.5)/5,11,IF(F461=\"12\",12,\"\"))","v":""},null,null,null,null,null,null,null,null,null,null,null,null,null,"",null,null,null,0,0,{"$error":"#DIV/0!"}]
[null,null,null,null,null,null,"",null,null,null,null,null,null,null,null,null,null,null,null,null,"",null,null,null,0,0,{"$error":"#DIV/0!"}]
[null,null,null,null,null,null,"",null,null,null,null,null,null,null,null,null,null,null,null,null,{"$f":"CHOOSE(IF(T463=\"4½ / 3\",1,IF(T463=\"6 / 3\",2,IF(T463=\"9 / 4½\",3,IF(T463=\"11\",4,5)))),(4.5+4*3)/5,(6+4*3)/5,(9+4*4.5)/5,11,IF(T463=\"12\",12,\"\"))","v":""},null,null,null,{"$f":"IF(C463>0,G463,H463)*K463*L463*M463/1000000","v":0},{"$f":"IF(O463=\"N\",0,IF(C463>0,K463*M463*L463*(G463-U463)/1000000,IF(OR(D463>0,E463>0),K463*L463*M463*(H463-V463))/1000000))","v":0},{"$error":"#DIV/0!"}]
[null,null,null,null,null,null,"",null,null,null,null,null,null,null,null,null,null,null,null,null,"",null,null,null,0,0,{"$f":"IF(O464=\"N\",0,Z464/Y464)","v":{"$error":"#DIV/0!"}}]
[null,null,null,null,null,null,"",null,null,null,null,null,null,null,null,null,null,null,null,null,"",null,null,null,0,0,{"$error":"#DIV/0!"}]
[null,null,null,null,null,null,"",null,null,null,null,null,null,null,null,null,null,null,null,null,"",null,null,null,0,0,{"$error":"#DIV/0!"}]
[null,null,null,null,null,null,"",null,null,null,null,null,null,null,null,null,null,null,null,null,"",null,null,null,0,0,{"$error":"#DIV/0!"}]
[null,null,null,null,null,null,"",null,null,null,null,null,null,null,null,null,null,null,null,null,"",null,null,null,0,0,{"$error":"#DIV/0!"}]
[null,null,null,null,null,null,"",null,null,null,null,null,null,null,null,null,null,null,null,null,"",null,null,null,0,0,{"$error":"#DIV/0!"}]
[null,null,null,null,null,null,"",null,null,null,null,null,null,null,null,null,null,null,null,null,"",null,null,null,0,0,{"$error":"#DIV/0!"}]
[null,null,null,null,null,null,"",null,null,null,null,null,null,null,null,null,null,null,null,null,"",null,null,null,0,0,{"$error":"#DIV/0!"}]
[null,null,null,null,null,null,"",null,null,null,null,null,null,null,null,null,null,null,null,null,"",null,null,null,0,0,{"$error":"#DIV/0!"}]
[null,null,null,null,null,null,"",null,null,null,null,null,null,null,null,null,null,null,null,null,"",null,null,null,0,0,{"$error":"#DIV/0!"}]
[null,null,null,null,null,null,"",null,null,null,null,null,null,null,null,null,null,null,null,null,"",null,null,null,0,0,{"$error":"#DIV/0!"}]
[null,null,null,null,null,null,"",null,null,null,null,null,null,null,null,null,null,null,null,null,"",null,null,null,0,0,{"$error":"#DIV/0!"}]
[null,null,null,null,null,null,"",null,null,null,null,null,null,null,null,null,null,null,null,null,"",null,null,null,0,0,{"$error":"#DIV/0!"}]
[null,null,null,null,null,null,"",null,null,null,null,null,null,null,null,null,null,null,null,null,"",null,null,null,0,0,{"$error":"#DIV/0!"}]
[null,null,null,null,null,null,"",null,null,null,null,null,null,null,null,null,null,null,null,null,"",null,null,null,0,0,{"$error":"#DIV/0!"}]
[null,null,null,null,null,null,"",null,null,null,null,null,null,null,null,null,null,null,null,null,"",null,null,null,0,0,{"$error":"#DIV/0!"}]
[null,null,null,null,null,null,"",null,null,null,null,null,null,null,null,null,null,null,null,null,"",null,null,null,0,0,{"$error":"#DIV/0!"}]
[null,null,null,null,null,null,"",null,null,null,null,null,null,null,null,null,null,null,null,null,"",null,null,null,0,0,{"$error":"#DIV/0!"}]
[null,null,null,null,null,null,"",null,null,null,null,null,null,null,null,null,null,null,null,null,"",null,null,null,0,0,{"$error":"#DIV/0!"}]
[null,null,null,null,null,null,"",null,null,null,null,null,null,null,null,null,null,null,null,null,"",null,null,null,0,0,{"$error":"#DIV/0!"}]
[null,null,null,null,null,null,"",null,null,null,null,null,null,null,null,null,null,null,null,null,"",null,null,null,0,0,{"$error":"#DIV/0!"}]
[null,null,null,null,null,null,"",null,null,null,null,null,null,null,null,null,null,null,null,null,"",null,null,null,0,0,{"$error":"#DIV/0!"}]
[null,null,null,null,null,null,"",null,null,null,null,null,null,null,null,null,null,null,null,null,"",null,null,null,0,0,{"$error":"#DIV/0!"}]
[null,null,null,null,null,null,"",null,null,null,null,null,null,null,null,null,null,null,null,null,"",null,null,null,0,0,{"$error":"#DIV/0!"}]
[null,null,null,null,null,null,"",null,null,null,null,null,null,null,null,null,null,null,null,null,"",null,null,null,0,0,{"$error":"#DIV/0!"}]
[null,null,null,null,null,null,"",null,null,null,null,null,null,null,null,null,null,null,null,null,"",null,null,null,0,0,{"$error":"#DIV/0!"}]
[null,null,null,null,null,null,"",null,null,null,null,null,null,null,null,null,null,null,null,null,"",null,null,null,0,0,{"$error":"#DIV/0!"}]
[null,null,null,null,null,null,"",null,null,null,null,null,null,null,null,null,null,null,null,null,"",null,null,null,0,0,{"$error":"#DIV/0!"}]
[null,null,null,null,null,null,"",null,null,null,null,null,null,null,null,null,null,null,null,null,"",null,null,null,0,0,{"$error":"#DIV/0!"}]
[null,null,null,null,null,null,"",null,null,null,null,null,null,null,null,null,null,null,null,null,"",null,null,null,0,0,{"$error":"#DIV/0!"}]
[null,null,null,null,null,null,"",null,null,null,null,null,null,null,null,null,null,null,null,null,"",null,null,null,0,0,{"$error":"#DIV/0!"}]
[null,null,null,null,null,null,"",null,null,null,null,null,null,null,null,null,null,null,null,null,"",null,null,null,0,0,{"$error":"#DIV/0!"}]
[null,null,null,null,null,null,"",null,null,null,null,null,null,null,null,null,null,null,null,null,"",null,null,null,0,0,{"$error":"#DIV/0!"}]
[null,null,null,null,null,null,"",null,null,null,null,null,null,null,null,null,null,null,null,null,"",null,null,null,0,0,{"$error":"#DIV/0!"}]
[null,null,null,null,null,null,"",null,null,null,null,null,null,null,null,null,null,null,null,null,"",null,null,null,0,0,{"$error":"#DIV/0!"}]
[null,null,null,null,null,null,"",null,null,null,null,null,null,null,null,null,null,null,null,null,"",null,null,null,0,0,{"$error":"#DIV/0!"}]
[null,null,null,null,null,null,"",null,null,null,null,null,null,null,null,null,null,null,null,null,"",null,null,null,0,0,{"$error":"#DIV/0!"}]
[null,null,null,null,null,null,"",null,null,null,null,null,null,null,null,null,null,null,null,null,"",null,null,null,0,0,{"$error":"#DIV/0!"}]
[null,null,null,null,null,null,"",null,null,null,null,null,null,null,null,null,null,null,null,null,"",null,null,null,0,0,{"$error":"#DIV/0!"}]
[null,null,null,null,null,null,"",null,null,null,null,null,null,null,null,null,null,null,null,null,"",null,null,null,0,0,{"$error":"#DIV/0!"}]
[null,null,null,null,null,null,"",null,null,null,null,null,null,null,null,null,null,null,null,null,"",null,null,null,0,0,{"$error":"#DIV/0!"}]
[null,null,null,null,null,null,"",null,null,null,null,null,null,null,null,null,null,null,null,null,"",null,null,null,0,0,{"$error":"#DIV/0!"}]
[null,null,null,null,null,null,"",null,null,null,null,null,null,null,null,null,null,null,null,null,"",null,null,null,0,0,{"$error":"#DIV/0!"}]
[null,null,null,null,null,null,"",null,null,null,null,null,null,null,null,null,null,null,null,null,"",null,null,null,0,0,{"$error":"#DIV/0!"}]
[null,null,null,null,null,null,"",null,null,null,null,null,null,null,null,null,null,null,null,null,"",null,null,null,0,0,{"$error":"#DIV/0!"}]
[null,null,null,null,null,null,"",null,null,null,null,null,null,null,null,null,null,null,null,null,"",null,null,null,0,0,{"$error":"#DIV/0!"}]
[null,null,null,null,null,null,"",null,null,null,null,null,null,null,null,null,null,null,null,null,"",null,null,null,0,0,{"$error":"#DIV/0!"}]
[null,null,null,null,null,null,"",null,null,null,null,null,null,null,null,null,null,null,null,null,"",null,null,null,0,0,{"$error":"#DIV/0!"}]
[null,null,null,null,null,null,"",null,null,null,null,null,null,null,null,null,null,null,null,null,"",null,null,null,0,0,{"$error":"#DIV/0!"}]
[null,null,null,null,null,null,"",null,null,null,null,null,null,null,null,null,null,null,null,null,"",null,null,null,0,0,{"$error":"#DIV/0!"}]
[null,null,null,null,null,null,"",null,null,null,null,null,null,null,null,null,null,null,null,null,"",null,null,null,0,0,{"$error":"#DIV/0!"}]
[null,null,null,null,null,null,"",null,null,null,null,null,null,null,null,null,null,null,null,null,"",null,null,null,0,0,{"$error":"#DIV/0!"}]
[null,null,null,null,null,null,"",null,null,null,null,null,null,null,null,null,null,null,null,null,"",null,null,null,0,0,{"$error":"#DIV/0!"}]
[null,null,null,null,null,null,"",null,null,null,null,null,null,null,null,null,null,null,null,null,"",null,null,null,0,0,{"$error":"#DIV/0!"}]
[null,null,null,null,null,null,"",null,null,null,null,null,null,null,null,null,null,null,null,null,"",null,null,null,0,0,{"$error":"#DIV/0!"}]
[null,null,null,null,null,null,"",null,null,null,null,null,null,null,null,null,null,null,null,null,"",null,null,null,0,0,{"$error":"#DIV/0!"}]
[null,null,null,null,null,null,"",null,null,null,null,null,null,null,null,null,null,null,null,null,"",null,null,null,0,0,{"$error":"#DIV/0!"}]
[null,null,null,null,null,null,"",null,null,null,null,null,null,null,null,null,null,null,null,null,"",null,null,null,0,0,{"$error":"#DIV/0!"}]
[null,null,null,null,null,null,"",null,null,null,null,null,null,null,null,null,null,null,null,null,"",null,null,null,0,0,{"$error":"#DIV/0!"}]
[null,null,null,null,null,null,"",null,null,null,null,null,null,null,null,null,null,null,null,null,"",null,null,null,0,0,{"$error":"#DIV/0!"}]
[null,null,null,null,null,null,"",null,null,null,null,null,null,null,null,null,null,null,null,null,"",null,null,null,0,0,{"$error":"#DIV/0!"}]
[null,null,null,null,null,null,{"$f":"CHOOSE(IF(F525=\"4½ / 3\",1,IF(F525=\"6 / 3\",2,IF(F525=\"9 / 4½\",3,IF(F525=\"11\",4,5)))),(4.5+4*3)/5,(6+4*3)/5,(9+4*4.5)/5,11,IF(F525=\"12\",12,\"\"))","v":""},null,null,null,null,null,null,null,null,null,null,null,null,null,"",null,null,null,0,0,{"$error":"#DIV/0!"}]
[null,null,null,null,null,null,"",null,null,null,null,null,null,null,null,null,null,null,null,null,"",null,null,null,0,0,{"$error":"#DIV/0!"}]
[null,null,null,null,null,null,"",null,null,null,null,null,null,null,null,null,null,null,null,null,{"$f":"CHOOSE(IF(T527=\"4½ / 3\",1,IF(T527=\"6 / 3\",2,IF(T527=\"9 / 4½\",3,IF(T527=\"11\",4,5)))),(4.5+4*3)/5,(6+4*3)/5,(9+4*4.5)/5,11,IF(T527=\"12\",12,\"\"))","v":""},null,null,null,{"$f":"IF(C527>0,G527,H527)*K527*L527*M527/1000000","v":0},{"$f":"IF(O527=\"N\",0,IF(C527>0,K527*M527*L527*(G527-U527)/1000000,IF(OR(D527>0,E527>0),K527*L527*M527*(H527-V527))/1000000))","v":0},{"$error":"#DIV/0!"}]
[null,null,null,null,null,null,"",null,null,null,null,null,null,null,null,null,null,null,null,null,"",null,null,null,0,0,{"$f":"IF(O528=\"N\",0,Z528/Y528)","v":{"$error":"#DIV/0!"}}]
[null,null,null,null,null,null,"",null,null,null,null,null,null,null,null,null,null,null,null,null,"",null,null,null,0,0,{"$error":"#DIV/0!"}]
[null,null,null,null,null,null,"",null,null,null,null,null,null,null,null,null,null,null,null,null,"",null,null,null,0,0,{"$error":"#DIV/0!"}]
[null,null,null,null,null,null,"",null,null,null,null,null,null,null,null,null,null,null,null,null,"",null,null,null,0,0,{"$error":"#DIV/0!"}]
[null,null,null,null,null,null,"",null,null,null,null,null,null,null,null,null,null,null,null,null,"",null,null,null,0,0,{"$error":"#DIV/0!"}]
[null,null,null,null,null,null,"",null,null,null,null,null,null,null,null,null,null,null,null,null,"",null,null,null,0,0,{"$error":"#DIV/0!"}]
[null,null,null,null,null,null,"",null,null,null,null,null,null,null,null,null,null,null,null,null,"",null,null,null,0,0,{"$error":"#DIV/0!"}]
[null,null,null,null,null,null,"",null,null,null,null,null,null,null,null,null,null,null,null,null,"",null,null,null,0,0,{"$error":"#DIV/0!"}]
[null,null,null,null,null,null,"",null,null,null,null,null,null,null,null,null,null,null,null,null,"",null,null,null,0,0,{"$error":"#DIV/0!"}]
[null,null,null,null,null,null,"",null,null,null,null,null,null,null,null,null,null,null,null,null,"",null,null,null,0,0,{"$error":"#DIV/0!"}]
[null,null,null,null,null,null,"",null,null,null,null,null,null,null,null,null,null,null,null,null,"",null,null,null,0,0,{"$error":"#DIV/0!"}]
[null,null,null,null,null,null,"",null,null,null,null,null,null,null,null,null,null,null,null,null,"",null,null,null,0,0,{"$error":"#DIV/0!"}]
[null,null,null,null,null,null,"",null,null,null,null,null,null,null,null,null,null,null,null,null,"",null,null,null,0,0,{"$error":"#DIV/0!"}]
[null,null,null,null,null,null,"",null,null,null,null,null,null,null,null,null,null,null,null,null,"",null,null,null,0,0,{"$error":"#DIV/0!"}]
[null,null,null,null,null,null,"",null,null,null,null,null,null,null,null,null,null,null,null,null,"",null,null,null,0,0,{"$error":"#DIV/0!"}]
[null,null,null,null,null,null,"",null,null,null,null,null,null,null,null,null,null,null,null,null,"",null,null,null,0,0,{"$error":"#DIV/0!"}]
[null,null,null,null,null,null,"",null,null,null,null,null,null,null,null,null,null,null,null,null,"",null,null,null,0,0,{"$error":"#DIV/0!"}]
[null,null,null,null,null,null,"",null,null,null,null,null,null,null,null,null,null,null,null,null,"",null,null,null,0,0,{"$error":"#DIV/0!"}]
[null,null,null,null,null,null,"",null,null,null,null,null,null,null,null,null,null,null,null,null,"",null,null,null,0,0,{"$error":"#DIV/0!"}]
[null,null,null,null,null,null,"",null,null,null,null,null,null,null,null,null,null,null,null,null,"",null,null,null,0,0,{"$error":"#DIV/0!"}]
[null,null,null,null,null,null,"",null,null,null,null,null,null,null,null,null,null,null,null,null,"",null,null,null,0,0,{"$error":"#DIV/0!"}]
[null,null,null,null,null,null,"",null,null,null,null,null,null,null,null,null,null,null,null,null,"",null,null,null,0,0,{"$error":"#DIV/0!"}]
[null,null,null,null,null,null,"",null,null,null,null,null,null,null,null,null,null,null,null,null,"",null,null,null,0,0,{"$error":"#DIV/0!"}]
[null,null,null,null,null,null,"",null,null,null,null,null,null,null,null,null,null,null,null,null,"",null,null,null,0,0,{"$error":"#DIV/0!"}]
[null,null,null,null,null,null,"",null,null,null,null,null,null,null,null,null,null,null,null,null,"",null,null,null,0,0,{"$error":"#DIV/0!"}]
[null,null,null,null,null,null,"",null,null,null,null,null,null,null,null,null,null,null,null,null,"",null,null,null,0,0,{"$error":"#DIV/0!"}]
[null,null,null,null,null,null,"",null,null,null,null,null,null,null,null,null,null,null,null,null,"",null,null,null,0,0,{"$error":"#DIV/0!"}]
[null,null,null,null,null,null,"",null,null,null,null,null,null,null,null,null,null,null,null,null,"",null,null,null,0,0,{"$error":"#DIV/0!"}]
[null,null,null,null,null,null,"",null,null,null,null,null,null,null,null,null,null,null,null,null,"",null,null,null,0,0,{"$error":"#DIV/0!"}]
[null,null,null,null,null,null,"",null,null,null,null,null,null,null,null,null,null,null,null,null,"",null,null,null,0,0,{"$error":"#DIV/0!"}]
[null,null,null,null,null,null,"",null,null,null,null,null,null,null,null,null,null,null,null,null,"",null,null,null,0,0,{"$error":"#DIV/0!"}]
[null,null,null,null,null,null,"",null,null,null,null,null,null,null,null,null,null,null,null,null,"",null,null,null,0,0,{"$error":"#DIV/0!"}]
[null,null,null,null,null,null,"",null,null,null,null,null,null,null,null,null,null,null,null,null,"",null,null,null,0,0,{"$error":"#DIV/0!"}]
[null,null,null,null,null,null,"",null,null,null,null,null,null,null,null,null,null,null,null,null,"",null,null,null,0,0,{"$error":"#DIV/0!"}]
[null,null,null,null,null,null,"",null,null,null,null,null,null,null,null,null,null,null,null,null,"",null,null,null,0,0,{"$error":"#DIV/0!"}]
[null,null,null,null,null,null,"",null,null,null,null,null,null,null,null,null,null,null,null,null,"",null,null,null,0,0,{"$error":"#DIV/0!"}]
[null,null,null,null,null,null,"",null,null,null,null,null,null,null,null,null,null,null,null,null,"",null,null,null,0,0,{"$error":"#DIV/0!"}]
[null,null,null,null,null,null,"",null,null,null,null,null,null,null,null,null,null,null,null,null,"",null,null,null,0,0,{"$error":"#DIV/0!"}]
[null,null,null,null,null,null,"",null,null,null,null,null,null,null,null,null,null,null,null,null,"",null,null,null,0,0,{"$error":"#DIV/0!"}]
[null,null,null,null,null,null,"",null,null,null,null,null,null,null,null,null,null,null,null,null,"",null,null,null,0,0,{"$error":"#DIV/0!"}]
[null,null,null,null,null,null,"",null,null,null,null,null,null,null,null,null,null,null,null,null,"",null,null,null,0,0,{"$error":"#DIV/0!"}]
[null,null,null,null,null,null,"",null,null,null,null,null,null,null,null,null,null,null,null,null,"",null,null,null,0,0,{"$error":"#DIV/0!"}]
[null,null,null,null,null,null,"",null,null,null,null,null,null,null,null,null,null,null,null,null,"",null,null,null,0,0,{"$error":"#DIV/0!"}]
[null,null,null,null,null,null,"",null,null,null,null,null,null,null,null,null,null,null,null,null,"",null,null,null,0,0,{"$error":"#DIV/0!"}]
[null,null,null,null,null,null,"",null,null,null,null,null,null,null,null,null,null,null,null,null,"",null,null,null,0,0,{"$error":"#DIV/0!"}]
[null,null,null,null,null,null,"",null,null,null,null,null,null,null,null,null,null,null,null,null,"",null,null,null,0,0,{"$error":"#DIV/0!"}]
[null,null,null,null,null,null,"",null,null,null,null,null,null,null,null,null,null,null,null,null,"",null,null,null,0,0,{"$error":"#DIV/0!"}]
[null,null,null,null,null,null,"",null,null,null,null,null,null,null,null,null,null,null,null,null,"",null,null,null,0,0,{"$error":"#DIV/0!"}]
[null,null,null,null,null,null,"",null,null,null,null,null,null,null,null,null,null,null,null,null,"",null,null,null,0,0,{"$error":"#DIV/0!"}]
[null,null,null,null,null,null,"",null,null,null,null,null,null,null,null,null,null,null,null,null,"",null,null,null,0,0,{"$error":"#DIV/0!"}]
[null,null,null,null,null,null,"",null,null,null,null,null,null,null,null,null,null,null,null,null,"",null,null,null,0,0,{"$error":"#DIV/0!"}]
[null,null,null,null,null,null,"",null,null,null,null,null,null,null,null,null,null,null,null,null,"",null,null,null,0,0,{"$error":"#DIV/0!"}]
[null,null,null,null,null,null,"",null,null,null,null,null,null,null,null,null,null,null,null,null,"",null,null,null,0,0,{"$error":"#DIV/0!"}]
[null,null,null,null,null,null,"",null,null,null,null,null,null,null,null,null,null,null,null,null,"",null,null,null,0,0,{"$error":"#DIV/0!"}]
[null,null,null,null,null,null,"",null,null,null,null,null,null,null,null,null,null,null,null,null,"",null,null,null,0,0,{"$error":"#DIV/0!"}]
[null,null,null,null,null,null,"",null,null,null,null,null,null,null,null,null,null,null,null,null,"",null,null,null,0,0,{"$error":"#DIV/0!"}]
[null,null,null,null,null,null,"",null,null,null,null,null,null,null,null,null,null,null,null,null,"",null,null,null,0,0,{"$error":"#DIV/0!"}]
[null,null,null,null,null,null,"",null,null,null,null,null,null,null,null,null,null,null,null,null,"",null,null,null,0,0,{"$error":"#DIV/0!"}]
[null,null,null,null,null,null,"",null,null,null,null,null,null,null,null,null,null,null,null,null,"",null,null,null,0,0,{"$error":"#DIV/0!"}]
[null,null,null,null,null,null,"",null,null,null,null,null,null,null,null,null,null,null,null,null,"",null,null,null,0,0,{"$error":"#DIV/0!"}]
[null,null,null,null,null,null,"",null,null,null,null,null,null,null,null,null,null,null,null,null,"",null,null,null,0,0,{"$error":"#DIV/0!"}]
[null,null,null,null,null,null,{"$f":"CHOOSE(IF(F589=\"4½ / 3\",1,IF(F589=\"6 / 3\",2,IF(F589=\"9 / 4½\",3,IF(F589=\"11\",4,5)))),(4.5+4*3)/5,(6+4*3)/5,(9+4*4.5)/5,11,IF(F589=\"12\",12,\"\"))","v":""},null,null,null,null,null,null,null,null,null,null,null,null,null,"",null,null,null,0,0,{"$error":"#DIV/0!"}]
[null,null,null,null,null,null,"",null,null,null,null,null,null,null,null,null,null,null,null,null,"",null,null,null,0,0,{"$error":"#DIV/0!"}]
[null,null,null,null,null,null,"",null,null,null,null,null,null,null,null,null,null,null,null,null,{"$f":"CHOOSE(IF(T591=\"4½ / 3\",1,IF(T591=\"6 / 3\",2,IF(T591=\"9 / 4½\",3,IF(T591=\"11\",4,5)))),(4.5+4*3)/5,(6+4*3)/5,(9+4*4.5)/5,11,IF(T591=\"12\",12,\"\"))","v":""},null,null,null,{"$f":"IF(C591>0,G591,H591)*K591*L591*M591/1000000","v":0},{"$f":"IF(O591=\"N\",0,IF(C591>0,K591*M591*L591*(G591-U591)/1000000,IF(OR(D591>0,E591>0),K591*L591*M591*(H591-V591))/1000000))","v":0},{"$error":"#DIV/0!"}]
[null,null,null,null,null,null,"",null,null,null,null,null,null,null,null,null,null,null,null,null,"",null,null,null,0,0,{"$f":"IF(O592=\"N\",0,Z592/Y592)","v":{"$error":"#DIV/0!"}}]
[null,null,null,null,null,null,"",null,null,null,null,null,null,null,null,null,null,null,null,null,"",null,null,null,0,0,{"$error":"#DIV/0!"}]
[null,null,null,null,null,null,"",null,null,null,null,null,null,null,null,null,null,null,null,null,"",null,null,null,0,0,{"$error":"#DIV/0!"}]
[null,null,null,null,null,null,"",null,null,null,null,null,null,null,null,null,null,null,null,null,"",null,null,null,0,0,{"$error":"#DIV/0!"}]
[null,null,null,null,null,null,"",null,null,null,null,null,null,null,null,null,null,null,null,null,"",null,null,null,0,0,{"$error":"#DIV/0!"}]
[null,null,null,null,null,null,"",null,null,null,null,null,null,null,null,null,null,null,null,null,"",null,null,null,0,0,{"$error":"#DIV/0!"}]
[null,null,null,null,null,null,"",null,null,null,null,null,null,null,null,null,null,null,null,null,"",null,null,null,0,0,{"$error":"#DIV/0!"}]
[null,null,null,null,null,null,"",null,null,null,null,null,null,null,null,null,null,null,null,null,"",null,null,null,0,0,{"$error":"#DIV/0!"}]
[null,null,null,null,null,null,"",null,null,null,null,null,null,null,null,null,null,null,null,null,"",null,null,null,0,0,{"$error":"#DIV/0!"}]
[null,null,null,null,null,null,"",null,null,null,null,null,null,null,null,null,null,null,null,null,"",null,null,null,0,0,{"$error":"#DIV/0!"}]
[null,null,null,null,null,null,"",null,null,null,null,null,null,null,null,null,null,null,null,null,"",null,null,null,0,0,{"$error":"#DIV/0!"}]
[null,null,null,null,null,null,"",null,null,null,null,null,null,null,null,null,null,null,null,null,"",null,null,null,0,0,{"$error":"#DIV/0!"}]
[null,null,null,null,null,null,"",null,null,null,null,null,null,null,null,null,null,null,null,null,"",null,null,null,0,0,{"$error":"#DIV/0!"}]
[null,null,null,null,null,null,"",null,null,null,null,null,null,null,null,null,null,null,null,null,"",null,null,null,0,0,{"$error":"#DIV/0!"}]
[null,null,null,null,null,null,"",null,null,null,null,null,null,null,null,null,null,null,null,null,"",null,null,null,0,0,{"$error":"#DIV/0!"}]
[null,null,null,null,null,null,"",null,null,null,null,null,null,null,null,null,null,null,null,null,"",null,null,null,0,0,{"$error":"#DIV/0!"}]
[null,null,null,null,null,null,"",null,null,null,null,null,null,null,null,null,null,null,null,null,"",null,null,null,0,0,{"$error":"#DIV/0!"}]
[null,null,null,null,null,null,"",null,null,null,null,null,null,null,null,null,null,null,null,null,"",null,null,null,0,0,{"$error":"#DIV/0!"}]
[null,null,null,null,null,null,"",null,null,null,null,null,null,null,null,null,null,null,null,null,"",null,null,null,0,0,{"$error":"#DIV/0!"}]
[null,null,null,null,null,null,"",null,null,null,null,null,null,null,null,null,null,null,null,null,"",null,null,null,0,0,{"$error":"#DIV/0!"}]
[null,null,null,null,null,null,"",null,null,null,null,null,null,null,null,null,null,null,null,null,"",null,null,null,0,0,{"$error":"#DIV/0!"}]
[null,null,null,null,null,null,"",null,null,null,null,null,null,null,null,null,null,null,null,null,"",null,null,null,0,0,{"$error":"#DIV/0!"}]
[null,null,null,null,null,null,"",null,null,null,null,null,null,null,null,null,null,null,null,null,"",null,null,null,0,0,{"$error":"#DIV/0!"}]
[null,null,null,null,null,null,"",null,null,null,null,null,null,null,null,null,null,null,null,null,"",null,null,null,0,0,{"$error":"#DIV/0!"}]
[null,null,null,null,null,null,"",null,null,null,null,null,null,null,null,null,null,null,null,null,"",null,null,null,0,0,{"$error":"#DIV/0!"}]
[null,null,null,null,null,null,"",null,null,null,null,null,null,null,null,null,null,null,null,null,"",null,null,null,0,0,{"$error":"#DIV/0!"}]
[null,null,null,null,null,null,"",null,null,null,null,null,null,null,null,null,null,null,null,null,"",null,null,null,0,0,{"$error":"#DIV/0!"}]
[null,null,null,null,null,null,"",null,null,null,null,null,null,null,null,null,null,null,null,null,"",null,null,null,0,0,{"$error":"#DIV/0!"}]
[null,null,null,null,null,null,"",null,null,null,null,null,null,null,null,null,null,null,null,null,"",null,null,null,0,0,{"$error":"#DIV/0!"}]
[null,null,null,null,null,null,"",null,null,null,null,null,null,null,null,null,null,null,null,null,"",null,null,null,0,0,{"$error":"#DIV/0!"}]
[null,null,null,null,null,null,"",null,null,null,null,null,null,null,null,null,null,null,null,null,"",null,null,null,0,0,{"$error":"#DIV/0!"}]
[null,null,null,null,null,null,"",null,null,null,null,null,null,null,null,null,null,null,null,null,"",null,null,null,0,0,{"$error":"#DIV/0!"}]
[null,null,null,null,null,null,"",null,null,null,null,null,null,null,null,null,null,null,null,null,"",null,null,null,0,0,{"$error":"#DIV/0!"}]
[null,null,null,null,null,null,"",null,null,null,null,null,null,null,null,null,null,null,null,null,"",null,null,null,0,0,{"$error":"#DIV/0!"}]
[null,null,null,null,null,null,"",null,null,null,null,null,null,null,null,null,null,null,null,null,"",null,null,null,0,0,{"$error":"#DIV/0!"}]
[null,null,null,null,null,null,"",null,null,null,null,null,null,null,null,null,null,null,null,null,"",null,null,null,0,0,{"$error":"#DIV/0!"}]
[null,null,null,null,null,null,"",null,null,null,null,null,null,null,null,null,null,null,null,null,"",null,null,null,0,0,{"$error":"#DIV/0!"}]
[null,null,null,null,null,null,"",null,null,null,null,null,null,null,null,null,null,null,null,null,"",null,null,null,0,0,{"$error":"#DIV/0!"}]
[null,null,null,null,null,null,"",null,null,null,null,null,null,null,null,null,null,null,null,null,"",null,null,null,0,0,{"$error":"#DIV/0!"}]
[null,null,null,null,null,null,"",null,null,null,null,null,null,null,null,null,null,null,null,null,"",null,null,null,0,0,{"$error":"#DIV/0!"}]
[null,null,null,null,null,null,"",null,null,null,null,null,null,null,null,null,null,null,null,null,"",null,null,null,0,0,{"$error":"#DIV/0!"}]
[null,null,null,null,null,null,"",null,null,null,null,null,null,null,null,null,null,null,null,null,"",null,null,null,0,0,{"$error":"#DIV/0!"}]
[null,null,null,null,null,null,"",null,null,null,null,null,null,null,null,null,null,null,null,null,"",null,null,null,0,0,{"$error":"#DIV/0!"}]
[null,null,null,null,null,null,"",null,null,null,null,null,null,null,null,null,null,null,null,null,"",null,null,null,0,0,{"$error":"#DIV/0!"}]
[null,null,null,null,null,null,"",null,null,null,null,null,null,null,null,null,null,null,null,null,"",null,null,null,0,0,{"$error":"#DIV/0!"}]
[null,null,null,null,null,null,"",null,null,null,null,null,null,null,null,null,null,null,null,null,"",null,null,null,0,0,{"$error":"#DIV/0!"}]
[null,null,null,null,null,null,"",null,null,null,null,null,null,null,null,null,null,null,null,null,"",null,null,null,0,0,{"$error":"#DIV/0!"}]
[null,null,null,null,null,null,"",null,null,null,null,null,null,null,null,null,null,null,null,null,"",null,null,null,0,0,{"$error":"#DIV/0!"}]
[null,null,null,null,null,null,"",null,null,null,null,null,null,null,null,null,null,null,null,null,"",null,null,null,0,0,{"$error":"#DIV/0!"}]
[null,null,null,null,null,null,"",null,null,null,null,null,null,null,null,null,null,null,null,null,"",null,null,null,0,0,{"$error":"#DIV/0!"}]
[null,null,null,null,null,null,"",null,null,null,null,null,null,null,null,null,null,null,null,null,"",null,null,null,0,0,{"$error":"#DIV/0!"}]
[null,null,null,null,null,null,"",null,null,null,null,null,null,null,null,null,null,null,null,null,"",null,null,null,0,0,{"$error":"#DIV/0!"}]
[null,null,null,null,null,null,"",null,null,null,null,null,null,null,null,null,null,null,null,null,"",null,null,null,0,0,{"$error":"#DIV/0!"}]
[null,null,null,null,null,null,"",null,null,null,null,null,null,null,null,null,null,null,null,null,"",null,null,null,0,0,{"$error":"#DIV/0!"}]
[null,null,null,null,null,null,"",null,null,null,null,null,null,null,null,null,null,null,null,null,"",null,null,null,0,0,{"$error":"#DIV/0!"}]
[null,null,null,null,null,null,"",null,null,null,null,null,null,null,null,null,null,null,null,null,"",null,null,null,0,0,{"$error":"#DIV/0!"}]
[null,null,null,null,null,null,"",null,null,null,null,null,null,null,null,null,null,null,null,null,"",null,null,null,0,0,{"$error":"#DIV/0!"}]
[null,null,null,null,null,null,"",null,null,null,null,null,null,null,null,null,null,null,null,null,"",null,null,null,0,0,{"$error":"#DIV/0!"}]
[null,null,null,null,null,null,"",null,null,null,null,null,null,null,null,null,null,null,null,null,"",null,null,null,0,0,{"$error":"#DIV/0!"}]
[null,null,null,null,null,null,"",null,null,null,null,null,null,null,null,null,null,null,null,null,"",null,null,null,0,0,{"$error":"#DIV/0!"}]
[null,null,null,null,null,null,"",null,null,null,null,null,null,null,null,null,null,null,null,null,"",null,null,null,0,0,{"$error":"#DIV/0!"}]
[null,null,null,null,null,null,{"$f":"CHOOSE(IF(F653=\"4½ / 3\",1,IF(F653=\"6 / 3\",2,IF(F653=\"9 / 4½\",3,IF(F653=\"11\",4,5)))),(4.5+4*3)/5,(6+4*3)/5,(9+4*4.5)/5,11,IF(F653=\"12\",12,\"\"))","v":""},null,null,null,null,null,null,null,null,null,null,null,null,null,"",null,null,null,0,0,{"$error":"#DIV/0!"}]
[null,null,null,null,null,null,"",null,null,null,null,null,null,null,null,null,null,null,null,null,"",null,null,null,0,0,{"$error":"#DIV/0!"}]
[null,null,null,null,null,null,"",null,null,null,null,null,null,null,null,null,null,null,null,null,{"$f":"CHOOSE(IF(T655=\"4½ / 3\",1,IF(T655=\"6 / 3\",2,IF(T655=\"9 / 4½\",3,IF(T655=\"11\",4,5)))),(4.5+4*3)/5,(6+4*3)/5,(9+4*4.5)/5,11,IF(T655=\"12\",12,\"\"))","v":""},null,null,null,{"$f":"IF(C655>0,G655,H655)*K655*L655*M655/1000000","v":0},{"$f":"IF(O655=\"N\",0,IF(C655>0,K655*M655*L655*(G655-U655)/1000000,IF(OR(D655>0,E655>0),K655*L655*M655*(H655-V655))/1000000))","v":0},{"$error":"#DIV/0!"}]
[null,null,null,null,null,null,"",null,null,null,null,null,null,null,null,null,null,null,null,null,"",null,null,null,0,0,{"$f":"IF(O656=\"N\",0,Z656/Y656)","v":{"$error":"#DIV/0!"}}]
[null,null,null,null,null,null,"",null,null,null,null,null,null,null,null,null,null,null,null,null,"",null,null,null,0,0,{"$error":"#DIV/0!"}]
[null,null,null,null,null,null,"",null,null,null,null,null,null,null,null,null,null,null,null,null,"",null,null,null,0,0,{"$error":"#DIV/0!"}]
[null,null,null,null,null,null,"",null,null,null,null,null,null,null,null,null,null,null,null,null,"",null,null,null,0,0,{"$error":"#DIV/0!"}]
[null,null,null,null,null,null,"",null,null,null,null,null,null,null,null,null,null,null,null,null,"",null,null,null,0,0,{"$error":"#DIV/0!"}]
[null,null,null,null,null,null,"",null,null,null,null,null,null,null,null,null,null,null,null,null,"",null,null,null,0,0,{"$error":"#DIV/0!"}]
[null,null,null,null,null,null,"",null,null,null,null,null,null,null,null,null,null,null,null,null,"",null,null,null,0,0,{"$error":"#DIV/0!"}]
[null,null,null,null,null,null,"",null,null,null,null,null,null,null,null,null,null,null,null,null,"",null,null,null,0,0,{"$error":"#DIV/0!"}]
[null,null,null,null,null,null,"",null,null,null,null,null,null,null,null,null,null,null,null,null,"",null,null,null,0,0,{"$error":"#DIV/0!"}]
[null,null,null,null,null,null,"",null,null,null,null,null,null,null,null,null,null,null,null,null,"",null,null,null,0,0,{"$error":"#DIV/0!"}]
[null,null,null,null,null,null,"",null,null,null,null,null,null,null,null,null,null,null,null,null,"",null,null,null,0,0,{"$error":"#DIV/0!"}]
[null,null,null,null,null,null,"",null,null,null,null,null,null,null,null,null,null,null,null,null,"",null,null,null,0,0,{"$error":"#DIV/0!"}]
[null,null,null,null,null,null,"",null,null,null,null,null,null,null,null,null,null,null,null,null,"",null,null,null,0,0,{"$error":"#DIV/0!"}]
[null,null,null,null,null,null,"",null,null,null,null,null,null,null,null,null,null,null,null,null,"",null,null,null,0,0,{"$error":"#DIV/0!"}]
[null,null,null,null,null,null,"",null,null,null,null,null,null,null,null,null,null,null,null,null,"",null,null,null,0,0,{"$error":"#DIV/0!"}]
[null,null,null,null,null,null,"",null,null,null,null,null,null,null,null,null,null,null,null,null,"",null,null,null,0,0,{"$error":"#DIV/0!"}]
[null,null,null,null,null,null,"",null,null,null,null,null,null,null,null,null,null,null,null,null,"",null,null,null,0,0,{"$error":"#DIV/0!"}]
[null,null,null,null,null,null,"",null,null,null,null,null,null,null,null,null,null,null,null,null,"",null,null,null,0,0,{"$error":"#DIV/0!"}]
[null,null,null,null,null,null,"",null,null,null,null,null,null,null,null,null,null,null,null,null,"",null,null,null,0,0,{"$error":"#DIV/0!"}]
[null,null,null,null,null,null,"",null,null,null,null,null,null,null,null,null,null,null,null,null,"",null,null,null,0,0,{"$error":"#DIV/0!"}]
[null,null,null,null,null,null,"",null,null,null,null,null,null,null,null,null,null,null,null,null,"",null,null,null,0,0,{"$error":"#DIV/0!"}]
[null,null,null,null,null,null,"",null,null,null,null,null,null,null,null,null,null,null,null,null,"",null,null,null,0,0,{"$error":"#DIV/0!"}]
[null,null,null,null,null,null,"",null,null,null,null,null,null,null,null,null,null,null,null,null,"",null,null,null,0,0,{"$error":"#DIV/0!"}]
[null,null,null,null,null,null,"",null,null,null,null,null,null,null,null,null,null,null,null,null,"",null,null,null,0,0,{"$error":"#DIV/0!"}]
[null,null,null,null,null,null,"",null,null,null,null,null,null,null,null,null,null,null,null,null,"",null,null,null,0,0,{"$error":"#DIV/0!"}]
[null,null,null,null,null,null,"",null,null,null,null,null,null,null,null,null,null,null,null,null,"",null,null,null,0,0,{"$error":"#DIV/0!"}]
[null,null,null,null,null,null,"",null,null,null,null,null,null,null,null,null,null,null,null,null,"",null,null,null,0,0,{"$error":"#DIV/0!"}]
[null,null,null,null,null,null,"",null,null,null,null,null,null,null,null,null,null,null,null,null,"",null,null,null,0,0,{"$error":"#DIV/0!"}]
[null,null,null,null,null,null,"",null,null,null,null,null,null,null,null,null,null,null,null,null,"",null,null,null,0,0,{"$error":"#DIV/0!"}]
[null,null,null,null,null,null,"",null,null,null,null,null,null,null,null,null,null,null,null,null,"",null,null,null,0,0,{"$error":"#DIV/0!"}]
[null,null,null,null,null,null,"",null,null,null,null,null,null,null,null,null,null,null,null,null,"",null,null,null,0,0,{"$error":"#DIV/0!"}]
[null,null,null,null,null,null,"",null,null,null,null,null,null,null,null,null,null,null,null,null,"",null,null,null,0,0,{"$error":"#DIV/0!"}]
[null,null,null,null,null,null,"",null,null,null,null,null,null,null,null,null,null,null,null,null,"",null,null,null,0,0,{"$error":"#DIV/0!"}]
[null,null,null,null,null,null,"",null,null,null,null,null,null,null,null,null,null,null,null,null,"",null,null,null,0,0,{"$error":"#DIV/0!"}]
[null,null,null,null,null,null,"",null,null,null,null,null,null,null,null,null,null,null,null,null,"",null,null,null,0,0,{"$error":"#DIV/0!"}]
[null,null,null,null,null,null,"",null,null,null,null,null,null,null,null,null,null,null,null,null,"",null,null,null,0,0,{"$error":"#DIV/0!"}]
[null,null,null,null,null,null,"",null,null,null,null,null,null,null,null,null,null,null,null,null,"",null,null,null,0,0,{"$error":"#DIV/0!"}]
[null,null,null,null,null,null,"",null,null,null,null,null,null,null,null,null,null,null,null,null,"",null,null,null,0,0,{"$error":"#DIV/0!"}]
[null,null,null,null,null,null,"",null,null,null,null,null,null,null,null,null,null,null,null,null,"",null,null,null,0,0,{"$error":"#DIV/0!"}]
[null,null,null,null,null,null,"",null,null,null,null,null,null,null,null,null,null,null,null,null,"",null,null,null,0,0,{"$error":"#DIV/0!"}]
[null,null,null,null,null,null,"",null,null,null,null,null,null,null,null,null,null,null,null,null,"",null,null,null,0,0,{"$error":"#DIV/0!"}]
[null,null,null,null,null,null,"",null,null,null,null,null,null,null,null,null,null,null,null,null,"",null,null,null,0,0,{"$error":"#DIV/0!"}]
[null,null,null,null,null,null,"",null,null,null,null,null,null,null,null,null,null,null,null,null,"",null,null,null,0,0,{"$error":"#DIV/0!"}]
[null,null,null,null,null,null,"",null,null,null,null,null,null,null,null,null,null,null,null,null,"",null,null,null,0,0,{"$error":"#DIV/0!"}]
[null,null,null,null,null,null,"",null,null,null,null,null,null,null,null,null,null,null,null,null,"",null,null,null,0,0,{"$error":"#DIV/0!"}]
[null,null,null,null,null,null,"",null,null,null,null,null,null,null,null,null,null,null,null,null,"",null,null,null,0,0,{"$error":"#DIV/0!"}]
[null,null,null,null,null,null,"",null,null,null,null,null,null,null,null,null,null,null,null,null,"",null,null,null,0,0,{"$error":"#DIV/0!"}]
[null,null,null,null,null,null,"",null,null,null,null,null,null,null,null,null,null,null,null,null,"",null,null,null,0,0,{"$error":"#DIV/0!"}]
[null,null,null,null,null,null,"",null,null,null,null,null,null,null,null,null,null,null,null,null,"",null,null,null,0,0,{"$error":"#DIV/0!"}]
[null,null,null,null,null,null,"",null,null,null,null,null,null,null,null,null,null,null,null,null,"",null,null,null,0,0,{"$error":"#DIV/0!"}]
[null,null,null,null,null,null,"",null,null,null,null,null,null,null,null,null,null,null,null,null,"",null,null,null,0,0,{"$error":"#DIV/0!"}]
[null,null,null,null,null,null,"",null,null,null,null,null,null,null,null,null,null,null,null,null,"",null,null,null,0,0,{"$error":"#DIV/0!"}]
[null,null,null,null,null,null,"",null,null,null,null,null,null,null,null,null,null,null,null,null,"",null,null,null,0,0,{"$error":"#DIV/0!"}]
[null,null,null,null,null,null,"",null,null,null,null,null,null,null,null,null,null,null,null,null,"",null,null,null,0,0,{"$error":"#DIV/0!"}]
[null,null,null,null,null,null,"",null,null,null,null,null,null,null,null,null,null,null,null,null,"",null,null,null,0,0,{"$error":"#DIV/0!"}]
[null,null,null,null,null,null,"",null,null,null,null,null,null,null,null,null,null,null,null,null,"",null,null,null,0,0,{"$error":"#DIV/0!"}]
[null,null,null,null,null,null,"",null,null,null,null,null,null,null,null,null,null,null,null,null,"",null,null,null,0,0,{"$error":"#DIV/0!"}]
[null,null,null,null,null,null,"",null,null,null,null,null,null,null,null,null,null,null,null,null,"",null,null,null,0,0,{"$error":"#DIV/0!"}]
[null,null,null,null,null,null,"",null,null,null,null,null,null,null,null,null,null,null,null,null,"",null,null,null,0,0,{"$error":"#DIV/0!"}]
[null,null,null,null,null,null,"",null,null,null,null,null,null,null,null,null,null,null,null,null,"",null,null,null,0,0,{"$error":"#DIV/0!"}]
[null,null,null,null,null,null,"",null,null,null,null,null,null,null,null,null,null,null,null,null,"",null,null,null,0,0,{"$error":"#DIV/0!"}]
[null,null,null,null,null,null,{"$f":"CHOOSE(IF(F717=\"4½ / 3\",1,IF(F717=\"6 / 3\",2,IF(F717=\"9 / 4½\",3,IF(F717=\"11\",4,5)))),(4.5+4*3)/5,(6+4*3)/5,(9+4*4.5)/5,11,IF(F717=\"12\",12,\"\"))","v":""},null,null,null,null,null,null,null,null,null,null,null,null,null,"",null,null,null,0,0,{"$error":"#DIV/0!"}]
[null,null,null,null,null,null,"",null,null,null,null,null,null,null,null,null,null,null,null,null,"",null,null,null,0,0,{"$error":"#DIV/0!"}]
[null,null,null,null,null,null,"",null,null,null,null,null,null,null,null,null,null,null,null,null,{"$f":"CHOOSE(IF(T719=\"4½ / 3\",1,IF(T719=\"6 / 3\",2,IF(T719=\"9 / 4½\",3,IF(T719=\"11\",4,5)))),(4.5+4*3)/5,(6+4*3)/5,(9+4*4.5)/5,11,IF(T719=\"12\",12,\"\"))","v":""},null,null,null,{"$f":"IF(C719>0,G719,H719)*K719*L719*M719/1000000","v":0},{"$f":"IF(O719=\"N\",0,IF(C719>0,K719*M719*L719*(G719-U719)/1000000,IF(OR(D719>0,E719>0),K719*L719*M719*(H719-V719))/1000000))","v":0},{"$error":"#DIV/0!"}]
[null,null,null,null,null,null,"",null,null,null,null,null,null,null,null,null,null,null,null,null,"",null,null,null,0,0,{"$f":"IF(O720=\"N\",0,Z720/Y720)","v":{"$error":"#DIV/0!"}}]
[null,null,null,null,null,null,"",null,null,null,null,null,null,null,null,null,null,null,null,null,"",null,null,null,0,0,{"$error":"#DIV/0!"}]
[null,null,null,null,null,null,"",null,null,null,null,null,null,null,null,null,null,null,null,null,"",null,null,null,0,0,{"$error":"#DIV/0!"}]
[null,null,null,null,null,null,"",null,null,null,null,null,null,null,null,null,null,null,null,null,"",null,null,null,0,0,{"$error":"#DIV/0!"}]
[null,null,null,null,null,null,"",null,null,null,null,null,null,null,null,null,null,null,null,null,"",null,null,null,0,0,{"$error":"#DIV/0!"}]
[null,null,null,null,null,null,"",null,null,null,null,null,null,null,null,null,null,null,null,null,"",null,null,null,0,0,{"$error":"#DIV/0!"}]
[null,null,null,null,null,null,"",null,null,null,null,null,null,null,null,null,null,null,null,null,"",null,null,null,0,0,{"$error":"#DIV/0!"}]
[null,null,null,null,null,null,"",null,null,null,null,null,null,null,null,null,null,null,null,null,"",null,null,null,0,0,{"$error":"#DIV/0!"}]
[null,null,null,null,null,null,"",null,null,null,null,null,null,null,null,null,null,null,null,null,"",null,null,null,0,0,{"$error":"#DIV/0!"}]
[null,null,null,null,null,null,"",null,null,null,null,null,null,null,null,null,null,null,null,null,"",null,null,null,0,0,{"$error":"#DIV/0!"}]
[null,null,null,null,null,null,"",null,null,null,null,null,null,null,null,null,null,null,null,null,"",null,null,null,0,0,{"$error":"#DIV/0!"}]
[null,null,null,null,null,null,"",null,null,null,null,null,null,null,null,null,null,null,null,null,"",null,null,null,0,0,{"$error":"#DIV/0!"}]
[null,null,null,null,null,null,"",null,null,null,null,null,null,null,null,null,null,null,null,null,"",null,null,null,0,0,{"$error":"#DIV/0!"}]
[null,null,null,null,null,null,"",null,null,null,null,null,null,null,null,null,null,null,null,null,"",null,null,null,0,0,{"$error":"#DIV/0!"}]
[null,null,null,null,null,null,"",null,null,null,null,null,null,null,null,null,null,null,null,null,"",null,null,null,0,0,{"$error":"#DIV/0!"}]
[null,null,null,null,null,null,"",null,null,null,null,null,null,null,null,null,null,null,null,null,"",null,null,null,0,0,{"$error":"#DIV/0!"}]
[null,null,null,null,null,null,"",null,null,null,null,null,null,null,null,null,null,null,null,null,"",null,null,null,0,0,{"$error":"#DIV/0!"}]
[null,null,null,null,null,null,"",null,null,null,null,null,null,null,null,null,null,null,null,null,"",null,null,null,0,0,{"$error":"#DIV/0!"}]
[null,null,null,null,null,null,"",null,null,null,null,null,null,null,null,null,null,null,null,null,"",null,null,null,0,0,{"$error":"#DIV/0!"}]
[null,null,null,null,null,null,"",null,null,null,null,null,null,null,null,null,null,null,null,null,"",null,null,null,0,0,{"$error":"#DIV/0!"}]

{"sheet":"Quarterly Lookup","index":12,"n_rows":13,"n_cols":2,"rows_kept":13,"cut":false,"hidden":true,"merged":[]}
["Month","Quarter Index"]
[1,3]
[2,3]
[3,3]
[4,4]
[5,4]
[6,4]
[7,1]
[8,1]
[9,1]
[10,2]
[11,2]
[12,2]

{"sheet":"5-2 Cooling Tower","index":13,"n_rows":27,"n_cols":18,"rows_kept":27,"cut":false,"hidden":false,"merged":[[5,1,5,2],[2,13,26,13],[4,1,4,2],[3,5,3,6],[3,16,3,17],[1,1,1,17],[3,1,3,2],[3,11,3,12],[2,14,2,17],[2,1,2,2],[2,3,2,12]]}
[]
[null,"5-2 Cooling Towers"]
[null,null,null,"Current water use",null,null,null,null,null,null,null,null,null,null,"Proposed water efficiency"]
[null,"Cooling tower name(s) or ID number(s)",null,"Conductivity of make-up water","Conductivity of bleed","Current cycles of concentration",null,"Total bleed","Total consumption","Average daily consumption","Leakage ","Leakage\n(%)",null,null,"Water saving","Percentage saved","Proposed cycles of concentration"]
[null,"Units",null,"μS or mg/L","μS or mg/L","CoCi","OK >5?","ML/year","ML/year","kL/day","ML/year","%","Acceptable",null,"ML/yr","%","CoCf","OK >5?"]
[null,"Total or average",null,{"$f":"AVERAGE(D8:D27)","v":{"$error":"#DIV/0!"}},{"$f":"AVERAGE(E8:E27)","v":{"$error":"#DIV/0!"}},{"$f":"AVERAGE(F8:F27)","v":{"$error":"#DIV/0!"}},{"$f":"COUNTIF(G8:G27,\"Efficient\")","v":0},{"$f":"SUMIF(H8:H27,\">0\")","v":0},{"$f":"SUMIF(I8:I27,\">0\")","v":0},{"$f":"SUMIF(J8:J27,\">0\")","v":0},{"$f":"SUMIF(K8:K27,\">0\")","v":0},{"$f":"SUMIF(L8:L27,\">0\")/COUNTIF(L8:L50,\">0\")","v":{"$error":"#DIV/0!"}},{"$f":"COUNTIF(M8:M27,\"Efficient\")","v":0},null,{"$f":"SUMIF(O8:O27,\">0\")","v":0},{"$f":"SUMIF(P8:P27,\">0\")/COUNTIF(P8:P50,\">0\")","v":{"$error":"#DIV/0!"}},{"$f":"AVERAGEA(Q8:Q27)","v":{"$error":"#DIV/0!"}},{"$f":"COUNTIF(R8:R27,\"Efficient\")","v":0}]
[null,null,"E.g. CT Main",350,1200,{"$f":"E7/D7","v":3.4285714285714284},{"$f":"IF(F7=\"\",\"\",IF(F7<5,\"Inefficient\",\"Efficient\"))","v":"Inefficient"},2,10,{"$f":"I7/365.25*1000","v":27.378507871321013},{"$f":"I7/F7-H7","v":0.91666666666666696},{"$f":"(I7/F7-H7)/I7","v":9.1666666666666702E-2},{"$f":"IF(C7<>0,IF(L7<8%,\"Efficient\",\"Inefficient\"))","v":"Inefficient"},null,{"$f":"ABS(I7*(F7-Q7))/((F7)*(Q7-1))","v":1.1458333333333335},{"$f":"ABS(O7/I7)","v":0.11458333333333334},5,{"$f":"IF(C7>0,IF(Q7<5,\"Inefficient\",\"Efficient\"),\"\")","v":"Efficient"}]
[null,1,null,null,null,{"$f":"IF(ISBLANK(C8),\"\",E8/D8)","v":""},{"$f":"IF(F8=\"\",\"\",IF(F8<5,\"Inefficient\",\"Efficient\"))","v":""},null,null,0,{"$f":"IF(ISBLANK(C8),\"\",(I8/F8)-H8)","v":""},{"$f":"IF(C8<>0,I8/F8-H8)/I8","v":{"$error":"#DIV/0!"}},{"$f":"IF(C8<>0,IF(L8<8%,\"Efficient\",\"Inefficient\"))","v":false},null,{"$f":"ABS(I8*(F8-Q8))/((F8)*(Q8-1))","v":{"$error":"#VALUE!"}},{"$error":"#VALUE!"},null,{"$f":"IF(C8>0,IF(Q8<5,\"Inefficient\",\"Efficient\"),\"\")","v":""}]
[null,2,null,null,null,{"$f":"IF(ISBLANK(C9),\"\",E9/D9)","v":""},{"$f":"IF(F9=\"\",\"\",IF(F9<5,\"Inefficient\",\"Efficient\"))","v":""},null,null,0,{"$f":"IF(ISBLANK(C9),\"\",(I9/F9)-H9)","v":""},{"$f":"IF(C9<>0,I9/F9-H9)/I9","v":{"$error":"#DIV/0!"}},{"$f":"IF(C9<>0,IF(L9<8%,\"Efficient\",\"Inefficient\"))","v":false},null,{"$error":"#VALUE!"},{"$error":"#VALUE!"},null,{"$f":"IF(C9>0,IF(Q9<5,\"Inefficient\",\"Efficient\"),\"\")","v":""}]
[null,3,null,null,null,{"$f":"IF(ISBLANK(C10),\"\",E10/D10)","v":""},"",null,null,0,{"$f":"IF(ISBLANK(C10),\"\",(I10/F10)-H10)","v":""},{"$f":"IF(C10<>0,I10/F10-H10)/I10","v":{"$error":"#DIV/0!"}},{"$f":"IF(C10<>0,IF(L10<8%,\"Efficient\",\"Inefficient\"))","v":false},null,{"$error":"#VALUE!"},{"$error":"#VALUE!"},null,{"$f":"IF(C10>0,IF(Q10<5,\"Inefficient\",\"Efficient\"),\"\")","v":""}]
[null,4,null,null,null,"","",null,null,0,{"$f":"IF(ISBLANK(C11),\"\",(I11/F11)-H11)","v":""},{"$error":"#DIV/0!"},false,null,{"$error":"#VALUE!"},{"$error":"#VALUE!"},null,""]
[null,5,null,null,null,"","",null,null,0,"",{"$error":"#DIV/0!"},false,null,{"$error":"#VALUE!"},{"$error":"#VALUE!"},null,""]
[null,6,null,null,null,"","",null,null,0,"",{"$error":"#DIV/0!"},false,null,{"$error":"#VALUE!"},{"$error":"#VALUE!"},null,""]
[null,7,null,null,null,"","",null,null,0,"",{"$error":"#DIV/0!"},false,null,{"$error":"#VALUE!"},{"$error":"#VALUE!"},null,""]
[null,8,null,null,null,"","",null,null,0,"",{"$error":"#DIV/0!"},false,null,{"$error":"#VALUE!"},{"$error":"#VALUE!"},null,""]
[null,9,null,null,null,"","",null,null,0,"",{"$error":"#DIV/0!"},false,null,{"$error":"#VALUE!"},{"$error":"#VALUE!"},null,""]
[null,10,null,null,null,"","",null,null,0,"",{"$error":"#DIV/0!"},false,null,{"$error":"#VALUE!"},{"$error":"#VALUE!"},null,""]
[null,11,null,null,null,"","",null,null,0,"",{"$error":"#DIV/0!"},false,null,{"$error":"#VALUE!"},{"$error":"#VALUE!"},null,""]
[null,12,null,null,null,"","",null,null,0,"",{"$error":"#DIV/0!"},false,null,{"$error":"#VALUE!"},{"$error":"#VALUE!"},null,""]
[null,13,null,null,null,"","",null,null,0,"",{"$error":"#DIV/0!"},false,null,{"$error":"#VALUE!"},{"$error":"#VALUE!"},null,""]
[null,14,null,null,null,"","",null,null,0,"",{"$error":"#DIV/0!"},false,null,{"$error":"#VALUE!"},{"$error":"#VALUE!"},null,""]
[null,15,null,null,null,"","",null,null,0,"",{"$error":"#DIV/0!"},false,null,{"$error":"#VALUE!"},{"$error":"#VALUE!"},null,""]
[null,16,null,null,null,"","",null,null,0,"",{"$error":"#DIV/0!"},false,null,{"$error":"#VALUE!"},{"$error":"#VALUE!"},null,""]
[null,17,null,null,null,"","",null,null,0,"",{"$error":"#DIV/0!"},false,null,{"$error":"#VALUE!"},{"$error":"#VALUE!"},null,""]
[null,18,null,null,null,"","",null,null,0,"",{"$error":"#DIV/0!"},false,null,{"$error":"#VALUE!"},{"$error":"#VALUE!"},null,""]
[null,19,null,null,null,"","",null,null,0,"",{"$error":"#DIV/0!"},false,null,{"$error":"#VALUE!"},{"$error":"#VALUE!"},null,""]
[null,20,null,null,null,{"$f":"IF(ISBLANK(C27),\"\",E27/D27)","v":""},"",null,null,0,"",{"$error":"#DIV/0!"},false,null,{"$f":"ABS(I27*(F27-Q27))/((F27)*(Q27-1))","v":{"$error":"#VALUE!"}},{"$f":"ABS(O27/I27)","v":{"$error":"#VALUE!"}},null,{"$f":"IF(C27>0,IF(Q27<5,\"Inefficient\",\"Efficient\"),\"\")","v":""}]

{"sheet":"6 End Use Inventory","index":14,"n_rows":500,"n_cols":11,"rows_kept":500,"cut":false,"hidden":false,"merged":[[1,1,2,10],[6,4,8,4],[16,2,16,10],[11,2,15,2],[7,6,8,6],[7,7,9,7],[7,8,9,8],[7,10,9,10],[7,9,9,9]]}
[]
[null,"6. End Use Inventory - Current water use breakdown"]
[]
[null,null,"Baseline year",{"$f":"'1 Water Use Summary'!C4","v":0}]
[null,null,"Baseline consumption (ML/year)",{"$f":"'1 Water Use Summary'!C5","v":0}]
[null,null," End use model consumption (ML/year)",{"$f":"G10","v":0}]
[null,null,"Volumetric balance ML/year",{"$f":"(D5-D6)","v":0},"The balance is the difference between the baseline consumption and the end use model consumption"]
[null,null,"% difference",{"$f":"D7/D5","v":{"$error":"#DIV/0!"}},null,null,"Total\n(ML/year)","%","Sub-meter\nrecommended?","General condition","Comments\n(e.g. assumptions, reference to supporting calculations, sub-meter data etc.)"]
[]
[null,null,"Location / room name","Type of end use","Details of end use",null,{"$f":"SUM(G12:G500)","v":0}]
[null,null,"E.g. Bathroom - Floor 1","Toilets","Single flush toilets on first floor",null,{"$f":"100*2.5*11/1000*(365/52*2)/365","v":0.10576923076923078},null,null,null,"100 people at 2.5 uses per day at 11L/flush, 5 days per week"]
[null,null,"Totals for each end use are automatically transferred from modules 5-1A and 5-1B","Taps","All taps",null,{"$f":"'5-1A Taps & Showers'!R7","v":0},{"$f":"IF(G12>0,G12/$G$10,0)","v":0},{"$f":"IF(($H12>=0.3),\"Y\",\"N\")","v":"N"}]
[null,null,null,"Showers","All showers",null,{"$f":"'5-1A Taps & Showers'!R8","v":0},{"$f":"IF(G13>0,G13/$G$10,0)","v":0},{"$f":"IF(($H13>=0.3),\"Y\",\"N\")","v":"N"}]
[null,null,null,"Toilets","All toilets",null,{"$f":"'5-1B Toilets & Urinals'!Y6","v":0},{"$f":"IF(G14>0,G14/$G$10,0)","v":0},{"$f":"IF(($H14>=0.3),\"Y\",\"N\")","v":"N"}]
[null,null,null,"Urinals - single stall","All single urinals (stalls)",null,{"$f":"'5-1B Toilets & Urinals'!Y7","v":0},{"$f":"IF(G15>0,G15/$G$10,0)","v":0},{"$f":"IF(($H15>=0.3),\"Y\",\"N\")","v":"N"}]
[null,null,null,"Urinals - trough","All trough urinals",null,{"$f":"'5-1B Toilets & Urinals'!Y8","v":0},{"$f":"IF(G16>0,G16/$G$10,0)","v":0},{"$f":"IF(($H16>=0.3),\"Y\",\"N\")","v":"N"}]
[null,null,"Add any cooling towers, processes and other end uses by using drop down menu in end use column - use 4 End Use Definitions to create new End Use Categories if required"]
[null,null,null,null,null,null,null,{"$f":"IF(G18>0,G18/$G$10,0)","v":0},{"$f":"IF(($H18>=0.3),\"Y\",\"N\")","v":"N"}]
[null,null,null,null,null,null,null,{"$f":"IF(G19>0,G19/$G$10,0)","v":0},"N"]
[null,null,null,null,null,null,null,{"$f":"IF(G20>0,G20/$G$10,0)","v":0},"N"]
[null,null,null,null,null,null,null,{"$f":"IF(G21>0,G21/$G$10,0)","v":0},"N"]
[null,null,null,null,null,null,null,0,"N"]
[null,null,null,null,null,null,null,0,"N"]
[null,null,null,null,null,null,null,0,"N"]
[null,null,null,null,null,null,null,0,"N"]
[null,null,null,null,null,null,null,0,"N"]
[null,null,null,null,null,null,null,0,"N"]
[null,null,null,null,null,null,null,0,"N"]
[null,null,null,null,null,null,null,0,"N"]
[null,null,null,null,null,null,null,0,"N"]
[null,null,null,null,null,null,null,0,"N"]
[null,null,null,null,null,null,null,0,"N"]
[null,null,null,null,null,null,null,0,"N"]
[null,null,null,null,null,null,null,0,"N"]
[null,null,null,null,null,null,null,0,"N"]
[null,null,null,null,null,null,null,0,"N"]
[null,null,null,null,null,null,null,0,"N"]
[null,null,null,null,null,null,null,0,"N"]
[null,null,null,null,null,null,null,0,"N"]
[null,null,null,null,null,null,null,0,"N"]
[null,null,null,null,null,null,null,0,"N"]
[null,null,null,null,null,null,null,0,"N"]
[null,null,null,null,null,null,null,0,"N"]
[null,null,null,null,null,null,null,0,"N"]
[null,null,null,null,null,null,null,0,"N"]
[null,null,null,null,null,null,null,0,"N"]
[null,null,null,null,null,null,null,0,"N"]
[null,null,null,null,null,null,null,0,"N"]
[null,null,null,null,null,null,null,0,"N"]
[null,null,null,null,null,null,null,0,"N"]
[null,null,null,null,null,null,null,0,"N"]
[null,null,null,null,null,null,null,0,"N"]
[null,null,null,null,null,null,null,0,"N"]
[null,null,null,null,null,null,null,0,"N"]
[null,null,null,null,null,null,null,0,"N"]
[null,null,null,null,null,null,null,0,"N"]
[null,null,null,null,null,null,null,0,"N"]
[null,null,null,null,null,null,null,0,"N"]
[null,null,null,null,null,null,null,0,"N"]
[null,null,null,null,null,null,null,0,"N"]
[null,null,null,null,null,null,null,0,"N"]
[null,null,null,null,null,null,null,0,"N"]
[null,null,null,null,null,null,null,0,"N"]
[null,null,null,null,null,null,null,0,"N"]
[null,null,null,null,null,null,null,0,"N"]
[null,null,null,null,null,null,null,0,"N"]
[null,null,null,null,null,null,null,0,"N"]
[null,null,null,null,null,null,null,0,"N"]
[null,null,null,null,null,null,null,0,"N"]
[null,null,null,null,null,null,null,0,"N"]
[null,null,null,null,null,null,null,0,"N"]
[null,null,null,null,null,null,null,0,"N"]
[null,null,null,null,null,null,null,0,"N"]
[null,null,null,null,null,null,null,0,"N"]
[null,null,null,null,null,null,null,0,"N"]
[null,null,null,null,null,null,null,0,"N"]
[null,null,null,null,null,null,null,0,"N"]
[null,null,null,null,null,null,null,0,"N"]
[null,null,null,null,null,null,null,0,"N"]
[null,null,null,null,null,null,null,0,"N"]
[null,null,null,null,null,null,null,0,"N"]
[null,null,null,null,null,null,null,0,{"$f":"IF(($H82>=0.3),\"Y\",\"N\")","v":"N"}]
[null,null,null,null,null,null,null,0,"N"]
[null,null,null,null,null,null,null,0,"N"]
[null,null,null,null,null,null,null,{"$f":"IF(G85>0,G85/$G$10,0)","v":0},"N"]
[null,null,null,null,null,null,null,0,"N"]
[null,null,null,null,null,null,null,0,"N"]
[null,null,null,null,null,null,null,0,"N"]
[null,null,null,null,null,null,null,0,"N"]
[null,null,null,null,null,null,null,0,"N"]
[null,null,null,null,null,null,null,0,"N"]
[null,null,null,null,null,null,null,0,"N"]
[null,null,null,null,null,null,null,0,"N"]
[null,null,null,null,null,null,null,0,"N"]
[null,null,null,null,null,null,null,0,"N"]
[null,null,null,null,null,null,null,0,"N"]
[null,null,null,null,null,null,null,0,"N"]
[null,null,null,null,null,null,null,0,"N"]
[null,null,null,null,null,null,null,0,"N"]
[null,null,null,null,null,null,null,0,"N"]
[null,null,null,null,null,null,null,0,"N"]
[null,null,null,null,null,null,null,0,"N"]
[null,null,null,null,null,null,null,0,"N"]
[null,null,null,null,null,null,null,0,"N"]
[null,null,null,null,null,null,null,0,"N"]
[null,null,null,null,null,null,null,0,"N"]
[null,null,null,null,null,null,null,0,"N"]
[null,null,null,null,null,null,null,0,"N"]
[null,null,null,null,null,null,null,0,"N"]
[null,null,null,null,null,null,null,0,"N"]
[null,null,null,null,null,null,null,0,"N"]
[null,null,null,null,null,null,null,0,"N"]
[null,null,null,null,null,null,null,0,"N"]
[null,null,null,null,null,null,null,0,"N"]
[null,null,null,null,null,null,null,0,"N"]
[null,null,null,null,null,null,null,0,"N"]
[null,null,null,null,null,null,null,0,"N"]
[null,null,null,null,null,null,null,0,"N"]
[null,null,null,null,null,null,null,0,"N"]
[null,null,null,null,null,null,null,0,"N"]
[null,null,null,null,null,null,null,0,"N"]
[null,null,null,null,null,null,null,0,"N"]
[null,null,null,null,null,null,null,0,"N"]
[null,null,null,null,null,null,null,0,"N"]
[null,null,null,null,null,null,null,0,"N"]
[null,null,null,null,null,null,null,0,"N"]
[null,null,null,null,null,null,null,0,"N"]
[null,null,null,null,null,null,null,0,"N"]
[null,null,null,null,null,null,null,0,"N"]
[null,null,null,null,null,null,null,0,"N"]
[null,null,null,null,null,null,null,0,"N"]
[null,null,null,null,null,null,null,0,"N"]
[null,null,null,null,null,null,null,0,"N"]
[null,null,null,null,null,null,null,0,"N"]
[null,null,null,null,null,null,null,0,"N"]
[null,null,null,null,null,null,null,0,"N"]
[null,null,null,null,null,null,null,0,"N"]
[null,null,null,null,null,null,null,0,"N"]
[null,null,null,null,null,null,null,0,"N"]
[null,null,null,null,null,null,null,0,"N"]
[null,null,null,null,null,null,null,0,"N"]
[null,null,null,null,null,null,null,0,"N"]
[null,null,null,null,null,null,null,0,"N"]
[null,null,null,null,null,null,null,0,"N"]
[null,null,null,null,null,null,null,0,"N"]
[null,null,null,null,null,null,null,0,{"$f":"IF(($H146>=0.3),\"Y\",\"N\")","v":"N"}]
[null,null,null,null,null,null,null,0,"N"]
[null,null,null,null,null,null,null,0,"N"]
[null,null,null,null,null,null,null,{"$f":"IF(G149>0,G149/$G$10,0)","v":0},"N"]
[null,null,null,null,null,null,null,0,"N"]
[null,null,null,null,null,null,null,0,"N"]
[null,null,null,null,null,null,null,0,"N"]
[null,null,null,null,null,null,null,0,"N"]
[null,null,null,null,null,null,null,0,"N"]
[null,null,null,null,null,null,null,0,"N"]
[null,null,null,null,null,null,null,0,"N"]
[null,null,null,null,null,null,null,0,"N"]
[null,null,null,null,null,null,null,0,"N"]
[null,null,null,null,null,null,null,0,"N"]
[null,null,null,null,null,null,null,0,"N"]
[null,null,null,null,null,null,null,0,"N"]
[null,null,null,null,null,null,null,0,"N"]
[null,null,null,null,null,null,null,0,"N"]
[null,null,null,null,null,null,null,0,"N"]
[null,null,null,null,null,null,null,0,"N"]
[null,null,null,null,null,null,null,0,"N"]
[null,null,null,null,null,null,null,0,"N"]
[null,null,null,null,null,null,null,0,"N"]
[null,null,null,null,null,null,null,0,"N"]
[null,null,null,null,null,null,null,0,"N"]
[null,null,null,null,null,null,null,0,"N"]
[null,null,null,null,null,null,null,0,"N"]
[null,null,null,null,null,null,null,0,"N"]
[null,null,null,null,null,null,null,0,"N"]
[null,null,null,null,null,null,null,0,"N"]
[null,null,null,null,null,null,null,0,"N"]
[null,null,null,null,null,null,null,0,"N"]
[null,null,null,null,null,null,null,0,"N"]
[null,null,null,null,null,null,null,0,"N"]
[null,null,null,null,null,null,null,0,"N"]
[null,null,null,null,null,null,null,0,"N"]
[null,null,null,null,null,null,null,0,"N"]
[null,null,null,null,null,null,null,0,"N"]
[null,null,null,null,null,null,null,0,"N"]
[null,null,null,null,null,null,null,0,"N"]
[null,null,null,null,null,null,null,0,"N"]
[null,null,null,null,null,null,null,0,"N"]
[null,null,null,null,null,null,null,0,"N"]
[null,null,null,null,null,null,null,0,"N"]
[null,null,null,null,null,null,null,0,"N"]
[null,null,null,null,null,null,null,0,"N"]
[null,null,null,null,null,null,null,0,"N"]
[null,null,null,null,null,null,null,0,"N"]
[null,null,null,null,null,null,null,0,"N"]
[null,null,null,null,null,null,null,0,"N"]
[null,null,null,null,null,null,null,0,"N"]
[null,null,null,null,null,null,null,0,"N"]
[null,null,null,null,null,null,null,0,"N"]
[null,null,null,null,null,null,null,0,"N"]
[null,null,null,null,null,null,null,0,"N"]
[null,null,null,null,null,null,null,0,"N"]
[null,null,null,null,null,null,null,0,"N"]
[null,null,null,null,null,null,null,0,"N"]
[null,null,null,null,null,null,null,0,"N"]
[null,null,null,null,null,null,null,0,"N"]
[null,null,null,null,null,null,null,0,"N"]
[null,null,null,null,null,null,null,0,"N"]
[null,null,null,null,null,null,null,0,"N"]
[null,null,null,null,null,null,null,0,"N"]
[null,null,null,null,null,null,null,0,{"$f":"IF(($H210>=0.3),\"Y\",\"N\")","v":"N"}]
[null,null,null,null,null,null,null,0,"N"]
[null,null,null,null,null,null,null,0,"N"]
[null,null,null,null,null,null,null,{"$f":"IF(G213>0,G213/$G$10,0)","v":0},"N"]
[null,null,null,null,null,null,null,0,"N"]
[null,null,null,null,null,null,null,0,"N"]
[null,null,null,null,null,null,null,0,"N"]
[null,null,null,null,null,null,null,0,"N"]
[null,null,null,null,null,null,null,0,"N"]
[null,null,null,null,null,null,null,0,"N"]
[null,null,null,null,null,null,null,0,"N"]
[null,null,null,null,null,null,null,0,"N"]
[null,null,null,null,null,null,null,0,"N"]
[null,null,null,null,null,null,null,0,"N"]
[null,null,null,null,null,null,null,0,"N"]
[null,null,null,null,null,null,null,0,"N"]
[null,null,null,null,null,null,null,0,"N"]
[null,null,null,null,null,null,null,0,"N"]
[null,null,null,null,null,null,null,0,"N"]
[null,null,null,null,null,null,null,0,"N"]
[null,null,null,null,null,null,null,0,"N"]
[null,null,null,null,null,null,null,0,"N"]
[null,null,null,null,null,null,null,0,"N"]
[null,null,null,null,null,null,null,0,"N"]
[null,null,null,null,null,null,null,0,"N"]
[null,null,null,null,null,null,null,0,"N"]
[null,null,null,null,null,null,null,0,"N"]
[null,null,null,null,null,null,null,0,"N"]
[null,null,null,null,null,null,null,0,"N"]
[null,null,null,null,null,null,null,0,"N"]
[null,null,null,null,null,null,null,0,"N"]
[null,null,null,null,null,null,null,0,"N"]
[null,null,null,null,null,null,null,0,"N"]
[null,null,null,null,null,null,null,0,"N"]
[null,null,null,null,null,null,null,0,"N"]
[null,null,null,null,null,null,null,0,"N"]
[null,null,null,null,null,null,null,0,"N"]
[null,null,null,null,null,null,null,0,"N"]
[null,null,null,null,null,null,null,0,"N"]
[null,null,null,null,null,null,null,0,"N"]
[null,null,null,null,null,null,null,0,"N"]
[null,null,null,null,null,null,null,0,"N"]
[null,null,null,null,null,null,null,0,"N"]
[null,null,null,null,null,null,null,0,"N"]
[null,null,null,null,null,null,null,0,"N"]
[null,null,null,null,null,null,null,0,"N"]
[null,null,null,null,null,null,null,0,"N"]
[null,null,null,null,null,null,null,0,"N"]
[null,null,null,null,null,null,null,0,"N"]
[null,null,null,null,null,null,null,0,"N"]
[null,null,null,null,null,null,null,0,"N"]
[null,null,null,null,null,null,null,0,"N"]
[null,null,null,null,null,null,null,0,"N"]
[null,null,null,null,null,null,null,0,"N"]
[null,null,null,null,null,null,null,0,"N"]
[null,null,null,null,null,null,null,0,"N"]
[null,null,null,null,null,null,null,0,"N"]
[null,null,null,null,null,null,null,0,"N"]
[null,null,null,null,null,null,null,0,"N"]
[null,null,null,null,null,null,null,0,"N"]
[null,null,null,null,null,null,null,0,"N"]
[null,null,null,null,null,null,null,0,"N"]
[null,null,null,null,null,null,null,0,"N"]
[null,null,null,null,null,null,null,0,"N"]
[null,null,null,null,null,null,null,0,{"$f":"IF(($H274>=0.3),\"Y\",\"N\")","v":"N"}]
[null,null,null,null,null,null,null,0,"N"]
[null,null,null,null,null,null,null,0,"N"]
[null,null,null,null,null,null,null,{"$f":"IF(G277>0,G277/$G$10,0)","v":0},"N"]
[null,null,null,null,null,null,null,0,"N"]
[null,null,null,null,null,null,null,0,"N"]
[null,null,null,null,null,null,null,0,"N"]
[null,null,null,null,null,null,null,0,"N"]
[null,null,null,null,null,null,null,0,"N"]
[null,null,null,null,null,null,null,0,"N"]
[null,null,null,null,null,null,null,0,"N"]
[null,null,null,null,null,null,null,0,"N"]
[null,null,null,null,null,null,null,0,"N"]
[null,null,null,null,null,null,null,0,"N"]
[null,null,null,null,null,null,null,0,"N"]
[null,null,null,null,null,null,null,0,"N"]
[null,null,null,null,null,null,null,0,"N"]
[null,null,null,null,null,null,null,0,"N"]
[null,null,null,null,null,null,null,0,"N"]
[null,null,null,null,null,null,null,0,"N"]
[null,null,null,null,null,null,null,0,"N"]
[null,null,null,null,null,null,null,0,"N"]
[null,null,null,null,null,null,null,0,"N"]
[null,null,null,null,null,null,null,0,"N"]
[null,null,null,null,null,null,null,0,"N"]
[null,null,null,null,null,null,null,0,"N"]
[null,null,null,null,null,null,null,0,"N"]
[null,null,null,null,null,null,null,0,"N"]
[null,null,null,null,null,null,null,0,"N"]
[null,null,null,null,null,null,null,0,"N"]
[null,null,null,null,null,null,null,0,"N"]
[null,null,null,null,null,null,null,0,"N"]
[null,null,null,null,null,null,null,0,"N"]
[null,null,null,null,null,null,null,0,"N"]
[null,null,null,null,null,null,null,0,"N"]
[null,null,null,null,null,null,null,0,"N"]
[null,null,null,null,null,null,null,0,"N"]
[null,null,null,null,null,null,null,0,"N"]
[null,null,null,null,null,null,null,0,"N"]
[null,null,null,null,null,null,null,0,"N"]
[null,null,null,null,null,null,null,0,"N"]
[null,null,null,null,null,null,null,0,"N"]
[null,null,null,null,null,null,null,0,"N"]
[null,null,null,null,null,null,null,0,"N"]
[null,null,null,null,null,null,null,0,"N"]
[null,null,null,null,null,null,null,0,"N"]
[null,null,null,null,null,null,null,0,"N"]
[null,null,null,null,null,null,null,0,"N"]
[null,null,null,null,null,null,null,0,"N"]
[null,null,null,null,null,null,null,0,"N"]
[null,null,null,null,null,null,null,0,"N"]
[null,null,null,null,null,null,null,0,"N"]
[null,null,null,null,null,null,null,0,"N"]
[null,null,null,null,null,null,null,0,"N"]
[null,null,null,null,null,null,null,0,"N"]
[null,null,null,null,null,null,null,0,"N"]
[null,null,null,null,null,null,null,0,"N"]
[null,null,null,null,null,null,null,0,"N"]
[null,null,null,null,null,null,null,0,"N"]
[null,null,null,null,null,null,null,0,"N"]
[null,null,null,null,null,null,null,0,"N"]
[null,null,null,null,null,null,null,0,"N"]
[null,null,null,null,null,null,null,0,"N"]
[null,null,null,null,null,null,null,0,"N"]
[null,null,null,null,null,null,null,0,{"$f":"IF(($H338>=0.3),\"Y\",\"N\")","v":"N"}]
[null,null,null,null,null,null,null,0,"N"]
[null,null,null,null,null,null,null,0,"N"]
[null,null,null,null,null,null,null,{"$f":"IF(G341>0,G341/$G$10,0)","v":0},"N"]
[null,null,null,null,null,null,null,0,"N"]
[null,null,null,null,null,null,null,0,"N"]
[null,null,null,null,null,null,null,0,"N"]
[null,null,null,null,null,null,null,0,"N"]
[null,null,null,null,null,null,null,0,"N"]
[null,null,null,null,null,null,null,0,"N"]
[null,null,null,null,null,null,null,0,"N"]
[null,null,null,null,null,null,null,0,"N"]
[null,null,null,null,null,null,null,0,"N"]
[null,null,null,null,null,null,null,0,"N"]
[null,null,null,null,null,null,null,0,"N"]
[null,null,null,null,null,null,null,0,"N"]
[null,null,null,null,null,null,null,0,"N"]
[null,null,null,null,null,null,null,0,"N"]
[null,null,null,null,null,null,null,0,"N"]
[null,null,null,null,null,null,null,0,"N"]
[null,null,null,null,null,null,null,0,"N"]
[null,null,null,null,null,null,null,0,"N"]
[null,null,null,null,null,null,null,0,"N"]
[null,null,null,null,null,null,null,0,"N"]
[null,null,null,null,null,null,null,0,"N"]
[null,null,null,null,null,null,null,0,"N"]
[null,null,null,null,null,null,null,0,"N"]
[null,null,null,null,null,null,null,0,"N"]
[null,null,null,null,null,null,null,0,"N"]
[null,null,null,null,null,null,null,0,"N"]
[null,null,null,null,null,null,null,0,"N"]
[null,null,null,null,null,null,null,0,"N"]
[null,null,null,null,null,null,null,0,"N"]
[null,null,null,null,null,null,null,0,"N"]
[null,null,null,null,null,null,null,0,"N"]
[null,null,null,null,null,null,null,0,"N"]
[null,null,null,null,null,null,null,0,"N"]
[null,null,null,null,null,null,null,0,"N"]
[null,null,null,null,null,null,null,0,"N"]
[null,null,null,null,null,null,null,0,"N"]
[null,null,null,null,null,null,null,0,"N"]
[null,null,null,null,null,null,null,0,"N"]
[null,null,null,null,null,null,null,0,"N"]
[null,null,null,null,null,null,null,0,"N"]
[null,null,null,null,null,null,null,0,"N"]
[null,null,null,null,null,null,null,0,"N"]
[null,null,null,null,null,null,null,0,"N"]
[null,null,null,null,null,null,null,0,"N"]
[null,null,null,null,null,null,null,0,"N"]
[null,null,null,null,null,null,null,0,"N"]
[null,null,null,null,null,null,null,0,"N"]
[null,null,null,null,null,null,null,0,"N"]
[null,null,null,null,null,null,null,0,"N"]
[null,null,null,null,null,null,null,0,"N"]
[null,null,null,null,null,null,null,0,"N"]
[null,null,null,null,null,null,null,0,"N"]
[null,null,null,null,null,null,null,0,"N"]
[null,null,null,null,null,null,null,0,"N"]
[null,null,null,null,null,null,null,0,"N"]
[null,null,null,null,null,null,null,0,"N"]
[null,null,null,null,null,null,null,0,"N"]
[null,null,null,null,null,null,null,0,"N"]
[null,null,null,null,null,null,null,0,"N"]
[null,null,null,null,null,null,null,0,"N"]
[null,null,null,null,null,null,null,0,{"$f":"IF(($H402>=0.3),\"Y\",\"N\")","v":"N"}]
[null,null,null,null,null,null,null,0,"N"]
[null,null,null,null,null,null,null,0,"N"]
[null,null,null,null,null,null,null,{"$f":"IF(G405>0,G405/$G$10,0)","v":0},"N"]
[null,null,null,null,null,null,null,0,"N"]
[null,null,null,null,null,null,null,0,"N"]
[null,null,null,null,null,null,null,0,"N"]
[null,null,null,null,null,null,null,0,"N"]
[null,null,null,null,null,null,null,0,"N"]
[null,null,null,null,null,null,null,0,"N"]
[null,null,null,null,null,null,null,0,"N"]
[null,null,null,null,null,null,null,0,"N"]
[null,null,null,null,null,null,null,0,"N"]
[null,null,null,null,null,null,null,0,"N"]
[null,null,null,null,null,null,null,0,"N"]
[null,null,null,null,null,null,null,0,"N"]
[null,null,null,null,null,null,null,0,"N"]
[null,null,null,null,null,null,null,0,"N"]
[null,null,null,null,null,null,null,0,"N"]
[null,null,null,null,null,null,null,0,"N"]
[null,null,null,null,null,null,null,0,"N"]
[null,null,null,null,null,null,null,0,"N"]
[null,null,null,null,null,null,null,0,"N"]
[null,null,null,null,null,null,null,0,"N"]
[null,null,null,null,null,null,null,0,"N"]
[null,null,null,null,null,null,null,0,"N"]
[null,null,null,null,null,null,null,0,"N"]
[null,null,null,null,null,null,null,0,"N"]
[null,null,null,null,null,null,null,0,"N"]
[null,null,null,null,null,null,null,0,"N"]
[null,null,null,null,null,null,null,0,"N"]
[null,null,null,null,null,null,null,0,"N"]
[null,null,null,null,null,null,null,0,"N"]
[null,null,null,null,null,null,null,0,"N"]
[null,null,null,null,null,null,null,0,"N"]
[null,null,null,null,null,null,null,0,"N"]
[null,null,null,null,null,null,null,0,"N"]
[null,null,null,null,null,null,null,0,"N"]
[null,null,null,null,null,null,null,0,"N"]
[null,null,null,null,null,null,null,0,"N"]
[null,null,null,null,null,null,null,0,"N"]
[null,null,null,null,null,null,null,0,"N"]
[null,null,null,null,null,null,null,0,"N"]
[null,null,null,null,null,null,null,0,"N"]
[null,null,null,null,null,null,null,0,"N"]
[null,null,null,null,null,null,null,0,"N"]
[null,null,null,null,null,null,null,0,"N"]
[null,null,null,null,null,null,null,0,"N"]
[null,null,null,null,null,null,null,0,"N"]
[null,null,null,null,null,null,null,0,"N"]
[null,null,null,null,null,null,null,0,"N"]
[null,null,null,null,null,null,null,0,"N"]
[null,null,null,null,null,null,null,0,"N"]
[null,null,null,null,null,null,null,0,"N"]
[null,null,null,null,null,null,null,0,"N"]
[null,null,null,null,null,null,null,0,"N"]
[null,null,null,null,null,null,null,0,"N"]
[null,null,null,null,null,null,null,0,"N"]
[null,null,null,null,null,null,null,0,"N"]
[null,null,null,null,null,null,null,0,"N"]
[null,null,null,null,null,null,null,0,"N"]
[null,null,null,null,null,null,null,0,"N"]
[null,null,null,null,null,null,null,0,"N"]
[null,null,null,null,null,null,null,0,"N"]
[null,null,null,null,null,null,null,0,{"$f":"IF(($H466>=0.3),\"Y\",\"N\")","v":"N"}]
[null,null,null,null,null,null,null,0,"N"]
[null,null,null,null,null,null,null,0,"N"]
[null,null,null,null,null,null,null,{"$f":"IF(G469>0,G469/$G$10,0)","v":0},"N"]
[null,null,null,null,null,null,null,0,"N"]
[null,null,null,null,null,null,null,0,"N"]
[null,null,null,null,null,null,null,0,"N"]
[null,null,null,null,null,null,null,0,"N"]
[null,null,null,null,null,null,null,0,"N"]
[null,null,null,null,null,null,null,0,"N"]
[null,null,null,null,null,null,null,0,"N"]
[null,null,null,null,null,null,null,0,"N"]
[null,null,null,null,null,null,null,0,"N"]
[null,null,null,null,null,null,null,0,"N"]
[null,null,null,null,null,null,null,0,"N"]
[null,null,null,null,null,null,null,0,"N"]
[null,null,null,null,null,null,null,0,"N"]
[null,null,null,null,null,null,null,0,"N"]
[null,null,null,null,null,null,null,0,"N"]
[null,null,null,null,null,null,null,0,"N"]
[null,null,null,null,null,null,null,0,"N"]
[null,null,null,null,null,null,null,0,"N"]
[null,null,null,null,null,null,null,0,"N"]
[null,null,null,null,null,null,null,0,"N"]
[null,null,null,null,null,null,null,0,"N"]
[null,null,null,null,null,null,null,0,"N"]
[null,null,null,null,null,null,null,0,"N"]
[null,null,null,null,null,null,null,0,"N"]
[null,null,null,null,null,null,null,0,"N"]
[null,null,null,null,null,null,null,0,"N"]
[null,null,null,null,null,null,null,0,"N"]
[null,null,null,null,null,null,null,0,"N"]
[null,null,null,null,null,null,null,0,"N"]
[null,null,null,null,null,null,null,0,"N"]
[null,null,null,null,null,null,null,0,"N"]

{"sheet":"7 End Use Totals","index":15,"n_rows":31,"n_cols":12,"rows_kept":31,"cut":false,"hidden":false,"merged":[[3,2,4,2],[2,2,2,4],[31,1,31,7]]}
[]
[]
[null,null,"7. End Use Totals - Breakdown"]
[null,null,"Press this button to see all possible end uses:"]
[null,null,null,"#","End Use","End use total\n(ML/year)","Percentage of total (%)","Proposed end use saving (%)"]
[null,null,null,null,"Total",{"$f":"'6 End Use Inventory'!D5","v":0},null,{"$f":"IF(COUNTIF(H7:H31,\">1\")>0,\"Check savings!\",)","v":0},"EndUse","Imp"]
[null,null,null,1,"Toilets",{"$f":"'6 End Use Inventory'!$G$14","v":0},{"$f":"F7/$F$6","v":{"$error":"#DIV/0!"}},{"$f":"L7/F7","v":{"$error":"#N/A"}},{"$f":"E7","v":"Toilets"},"Yes",{"$f":"VLOOKUP(I7,'9-3 Action Plan'!$E$11:$G$60,3)","v":{"$error":"#N/A"}},{"$f":"K7","v":{"$error":"#N/A"}}]
[null,null,null,2,"Taps",{"$f":"'6 End Use Inventory'!$G$12","v":0},{"$f":"F8/$F$6","v":{"$error":"#DIV/0!"}},{"$f":"L8/F8","v":{"$error":"#N/A"}},{"$f":"E8","v":"Taps"},"Yes",{"$f":"VLOOKUP(I8,'9-3 Action Plan'!$E$11:$G$60,3)","v":{"$error":"#N/A"}},{"$f":"IF(I8<>0,K8-K7,0)","v":{"$error":"#N/A"}}]
[null,null,null,3,"Showers",{"$f":"'6 End Use Inventory'!$G$13","v":0},{"$error":"#DIV/0!"},{"$error":"#N/A"},"Showers","Yes",{"$f":"VLOOKUP(I9,'9-3 Action Plan'!$E$11:$G$60,3)","v":{"$error":"#N/A"}},{"$f":"IF(I9<>0,K9-K8,0)","v":{"$error":"#N/A"}}]
[null,null,null,4,"Urinals - single stall",{"$f":"'6 End Use Inventory'!$G$15","v":0},{"$error":"#DIV/0!"},{"$error":"#N/A"},"Urinals - single stall","Yes",{"$f":"VLOOKUP(I10,'9-3 Action Plan'!$E$11:$G$60,3)","v":{"$error":"#N/A"}},{"$error":"#N/A"}]
[null,null,null,5,"Urinals - trough",{"$f":"'6 End Use Inventory'!$G$16","v":0},{"$error":"#DIV/0!"},{"$error":"#N/A"},"Urinals - trough","Yes",{"$f":"VLOOKUP(I11,'9-3 Action Plan'!$E$11:$G$60,3)","v":{"$error":"#N/A"}},{"$error":"#N/A"}]
[null,null,null,6,"Unaccounted",{"$f":"'6 End Use Inventory'!$D$7","v":0},{"$f":"F12/$F$6","v":{"$error":"#DIV/0!"}},{"$error":"#DIV/0!"},"Unaccounted"]
[null,null,null,7,{"$f":"'4 End Use Definitions'!C12","v":"Leakage"},{"$f":"sumif1(E13,'6 End Use Inventory'!$D$12:$D$500,'6 End Use Inventory'!$G$12:$G$500)","v":{"$error":"#NAME?"}},{"$error":"#NAME?"},{"$error":"#N/A"},"Leakage","Yes",{"$f":"VLOOKUP(I13,'9-3 Action Plan'!$E$11:$G$60,3)","v":{"$error":"#N/A"}},{"$f":"IF(I13<>0,K13-K11,0)","v":{"$error":"#N/A"}}]
[null,null,null,8,{"$f":"'4 End Use Definitions'!C13","v":"Cooling"},{"$f":"sumif1(E14,'6 End Use Inventory'!$D$12:$D$500,'6 End Use Inventory'!$G$12:$G$500)","v":{"$error":"#NAME?"}},{"$error":"#NAME?"},{"$error":"#N/A"},"Cooling","Yes",{"$f":"VLOOKUP(I14,'9-3 Action Plan'!$E$11:$G$60,3)","v":{"$error":"#N/A"}},{"$error":"#N/A"}]
[null,null,null,9,{"$f":"'4 End Use Definitions'!C14","v":"Fire Testing "},{"$f":"sumif1(E15,'6 End Use Inventory'!$D$12:$D$500,'6 End Use Inventory'!$G$12:$G$500)","v":{"$error":"#NAME?"}},{"$error":"#NAME?"},{"$error":"#N/A"},"Fire Testing ","Yes",{"$f":"VLOOKUP(I15,'9-3 Action Plan'!$E$11:$G$60,3)","v":{"$error":"#N/A"}},{"$error":"#N/A"}]
[null,null,null,10,{"$f":"'4 End Use Definitions'!C15","v":0},{"$f":"sumif1(E16,'6 End Use Inventory'!$D$12:$D$500,'6 End Use Inventory'!$G$12:$G$500)","v":{"$error":"#NAME?"}},{"$error":"#NAME?"},{"$error":"#NAME?"},0,"Yes",{"$f":"VLOOKUP(I16,'9-3 Action Plan'!$E$11:$G$60,3)","v":0},0]
[null,null,null,11,{"$f":"'4 End Use Definitions'!C16","v":0},{"$f":"sumif1(E17,'6 End Use Inventory'!$D$12:$D$500,'6 End Use Inventory'!$G$12:$G$500)","v":{"$error":"#NAME?"}},{"$error":"#NAME?"},{"$error":"#NAME?"},0,"Yes",{"$f":"VLOOKUP(I17,'9-3 Action Plan'!$E$11:$G$60,3)","v":0},0]
[null,null,null,12,{"$f":"'4 End Use Definitions'!C17","v":0},{"$f":"sumif1(E18,'6 End Use Inventory'!$D$12:$D$500,'6 End Use Inventory'!$G$12:$G$500)","v":{"$error":"#NAME?"}},{"$error":"#NAME?"},{"$error":"#NAME?"},0,"Yes",{"$f":"VLOOKUP(I18,'9-3 Action Plan'!$E$11:$G$60,3)","v":0},0]
[null,null,null,13,{"$f":"'4 End Use Definitions'!C18","v":0},{"$f":"sumif1(E19,'6 End Use Inventory'!$D$12:$D$500,'6 End Use Inventory'!$G$12:$G$500)","v":{"$error":"#NAME?"}},{"$error":"#NAME?"},{"$error":"#NAME?"},0,"Yes",{"$f":"VLOOKUP(I19,'9-3 Action Plan'!$E$11:$G$60,3)","v":0},0]
[null,null,null,14,{"$f":"'4 End Use Definitions'!C19","v":0},{"$f":"sumif1(E20,'6 End Use Inventory'!$D$12:$D$500,'6 End Use Inventory'!$G$12:$G$500)","v":{"$error":"#NAME?"}},{"$error":"#NAME?"},{"$error":"#NAME?"},0,"Yes",{"$f":"VLOOKUP(I20,'9-3 Action Plan'!$E$11:$G$60,3)","v":0},0]
[null,null,null,15,{"$f":"'4 End Use Definitions'!C20","v":0},{"$f":"sumif1(E21,'6 End Use Inventory'!$D$12:$D$500,'6 End Use Inventory'!$G$12:$G$500)","v":{"$error":"#NAME?"}},{"$error":"#NAME?"},{"$error":"#NAME?"},0,"Yes",{"$f":"VLOOKUP(I21,'9-3 Action Plan'!$E$11:$G$60,3)","v":0},0]
[null,null,null,16,{"$f":"'4 End Use Definitions'!C21","v":0},{"$f":"sumif1(E22,'6 End Use Inventory'!$D$12:$D$500,'6 End Use Inventory'!$G$12:$G$500)","v":{"$error":"#NAME?"}},{"$error":"#NAME?"},{"$error":"#NAME?"},0,"Yes",{"$f":"VLOOKUP(I22,'9-3 Action Plan'!$E$11:$G$60,3)","v":0},0]
[null,null,null,17,{"$f":"'4 End Use Definitions'!C22","v":0},{"$f":"sumif1(E23,'6 End Use Inventory'!$D$12:$D$500,'6 End Use Inventory'!$G$12:$G$500)","v":{"$error":"#NAME?"}},{"$error":"#NAME?"},{"$error":"#NAME?"},0,"Yes",{"$f":"VLOOKUP(I23,'9-3 Action Plan'!$E$11:$G$60,3)","v":0},0]
[null,null,null,18,{"$f":"'4 End Use Definitions'!C23","v":0},{"$f":"sumif1(E24,'6 End Use Inventory'!$D$12:$D$500,'6 End Use Inventory'!$G$12:$G$500)","v":{"$error":"#NAME?"}},{"$error":"#NAME?"},{"$error":"#NAME?"},0,"Yes",{"$f":"VLOOKUP(I24,'9-3 Action Plan'!$E$11:$G$60,3)","v":0},0]
[null,null,null,19,{"$f":"'4 End Use Definitions'!C24","v":0},{"$f":"sumif1(E25,'6 End Use Inventory'!$D$12:$D$500,'6 End Use Inventory'!$G$12:$G$500)","v":{"$error":"#NAME?"}},{"$error":"#NAME?"},{"$error":"#NAME?"},0,"Yes",{"$f":"VLOOKUP(I25,'9-3 Action Plan'!$E$11:$G$60,3)","v":0},0]
[null,null,null,20,{"$f":"'4 End Use Definitions'!C25","v":0},{"$f":"sumif1(E26,'6 End Use Inventory'!$D$12:$D$500,'6 End Use Inventory'!$G$12:$G$500)","v":{"$error":"#NAME?"}},{"$error":"#NAME?"},{"$error":"#NAME?"},0,"Yes",{"$f":"VLOOKUP(I26,'9-3 Action Plan'!$E$11:$G$60,3)","v":0},0]
[null,null,null,21,{"$f":"'4 End Use Definitions'!C26","v":0},{"$f":"sumif1(E27,'6 End Use Inventory'!$D$12:$D$500,'6 End Use Inventory'!$G$12:$G$500)","v":{"$error":"#NAME?"}},{"$error":"#NAME?"},{"$error":"#NAME?"},0,"Yes",{"$f":"VLOOKUP(I27,'9-3 Action Plan'!$E$11:$G$60,3)","v":0},0]
[null,null,null,22,{"$f":"'4 End Use Definitions'!C27","v":0},{"$f":"sumif1(E28,'6 End Use Inventory'!$D$12:$D$500,'6 End Use Inventory'!$G$12:$G$500)","v":{"$error":"#NAME?"}},{"$error":"#NAME?"},{"$error":"#NAME?"},0,"Yes",{"$f":"VLOOKUP(I28,'9-3 Action Plan'!$E$11:$G$60,3)","v":0},0]
[null,null,null,23,{"$f":"'4 End Use Definitions'!C28","v":0},{"$f":"sumif1(E29,'6 End Use Inventory'!$D$12:$D$500,'6 End Use Inventory'!$G$12:$G$500)","v":{"$error":"#NAME?"}},{"$error":"#NAME?"},{"$error":"#NAME?"},0,"Yes",{"$f":"VLOOKUP(I29,'9-3 Action Plan'!$E$11:$G$60,3)","v":0},0]
[null,null,null,24,{"$f":"'4 End Use Definitions'!C29","v":0},{"$f":"sumif1(E30,'6 End Use Inventory'!$D$12:$D$500,'6 End Use Inventory'!$G$12:$G$500)","v":{"$error":"#NAME?"}},{"$error":"#NAME?"},{"$error":"#NAME?"},0,"Yes",{"$f":"VLOOKUP(I30,'9-3 Action Plan'!$E$11:$G$60,3)","v":0},0]
[null,null,null,25,{"$f":"'4 End Use Definitions'!C30","v":0},{"$f":"sumif1(E31,'6 End Use Inventory'!$D$12:$D$500,'6 End Use Inventory'!$G$12:$G$500)","v":{"$error":"#NAME?"}},{"$error":"#NAME?"},{"$error":"#NAME?"},0,"Yes",{"$f":"VLOOKUP(I31,'9-3 Action Plan'!$E$11:$G$60,3)","v":0},0]

{"sheet":"9-1 Water Saving Measures","index":17,"n_rows":91,"n_cols":14,"rows_kept":91,"cut":false,"hidden":false,"merged":[[1,1,2,4],[59,1,59,13],[6,13,7,13],[6,6,6,12],[6,2,7,2],[6,4,7,4],[6,3,7,3],[3,1,4,4]]}
[]
[null,"9-1 Water Saving Measures"]
[]
[null,"Use the WEMP Water Saving Measures checklist to assist you in developing water saving ideas"]
[]
[]
[null,null,"#","End use category","Water saving measures \n(list individual measures or add/attach detailed work sheets)","Saving achieved to date\n(ML)","Potential project savings (ML)",null,null,null,null,null,null,"Comments and risks associated with saving/water efficiency measure"]
[null,null,"#","End Use Category",null,"Use this column to quantify any savings that were achieved prior to the baseline year",null,{"$f":"VLOOKUP(G8,$G$68:$J$90,2,FALSE)","v":{"$error":"#N/A"}},{"$f":"VLOOKUP(H8,$G$68:$J$90,2,FALSE)","v":{"$error":"#N/A"}},{"$f":"VLOOKUP(I8,$G$68:$J$90,2,FALSE)","v":{"$error":"#N/A"}},"Project water savings\n(ML/year)","Current water end use \n(ML/year)","Potential water saving\n(%)"]
[null,null,null,"EndUse","WaterSave",null,"Q108","Q208","Q308","Q408","TotalSavings"]
[null,null,1,null,null,null,null,null,null,null,{"$f":"SUM(G10:J10)","v":0},{"$f":"INDEX('7 End Use Totals'!$F$7:$F$34,MATCH(D10,'7 End Use Totals'!$E$7:$E$33,0))","v":{"$error":"#NAME?"}},{"$f":"K10/L10","v":{"$error":"#NAME?"}}]
[null,null,2,null,null,null,null,null,null,null,{"$f":"SUM(G11:J11)","v":0},{"$f":"INDEX('7 End Use Totals'!$F$7:$F$34,MATCH(D11,'7 End Use Totals'!$E$7:$E$33,0))","v":{"$error":"#NAME?"}},{"$f":"K11/L11","v":{"$error":"#NAME?"}}]
[null,null,3,null,null,null,null,null,null,null,0,{"$f":"INDEX('7 End Use Totals'!$F$7:$F$34,MATCH(D12,'7 End Use Totals'!$E$7:$E$33,0))","v":{"$error":"#NAME?"}},{"$error":"#NAME?"}]
[null,null,4,null,null,null,null,null,null,null,0,{"$f":"INDEX('7 End Use Totals'!$F$7:$F$34,MATCH(D13,'7 End Use Totals'!$E$7:$E$33,0))","v":{"$error":"#NAME?"}},{"$error":"#NAME?"}]
[null,null,5,null,null,null,null,null,null,null,0,{"$f":"INDEX('7 End Use Totals'!$F$7:$F$34,MATCH(D14,'7 End Use Totals'!$E$7:$E$33,0))","v":{"$error":"#NAME?"}},{"$error":"#NAME?"}]
[null,null,6,null,null,null,null,null,null,null,0,{"$f":"INDEX('7 End Use Totals'!$F$7:$F$34,MATCH(D15,'7 End Use Totals'!$E$7:$E$33,0))","v":{"$error":"#NAME?"}},{"$error":"#NAME?"}]
[null,null,7,null,null,null,null,null,null,null,0,{"$f":"INDEX('7 End Use Totals'!$F$7:$F$34,MATCH(D16,'7 End Use Totals'!$E$7:$E$33,0))","v":{"$error":"#NAME?"}},{"$error":"#NAME?"}]
[null,null,8,null,null,null,null,null,null,null,0,{"$f":"INDEX('7 End Use Totals'!$F$7:$F$34,MATCH(D17,'7 End Use Totals'!$E$7:$E$33,0))","v":{"$error":"#NAME?"}},{"$error":"#NAME?"}]
[null,null,9,null,null,null,null,null,null,null,0,{"$f":"INDEX('7 End Use Totals'!$F$7:$F$34,MATCH(D18,'7 End Use Totals'!$E$7:$E$33,0))","v":{"$error":"#NAME?"}},{"$error":"#NAME?"}]
[null,null,10,null,null,null,null,null,null,null,0,{"$f":"INDEX('7 End Use Totals'!$F$7:$F$34,MATCH(D19,'7 End Use Totals'!$E$7:$E$33,0))","v":{"$error":"#NAME?"}},{"$error":"#NAME?"}]
[null,null,11,null,null,null,null,null,null,null,0,{"$f":"INDEX('7 End Use Totals'!$F$7:$F$34,MATCH(D20,'7 End Use Totals'!$E$7:$E$33,0))","v":{"$error":"#NAME?"}},{"$error":"#NAME?"}]
[null,null,12,null,null,null,null,null,null,null,0,{"$f":"INDEX('7 End Use Totals'!$F$7:$F$34,MATCH(D21,'7 End Use Totals'!$E$7:$E$33,0))","v":{"$error":"#NAME?"}},{"$error":"#NAME?"}]
[null,null,13,null,null,null,null,null,null,null,0,{"$f":"INDEX('7 End Use Totals'!$F$7:$F$34,MATCH(D22,'7 End Use Totals'!$E$7:$E$33,0))","v":{"$error":"#NAME?"}},{"$error":"#NAME?"}]
[null,null,14,null,null,null,null,null,null,null,0,{"$f":"INDEX('7 End Use Totals'!$F$7:$F$34,MATCH(D23,'7 End Use Totals'!$E$7:$E$33,0))","v":{"$error":"#NAME?"}},{"$error":"#NAME?"}]
[null,null,15,null,null,null,null,null,null,null,0,{"$f":"INDEX('7 End Use Totals'!$F$7:$F$34,MATCH(D24,'7 End Use Totals'!$E$7:$E$33,0))","v":{"$error":"#NAME?"}},{"$error":"#NAME?"}]
[null,null,16,null,null,null,null,null,null,null,0,{"$f":"INDEX('7 End Use Totals'!$F$7:$F$34,MATCH(D25,'7 End Use Totals'!$E$7:$E$33,0))","v":{"$error":"#NAME?"}},{"$error":"#NAME?"}]
[null,null,17,null,null,null,null,null,null,null,0,{"$f":"INDEX('7 End Use Totals'!$F$7:$F$34,MATCH(D26,'7 End Use Totals'!$E$7:$E$33,0))","v":{"$error":"#NAME?"}},{"$error":"#NAME?"}]
[null,null,18,null,null,null,null,null,null,null,0,{"$f":"INDEX('7 End Use Totals'!$F$7:$F$34,MATCH(D27,'7 End Use Totals'!$E$7:$E$33,0))","v":{"$error":"#NAME?"}},{"$error":"#NAME?"}]
[null,null,19,null,null,null,null,null,null,null,0,{"$f":"INDEX('7 End Use Totals'!$F$7:$F$34,MATCH(D28,'7 End Use Totals'!$E$7:$E$33,0))","v":{"$error":"#NAME?"}},{"$error":"#NAME?"}]
[null,null,20,null,null,null,null,null,null,null,0,{"$f":"INDEX('7 End Use Totals'!$F$7:$F$34,MATCH(D29,'7 End Use Totals'!$E$7:$E$33,0))","v":{"$error":"#NAME?"}},{"$error":"#NAME?"}]
[null,null,21,null,null,null,null,null,null,null,0,{"$f":"INDEX('7 End Use Totals'!$F$7:$F$34,MATCH(D30,'7 End Use Totals'!$E$7:$E$33,0))","v":{"$error":"#NAME?"}},{"$error":"#NAME?"}]
[null,null,22,null,null,null,null,null,null,null,0,{"$f":"INDEX('7 End Use Totals'!$F$7:$F$34,MATCH(D31,'7 End Use Totals'!$E$7:$E$33,0))","v":{"$error":"#NAME?"}},{"$error":"#NAME?"}]
[null,null,23,null,null,null,null,null,null,null,0,{"$f":"INDEX('7 End Use Totals'!$F$7:$F$34,MATCH(D32,'7 End Use Totals'!$E$7:$E$33,0))","v":{"$error":"#NAME?"}},{"$error":"#NAME?"}]
[null,null,24,null,null,null,null,null,null,null,0,{"$f":"INDEX('7 End Use Totals'!$F$7:$F$34,MATCH(D33,'7 End Use Totals'!$E$7:$E$33,0))","v":{"$error":"#NAME?"}},{"$error":"#NAME?"}]
[null,null,25,null,null,null,null,null,null,null,0,{"$f":"INDEX('7 End Use Totals'!$F$7:$F$34,MATCH(D34,'7 End Use Totals'!$E$7:$E$33,0))","v":{"$error":"#NAME?"}},{"$error":"#NAME?"}]
[null,null,26,null,null,null,null,null,null,null,0,{"$f":"INDEX('7 End Use Totals'!$F$7:$F$34,MATCH(D35,'7 End Use Totals'!$E$7:$E$33,0))","v":{"$error":"#NAME?"}},{"$error":"#NAME?"}]
[null,null,27,null,null,null,null,null,null,null,0,{"$f":"INDEX('7 End Use Totals'!$F$7:$F$34,MATCH(D36,'7 End Use Totals'!$E$7:$E$33,0))","v":{"$error":"#NAME?"}},{"$error":"#NAME?"}]
[null,null,28,null,null,null,null,null,null,null,0,{"$f":"INDEX('7 End Use Totals'!$F$7:$F$34,MATCH(D37,'7 End Use Totals'!$E$7:$E$33,0))","v":{"$error":"#NAME?"}},{"$error":"#NAME?"}]
[null,null,29,null,null,null,null,null,null,null,0,{"$f":"INDEX('7 End Use Totals'!$F$7:$F$34,MATCH(D38,'7 End Use Totals'!$E$7:$E$33,0))","v":{"$error":"#NAME?"}},{"$error":"#NAME?"}]
[null,null,30,null,null,null,null,null,null,null,0,{"$f":"INDEX('7 End Use Totals'!$F$7:$F$34,MATCH(D39,'7 End Use Totals'!$E$7:$E$33,0))","v":{"$error":"#NAME?"}},{"$error":"#NAME?"}]
[null,null,31,null,null,null,null,null,null,null,0,{"$f":"INDEX('7 End Use Totals'!$F$7:$F$34,MATCH(D40,'7 End Use Totals'!$E$7:$E$33,0))","v":{"$error":"#NAME?"}},{"$error":"#NAME?"}]
[null,null,32,null,null,null,null,null,null,null,0,{"$f":"INDEX('7 End Use Totals'!$F$7:$F$34,MATCH(D41,'7 End Use Totals'!$E$7:$E$33,0))","v":{"$error":"#NAME?"}},{"$error":"#NAME?"}]
[null,null,33,null,null,null,null,null,null,null,{"$f":"SUM(G42:J42)","v":0},{"$f":"INDEX('7 End Use Totals'!$F$7:$F$34,MATCH(D42,'7 End Use Totals'!$E$7:$E$33,0))","v":{"$error":"#NAME?"}},{"$error":"#NAME?"}]
[null,null,34,null,null,null,null,null,null,null,0,{"$f":"INDEX('7 End Use Totals'!$F$7:$F$34,MATCH(D43,'7 End Use Totals'!$E$7:$E$33,0))","v":{"$error":"#NAME?"}},{"$error":"#NAME?"}]
[null,null,35,null,null,null,null,null,null,null,0,{"$f":"INDEX('7 End Use Totals'!$F$7:$F$34,MATCH(D44,'7 End Use Totals'!$E$7:$E$33,0))","v":{"$error":"#NAME?"}},{"$error":"#NAME?"}]
[null,null,36,null,null,null,null,null,null,null,0,{"$f":"INDEX('7 End Use Totals'!$F$7:$F$34,MATCH(D45,'7 End Use Totals'!$E$7:$E$33,0))","v":{"$error":"#NAME?"}},{"$error":"#NAME?"}]
[null,null,37,null,null,null,null,null,null,null,0,{"$f":"INDEX('7 End Use Totals'!$F$7:$F$34,MATCH(D46,'7 End Use Totals'!$E$7:$E$33,0))","v":{"$error":"#NAME?"}},{"$error":"#NAME?"}]
[null,null,38,null,null,null,null,null,null,null,0,{"$f":"INDEX('7 End Use Totals'!$F$7:$F$34,MATCH(D47,'7 End Use Totals'!$E$7:$E$33,0))","v":{"$error":"#NAME?"}},{"$error":"#NAME?"}]
[null,null,39,null,null,null,null,null,null,null,0,{"$f":"INDEX('7 End Use Totals'!$F$7:$F$34,MATCH(D48,'7 End Use Totals'!$E$7:$E$33,0))","v":{"$error":"#NAME?"}},{"$error":"#NAME?"}]
[null,null,40,null,null,null,null,null,null,null,0,{"$f":"INDEX('7 End Use Totals'!$F$7:$F$34,MATCH(D49,'7 End Use Totals'!$E$7:$E$33,0))","v":{"$error":"#NAME?"}},{"$error":"#NAME?"}]
[null,null,41,null,null,null,null,null,null,null,0,{"$f":"INDEX('7 End Use Totals'!$F$7:$F$34,MATCH(D50,'7 End Use Totals'!$E$7:$E$33,0))","v":{"$error":"#NAME?"}},{"$error":"#NAME?"}]
[null,null,42,null,null,null,null,null,null,null,0,{"$f":"INDEX('7 End Use Totals'!$F$7:$F$34,MATCH(D51,'7 End Use Totals'!$E$7:$E$33,0))","v":{"$error":"#NAME?"}},{"$error":"#NAME?"}]
[null,null,43,null,null,null,null,null,null,null,0,{"$f":"INDEX('7 End Use Totals'!$F$7:$F$34,MATCH(D52,'7 End Use Totals'!$E$7:$E$33,0))","v":{"$error":"#NAME?"}},{"$error":"#NAME?"}]
[null,null,44,null,null,null,null,null,null,null,0,{"$f":"INDEX('7 End Use Totals'!$F$7:$F$34,MATCH(D53,'7 End Use Totals'!$E$7:$E$33,0))","v":{"$error":"#NAME?"}},{"$error":"#NAME?"}]
[null,null,45,null,null,null,null,null,null,null,0,{"$f":"INDEX('7 End Use Totals'!$F$7:$F$34,MATCH(D54,'7 End Use Totals'!$E$7:$E$33,0))","v":{"$error":"#NAME?"}},{"$error":"#NAME?"}]
[null,null,46,null,null,null,null,null,null,null,0,{"$f":"INDEX('7 End Use Totals'!$F$7:$F$34,MATCH(D55,'7 End Use Totals'!$E$7:$E$33,0))","v":{"$error":"#NAME?"}},{"$error":"#NAME?"}]
[null,null,47,null,null,null,null,null,null,null,0,{"$f":"INDEX('7 End Use Totals'!$F$7:$F$34,MATCH(D56,'7 End Use Totals'!$E$7:$E$33,0))","v":{"$error":"#NAME?"}},{"$error":"#NAME?"}]
[null,null,48,null,null,null,null,null,null,null,0,{"$f":"INDEX('7 End Use Totals'!$F$7:$F$34,MATCH(D57,'7 End Use Totals'!$E$7:$E$33,0))","v":{"$error":"#NAME?"}},{"$error":"#NAME?"}]
[null,null,49,null,null,null,null,null,null,null,0,{"$f":"INDEX('7 End Use Totals'!$F$7:$F$34,MATCH(D58,'7 End Use Totals'!$E$7:$E$33,0))","v":{"$error":"#NAME?"}},{"$error":"#NAME?"}]
[null,null,50,null,null,null,null,null,null,null,0,{"$f":"INDEX('7 End Use Totals'!$F$7:$F$34,MATCH(D59,'7 End Use Totals'!$E$7:$E$33,0))","v":{"$error":"#NAME?"}},{"$error":"#NAME?"}]
[]
[]
[]
[]
[]
[]
[]
[null,null,null,null,null,"End uses"]
[null,null,null,null,null,{"$f":"('4 End Use Definitions'!C6)","v":"Toilets"},"Q1\n(Jan09 - Mar09)","Q2\n(Apr09 - Jun09)"]
[null,null,null,null,null,{"$f":"('4 End Use Definitions'!C7)","v":"Taps"},"Q2\n(Apr09 - Jun09)","Q3\n(Jul09 - Sep09)"]
[null,null,null,null,null,{"$f":"('4 End Use Definitions'!C8)","v":"Showers"},"Q3\n(Jul09 - Sep09)","Q4\n(Oct09 - Dec09)"]
[null,null,null,null,null,{"$f":"('4 End Use Definitions'!C9)","v":"Urinals - single stall"},"Q4\n(Oct09 - Dec09)","Q1\n(Jan10 - Mar10)"]
[null,null,null,null,null,{"$f":"('4 End Use Definitions'!C10)","v":"Urinals - trough"},"Q1\n(Jan10 - Mar10)","Q2\n(Apr10 - Jun10)"]
[null,null,null,null,null,{"$f":"('4 End Use Definitions'!C11)","v":"Unaccounted"},"Q2\n(Apr10 - Jun10)","Q3\n(Jul10 - Sep10)"]
[null,null,null,null,null,{"$f":"('4 End Use Definitions'!C12)","v":"Leakage"},"Q3\n(Jul10 - Sep10)","Q4\n(Oct10 - Dec10)"]
[null,null,null,null,null,{"$f":"('4 End Use Definitions'!C13)","v":"Cooling"},"Q4\n(Oct10 - Dec10)","Q1\n(Jan11 - Mar11)"]
[null,null,null,null,null,{"$f":"('4 End Use Definitions'!C14)","v":"Fire Testing "},"Q1\n(Jan11 - Mar11)","Q2\n(Apr11 - Jun11)"]
[null,null,null,null,null,{"$f":"('4 End Use Definitions'!C15)","v":0},"Q2\n(Apr11 - Jun11)","Q3\n(Jul11 - Sep11)"]
[null,null,null,null,null,{"$f":"('4 End Use Definitions'!C16)","v":0},"Q3\n(Jul11 - Sep11)","Q4\n(Oct11 - Dec11)"]
[null,null,null,null,null,{"$f":"('4 End Use Definitions'!C17)","v":0},"Q4\n(Oct11 - Dec11)"]
[null,null,null,null,null,{"$f":"('4 End Use Definitions'!C18)","v":0},"Q1\n(Jan09 - Mar09)"]
[null,null,null,null,null,{"$f":"('4 End Use Definitions'!C19)","v":0},"Q2\n(Apr09 - Jun09)"]
[null,null,null,null,null,{"$f":"('4 End Use Definitions'!C20)","v":0},"Q3\n(Jul09 - Sep09)"]
[null,null,null,null,null,{"$f":"('4 End Use Definitions'!C21)","v":0},"Q4\n(Oct09 - Dec09)"]
[null,null,null,null,null,{"$f":"('4 End Use Definitions'!C22)","v":0},"Q1\n(Jan09 - Mar09)"]
[null,null,null,null,null,{"$f":"('4 End Use Definitions'!C23)","v":0},"Q2\n(Apr09 - Jun09)"]
[null,null,null,null,null,{"$f":"('4 End Use Definitions'!C24)","v":0},"Q3\n(Jul09 - Sep09)"]
[null,null,null,null,null,{"$f":"('4 End Use Definitions'!C25)","v":0},"Q4\n(Oct09 - Dec09)"]
[null,null,null,null,null,{"$f":"('4 End Use Definitions'!C26)","v":0},"Q1\n(Jan09 - Mar09)"]
[null,null,null,null,null,{"$f":"('4 End Use Definitions'!C27)","v":0},"Q2\n(Apr09 - Jun09)"]
[null,null,null,null,null,{"$f":"('4 End Use Definitions'!C28)","v":0},"Q3\n(Jul09 - Sep09)"]
[null,null,null,null,null,{"$f":"('4 End Use Definitions'!C29)","v":0}]

{"sheet":"9-2 Economic Assessment","index":18,"n_rows":59,"n_cols":17,"rows_kept":59,"cut":false,"hidden":false,"merged":[[3,2,3,3],[1,6,1,9],[5,2,5,3],[4,2,4,3],[3,5,6,16],[1,2,1,4]]}
[]
[null,null,"9-2 Economic Assessment"]
[]
[null,null,"Variable water cost per kL saved ($/kL) "]
[null,null,"Variable trade waste cost per kL saved ($/kL)"]
[null,null,"Total water cost per kL saved ($/kL)",null,{"$f":"SUM(E4:E5)","v":0}]
[]
[null,null,"#","End use category","Water saving measures \n","Total proposed project water savings\n(ML/year)","Capital costs\n($)","Installation or other implementation costs ($)","Total cost of works \n($)","Water supply cost savings\n($/yr)","Sewer & tradewaste savings\n($/yr)","Maintenance costs\n($pa)","Energy Savings ($/year)","Total Savings\n($/yr)","Payback period\n(years)","Installed cost/unit\n($/kL saved)","Comments"]
[null,null,null,"EndUse","WaterSave","TotalSavings"]
[null,null,1,{"$f":"'9-1 Water Saving Measures'!D10","v":0},{"$f":"'9-1 Water Saving Measures'!E10","v":0},{"$f":"'9-1 Water Saving Measures'!K10","v":0},null,null,{"$f":"H10+G10","v":0},null,null,null,null,{"$f":"M10-L10+J10+K10","v":0},{"$f":"I10/N10","v":{"$error":"#DIV/0!"}},{"$f":"I10/F10/1000","v":{"$error":"#DIV/0!"}}]
[null,null,2,{"$f":"'9-1 Water Saving Measures'!D11","v":0},{"$f":"'9-1 Water Saving Measures'!E11","v":0},{"$f":"'9-1 Water Saving Measures'!K11","v":0},null,null,0,null,null,null,null,0,{"$f":"I11/N11","v":{"$error":"#DIV/0!"}},{"$error":"#DIV/0!"}]
[null,null,3,{"$f":"'9-1 Water Saving Measures'!D12","v":0},{"$f":"'9-1 Water Saving Measures'!E12","v":0},{"$f":"'9-1 Water Saving Measures'!K12","v":0},null,null,0,null,null,null,null,0,{"$error":"#DIV/0!"},{"$error":"#DIV/0!"}]
[null,null,4,{"$f":"'9-1 Water Saving Measures'!D13","v":0},{"$f":"'9-1 Water Saving Measures'!E13","v":0},{"$f":"'9-1 Water Saving Measures'!K13","v":0},null,null,0,null,null,null,null,0,{"$error":"#DIV/0!"},{"$error":"#DIV/0!"}]
[null,null,5,{"$f":"'9-1 Water Saving Measures'!D14","v":0},{"$f":"'9-1 Water Saving Measures'!E14","v":0},{"$f":"'9-1 Water Saving Measures'!K14","v":0},null,null,0,null,null,null,null,0,{"$error":"#DIV/0!"},{"$f":"I14/F14/1000","v":{"$error":"#DIV/0!"}}]
[null,null,6,{"$f":"'9-1 Water Saving Measures'!D15","v":0},{"$f":"'9-1 Water Saving Measures'!E15","v":0},{"$f":"'9-1 Water Saving Measures'!K15","v":0},null,null,0,null,null,null,null,0,{"$error":"#DIV/0!"},{"$error":"#DIV/0!"}]
[null,null,7,{"$f":"'9-1 Water Saving Measures'!D16","v":0},{"$f":"'9-1 Water Saving Measures'!E16","v":0},{"$f":"'9-1 Water Saving Measures'!K16","v":0},null,null,0,null,null,null,null,0,{"$error":"#DIV/0!"},{"$error":"#DIV/0!"}]
[null,null,8,{"$f":"'9-1 Water Saving Measures'!D17","v":0},{"$f":"'9-1 Water Saving Measures'!E17","v":0},{"$f":"'9-1 Water Saving Measures'!K17","v":0},null,null,0,null,null,null,null,0,{"$error":"#DIV/0!"},{"$error":"#DIV/0!"}]
[null,null,9,{"$f":"'9-1 Water Saving Measures'!D18","v":0},{"$f":"'9-1 Water Saving Measures'!E18","v":0},{"$f":"'9-1 Water Saving Measures'!K18","v":0},null,null,0,null,null,null,null,0,{"$error":"#DIV/0!"},{"$error":"#DIV/0!"}]
[null,null,10,{"$f":"'9-1 Water Saving Measures'!D19","v":0},{"$f":"'9-1 Water Saving Measures'!E19","v":0},{"$f":"'9-1 Water Saving Measures'!K19","v":0},null,null,0,null,null,null,null,0,{"$error":"#DIV/0!"},{"$error":"#DIV/0!"}]
[null,null,11,{"$f":"'9-1 Water Saving Measures'!D20","v":0},{"$f":"'9-1 Water Saving Measures'!E20","v":0},{"$f":"'9-1 Water Saving Measures'!K20","v":0},null,null,0,null,null,null,null,0,{"$error":"#DIV/0!"},{"$error":"#DIV/0!"}]
[null,null,12,{"$f":"'9-1 Water Saving Measures'!D21","v":0},{"$f":"'9-1 Water Saving Measures'!E21","v":0},{"$f":"'9-1 Water Saving Measures'!K21","v":0},null,null,0,null,null,null,null,0,{"$error":"#DIV/0!"},{"$error":"#DIV/0!"}]
[null,null,13,{"$f":"'9-1 Water Saving Measures'!D22","v":0},{"$f":"'9-1 Water Saving Measures'!E22","v":0},{"$f":"'9-1 Water Saving Measures'!K22","v":0},null,null,0,null,null,null,null,0,{"$error":"#DIV/0!"},{"$error":"#DIV/0!"}]
[null,null,14,{"$f":"'9-1 Water Saving Measures'!D23","v":0},{"$f":"'9-1 Water Saving Measures'!E23","v":0},{"$f":"'9-1 Water Saving Measures'!K23","v":0},null,null,0,null,null,null,null,0,{"$error":"#DIV/0!"},{"$error":"#DIV/0!"}]
[null,null,15,{"$f":"'9-1 Water Saving Measures'!D24","v":0},{"$f":"'9-1 Water Saving Measures'!E24","v":0},{"$f":"'9-1 Water Saving Measures'!K24","v":0},null,null,0,null,null,null,null,0,{"$error":"#DIV/0!"},{"$error":"#DIV/0!"}]
[null,null,16,{"$f":"'9-1 Water Saving Measures'!D25","v":0},{"$f":"'9-1 Water Saving Measures'!E25","v":0},{"$f":"'9-1 Water Saving Measures'!K25","v":0},null,null,0,null,null,null,null,0,{"$error":"#DIV/0!"},{"$error":"#DIV/0!"}]
[null,null,17,{"$f":"'9-1 Water Saving Measures'!D26","v":0},{"$f":"'9-1 Water Saving Measures'!E26","v":0},{"$f":"'9-1 Water Saving Measures'!K26","v":0},null,null,0,null,null,null,null,0,{"$error":"#DIV/0!"},{"$error":"#DIV/0!"}]
[null,null,18,{"$f":"'9-1 Water Saving Measures'!D27","v":0},{"$f":"'9-1 Water Saving Measures'!E27","v":0},{"$f":"'9-1 Water Saving Measures'!K27","v":0},null,null,0,null,null,null,null,0,{"$error":"#DIV/0!"},{"$error":"#DIV/0!"}]
[null,null,19,{"$f":"'9-1 Water Saving Measures'!D28","v":0},{"$f":"'9-1 Water Saving Measures'!E28","v":0},{"$f":"'9-1 Water Saving Measures'!K28","v":0},null,null,0,null,null,null,null,0,{"$error":"#DIV/0!"},{"$error":"#DIV/0!"}]
[null,null,20,{"$f":"'9-1 Water Saving Measures'!D29","v":0},{"$f":"'9-1 Water Saving Measures'!E29","v":0},{"$f":"'9-1 Water Saving Measures'!K29","v":0},null,null,0,null,null,null,null,0,{"$error":"#DIV/0!"},{"$error":"#DIV/0!"}]
[null,null,21,{"$f":"'9-1 Water Saving Measures'!D30","v":0},{"$f":"'9-1 Water Saving Measures'!E30","v":0},{"$f":"'9-1 Water Saving Measures'!K30","v":0},null,null,0,null,null,null,null,0,{"$error":"#DIV/0!"},{"$error":"#DIV/0!"}]
[null,null,22,{"$f":"'9-1 Water Saving Measures'!D31","v":0},{"$f":"'9-1 Water Saving Measures'!E31","v":0},{"$f":"'9-1 Water Saving Measures'!K31","v":0},null,null,0,null,null,null,null,0,{"$error":"#DIV/0!"},{"$error":"#DIV/0!"}]
[null,null,23,{"$f":"'9-1 Water Saving Measures'!D32","v":0},{"$f":"'9-1 Water Saving Measures'!E32","v":0},{"$f":"'9-1 Water Saving Measures'!K32","v":0},null,null,0,null,null,null,null,0,{"$error":"#DIV/0!"},{"$error":"#DIV/0!"}]
[null,null,24,{"$f":"'9-1 Water Saving Measures'!D33","v":0},{"$f":"'9-1 Water Saving Measures'!E33","v":0},{"$f":"'9-1 Water Saving Measures'!K33","v":0},null,null,0,null,null,null,null,0,{"$error":"#DIV/0!"},{"$error":"#DIV/0!"}]
[null,null,25,{"$f":"'9-1 Water Saving Measures'!D34","v":0},{"$f":"'9-1 Water Saving Measures'!E34","v":0},{"$f":"'9-1 Water Saving Measures'!K34","v":0},null,null,0,null,null,null,null,0,{"$error":"#DIV/0!"},{"$error":"#DIV/0!"}]
[null,null,26,{"$f":"'9-1 Water Saving Measures'!D35","v":0},{"$f":"'9-1 Water Saving Measures'!E35","v":0},{"$f":"'9-1 Water Saving Measures'!K35","v":0},null,null,0,null,null,null,null,0,{"$error":"#DIV/0!"},{"$error":"#DIV/0!"}]
[null,null,27,{"$f":"'9-1 Water Saving Measures'!D36","v":0},{"$f":"'9-1 Water Saving Measures'!E36","v":0},{"$f":"'9-1 Water Saving Measures'!K36","v":0},null,null,0,null,null,null,null,0,{"$error":"#DIV/0!"},{"$error":"#DIV/0!"}]
[null,null,28,{"$f":"'9-1 Water Saving Measures'!D37","v":0},{"$f":"'9-1 Water Saving Measures'!E37","v":0},{"$f":"'9-1 Water Saving Measures'!K37","v":0},null,null,0,null,null,null,null,0,{"$error":"#DIV/0!"},{"$error":"#DIV/0!"}]
[null,null,29,{"$f":"'9-1 Water Saving Measures'!D38","v":0},{"$f":"'9-1 Water Saving Measures'!E38","v":0},{"$f":"'9-1 Water Saving Measures'!K38","v":0},null,null,0,null,null,null,null,0,{"$error":"#DIV/0!"},{"$error":"#DIV/0!"}]
[null,null,30,{"$f":"'9-1 Water Saving Measures'!D39","v":0},{"$f":"'9-1 Water Saving Measures'!E39","v":0},{"$f":"'9-1 Water Saving Measures'!K39","v":0},null,null,0,null,null,null,null,0,{"$error":"#DIV/0!"},{"$error":"#DIV/0!"}]
[null,null,31,{"$f":"'9-1 Water Saving Measures'!D40","v":0},{"$f":"'9-1 Water Saving Measures'!E40","v":0},{"$f":"'9-1 Water Saving Measures'!K40","v":0},null,null,0,null,null,null,null,0,{"$error":"#DIV/0!"},{"$error":"#DIV/0!"}]
[null,null,32,{"$f":"'9-1 Water Saving Measures'!D41","v":0},{"$f":"'9-1 Water Saving Measures'!E41","v":0},{"$f":"'9-1 Water Saving Measures'!K41","v":0},null,null,0,null,null,null,null,0,{"$error":"#DIV/0!"},{"$error":"#DIV/0!"}]
[null,null,33,{"$f":"'9-1 Water Saving Measures'!D42","v":0},{"$f":"'9-1 Water Saving Measures'!E42","v":0},{"$f":"'9-1 Water Saving Measures'!K42","v":0},null,null,0,null,null,null,null,0,{"$f":"I42/N42","v":{"$error":"#DIV/0!"}},{"$f":"I42/F42/1000","v":{"$error":"#DIV/0!"}}]
[null,null,34,{"$f":"'9-1 Water Saving Measures'!D43","v":0},{"$f":"'9-1 Water Saving Measures'!E43","v":0},{"$f":"'9-1 Water Saving Measures'!K43","v":0},null,null,0,null,null,null,null,0,{"$error":"#DIV/0!"},{"$error":"#DIV/0!"}]
[null,null,35,{"$f":"'9-1 Water Saving Measures'!D44","v":0},{"$f":"'9-1 Water Saving Measures'!E44","v":0},{"$f":"'9-1 Water Saving Measures'!K44","v":0},null,null,0,null,null,null,null,0,{"$error":"#DIV/0!"},{"$error":"#DIV/0!"}]
[null,null,36,{"$f":"'9-1 Water Saving Measures'!D45","v":0},{"$f":"'9-1 Water Saving Measures'!E45","v":0},{"$f":"'9-1 Water Saving Measures'!K45","v":0},null,null,0,null,null,null,null,0,{"$error":"#DIV/0!"},{"$error":"#DIV/0!"}]
[null,null,37,{"$f":"'9-1 Water Saving Measures'!D46","v":0},{"$f":"'9-1 Water Saving Measures'!E46","v":0},{"$f":"'9-1 Water Saving Measures'!K46","v":0},null,null,0,null,null,null,null,0,{"$error":"#DIV/0!"},{"$error":"#DIV/0!"}]
[null,null,38,{"$f":"'9-1 Water Saving Measures'!D47","v":0},{"$f":"'9-1 Water Saving Measures'!E47","v":0},{"$f":"'9-1 Water Saving Measures'!K47","v":0},null,null,0,null,null,null,null,0,{"$error":"#DIV/0!"},{"$error":"#DIV/0!"}]
[null,null,39,{"$f":"'9-1 Water Saving Measures'!D48","v":0},{"$f":"'9-1 Water Saving Measures'!E48","v":0},{"$f":"'9-1 Water Saving Measures'!K48","v":0},null,null,0,null,null,null,null,0,{"$error":"#DIV/0!"},{"$error":"#DIV/0!"}]
[null,null,40,{"$f":"'9-1 Water Saving Measures'!D49","v":0},{"$f":"'9-1 Water Saving Measures'!E49","v":0},{"$f":"'9-1 Water Saving Measures'!K49","v":0},null,null,0,null,null,null,null,0,{"$error":"#DIV/0!"},{"$error":"#DIV/0!"}]
[null,null,41,{"$f":"'9-1 Water Saving Measures'!D50","v":0},{"$f":"'9-1 Water Saving Measures'!E50","v":0},{"$f":"'9-1 Water Saving Measures'!K50","v":0},null,null,0,null,null,null,null,0,{"$error":"#DIV/0!"},{"$error":"#DIV/0!"}]
[null,null,42,{"$f":"'9-1 Water Saving Measures'!D51","v":0},{"$f":"'9-1 Water Saving Measures'!E51","v":0},{"$f":"'9-1 Water Saving Measures'!K51","v":0},null,null,0,null,null,null,null,0,{"$error":"#DIV/0!"},{"$error":"#DIV/0!"}]
[null,null,43,{"$f":"'9-1 Water Saving Measures'!D52","v":0},{"$f":"'9-1 Water Saving Measures'!E52","v":0},{"$f":"'9-1 Water Saving Measures'!K52","v":0},null,null,0,null,null,null,null,0,{"$error":"#DIV/0!"},{"$error":"#DIV/0!"}]
[null,null,44,{"$f":"'9-1 Water Saving Measures'!D53","v":0},{"$f":"'9-1 Water Saving Measures'!E53","v":0},{"$f":"'9-1 Water Saving Measures'!K53","v":0},null,null,0,null,null,null,null,0,{"$error":"#DIV/0!"},{"$error":"#DIV/0!"}]
[null,null,45,{"$f":"'9-1 Water Saving Measures'!D54","v":0},{"$f":"'9-1 Water Saving Measures'!E54","v":0},{"$f":"'9-1 Water Saving Measures'!K54","v":0},null,null,0,null,null,null,null,0,{"$error":"#DIV/0!"},{"$error":"#DIV/0!"}]
[null,null,46,{"$f":"'9-1 Water Saving Measures'!D55","v":0},{"$f":"'9-1 Water Saving Measures'!E55","v":0},{"$f":"'9-1 Water Saving Measures'!K55","v":0},null,null,0,null,null,null,null,0,{"$error":"#DIV/0!"},{"$error":"#DIV/0!"}]
[null,null,47,{"$f":"'9-1 Water Saving Measures'!D56","v":0},{"$f":"'9-1 Water Saving Measures'!E56","v":0},{"$f":"'9-1 Water Saving Measures'!K56","v":0},null,null,0,null,null,null,null,0,{"$error":"#DIV/0!"},{"$error":"#DIV/0!"}]
[null,null,48,{"$f":"'9-1 Water Saving Measures'!D57","v":0},{"$f":"'9-1 Water Saving Measures'!E57","v":0},{"$f":"'9-1 Water Saving Measures'!K57","v":0},null,null,0,null,null,null,null,0,{"$error":"#DIV/0!"},{"$error":"#DIV/0!"}]
[null,null,49,{"$f":"'9-1 Water Saving Measures'!D58","v":0},{"$f":"'9-1 Water Saving Measures'!E58","v":0},{"$f":"'9-1 Water Saving Measures'!K58","v":0},null,null,0,null,null,null,null,0,{"$error":"#DIV/0!"},{"$error":"#DIV/0!"}]
[null,null,50,{"$f":"'9-1 Water Saving Measures'!D59","v":0},{"$f":"'9-1 Water Saving Measures'!E59","v":0},{"$f":"'9-1 Water Saving Measures'!K59","v":0},null,null,0,null,null,null,null,0,{"$error":"#DIV/0!"},{"$error":"#DIV/0!"}]

{"sheet":"9-3 Action Plan","index":19,"n_rows":60,"n_cols":18,"rows_kept":60,"cut":false,"hidden":false,"merged":[[5,2,5,3],[4,2,4,4],[8,2,8,8],[1,1,60,1],[8,13,8,17],[1,8,6,18],[7,18,60,18],[1,2,1,5],[6,2,6,7],[1,6,5,7],[2,2,2,4],[3,2,3,4]]}
[]
[null,null,"9-3 Water Saving Measures Action Plan "]
[null,null,"Current total water use (ML/year)",null,null,{"$f":"'1 Water Use Summary'!C5","v":0}]
[null,null,"Proposed water savings (ML/year)",null,null,{"$f":"SUMIF($D11:$D60,\"Yes\",G11:G60)","v":0}]
[null,null,"Percentage reduction (%)",null,null,{"$f":"F4/F3","v":{"$error":"#DIV/0!"}}]
[null,null,"Target",null,{"$f":"'1 Water Use Summary'!F10","v":"KPI (L/ )"},{"$f":"'1 Water Use Summary'!C7*(100%-F5)","v":{"$error":"#DIV/0!"}}]
[]
[null,null,"#","Implement?\nYes or No","End Use Category","Water Saving Measures \n(list individual measures or add/attach detailed work sheets)","Proposed project water savings\n(ML/year)","Current water use\n(ML/year)","Proposed water savings\n(%)","Total cost of works \n($)","Total savings\n($/yr)","Payback period\n(years)","Installed cost/unit\n($/kL saved)","Person responsible (nominate officer)","Target completion date","Date completed","Status","Comments & risks associated with measure "]
[null,null,null,null,null,null,null,null,null,{"$f":"SUMIF($D$11:$D$60,\"Yes\",J11:J60)","v":0},{"$f":"SUMIF($D$11:$D$60,\"Yes\",K11:K60)","v":0},{"$f":"J9/K9","v":{"$error":"#DIV/0!"}},{"$f":"J9/F4/1000","v":{"$error":"#DIV/0!"}}]
[null,null,null,"Imp","EndUse","WaterSave","TotalSavings"]
[null,null,1,null,{"$f":"'9-1 Water Saving Measures'!D10","v":0},{"$f":"'9-1 Water Saving Measures'!E10","v":0},{"$f":"'9-1 Water Saving Measures'!K10","v":0},{"$f":"'9-1 Water Saving Measures'!L10","v":{"$error":"#NAME?"}},{"$f":"IF(D11=\"No\",0,G11/H11)","v":{"$error":"#NAME?"}},{"$f":"'9-2 Economic Assessment'!I10","v":0},{"$f":"'9-2 Economic Assessment'!N10","v":0},{"$f":"J11/K11","v":{"$error":"#DIV/0!"}},{"$f":"J11/G11/1000","v":{"$error":"#DIV/0!"}}]
[null,null,2,null,{"$f":"'9-1 Water Saving Measures'!D11","v":0},{"$f":"'9-1 Water Saving Measures'!E11","v":0},{"$f":"'9-1 Water Saving Measures'!K11","v":0},{"$f":"'9-1 Water Saving Measures'!L11","v":{"$error":"#NAME?"}},{"$f":"IF(D12=\"No\",0,G12/H12)","v":{"$error":"#NAME?"}},{"$f":"'9-2 Economic Assessment'!I11","v":0},{"$f":"'9-2 Economic Assessment'!N11","v":0},{"$f":"J12/K12","v":{"$error":"#DIV/0!"}},{"$error":"#DIV/0!"}]
[null,null,3,null,{"$f":"'9-1 Water Saving Measures'!D12","v":0},{"$f":"'9-1 Water Saving Measures'!E12","v":0},{"$f":"'9-1 Water Saving Measures'!K12","v":0},{"$f":"'9-1 Water Saving Measures'!L12","v":{"$error":"#NAME?"}},{"$error":"#NAME?"},{"$f":"'9-2 Economic Assessment'!I12","v":0},{"$f":"'9-2 Economic Assessment'!N12","v":0},{"$error":"#DIV/0!"},{"$error":"#DIV/0!"}]
[null,null,4,null,{"$f":"'9-1 Water Saving Measures'!D13","v":0},{"$f":"'9-1 Water Saving Measures'!E13","v":0},{"$f":"'9-1 Water Saving Measures'!K13","v":0},{"$f":"'9-1 Water Saving Measures'!L13","v":{"$error":"#NAME?"}},{"$error":"#NAME?"},{"$f":"'9-2 Economic Assessment'!I13","v":0},{"$f":"'9-2 Economic Assessment'!N13","v":0},{"$error":"#DIV/0!"},{"$error":"#DIV/0!"}]
[null,null,5,null,{"$f":"'9-1 Water Saving Measures'!D14","v":0},{"$f":"'9-1 Water Saving Measures'!E14","v":0},{"$f":"'9-1 Water Saving Measures'!K14","v":0},{"$f":"'9-1 Water Saving Measures'!L14","v":{"$error":"#NAME?"}},{"$error":"#NAME?"},{"$f":"'9-2 Economic Assessment'!I14","v":0},{"$f":"'9-2 Economic Assessment'!N14","v":0},{"$error":"#DIV/0!"},{"$error":"#DIV/0!"}]
[null,null,6,null,{"$f":"'9-1 Water Saving Measures'!D15","v":0},{"$f":"'9-1 Water Saving Measures'!E15","v":0},{"$f":"'9-1 Water Saving Measures'!K15","v":0},{"$f":"'9-1 Water Saving Measures'!L15","v":{"$error":"#NAME?"}},{"$error":"#NAME?"},{"$f":"'9-2 Economic Assessment'!I15","v":0},{"$f":"'9-2 Economic Assessment'!N15","v":0},{"$error":"#DIV/0!"},{"$error":"#DIV/0!"}]
[null,null,7,null,{"$f":"'9-1 Water Saving Measures'!D16","v":0},{"$f":"'9-1 Water Saving Measures'!E16","v":0},{"$f":"'9-1 Water Saving Measures'!K16","v":0},{"$f":"'9-1 Water Saving Measures'!L16","v":{"$error":"#NAME?"}},{"$error":"#NAME?"},{"$f":"'9-2 Economic Assessment'!I16","v":0},{"$f":"'9-2 Economic Assessment'!N16","v":0},{"$error":"#DIV/0!"},{"$error":"#DIV/0!"}]
[null,null,8,null,{"$f":"'9-1 Water Saving Measures'!D17","v":0},{"$f":"'9-1 Water Saving Measures'!E17","v":0},{"$f":"'9-1 Water Saving Measures'!K17","v":0},{"$f":"'9-1 Water Saving Measures'!L17","v":{"$error":"#NAME?"}},{"$error":"#NAME?"},{"$f":"'9-2 Economic Assessment'!I17","v":0},{"$f":"'9-2 Economic Assessment'!N17","v":0},{"$error":"#DIV/0!"},{"$error":"#DIV/0!"}]
[null,null,9,null,{"$f":"'9-1 Water Saving Measures'!D18","v":0},{"$f":"'9-1 Water Saving Measures'!E18","v":0},{"$f":"'9-1 Water Saving Measures'!K18","v":0},{"$f":"'9-1 Water Saving Measures'!L18","v":{"$error":"#NAME?"}},{"$error":"#NAME?"},{"$f":"'9-2 Economic Assessment'!I18","v":0},{"$f":"'9-2 Economic Assessment'!N18","v":0},{"$error":"#DIV/0!"},{"$error":"#DIV/0!"}]
[null,null,10,null,{"$f":"'9-1 Water Saving Measures'!D19","v":0},{"$f":"'9-1 Water Saving Measures'!E19","v":0},{"$f":"'9-1 Water Saving Measures'!K19","v":0},{"$f":"'9-1 Water Saving Measures'!L19","v":{"$error":"#NAME?"}},{"$error":"#NAME?"},{"$f":"'9-2 Economic Assessment'!I19","v":0},{"$f":"'9-2 Economic Assessment'!N19","v":0},{"$error":"#DIV/0!"},{"$error":"#DIV/0!"}]
[null,null,11,null,{"$f":"'9-1 Water Saving Measures'!D20","v":0},{"$f":"'9-1 Water Saving Measures'!E20","v":0},{"$f":"'9-1 Water Saving Measures'!K20","v":0},{"$f":"'9-1 Water Saving Measures'!L20","v":{"$error":"#NAME?"}},{"$error":"#NAME?"},{"$f":"'9-2 Economic Assessment'!I20","v":0},{"$f":"'9-2 Economic Assessment'!N20","v":0},{"$error":"#DIV/0!"},{"$error":"#DIV/0!"}]
[null,null,12,null,{"$f":"'9-1 Water Saving Measures'!D21","v":0},{"$f":"'9-1 Water Saving Measures'!E21","v":0},{"$f":"'9-1 Water Saving Measures'!K21","v":0},{"$f":"'9-1 Water Saving Measures'!L21","v":{"$error":"#NAME?"}},{"$error":"#NAME?"},{"$f":"'9-2 Economic Assessment'!I21","v":0},{"$f":"'9-2 Economic Assessment'!N21","v":0},{"$error":"#DIV/0!"},{"$error":"#DIV/0!"}]
[null,null,13,null,{"$f":"'9-1 Water Saving Measures'!D22","v":0},{"$f":"'9-1 Water Saving Measures'!E22","v":0},{"$f":"'9-1 Water Saving Measures'!K22","v":0},{"$f":"'9-1 Water Saving Measures'!L22","v":{"$error":"#NAME?"}},{"$error":"#NAME?"},{"$f":"'9-2 Economic Assessment'!I22","v":0},{"$f":"'9-2 Economic Assessment'!N22","v":0},{"$error":"#DIV/0!"},{"$error":"#DIV/0!"}]
[null,null,14,null,{"$f":"'9-1 Water Saving Measures'!D23","v":0},{"$f":"'9-1 Water Saving Measures'!E23","v":0},{"$f":"'9-1 Water Saving Measures'!K23","v":0},{"$f":"'9-1 Water Saving Measures'!L23","v":{"$error":"#NAME?"}},{"$error":"#NAME?"},{"$f":"'9-2 Economic Assessment'!I23","v":0},{"$f":"'9-2 Economic Assessment'!N23","v":0},{"$error":"#DIV/0!"},{"$error":"#DIV/0!"}]
[null,null,15,null,{"$f":"'9-1 Water Saving Measures'!D24","v":0},{"$f":"'9-1 Water Saving Measures'!E24","v":0},{"$f":"'9-1 Water Saving Measures'!K24","v":0},{"$f":"'9-1 Water Saving Measures'!L24","v":{"$error":"#NAME?"}},{"$error":"#NAME?"},{"$f":"'9-2 Economic Assessment'!I24","v":0},{"$f":"'9-2 Economic Assessment'!N24","v":0},{"$error":"#DIV/0!"},{"$error":"#DIV/0!"}]
[null,null,16,null,{"$f":"'9-1 Water Saving Measures'!D25","v":0},{"$f":"'9-1 Water Saving Measures'!E25","v":0},{"$f":"'9-1 Water Saving Measures'!K25","v":0},{"$f":"'9-1 Water Saving Measures'!L25","v":{"$error":"#NAME?"}},{"$error":"#NAME?"},{"$f":"'9-2 Economic Assessment'!I25","v":0},{"$f":"'9-2 Economic Assessment'!N25","v":0},{"$error":"#DIV/0!"},{"$error":"#DIV/0!"}]
[null,null,17,null,{"$f":"'9-1 Water Saving Measures'!D26","v":0},{"$f":"'9-1 Water Saving Measures'!E26","v":0},{"$f":"'9-1 Water Saving Measures'!K26","v":0},{"$f":"'9-1 Water Saving Measures'!L26","v":{"$error":"#NAME?"}},{"$error":"#NAME?"},{"$f":"'9-2 Economic Assessment'!I26","v":0},{"$f":"'9-2 Economic Assessment'!N26","v":0},{"$error":"#DIV/0!"},{"$error":"#DIV/0!"}]
[null,null,18,null,{"$f":"'9-1 Water Saving Measures'!D27","v":0},{"$f":"'9-1 Water Saving Measures'!E27","v":0},{"$f":"'9-1 Water Saving Measures'!K27","v":0},{"$f":"'9-1 Water Saving Measures'!L27","v":{"$error":"#NAME?"}},{"$error":"#NAME?"},{"$f":"'9-2 Economic Assessment'!I27","v":0},{"$f":"'9-2 Economic Assessment'!N27","v":0},{"$error":"#DIV/0!"},{"$error":"#DIV/0!"}]
[null,null,19,null,{"$f":"'9-1 Water Saving Measures'!D28","v":0},{"$f":"'9-1 Water Saving Measures'!E28","v":0},{"$f":"'9-1 Water Saving Measures'!K28","v":0},{"$f":"'9-1 Water Saving Measures'!L28","v":{"$error":"#NAME?"}},{"$error":"#NAME?"},{"$f":"'9-2 Economic Assessment'!I28","v":0},{"$f":"'9-2 Economic Assessment'!N28","v":0},{"$error":"#DIV/0!"},{"$error":"#DIV/0!"}]
[null,null,20,null,{"$f":"'9-1 Water Saving Measures'!D29","v":0},{"$f":"'9-1 Water Saving Measures'!E29","v":0},{"$f":"'9-1 Water Saving Measures'!K29","v":0},{"$f":"'9-1 Water Saving Measures'!L29","v":{"$error":"#NAME?"}},{"$error":"#NAME?"},{"$f":"'9-2 Economic Assessment'!I29","v":0},{"$f":"'9-2 Economic Assessment'!N29","v":0},{"$error":"#DIV/0!"},{"$error":"#DIV/0!"}]
[null,null,21,null,{"$f":"'9-1 Water Saving Measures'!D30","v":0},{"$f":"'9-1 Water Saving Measures'!E30","v":0},{"$f":"'9-1 Water Saving Measures'!K30","v":0},{"$f":"'9-1 Water Saving Measures'!L30","v":{"$error":"#NAME?"}},{"$error":"#NAME?"},{"$f":"'9-2 Economic Assessment'!I30","v":0},{"$f":"'9-2 Economic Assessment'!N30","v":0},{"$error":"#DIV/0!"},{"$error":"#DIV/0!"}]
[null,null,22,null,{"$f":"'9-1 Water Saving Measures'!D31","v":0},{"$f":"'9-1 Water Saving Measures'!E31","v":0},{"$f":"'9-1 Water Saving Measures'!K31","v":0},{"$f":"'9-1 Water Saving Measures'!L31","v":{"$error":"#NAME?"}},{"$error":"#NAME?"},{"$f":"'9-2 Economic Assessment'!I31","v":0},{"$f":"'9-2 Economic Assessment'!N31","v":0},{"$error":"#DIV/0!"},{"$error":"#DIV/0!"}]
[null,null,23,null,{"$f":"'9-1 Water Saving Measures'!D32","v":0},{"$f":"'9-1 Water Saving Measures'!E32","v":0},{"$f":"'9-1 Water Saving Measures'!K32","v":0},{"$f":"'9-1 Water Saving Measures'!L32","v":{"$error":"#NAME?"}},{"$error":"#NAME?"},{"$f":"'9-2 Economic Assessment'!I32","v":0},{"$f":"'9-2 Economic Assessment'!N32","v":0},{"$error":"#DIV/0!"},{"$error":"#DIV/0!"}]
[null,null,24,null,{"$f":"'9-1 Water Saving Measures'!D33","v":0},{"$f":"'9-1 Water Saving Measures'!E33","v":0},{"$f":"'9-1 Water Saving Measures'!K33","v":0},{"$f":"'9-1 Water Saving Measures'!L33","v":{"$error":"#NAME?"}},{"$error":"#NAME?"},{"$f":"'9-2 Economic Assessment'!I33","v":0},{"$f":"'9-2 Economic Assessment'!N33","v":0},{"$error":"#DIV/0!"},{"$error":"#DIV/0!"}]
[null,null,25,null,{"$f":"'9-1 Water Saving Measures'!D34","v":0},{"$f":"'9-1 Water Saving Measures'!E34","v":0},{"$f":"'9-1 Water Saving Measures'!K34","v":0},{"$f":"'9-1 Water Saving Measures'!L34","v":{"$error":"#NAME?"}},{"$error":"#NAME?"},{"$f":"'9-2 Economic Assessment'!I34","v":0},{"$f":"'9-2 Economic Assessment'!N34","v":0},{"$error":"#DIV/0!"},{"$error":"#DIV/0!"}]
[null,null,26,null,{"$f":"'9-1 Water Saving Measures'!D35","v":0},{"$f":"'9-1 Water Saving Measures'!E35","v":0},{"$f":"'9-1 Water Saving Measures'!K35","v":0},{"$f":"'9-1 Water Saving Measures'!L35","v":{"$error":"#NAME?"}},{"$error":"#NAME?"},{"$f":"'9-2 Economic Assessment'!I35","v":0},{"$f":"'9-2 Economic Assessment'!N35","v":0},{"$error":"#DIV/0!"},{"$error":"#DIV/0!"}]
[null,null,27,null,{"$f":"'9-1 Water Saving Measures'!D36","v":0},{"$f":"'9-1 Water Saving Measures'!E36","v":0},{"$f":"'9-1 Water Saving Measures'!K36","v":0},{"$f":"'9-1 Water Saving Measures'!L36","v":{"$error":"#NAME?"}},{"$error":"#NAME?"},{"$f":"'9-2 Economic Assessment'!I36","v":0},{"$f":"'9-2 Economic Assessment'!N36","v":0},{"$error":"#DIV/0!"},{"$error":"#DIV/0!"}]
[null,null,28,null,{"$f":"'9-1 Water Saving Measures'!D37","v":0},{"$f":"'9-1 Water Saving Measures'!E37","v":0},{"$f":"'9-1 Water Saving Measures'!K37","v":0},{"$f":"'9-1 Water Saving Measures'!L37","v":{"$error":"#NAME?"}},{"$error":"#NAME?"},{"$f":"'9-2 Economic Assessment'!I37","v":0},{"$f":"'9-2 Economic Assessment'!N37","v":0},{"$error":"#DIV/0!"},{"$error":"#DIV/0!"}]
[null,null,29,null,{"$f":"'9-1 Water Saving Measures'!D38","v":0},{"$f":"'9-1 Water Saving Measures'!E38","v":0},{"$f":"'9-1 Water Saving Measures'!K38","v":0},{"$f":"'9-1 Water Saving Measures'!L38","v":{"$error":"#NAME?"}},{"$error":"#NAME?"},{"$f":"'9-2 Economic Assessment'!I38","v":0},{"$f":"'9-2 Economic Assessment'!N38","v":0},{"$error":"#DIV/0!"},{"$error":"#DIV/0!"}]
[null,null,30,null,{"$f":"'9-1 Water Saving Measures'!D39","v":0},{"$f":"'9-1 Water Saving Measures'!E39","v":0},{"$f":"'9-1 Water Saving Measures'!K39","v":0},{"$f":"'9-1 Water Saving Measures'!L39","v":{"$error":"#NAME?"}},{"$error":"#NAME?"},{"$f":"'9-2 Economic Assessment'!I39","v":0},{"$f":"'9-2 Economic Assessment'!N39","v":0},{"$error":"#DIV/0!"},{"$error":"#DIV/0!"}]
[null,null,31,null,{"$f":"'9-1 Water Saving Measures'!D40","v":0},{"$f":"'9-1 Water Saving Measures'!E40","v":0},{"$f":"'9-1 Water Saving Measures'!K40","v":0},{"$f":"'9-1 Water Saving Measures'!L40","v":{"$error":"#NAME?"}},{"$error":"#NAME?"},{"$f":"'9-2 Economic Assessment'!I40","v":0},{"$f":"'9-2 Economic Assessment'!N40","v":0},{"$error":"#DIV/0!"},{"$error":"#DIV/0!"}]
[null,null,32,null,{"$f":"'9-1 Water Saving Measures'!D41","v":0},{"$f":"'9-1 Water Saving Measures'!E41","v":0},{"$f":"'9-1 Water Saving Measures'!K41","v":0},{"$f":"'9-1 Water Saving Measures'!L41","v":{"$error":"#NAME?"}},{"$error":"#NAME?"},{"$f":"'9-2 Economic Assessment'!I41","v":0},{"$f":"'9-2 Economic Assessment'!N41","v":0},{"$error":"#DIV/0!"},{"$error":"#DIV/0!"}]
[null,null,33,null,{"$f":"'9-1 Water Saving Measures'!D42","v":0},{"$f":"'9-1 Water Saving Measures'!E42","v":0},{"$f":"'9-1 Water Saving Measures'!K42","v":0},{"$f":"'9-1 Water Saving Measures'!L42","v":{"$error":"#NAME?"}},{"$error":"#NAME?"},{"$f":"'9-2 Economic Assessment'!I42","v":0},{"$f":"'9-2 Economic Assessment'!N42","v":0},{"$error":"#DIV/0!"},{"$f":"J43/G43/1000","v":{"$error":"#DIV/0!"}}]
[null,null,34,null,{"$f":"'9-1 Water Saving Measures'!D43","v":0},{"$f":"'9-1 Water Saving Measures'!E43","v":0},{"$f":"'9-1 Water Saving Measures'!K43","v":0},{"$f":"'9-1 Water Saving Measures'!L43","v":{"$error":"#NAME?"}},{"$error":"#NAME?"},{"$f":"'9-2 Economic Assessment'!I43","v":0},{"$f":"'9-2 Economic Assessment'!N43","v":0},{"$error":"#DIV/0!"},{"$error":"#DIV/0!"}]
[null,null,35,null,{"$f":"'9-1 Water Saving Measures'!D44","v":0},{"$f":"'9-1 Water Saving Measures'!E44","v":0},{"$f":"'9-1 Water Saving Measures'!K44","v":0},{"$f":"'9-1 Water Saving Measures'!L44","v":{"$error":"#NAME?"}},{"$error":"#NAME?"},{"$f":"'9-2 Economic Assessment'!I44","v":0},{"$f":"'9-2 Economic Assessment'!N44","v":0},{"$error":"#DIV/0!"},{"$error":"#DIV/0!"}]
[null,null,36,null,{"$f":"'9-1 Water Saving Measures'!D45","v":0},{"$f":"'9-1 Water Saving Measures'!E45","v":0},{"$f":"'9-1 Water Saving Measures'!K45","v":0},{"$f":"'9-1 Water Saving Measures'!L45","v":{"$error":"#NAME?"}},{"$error":"#NAME?"},{"$f":"'9-2 Economic Assessment'!I45","v":0},{"$f":"'9-2 Economic Assessment'!N45","v":0},{"$error":"#DIV/0!"},{"$error":"#DIV/0!"}]
[null,null,37,null,{"$f":"'9-1 Water Saving Measures'!D46","v":0},{"$f":"'9-1 Water Saving Measures'!E46","v":0},{"$f":"'9-1 Water Saving Measures'!K46","v":0},{"$f":"'9-1 Water Saving Measures'!L46","v":{"$error":"#NAME?"}},{"$error":"#NAME?"},{"$f":"'9-2 Economic Assessment'!I46","v":0},{"$f":"'9-2 Economic Assessment'!N46","v":0},{"$error":"#DIV/0!"},{"$error":"#DIV/0!"}]
[null,null,38,null,{"$f":"'9-1 Water Saving Measures'!D47","v":0},{"$f":"'9-1 Water Saving Measures'!E47","v":0},{"$f":"'9-1 Water Saving Measures'!K47","v":0},{"$f":"'9-1 Water Saving Measures'!L47","v":{"$error":"#NAME?"}},{"$error":"#NAME?"},{"$f":"'9-2 Economic Assessment'!I47","v":0},{"$f":"'9-2 Economic Assessment'!N47","v":0},{"$error":"#DIV/0!"},{"$error":"#DIV/0!"}]
[null,null,39,null,{"$f":"'9-1 Water Saving Measures'!D48","v":0},{"$f":"'9-1 Water Saving Measures'!E48","v":0},{"$f":"'9-1 Water Saving Measures'!K48","v":0},{"$f":"'9-1 Water Saving Measures'!L48","v":{"$error":"#NAME?"}},{"$error":"#NAME?"},{"$f":"'9-2 Economic Assessment'!I48","v":0},{"$f":"'9-2 Economic Assessment'!N48","v":0},{"$error":"#DIV/0!"},{"$error":"#DIV/0!"}]
[null,null,40,null,{"$f":"'9-1 Water Saving Measures'!D49","v":0},{"$f":"'9-1 Water Saving Measures'!E49","v":0},{"$f":"'9-1 Water Saving Measures'!K49","v":0},{"$f":"'9-1 Water Saving Measures'!L49","v":{"$error":"#NAME?"}},{"$error":"#NAME?"},{"$f":"'9-2 Economic Assessment'!I49","v":0},{"$f":"'9-2 Economic Assessment'!N49","v":0},{"$error":"#DIV/0!"},{"$error":"#DIV/0!"}]
[null,null,41,null,{"$f":"'9-1 Water Saving Measures'!D50","v":0},{"$f":"'9-1 Water Saving Measures'!E50","v":0},{"$f":"'9-1 Water Saving Measures'!K50","v":0},{"$f":"'9-1 Water Saving Measures'!L50","v":{"$error":"#NAME?"}},{"$error":"#NAME?"},{"$f":"'9-2 Economic Assessment'!I50","v":0},{"$f":"'9-2 Economic Assessment'!N50","v":0},{"$error":"#DIV/0!"},{"$error":"#DIV/0!"}]
[null,null,42,null,{"$f":"'9-1 Water Saving Measures'!D51","v":0},{"$f":"'9-1 Water Saving Measures'!E51","v":0},{"$f":"'9-1 Water Saving Measures'!K51","v":0},{"$f":"'9-1 Water Saving Measures'!L51","v":{"$error":"#NAME?"}},{"$error":"#NAME?"},{"$f":"'9-2 Economic Assessment'!I51","v":0},{"$f":"'9-2 Economic Assessment'!N51","v":0},{"$error":"#DIV/0!"},{"$error":"#DIV/0!"}]
[null,null,43,null,{"$f":"'9-1 Water Saving Measures'!D52","v":0},{"$f":"'9-1 Water Saving Measures'!E52","v":0},{"$f":"'9-1 Water Saving Measures'!K52","v":0},{"$f":"'9-1 Water Saving Measures'!L52","v":{"$error":"#NAME?"}},{"$error":"#NAME?"},{"$f":"'9-2 Economic Assessment'!I52","v":0},{"$f":"'9-2 Economic Assessment'!N52","v":0},{"$error":"#DIV/0!"},{"$error":"#DIV/0!"}]
[null,null,44,null,{"$f":"'9-1 Water Saving Measures'!D53","v":0},{"$f":"'9-1 Water Saving Measures'!E53","v":0},{"$f":"'9-1 Water Saving Measures'!K53","v":0},{"$f":"'9-1 Water Saving Measures'!L53","v":{"$error":"#NAME?"}},{"$error":"#NAME?"},{"$f":"'9-2 Economic Assessment'!I53","v":0},{"$f":"'9-2 Economic Assessment'!N53","v":0},{"$error":"#DIV/0!"},{"$error":"#DIV/0!"}]
[null,null,45,null,{"$f":"'9-1 Water Saving Measures'!D54","v":0},{"$f":"'9-1 Water Saving Measures'!E54","v":0},{"$f":"'9-1 Water Saving Measures'!K54","v":0},{"$f":"'9-1 Water Saving Measures'!L54","v":{"$error":"#NAME?"}},{"$error":"#NAME?"},{"$f":"'9-2 Economic Assessment'!I54","v":0},{"$f":"'9-2 Economic Assessment'!N54","v":0},{"$error":"#DIV/0!"},{"$error":"#DIV/0!"}]
[null,null,46,null,{"$f":"'9-1 Water Saving Measures'!D55","v":0},{"$f":"'9-1 Water Saving Measures'!E55","v":0},{"$f":"'9-1 Water Saving Measures'!K55","v":0},{"$f":"'9-1 Water Saving Measures'!L55","v":{"$error":"#NAME?"}},{"$error":"#NAME?"},{"$f":"'9-2 Economic Assessment'!I55","v":0},{"$f":"'9-2 Economic Assessment'!N55","v":0},{"$error":"#DIV/0!"},{"$error":"#DIV/0!"}]
[null,null,47,null,{"$f":"'9-1 Water Saving Measures'!D56","v":0},{"$f":"'9-1 Water Saving Measures'!E56","v":0},{"$f":"'9-1 Water Saving Measures'!K56","v":0},{"$f":"'9-1 Water Saving Measures'!L56","v":{"$error":"#NAME?"}},{"$error":"#NAME?"},{"$f":"'9-2 Economic Assessment'!I56","v":0},{"$f":"'9-2 Economic Assessment'!N56","v":0},{"$error":"#DIV/0!"},{"$error":"#DIV/0!"}]
[null,null,48,null,{"$f":"'9-1 Water Saving Measures'!D57","v":0},{"$f":"'9-1 Water Saving Measures'!E57","v":0},{"$f":"'9-1 Water Saving Measures'!K57","v":0},{"$f":"'9-1 Water Saving Measures'!L57","v":{"$error":"#NAME?"}},{"$error":"#NAME?"},{"$f":"'9-2 Economic Assessment'!I57","v":0},{"$f":"'9-2 Economic Assessment'!N57","v":0},{"$error":"#DIV/0!"},{"$error":"#DIV/0!"}]
[null,null,49,null,{"$f":"'9-1 Water Saving Measures'!D58","v":0},{"$f":"'9-1 Water Saving Measures'!E58","v":0},{"$f":"'9-1 Water Saving Measures'!K58","v":0},{"$f":"'9-1 Water Saving Measures'!L58","v":{"$error":"#NAME?"}},{"$error":"#NAME?"},{"$f":"'9-2 Economic Assessment'!I58","v":0},{"$f":"'9-2 Economic Assessment'!N58","v":0},{"$error":"#DIV/0!"},{"$error":"#DIV/0!"}]
[null,null,50,null,{"$f":"'9-1 Water Saving Measures'!D59","v":0},{"$f":"'9-1 Water Saving Measures'!E59","v":0},{"$f":"'9-1 Water Saving Measures'!K59","v":0},{"$f":"'9-1 Water Saving Measures'!L59","v":{"$error":"#NAME?"}},null,{"$f":"'9-2 Economic Assessment'!I59","v":0},{"$f":"'9-2 Economic Assessment'!N59","v":0},{"$error":"#DIV/0!"},{"$error":"#DIV/0!"}]

{"sheet":"Data","index":20,"n_rows":20,"n_cols":6,"rows_kept":20,"cut":false,"hidden":true,"merged":[]}
["End Uses",null,"Discount Rate","Cost of Energy($/kWh)","Cost per degree change per Litre ($)","Incoming water Temperature (degrees C)"]
["Toilets",null,0.08,2.56,1.4337021111111113E-4,20]
["Taps"]
["Showers"]
["Urinals - individual"]
["Urinals - trough"]
["Airconditioning"]
["Washing Machine"]
["Dishwasher"]
["Swimming Pool, Spa"]
["Irrigation"]
["Ice Maker"]
["Spray Rinse Valve"]
["Washdown"]
["Wok System"]
["Commercial Sink"]
["Industrial / Manufacturing Process"]
["Leakage"]
["Fire Testing"]
["Other Use"]